Workbook

Sheet OPNA
B2: Þetta líkan er eign Byggðastofnunar, gert af CAPACENT, og er öllum frjálst til afnota við gerð rekstrar- og viðskiptaáætlana.
B6: Viðskiptavinir Byggðastofnunar eru hvattir til að nýta sér möguleika líkansins, en líkanið býður upp á rekstraráætlun til fimm ára, þróun efnahagsreiknings, áætlað sjóðstreymi, næmisgreiningu sem og verðmat.
B10: Með notkun á forritinu samþykkir þú eftirfarandi:
B11: - | C11: að afrita ekki líkanið í öðrum tilgangi en að framan greinir.
B12: - | C12: að Impra eða CAPACENT ábyrgist á engan hátt niðurstöður áætlana eða tjón er leiða kann af notkun líkansins hvort sem það er afleiðing af villum sem upp kunna að koma eða öðrum atvikum.

Sheet Adstod
A1: =Forsendur!$C$5 -> Nafn fyrirtækis
A4: Almennar upplýsingar
B46: Annað í valmynd
A60: Grunnforsendur áætlunarinnar
B64: Grunnforsendur
B69: Rekstrarreikningur - Opnunarstaða
B74: Sjóðstreymi - Opnunarstaða
B79: Forsendur fyrninga
B84: Forsendur lána
A89: Rekstraráætlun
B94: Tekjur
B99: Kostnaður
B110: Til athugunar
A116: Fyrningar
B123: Stofn efnahagur
B129: Grunnforsendur
B147: Keyptar eignir
B151: Seldar eignir
B160: Ný eign/eignarlfokkur
A164: Langtímalán
B169: Stofn efnahagur
B174: Grunnforsendur
B184: Ný lán
B188: Afborganir lána
B203: Vextir
B211: Nýtt lán/lánaflokkur
A215: Efnahagur
B219: Almenna reglan
B234: Skammtímakröfur, Birgðir, Skammtímaskuldir, Ógreiddur kostnaður og aðrar skammtímask.
B245: Reiknaður tekjuskattur
B257: VSK skuldbinding
B271: Vaxtaútreikningur
A279: Ársreikningur
A290: Næmisgreining
B295: Forsendur næmisgreiningar
B301: Liður til næmisgreiningar
B309: Niðurstöður næmisgreiningar
A319: Verðmat
B326: Útreikningur á verðmæti
B339: Forsendur núvirðisútreiknings
B360: Næmisgreining
A369: Myndir
A382: Nánari sundurliðun

Sheet Forsendur
A1: =$C$5 -> Nafn fyrirtækis
A3: Gunnforsendur
B5: Fyrirtæki | C5: Nafn fyrirtækis
B6: Upphafsár áætlunar | C6: 2016
B7: Númer fyrsta mánaðar ársins | C7: 1
A9: REKSTRARREIKNINGUR - OPNUNARSTAÐA
C10: Skýr. | D10: =IF(Forsendur!$C$7=1,"Árið "&Forsendur!$C$6-1,"Árið "&Forsendur!$C$6-1&"-"&Forsendur!$C$6) -> Árið 2015
B11: REKSTRARTEKJUR
B13: =+Rekstur!B7 -> Tekjuliður no 1 | C13: 1
B14: =+Rekstur!B21 -> Tekjuliður no 2 | C14: 2
B15: =+Rekstur!B35 -> Tekjuliður no 3 | C15: 3
B16: =+Rekstur!B49 -> Tekjuliður no 4 | C16: 4
D17: =SUM(D13:D16) -> 0
B19: REKSTRARGJÖLD:
B20: =+Rekstur!B67 -> Kostnaður á einingu | C20: 5
B22: Framlegð I (Gross Profit) | D22: =D17-D20 -> 0
B23: =+Rekstur!B76 -> Laun og launatengd gjöld | C23: 6
B24: =+Rekstur!B92 -> Kostnaðarliður no 2 | C24: 7
B25: =+Rekstur!B100 -> Kostnaðarliður no 3 | C25: 8
B26: =+Rekstur!B108 -> Kostnaðarliður no 4 | C26: 9
D28: =SUM(D23:D27) -> 0
B29: Rekstrarafk. án afskr. og fjárm.l. (EBITDA) | D29: =+D22-D28 -> 0
B30: Afskriftir | C30: 10 | D30: =SUMIF(Fyrningar!$G$1:$G$62,$C$30,Fyrningar!I$1:I$62) -> 0
B32: Rekstrarafkoma án fjármagnsliða (EBIT) | D32: =D29-D30 -> 0
B34: FJÁRMUNATEKJUR OG (FJÁRMAGNSGJÖLD):
B36: Vaxtatekjur
B37: Vaxtagjöld
C38: 11 | D38: =SUM(D36:D37) -> 0
B40: ÓREGLULEGAR TEKJUR OG (GJÖLD):
B42: Hagnaður (Tap) af sölu varanl.rekstr.fjm | C42: 12
D43: =SUM(D42:D42) -> 0
B45: Rekstrarafkoma fyrir skatta | D45: =D32+D38+D43 -> 0
B46: Tekjuskattur | C46: 13
B48: REKSTRARNIÐURSTAÐA | D48: =SUM(D45:D46) -> 0
A50: SJÓÐSTREYMI - OPNUNARSTAÐA
C51: Skýr. | D51: =+D10 -> Árið 2015
B52: HANDBÆRT FÉ (TIL) FRÁ REKSTRI:
B54: Hagnaður (tap) samkvæmt rekstrarr | D54: =+Arsreikningur!F43 -> 0
B55: Rekstrarliðir sem hafa ekki áhrif á fjárstreymi:
B56: Afskriftir | C56: =+Arsreikningur!E108 -> 10 | D56: =+Arsreikningur!F25 -> 0
B57: Tekjuskattsskuldbinding, breyting | C57: =+Arsreikningur!E109 -> 13
B58: Tap, (hagnaður) af sölu eigna | C58: =+Arsreikningur!E110 -> 12
B59: Veltufé (til) frá rekstri | D59: =SUM(D54:D58) -> 0
B60: Breyting á rekstrartengdum eignum og skuldum:
B61: Skammtímakröfur, lækkun (hækkun) | C61: =+Arsreikningur!E113 -> 14
B62: Birgðir
B63: Breyting á VSK skuldbindingu | C63: =+Arsreikningur!E115 -> 34
B64: Skammtímask, (lækkun) hækkun | C64: =+Arsreikningur!E116 -> 13,16,17
B65: Breyting á rekstrartengdum eignum og skuldum | D65: =SUM(D61:D64) -> 0
B67: Handbært fé (til) frá rekstri | D67: =D65+D59 -> 0
B69: FJÁRFESTINGARHREYFINGAR:
B71: Eignarhlutir í öðrum félögum, breyting
B72: Skuldabréfaeign, breyting
B73: Fjárfesting í varanlegum rekstrarfjármunum:
B74: =+B99 -> Fyrningaflokkur 1 | C74: =+Arsreikningur!E126 -> 16
B75: =+B100 -> Fyrningaflokkur 2 | C75: =+Arsreikningur!E127 -> 17
B76: =+B101 -> Fyrningaflokkur 3 | C76: =+Arsreikningur!E128 -> 18
B77: Sala á varanlegum rekstrarfjármunum
B78: =+B102 -> Óefnislegt | C78: =+Arsreikningur!E130 -> 19
B79: Fjárfestingarhreyfingar | C79: =+Arsreikningur!E131 -> 12 | D79: =SUM(D71:D78) -> 0
B81: FJÁRMÖGNUNARHREYFINGAR:
B82: Skuld við banka, hækkun, (lækkun)
B83: Ný langtímalán
B84: Afborgun af langtímalánum
B85: Greiddur arður til hluthafa | C85: =+Arsreikningur!E137 -> 18
B86: Innborgað nýtt hlutafé | C86: =+Arsreikningur!E138 -> 19
B87: Fjármögnunarhreyfingar | D87: =SUM(D82:D86) -> 0
B89: Hækkun (Lækkun) á handbæru fé | D89: =D87+D79+D67 -> 0
B90: Handbært fé (fjárþörf) í ársbyrjun
B91: Handbært fé (fjárþörf) í árslok | C91: =+Arsreikningur!E143 -> 13 | D91: =D90+D89 -> 0
A93: Forsendur fyrninga
B95: Stofn til fyrningar:
B96: Bókfært verðmæti
B97: Stofnverðmæti
B98: Fyrningaflokkar: | C98: Skýringar númer
B99: Fyrningaflokkur 1 | C99: 16
B100: Fyrningaflokkur 2 | C100: 17
B101: Fyrningaflokkur 3 | C101: 18
B102: Óefnislegt | C102: 19
A104: Forsendur lána
B106: Lánaflokkar: | C106: Skýringar númer
B107: Lánaflokkur 1 | C107: 25
B108: Lánaflokkur 2 | C108: 26
B109: Lánaflokkur 3 | C109: 27

Sheet Rekstur
A1: =Forsendur!$C$5 -> Nafn fyrirtækis
C3: Skýr. | F3: =Efnahagur!H3 -> Jan 2016 | G3: =Efnahagur!I3 -> Feb 2016 | H3: =Efnahagur!J3 -> Mar 2016 | I3: =Efnahagur!K3 -> Apr 2016 | J3: =Efnahagur!L3 -> Maí 2016 | K3: =Efnahagur!M3 -> Jún 2016 | L3: =Efnahagur!N3 -> Júl 2016 | M3: =Efnahagur!O3 -> Ágú 2016 | N3: =Efnahagur!P3 -> Sep 2016 | O3: =Efnahagur!Q3 -> Okt 2016 | P3: =Efnahagur!R3 -> Nóv 2016 | Q3: =Efnahagur!S3 -> Des 2016 | R3: =Efnahagur!T3 -> Árið 2016 | S3: =Efnahagur!U3 -> Jan 2017 | T3: =Efnahagur!V3 -> Feb 2017 | U3: =Efnahagur!W3 -> Mar 2017 | V3: =Efnahagur!X3 -> Apr 2017 | W3: =Efnahagur!Y3 -> Maí 2017 | X3: =Efnahagur!Z3 -> Jún 2017 | Y3: =Efnahagur!AA3 -> Júl 2017 | Z3: =Efnahagur!AB3 -> Ágú 2017 | AA3: =Efnahagur!AC3 -> Sep 2017 | AB3: =Efnahagur!AD3 -> Okt 2017 | AC3: =Efnahagur!AE3 -> Nóv 2017 | AD3: =Efnahagur!AF3 -> Des 2017 | AE3: =Efnahagur!AG3 -> Árið 2017 | AF3: =Efnahagur!AH3 -> Árið 2018 | AG3: =Efnahagur!AI3 -> Árið 2019 | AH3: =Efnahagur!AJ3 -> Árið 2020
B4: Vegna vaxtar í launum | F4: 1 | G4: =F4+1 -> 2 | H4: =G4+1 -> 3 | I4: 4 | J4: 5 | K4: 6 | L4: 7 | M4: 8 | N4: 9 | O4: 10 | P4: 11 | Q4: 12 | S4: =Q4+1 -> 13 | T4: 14 | U4: 15 | V4: 16 | W4: 17 | X4: 18 | Y4: 19 | Z4: 20 | AA4: 21 | AB4: 22 | AC4: 23 | AD4: 24 | AF4: 3 | AG4: 4 | AH4: 5
A5: TEKJUR
B7: Tekjuliður no 1
B9: Fjöldi eininga
B10: Liður 1 | R10: =SUM(F10:Q10) -> 0 | AE10: =SUM(S10:AD10) -> 0
B11: Liður 2 | R11: =SUM(F11:Q11) -> 0 | AE11: =SUM(S11:AD11) -> 0
B12: Liður 3 | R12: 0 | AE12: 0
B13: Liður 4 | R13: 0 | AE13: 0
B14: Tekjur | D14: Verð í kr.
B15: Liður 1 | E15: kr. | F15: =F10*$D15/1000 -> 0 | G15: 0 | H15: 0 | I15: 0 | J15: 0 | K15: 0 | L15: 0 | M15: 0 | N15: 0 | O15: 0 | P15: 0 | Q15: 0 | R15: 0 | S15: =S10*$D15/1000 -> 0 | T15: 0 | U15: 0 | V15: 0 | W15: 0 | X15: 0 | Y15: 0 | Z15: 0 | AA15: 0 | AB15: 0 | AC15: 0 | AD15: 0 | AE15: 0 | AF15: =AF10*$D15/1000 -> 0 | AG15: 0 | AH15: 0
B16: Liður 2 | E16: kr. | F16: =F11*$D16/1000 -> 0 | G16: 0 | H16: 0 | I16: 0 | J16: 0 | K16: 0 | L16: 0 | M16: 0 | N16: 0 | O16: 0 | P16: 0 | Q16: 0 | R16: 0 | S16: =S11*$D16/1000 -> 0 | T16: 0 | U16: 0 | V16: 0 | W16: 0 | X16: 0 | Y16: 0 | Z16: 0 | AA16: 0 | AB16: 0 | AC16: 0 | AD16: 0 | AE16: 0 | AF16: 0 | AG16: 0 | AH16: 0
B17: Liður 3 | E17: kr. | F17: =F12*$D17/1000 -> 0 | G17: 0 | H17: 0 | I17: 0 | J17: 0 | K17: 0 | L17: 0 | M17: 0 | N17: 0 | O17: 0 | P17: 0 | Q17: 0 | R17: 0 | S17: =S12*$D17/1000 -> 0 | T17: 0 | U17: 0 | V17: 0 | W17: 0 | X17: 0 | Y17: 0 | Z17: 0 | AA17: 0 | AB17: 0 | AC17: 0 | AD17: 0 | AE17: 0 | AF17: 0 | AG17: 0 | AH17: 0
B18: Liður 4 | E18: kr. | F18: =F13*$D18/1000 -> 0 | G18: 0 | H18: 0 | I18: 0 | J18: 0 | K18: 0 | L18: 0 | M18: 0 | N18: 0 | O18: 0 | P18: 0 | Q18: 0 | R18: 0 | S18: =S13*$D18/1000 -> 0 | T18: 0 | U18: 0 | V18: 0 | W18: 0 | X18: 0 | Y18: 0 | Z18: 0 | AA18: 0 | AB18: 0 | AC18: 0 | AD18: 0 | AE18: 0 | AF18: 0 | AG18: 0 | AH18: 0
B19: Samtals | C19: 1 | F19: =SUM(F15:F18)*IF(Naemi!$C$7=1,1+Naemi!$C$50,1) -> 0 | G19: =SUM(G15:G18)*IF(Naemi!$C$7=1,1+Naemi!$C$50,1) -> 0 | H19: =SUM(H15:H18)*IF(Naemi!$C$7=1,1+Naemi!$C$50,1) -> 0 | I19: =SUM(I15:I18)*IF(Naemi!$C$7=1,1+Naemi!$C$50,1) -> 0 | J19: =SUM(J15:J18)*IF(Naemi!$C$7=1,1+Naemi!$C$50,1) -> 0 | K19: =SUM(K15:K18)*IF(Naemi!$C$7=1,1+Naemi!$C$50,1) -> 0 | L19: =SUM(L15:L18)*IF(Naemi!$C$7=1,1+Naemi!$C$50,1) -> 0 | M19: =SUM(M15:M18)*IF(Naemi!$C$7=1,1+Naemi!$C$50,1) -> 0 | N19: =SUM(N15:N18)*IF(Naemi!$C$7=1,1+Naemi!$C$50,1) -> 0 | O19: =SUM(O15:O18)*IF(Naemi!$C$7=1,1+Naemi!$C$50,1) -> 0 | P19: =SUM(P15:P18)*IF(Naemi!$C$7=1,1+Naemi!$C$50,1) -> 0 | Q19: =SUM(Q15:Q18)*IF(Naemi!$C$7=1,1+Naemi!$C$50,1) -> 0 | R19: 0 | S19: =SUM(S15:S18)*IF(Naemi!$C$7=1,1+Naemi!$C$50,1) -> 0 | T19: =SUM(T15:T18)*IF(Naemi!$C$7=1,1+Naemi!$C$50,1) -> 0 | U19: =SUM(U15:U18)*IF(Naemi!$C$7=1,1+Naemi!$C$50,1) -> 0 | V19: =SUM(V15:V18)*IF(Naemi!$C$7=1,1+Naemi!$C$50,1) -> 0 | W19: =SUM(W15:W18)*IF(Naemi!$C$7=1,1+Naemi!$C$50,1) -> 0 | X19: =SUM(X15:X18)*IF(Naemi!$C$7=1,1+Naemi!$C$50,1) -> 0 | Y19: =SUM(Y15:Y18)*IF(Naemi!$C$7=1,1+Naemi!$C$50,1) -> 0 | Z19: =SUM(Z15:Z18)*IF(Naemi!$C$7=1,1+Naemi!$C$50,1) -> 0 | AA19: =SUM(AA15:AA18)*IF(Naemi!$C$7=1,1+Naemi!$C$50,1) -> 0 | AB19: =SUM(AB15:AB18)*IF(Naemi!$C$7=1,1+Naemi!$C$50,1) -> 0 | AC19: =SUM(AC15:AC18)*IF(Naemi!$C$7=1,1+Naemi!$C$50,1) -> 0 | AD19: =SUM(AD15:AD18)*IF(Naemi!$C$7=1,1+Naemi!$C$50,1) -> 0 | AE19: 0 | AF19: =SUM(AF15:AF18)*IF(Naemi!$C$7=1,1+Naemi!$C$50,1) -> 0 | AG19: =SUM(AG15:AG18)*IF(Naemi!$C$7=1,1+Naemi!$C$50,1) -> 0 | AH19: =SUM(AH15:AH18)*IF(Naemi!$C$7=1,1+Naemi!$C$50,1) -> 0
B21: Tekjuliður no 2
B23: Fjöldi eininga
B24: Liður 1 | R24: =SUM(F24:Q24) -> 0 | AE24: =SUM(S24:AD24) -> 0
B25: Liður 2 | R25: 0 | AE25: 0
B26: Liður 3 | R26: 0 | AE26: 0
B27: Liður 4 | R27: 0 | AE27: 0
B28: Tekjur | D28: Verð í kr. | AE28: 0
B29: Liður 1 | E29: kr. | F29: =F24*$D29/1000 -> 0 | G29: 0 | H29: 0 | I29: 0 | J29: 0 | K29: 0 | L29: 0 | M29: 0 | N29: 0 | O29: 0 | P29: 0 | Q29: 0 | R29: =SUM(F29:Q29) -> 0 | S29: =S24*$D29/1000 -> 0 | T29: 0 | U29: 0 | V29: 0 | W29: 0 | X29: 0 | Y29: 0 | Z29: 0 | AA29: 0 | AB29: 0 | AC29: 0 | AD29: 0 | AE29: 0 | AF29: =AF24*$D29/1000 -> 0 | AG29: 0 | AH29: 0
B30: Liður 2 | E30: kr. | F30: =F25*$D30/1000 -> 0 | G30: 0 | H30: 0 | I30: 0 | J30: 0 | K30: 0 | L30: 0 | M30: 0 | N30: 0 | O30: 0 | P30: 0 | Q30: 0 | R30: =SUM(F30:Q30) -> 0 | S30: =S25*$D30/1000 -> 0 | T30: 0 | U30: 0 | V30: 0 | W30: 0 | X30: 0 | Y30: 0 | Z30: 0 | AA30: 0 | AB30: 0 | AC30: 0 | AD30: 0 | AE30: 0 | AF30: 0 | AG30: 0 | AH30: 0
B31: Liður 3 | E31: kr. | F31: =F26*$D31/1000 -> 0 | G31: 0 | H31: 0 | I31: 0 | J31: 0 | K31: 0 | L31: 0 | M31: 0 | N31: 0 | O31: 0 | P31: 0 | Q31: 0 | R31: =SUM(F31:Q31) -> 0 | S31: =S26*$D31/1000 -> 0 | T31: 0 | U31: 0 | V31: 0 | W31: 0 | X31: 0 | Y31: 0 | Z31: 0 | AA31: 0 | AB31: 0 | AC31: 0 | AD31: 0 | AE31: 0 | AF31: 0 | AG31: 0 | AH31: 0
B32: Liður 4 | E32: kr. | F32: =F27*$D32/1000 -> 0 | G32: 0 | H32: 0 | I32: 0 | J32: 0 | K32: 0 | L32: 0 | M32: 0 | N32: 0 | O32: 0 | P32: 0 | Q32: 0 | R32: =SUM(F32:Q32) -> 0 | S32: =S27*$D32/1000 -> 0 | T32: 0 | U32: 0 | V32: 0 | W32: 0 | X32: 0 | Y32: 0 | Z32: 0 | AA32: 0 | AB32: 0 | AC32: 0 | AD32: 0 | AE32: 0 | AF32: 0 | AG32: 0 | AH32: 0
B33: Samtals | C33: 2 | F33: =SUM(F29:F32)*IF(Naemi!$C$8=1,1+Naemi!$C$50,1) -> 0 | G33: =SUM(G29:G32)*IF(Naemi!$C$8=1,1+Naemi!$C$50,1) -> 0 | H33: =SUM(H29:H32)*IF(Naemi!$C$8=1,1+Naemi!$C$50,1) -> 0 | I33: =SUM(I29:I32)*IF(Naemi!$C$8=1,1+Naemi!$C$50,1) -> 0 | J33: =SUM(J29:J32)*IF(Naemi!$C$8=1,1+Naemi!$C$50,1) -> 0 | K33: =SUM(K29:K32)*IF(Naemi!$C$8=1,1+Naemi!$C$50,1) -> 0 | L33: =SUM(L29:L32)*IF(Naemi!$C$8=1,1+Naemi!$C$50,1) -> 0 | M33: =SUM(M29:M32)*IF(Naemi!$C$8=1,1+Naemi!$C$50,1) -> 0 | N33: =SUM(N29:N32)*IF(Naemi!$C$8=1,1+Naemi!$C$50,1) -> 0 | O33: =SUM(O29:O32)*IF(Naemi!$C$8=1,1+Naemi!$C$50,1) -> 0 | P33: =SUM(P29:P32)*IF(Naemi!$C$8=1,1+Naemi!$C$50,1) -> 0 | Q33: =SUM(Q29:Q32)*IF(Naemi!$C$8=1,1+Naemi!$C$50,1) -> 0 | R33: 0 | S33: =SUM(S29:S32)*IF(Naemi!$C$8=1,1+Naemi!$C$50,1) -> 0 | T33: =SUM(T29:T32)*IF(Naemi!$C$8=1,1+Naemi!$C$50,1) -> 0 | U33: =SUM(U29:U32)*IF(Naemi!$C$8=1,1+Naemi!$C$50,1) -> 0 | V33: =SUM(V29:V32)*IF(Naemi!$C$8=1,1+Naemi!$C$50,1) -> 0 | W33: =SUM(W29:W32)*IF(Naemi!$C$8=1,1+Naemi!$C$50,1) -> 0 | X33: =SUM(X29:X32)*IF(Naemi!$C$8=1,1+Naemi!$C$50,1) -> 0 | Y33: =SUM(Y29:Y32)*IF(Naemi!$C$8=1,1+Naemi!$C$50,1) -> 0 | Z33: =SUM(Z29:Z32)*IF(Naemi!$C$8=1,1+Naemi!$C$50,1) -> 0 | AA33: =SUM(AA29:AA32)*IF(Naemi!$C$8=1,1+Naemi!$C$50,1) -> 0 | AB33: =SUM(AB29:AB32)*IF(Naemi!$C$8=1,1+Naemi!$C$50,1) -> 0 | AC33: =SUM(AC29:AC32)*IF(Naemi!$C$8=1,1+Naemi!$C$50,1) -> 0 | AD33: =SUM(AD29:AD32)*IF(Naemi!$C$8=1,1+Naemi!$C$50,1) -> 0 | AE33: 0 | AF33: =SUM(AF29:AF32)*IF(Naemi!$C$8=1,1+Naemi!$C$50,1) -> 0 | AG33: =SUM(AG29:AG32)*IF(Naemi!$C$8=1,1+Naemi!$C$50,1) -> 0 | AH33: =SUM(AH29:AH32)*IF(Naemi!$C$8=1,1+Naemi!$C$50,1) -> 0
B35: Tekjuliður no 3
B37: Fjöldi eininga
B38: Liður 1 | R38: =SUM(F38:Q38) -> 0 | AE38: =SUM(S38:AD38) -> 0
B39: Liður 2 | R39: =SUM(F39:Q39) -> 0 | AE39: 0
B40: Liður 3 | R40: =SUM(F40:Q40) -> 0 | AE40: 0
B41: Liður 4 | R41: =SUM(F41:Q41) -> 0 | AE41: 0
B42: Tekjur | D42: Verð í kr. | AE42: 0
B43: Liður 1 | E43: kr. | F43: =F38*$D43/1000 -> 0 | G43: 0 | H43: 0 | I43: 0 | J43: 0 | K43: 0 | L43: 0 | M43: 0 | N43: 0 | O43: 0 | P43: 0 | Q43: 0 | R43: =SUM(F43:Q43) -> 0 | S43: =S38*$D43/1000 -> 0 | T43: 0 | U43: 0 | V43: 0 | W43: 0 | X43: 0 | Y43: 0 | Z43: 0 | AA43: 0 | AB43: 0 | AC43: 0 | AD43: 0 | AE43: 0 | AF43: =AF38*$D43/1000 -> 0 | AG43: 0 | AH43: 0
B44: Liður 2 | E44: kr. | F44: =F39*$D44/1000 -> 0 | G44: 0 | H44: 0 | I44: 0 | J44: 0 | K44: 0 | L44: 0 | M44: 0 | N44: 0 | O44: 0 | P44: 0 | Q44: 0 | R44: =SUM(F44:Q44) -> 0 | S44: =S39*$D44/1000 -> 0 | T44: 0 | U44: 0 | V44: 0 | W44: 0 | X44: 0 | Y44: 0 | Z44: 0 | AA44: 0 | AB44: 0 | AC44: 0 | AD44: 0 | AE44: 0 | AF44: 0 | AG44: 0 | AH44: 0
B45: Liður 3 | E45: kr. | F45: =F40*$D45/1000 -> 0 | G45: 0 | H45: 0 | I45: 0 | J45: 0 | K45: 0 | L45: 0 | M45: 0 | N45: 0 | O45: 0 | P45: 0 | Q45: 0 | R45: =SUM(F45:Q45) -> 0 | S45: =S40*$D45/1000 -> 0 | T45: 0 | U45: 0 | V45: 0 | W45: 0 | X45: 0 | Y45: 0 | Z45: 0 | AA45: 0 | AB45: 0 | AC45: 0 | AD45: 0 | AE45: 0 | AF45: 0 | AG45: 0 | AH45: 0
B46: Liður 4 | E46: kr. | F46: =F41*$D46/1000 -> 0 | G46: 0 | H46: 0 | I46: 0 | J46: 0 | K46: 0 | L46: 0 | M46: 0 | N46: 0 | O46: 0 | P46: 0 | Q46: 0 | R46: =SUM(F46:Q46) -> 0 | S46: =S41*$D46/1000 -> 0 | T46: 0 | U46: 0 | V46: 0 | W46: 0 | X46: 0 | Y46: 0 | Z46: 0 | AA46: 0 | AB46: 0 | AC46: 0 | AD46: 0 | AE46: 0 | AF46: 0 | AG46: 0 | AH46: 0
B47: Samtals | C47: 3 | F47: =SUM(F43:F46)*IF(Naemi!$C$9=1,1+Naemi!$C$50,1) -> 0 | G47: =SUM(G43:G46)*IF(Naemi!$C$9=1,1+Naemi!$C$50,1) -> 0 | H47: =SUM(H43:H46)*IF(Naemi!$C$9=1,1+Naemi!$C$50,1) -> 0 | I47: =SUM(I43:I46)*IF(Naemi!$C$9=1,1+Naemi!$C$50,1) -> 0 | J47: =SUM(J43:J46)*IF(Naemi!$C$9=1,1+Naemi!$C$50,1) -> 0 | K47: =SUM(K43:K46)*IF(Naemi!$C$9=1,1+Naemi!$C$50,1) -> 0 | L47: =SUM(L43:L46)*IF(Naemi!$C$9=1,1+Naemi!$C$50,1) -> 0 | M47: =SUM(M43:M46)*IF(Naemi!$C$9=1,1+Naemi!$C$50,1) -> 0 | N47: =SUM(N43:N46)*IF(Naemi!$C$9=1,1+Naemi!$C$50,1) -> 0 | O47: =SUM(O43:O46)*IF(Naemi!$C$9=1,1+Naemi!$C$50,1) -> 0 | P47: =SUM(P43:P46)*IF(Naemi!$C$9=1,1+Naemi!$C$50,1) -> 0 | Q47: =SUM(Q43:Q46)*IF(Naemi!$C$9=1,1+Naemi!$C$50,1) -> 0 | R47: =SUM(F47:Q47) -> 0 | S47: =SUM(S43:S46)*IF(Naemi!$C$9=1,1+Naemi!$C$50,1) -> 0 | T47: =SUM(T43:T46)*IF(Naemi!$C$9=1,1+Naemi!$C$50,1) -> 0 | U47: =SUM(U43:U46)*IF(Naemi!$C$9=1,1+Naemi!$C$50,1) -> 0 | V47: =SUM(V43:V46)*IF(Naemi!$C$9=1,1+Naemi!$C$50,1) -> 0 | W47: =SUM(W43:W46)*IF(Naemi!$C$9=1,1+Naemi!$C$50,1) -> 0 | X47: =SUM(X43:X46)*IF(Naemi!$C$9=1,1+Naemi!$C$50,1) -> 0 | Y47: =SUM(Y43:Y46)*IF(Naemi!$C$9=1,1+Naemi!$C$50,1) -> 0 | Z47: =SUM(Z43:Z46)*IF(Naemi!$C$9=1,1+Naemi!$C$50,1) -> 0 | AA47: =SUM(AA43:AA46)*IF(Naemi!$C$9=1,1+Naemi!$C$50,1) -> 0 | AB47: =SUM(AB43:AB46)*IF(Naemi!$C$9=1,1+Naemi!$C$50,1) -> 0 | AC47: =SUM(AC43:AC46)*IF(Naemi!$C$9=1,1+Naemi!$C$50,1) -> 0 | AD47: =SUM(AD43:AD46)*IF(Naemi!$C$9=1,1+Naemi!$C$50,1) -> 0 | AE47: 0 | AF47: =SUM(AF43:AF46)*IF(Naemi!$C$9=1,1+Naemi!$C$50,1) -> 0 | AG47: =SUM(AG43:AG46)*IF(Naemi!$C$9=1,1+Naemi!$C$50,1) -> 0 | AH47: =SUM(AH43:AH46)*IF(Naemi!$C$9=1,1+Naemi!$C$50,1) -> 0
B49: Tekjuliður no 4
B51: Fjöldi eininga
B52: Liður 1 | R52: =SUM(F52:Q52) -> 0 | AE52: =SUM(S52:AD52) -> 0
B53: Liður 2 | R53: 0 | AE53: 0
B54: Liður 3 | R54: 0 | AE54: 0
B55: Liður 4 | R55: 0 | AE55: 0
B56: Tekjur | D56: Verð í kr. | AE56: 0
B57: Liður 1 | E57: kr. | F57: =F52*$D57/1000 -> 0 | G57: 0 | H57: 0 | I57: 0 | J57: 0 | K57: 0 | L57: 0 | M57: 0 | N57: 0 | O57: 0 | P57: 0 | Q57: 0 | R57: =SUM(F57:Q57) -> 0 | S57: =S52*$D57/1000 -> 0 | T57: 0 | U57: 0 | V57: 0 | W57: 0 | X57: 0 | Y57: 0 | Z57: 0 | AA57: 0 | AB57: 0 | AC57: 0 | AD57: 0 | AE57: 0 | AF57: =AF52*$D57/1000 -> 0 | AG57: 0 | AH57: 0
B58: Liður 2 | E58: kr. | F58: =F53*$D58/1000 -> 0 | G58: 0 | H58: 0 | I58: 0 | J58: 0 | K58: 0 | L58: 0 | M58: 0 | N58: 0 | O58: 0 | P58: 0 | Q58: 0 | R58: =SUM(F58:Q58) -> 0 | S58: =S53*$D58/1000 -> 0 | T58: 0 | U58: 0 | V58: 0 | W58: 0 | X58: 0 | Y58: 0 | Z58: 0 | AA58: 0 | AB58: 0 | AC58: 0 | AD58: 0 | AE58: 0 | AF58: 0 | AG58: 0 | AH58: 0
B59: Liður 3 | E59: kr. | F59: =F54*$D59/1000 -> 0 | G59: 0 | H59: 0 | I59: 0 | J59: 0 | K59: 0 | L59: 0 | M59: 0 | N59: 0 | O59: 0 | P59: 0 | Q59: 0 | R59: =SUM(F59:Q59) -> 0 | S59: =S54*$D59/1000 -> 0 | T59: 0 | U59: 0 | V59: 0 | W59: 0 | X59: 0 | Y59: 0 | Z59: 0 | AA59: 0 | AB59: 0 | AC59: 0 | AD59: 0 | AE59: 0 | AF59: 0 | AG59: 0 | AH59: 0
B60: Liður 4 | E60: kr. | F60: =F55*$D60/1000 -> 0 | G60: 0 | H60: 0 | I60: 0 | J60: 0 | K60: 0 | L60: 0 | M60: 0 | N60: 0 | O60: 0 | P60: 0 | Q60: 0 | R60: =SUM(F60:Q60) -> 0 | S60: =S55*$D60/1000 -> 0 | T60: 0 | U60: 0 | V60: 0 | W60: 0 | X60: 0 | Y60: 0 | Z60: 0 | AA60: 0 | AB60: 0 | AC60: 0 | AD60: 0 | AE60: 0 | AF60: 0 | AG60: 0 | AH60: 0
B61: Samtals | C61: 4 | F61: =SUM(F57:F60)*IF(Naemi!$C$10=1,1+Naemi!$C$50,1) -> 0 | G61: =SUM(G57:G60)*IF(Naemi!$C$10=1,1+Naemi!$C$50,1) -> 0 | H61: =SUM(H57:H60)*IF(Naemi!$C$10=1,1+Naemi!$C$50,1) -> 0 | I61: =SUM(I57:I60)*IF(Naemi!$C$10=1,1+Naemi!$C$50,1) -> 0 | J61: =SUM(J57:J60)*IF(Naemi!$C$10=1,1+Naemi!$C$50,1) -> 0 | K61: =SUM(K57:K60)*IF(Naemi!$C$10=1,1+Naemi!$C$50,1) -> 0 | L61: =SUM(L57:L60)*IF(Naemi!$C$10=1,1+Naemi!$C$50,1) -> 0 | M61: =SUM(M57:M60)*IF(Naemi!$C$10=1,1+Naemi!$C$50,1) -> 0 | N61: =SUM(N57:N60)*IF(Naemi!$C$10=1,1+Naemi!$C$50,1) -> 0 | O61: =SUM(O57:O60)*IF(Naemi!$C$10=1,1+Naemi!$C$50,1) -> 0 | P61: =SUM(P57:P60)*IF(Naemi!$C$10=1,1+Naemi!$C$50,1) -> 0 | Q61: =SUM(Q57:Q60)*IF(Naemi!$C$10=1,1+Naemi!$C$50,1) -> 0 | R61: 0 | S61: =SUM(S57:S60)*IF(Naemi!$C$10=1,1+Naemi!$C$50,1) -> 0 | T61: =SUM(T57:T60)*IF(Naemi!$C$10=1,1+Naemi!$C$50,1) -> 0 | U61: =SUM(U57:U60)*IF(Naemi!$C$10=1,1+Naemi!$C$50,1) -> 0 | V61: =SUM(V57:V60)*IF(Naemi!$C$10=1,1+Naemi!$C$50,1) -> 0 | W61: =SUM(W57:W60)*IF(Naemi!$C$10=1,1+Naemi!$C$50,1) -> 0 | X61: =SUM(X57:X60)*IF(Naemi!$C$10=1,1+Naemi!$C$50,1) -> 0 | Y61: =SUM(Y57:Y60)*IF(Naemi!$C$10=1,1+Naemi!$C$50,1) -> 0 | Z61: =SUM(Z57:Z60)*IF(Naemi!$C$10=1,1+Naemi!$C$50,1) -> 0 | AA61: =SUM(AA57:AA60)*IF(Naemi!$C$10=1,1+Naemi!$C$50,1) -> 0 | AB61: =SUM(AB57:AB60)*IF(Naemi!$C$10=1,1+Naemi!$C$50,1) -> 0 | AC61: =SUM(AC57:AC60)*IF(Naemi!$C$10=1,1+Naemi!$C$50,1) -> 0 | AD61: =SUM(AD57:AD60)*IF(Naemi!$C$10=1,1+Naemi!$C$50,1) -> 0 | AE61: 0 | AF61: =SUM(AF57:AF60)*IF(Naemi!$C$10=1,1+Naemi!$C$50,1) -> 0 | AG61: =SUM(AG57:AG60)*IF(Naemi!$C$10=1,1+Naemi!$C$50,1) -> 0 | AH61: =SUM(AH57:AH60)*IF(Naemi!$C$10=1,1+Naemi!$C$50,1) -> 0
R62: 0 | AE62: 0
B63: Tekjur samtals | F63: =SUM(F61,F47,F33,F19) -> 0 | G63: 0 | H63: 0 | I63: 0 | J63: 0 | K63: 0 | L63: 0 | M63: 0 | N63: 0 | O63: 0 | P63: 0 | Q63: 0 | R63: 0 | S63: =SUM(S61,S47,S33,S19) -> 0 | T63: 0 | U63: 0 | V63: 0 | W63: 0 | X63: 0 | Y63: 0 | Z63: 0 | AA63: 0 | AB63: 0 | AC63: 0 | AD63: 0 | AE63: 0 | AF63: =SUM(AF61,AF47,AF33,AF19) -> 0 | AG63: =SUM(AG61,AG47,AG33,AG19) -> 0 | AH63: =SUM(AH61,AH47,AH33,AH19) -> 0
A65: KOSTNAÐUR
B67: Kostnaður á einingu
B69: Kostnaður sem hlutfall af tekjulið 1 | F69: =+F19*$D69 -> 0 | G69: 0 | H69: 0 | I69: 0 | J69: 0 | K69: 0 | L69: 0 | M69: 0 | N69: 0 | O69: 0 | P69: 0 | Q69: 0 | R69: =SUM(F69:Q69) -> 0 | S69: =+S19*$D69 -> 0 | T69: 0 | U69: 0 | V69: 0 | W69: 0 | X69: 0 | Y69: 0 | Z69: 0 | AA69: 0 | AB69: 0 | AC69: 0 | AD69: 0 | AE69: =SUM(S69:AD69) -> 0 | AF69: =+AF19*$D69 -> 0 | AG69: =+AG19*$D69 -> 0 | AH69: =+AH19*$D69 -> 0
B70: Kostnaður sem hlutfall af tekjulið 2 | F70: =+F33*$D70 -> 0 | G70: 0 | H70: 0 | I70: 0 | J70: 0 | K70: 0 | L70: 0 | M70: 0 | N70: 0 | O70: 0 | P70: 0 | Q70: 0 | R70: 0 | S70: =+S33*$D70 -> 0 | T70: 0 | U70: 0 | V70: 0 | W70: 0 | X70: 0 | Y70: 0 | Z70: 0 | AA70: 0 | AB70: 0 | AC70: 0 | AD70: 0 | AE70: 0 | AF70: =+AF33*$D70 -> 0 | AG70: =+AG33*$D70 -> 0 | AH70: =+AH33*$D70 -> 0
B71: Kostnaður sem hlutfall af tekjulið 3 | F71: =+F47*$D71 -> 0 | G71: 0 | H71: 0 | I71: 0 | J71: 0 | K71: 0 | L71: 0 | M71: 0 | N71: 0 | O71: 0 | P71: 0 | Q71: 0 | R71: 0 | S71: =+S47*$D71 -> 0 | T71: 0 | U71: 0 | V71: 0 | W71: 0 | X71: 0 | Y71: 0 | Z71: 0 | AA71: 0 | AB71: 0 | AC71: 0 | AD71: 0 | AE71: 0 | AF71: =+AF47*$D71 -> 0 | AG71: =+AG47*$D71 -> 0 | AH71: =+AH47*$D71 -> 0
B72: Kostnaður sem hlutfall af tekjulið 4 | F72: =+F61*$D72 -> 0 | G72: =+G61*$D72 -> 0 | H72: 0 | I72: 0 | J72: 0 | K72: 0 | L72: 0 | M72: 0 | N72: 0 | O72: 0 | P72: 0 | Q72: 0 | R72: 0 | S72: =+S61*$D72 -> 0 | T72: 0 | U72: 0 | V72: 0 | W72: 0 | X72: 0 | Y72: 0 | Z72: 0 | AA72: 0 | AB72: 0 | AC72: 0 | AD72: 0 | AE72: 0 | AF72: =+AF61*$D72 -> 0 | AG72: =+AG61*$D72 -> 0 | AH72: =+AH61*$D72 -> 0
B73: Kostnaður sem hlutfall af heildar tekjum | F73: =+F63*$D73 -> 0 | G73: =+G63*$D73 -> 0 | H73: 0 | I73: 0 | J73: 0 | K73: 0 | L73: 0 | M73: 0 | N73: 0 | O73: 0 | P73: 0 | Q73: 0 | R73: 0 | S73: =+S63*$D73 -> 0 | T73: 0 | U73: 0 | V73: 0 | W73: 0 | X73: 0 | Y73: 0 | Z73: 0 | AA73: 0 | AB73: 0 | AC73: 0 | AD73: 0 | AE73: 0 | AF73: =+AF63*$D73 -> 0 | AG73: =+AG63*$D73 -> 0 | AH73: =+AH63*$D73 -> 0
B74: Samtals | C74: 5 | F74: =SUM(F69:F73)*IF(Naemi!$C$13=1,1+Naemi!$C$51,1) -> 0 | G74: =SUM(G69:G73)*IF(Naemi!$C$13=1,1+Naemi!$C$51,1) -> 0 | H74: =SUM(H69:H73)*IF(Naemi!$C$13=1,1+Naemi!$C$51,1) -> 0 | I74: =SUM(I69:I73)*IF(Naemi!$C$13=1,1+Naemi!$C$51,1) -> 0 | J74: =SUM(J69:J73)*IF(Naemi!$C$13=1,1+Naemi!$C$51,1) -> 0 | K74: =SUM(K69:K73)*IF(Naemi!$C$13=1,1+Naemi!$C$51,1) -> 0 | L74: =SUM(L69:L73)*IF(Naemi!$C$13=1,1+Naemi!$C$51,1) -> 0 | M74: =SUM(M69:M73)*IF(Naemi!$C$13=1,1+Naemi!$C$51,1) -> 0 | N74: =SUM(N69:N73)*IF(Naemi!$C$13=1,1+Naemi!$C$51,1) -> 0 | O74: =SUM(O69:O73)*IF(Naemi!$C$13=1,1+Naemi!$C$51,1) -> 0 | P74: =SUM(P69:P73)*IF(Naemi!$C$13=1,1+Naemi!$C$51,1) -> 0 | Q74: =SUM(Q69:Q73)*IF(Naemi!$C$13=1,1+Naemi!$C$51,1) -> 0 | R74: 0 | S74: =SUM(S69:S73)*IF(Naemi!$C$13=1,1+Naemi!$C$51,1) -> 0 | T74: =SUM(T69:T73)*IF(Naemi!$C$13=1,1+Naemi!$C$51,1) -> 0 | U74: =SUM(U69:U73)*IF(Naemi!$C$13=1,1+Naemi!$C$51,1) -> 0 | V74: =SUM(V69:V73)*IF(Naemi!$C$13=1,1+Naemi!$C$51,1) -> 0 | W74: =SUM(W69:W73)*IF(Naemi!$C$13=1,1+Naemi!$C$51,1) -> 0 | X74: =SUM(X69:X73)*IF(Naemi!$C$13=1,1+Naemi!$C$51,1) -> 0 | Y74: =SUM(Y69:Y73)*IF(Naemi!$C$13=1,1+Naemi!$C$51,1) -> 0 | Z74: =SUM(Z69:Z73)*IF(Naemi!$C$13=1,1+Naemi!$C$51,1) -> 0 | AA74: =SUM(AA69:AA73)*IF(Naemi!$C$13=1,1+Naemi!$C$51,1) -> 0 | AB74: =SUM(AB69:AB73)*IF(Naemi!$C$13=1,1+Naemi!$C$51,1) -> 0 | AC74: =SUM(AC69:AC73)*IF(Naemi!$C$13=1,1+Naemi!$C$51,1) -> 0 | AD74: =SUM(AD69:AD73)*IF(Naemi!$C$13=1,1+Naemi!$C$51,1) -> 0 | AE74: 0 | AF74: =SUM(AF69:AF73)*IF(Naemi!$C$13=1,1+Naemi!$C$51,1) -> 0 | AG74: =SUM(AG69:AG73)*IF(Naemi!$C$13=1,1+Naemi!$C$51,1) -> 0 | AH74: =SUM(AH69:AH73)*IF(Naemi!$C$13=1,1+Naemi!$C$51,1) -> 0
B76: Laun og launatengd gjöld
B78: Áætlaður fjöldi starfsmanna/stöðugilda
B79: Flokkur 1 | R79: =SUM(F79:Q79) -> 0 | AE79: =SUM(S79:AD79) -> 0
B80: Flokkur 2 | R80: 0 | AE80: 0
B81: Flokkur 3 | R81: 0 | AE81: 0
B82: Flokkur 4 | R82: 0 | AE82: 0
B83: Samtals | F83: =SUM(F79:F82) -> 0 | G83: =SUM(G79:G82) -> 0 | H83: 0 | I83: 0 | J83: 0 | K83: 0 | L83: 0 | M83: 0 | N83: 0 | O83: 0 | P83: 0 | Q83: 0 | R83: 0 | S83: 0 | T83: 0 | U83: 0 | V83: 0 | W83: 0 | X83: 0 | Y83: 0 | Z83: 0 | AA83: 0 | AB83: 0 | AC83: 0 | AD83: 0 | AE83: 0 | AF83: =SUM(AF79:AF82) -> 0 | AG83: =SUM(AG79:AG82) -> 0 | AH83: =SUM(AH79:AH82) -> 0
B84: Launakostnaður | D84: Laun. mán. | E84: Hækkun launa á ári | AE84: 0
B85: Flokkur 1 | F85: =$D85*((1+$E85)^((F$4-1)/12))*F79 -> 0 | G85: =$D85*((1+$E85)^((G$4-1)/12))*G79 -> 0 | H85: 0 | I85: 0 | J85: 0 | K85: 0 | L85: 0 | M85: 0 | N85: 0 | O85: 0 | P85: =$D85*((1+$E85)^((P$4-1)/12))*P79 -> 0 | Q85: =$D85*((1+$E85)^((Q$4-1)/12))*Q79 -> 0 | R85: 0 | S85: =$D85*((1+$E85)^((S$4-1)/12))*S79 -> 0 | T85: =$D85*((1+$E85)^((T$4-1)/12))*T79 -> 0 | U85: 0 | V85: 0 | W85: 0 | X85: 0 | Y85: 0 | Z85: 0 | AA85: 0 | AB85: 0 | AC85: 0 | AD85: 0 | AE85: 0 | AF85: =$D85*12*((1+$E85)^AF$4)*AF79 -> 0 | AG85: 0 | AH85: 0
B86: Flokkur 2 | F86: =$D86*((1+$E86)^((F$4-1)/12))*F80 -> 0 | G86: 0 | H86: 0 | I86: 0 | J86: 0 | K86: 0 | L86: 0 | M86: 0 | N86: 0 | O86: 0 | P86: 0 | Q86: 0 | R86: 0 | S86: =$D86*((1+$E86)^((S$4-1)/12))*S80 -> 0 | T86: 0 | U86: 0 | V86: 0 | W86: 0 | X86: 0 | Y86: 0 | Z86: 0 | AA86: 0 | AB86: 0 | AC86: 0 | AD86: 0 | AE86: 0 | AF86: 0 | AG86: 0 | AH86: 0
B87: Flokkur 3 | F87: 0 | G87: 0 | H87: 0 | I87: 0 | J87: 0 | K87: 0 | L87: 0 | M87: 0 | N87: 0 | O87: 0 | P87: 0 | Q87: 0 | R87: 0 | S87: =$D87*((1+$E87)^((S$4-1)/12))*S81 -> 0 | T87: 0 | U87: 0 | V87: 0 | W87: 0 | X87: 0 | Y87: 0 | Z87: 0 | AA87: 0 | AB87: 0 | AC87: 0 | AD87: 0 | AE87: 0 | AF87: =$D87*12*((1+$E87)^AF$4)*AF81 -> 0 | AG87: 0 | AH87: 0
B88: Flokkur 4 | F88: 0 | G88: 0 | H88: 0 | I88: 0 | J88: 0 | K88: 0 | L88: 0 | M88: 0 | N88: 0 | O88: 0 | P88: 0 | Q88: 0 | R88: 0 | S88: =$D88*((1+$E88)^((S$4-1)/12))*S82 -> 0 | T88: 0 | U88: 0 | V88: 0 | W88: 0 | X88: 0 | Y88: 0 | Z88: 0 | AA88: 0 | AB88: 0 | AC88: 0 | AD88: 0 | AE88: 0 | AF88: 0 | AG88: 0 | AH88: 0
B89: Launatengd gjöld (hlutfall af launum) | F89: =$D89*SUM(F85:F88) -> 0 | G89: =$D89*SUM(G85:G88) -> 0 | H89: 0 | I89: 0 | J89: 0 | K89: 0 | L89: 0 | M89: 0 | N89: 0 | O89: 0 | P89: 0 | Q89: 0 | R89: 0 | S89: 0 | T89: 0 | U89: 0 | V89: 0 | W89: 0 | X89: 0 | Y89: 0 | Z89: 0 | AA89: 0 | AB89: 0 | AC89: 0 | AD89: 0 | AE89: 0 | AF89: =$D89*SUM(AF85:AF88) -> 0 | AG89: =$D89*SUM(AG85:AG88) -> 0 | AH89: =$D89*SUM(AH85:AH88) -> 0
B90: Samtals | C90: 6 | F90: =SUM(F85:F89)*IF(Naemi!$C$14=1,1+Naemi!$C$51,1) -> 0 | G90: =SUM(G85:G89)*IF(Naemi!$C$14=1,1+Naemi!$C$51,1) -> 0 | H90: =SUM(H85:H89)*IF(Naemi!$C$14=1,1+Naemi!$C$51,1) -> 0 | I90: =SUM(I85:I89)*IF(Naemi!$C$14=1,1+Naemi!$C$51,1) -> 0 | J90: =SUM(J85:J89)*IF(Naemi!$C$14=1,1+Naemi!$C$51,1) -> 0 | K90: =SUM(K85:K89)*IF(Naemi!$C$14=1,1+Naemi!$C$51,1) -> 0 | L90: =SUM(L85:L89)*IF(Naemi!$C$14=1,1+Naemi!$C$51,1) -> 0 | M90: =SUM(M85:M89)*IF(Naemi!$C$14=1,1+Naemi!$C$51,1) -> 0 | N90: =SUM(N85:N89)*IF(Naemi!$C$14=1,1+Naemi!$C$51,1) -> 0 | O90: =SUM(O85:O89)*IF(Naemi!$C$14=1,1+Naemi!$C$51,1) -> 0 | P90: =SUM(P85:P89)*IF(Naemi!$C$14=1,1+Naemi!$C$51,1) -> 0 | Q90: =SUM(Q85:Q89)*IF(Naemi!$C$14=1,1+Naemi!$C$51,1) -> 0 | R90: =SUM(F90:Q90) -> 0 | S90: =SUM(S85:S89)*IF(Naemi!$C$14=1,1+Naemi!$C$51,1) -> 0 | T90: =SUM(T85:T89)*IF(Naemi!$C$14=1,1+Naemi!$C$51,1) -> 0 | U90: =SUM(U85:U89)*IF(Naemi!$C$14=1,1+Naemi!$C$51,1) -> 0 | V90: =SUM(V85:V89)*IF(Naemi!$C$14=1,1+Naemi!$C$51,1) -> 0 | W90: =SUM(W85:W89)*IF(Naemi!$C$14=1,1+Naemi!$C$51,1) -> 0 | X90: =SUM(X85:X89)*IF(Naemi!$C$14=1,1+Naemi!$C$51,1) -> 0 | Y90: =SUM(Y85:Y89)*IF(Naemi!$C$14=1,1+Naemi!$C$51,1) -> 0 | Z90: =SUM(Z85:Z89)*IF(Naemi!$C$14=1,1+Naemi!$C$51,1) -> 0 | AA90: =SUM(AA85:AA89)*IF(Naemi!$C$14=1,1+Naemi!$C$51,1) -> 0 | AB90: =SUM(AB85:AB89)*IF(Naemi!$C$14=1,1+Naemi!$C$51,1) -> 0 | AC90: =SUM(AC85:AC89)*IF(Naemi!$C$14=1,1+Naemi!$C$51,1) -> 0 | AD90: =SUM(AD85:AD89)*IF(Naemi!$C$14=1,1+Naemi!$C$51,1) -> 0 | AE90: =SUM(S90:AD90) -> 0 | AF90: =SUM(AF85:AF89)*IF(Naemi!$C$14=1,1+Naemi!$C$51,1) -> 0 | AG90: =SUM(AG85:AG89)*IF(Naemi!$C$14=1,1+Naemi!$C$51,1) -> 0 | AH90: =SUM(AH85:AH89)*IF(Naemi!$C$14=1,1+Naemi!$C$51,1) -> 0
B92: Kostnaðarliður no 2
B94: Liður 1 | E94: á mán | F94: =+$D94 -> 0 | G94: =+$D94 -> 0 | H94: 0 | I94: 0 | J94: 0 | K94: 0 | L94: 0 | M94: 0 | N94: 0 | O94: 0 | P94: 0 | Q94: 0 | R94: =SUM(F94:Q94) -> 0 | S94: 0 | T94: 0 | U94: 0 | V94: 0 | W94: 0 | X94: 0 | Y94: 0 | Z94: 0 | AA94: 0 | AB94: 0 | AC94: 0 | AD94: 0 | AE94: =SUM(S94:AD94) -> 0 | AF94: =+$D94*12 -> 0 | AG94: =+$D94*12 -> 0 | AH94: =+$D94*12 -> 0
B95: Liður 2 | E95: á mán | F95: =+$D95 -> 0 | G95: 0 | H95: 0 | I95: 0 | J95: 0 | K95: 0 | L95: 0 | M95: 0 | N95: 0 | O95: 0 | P95: 0 | Q95: 0 | R95: =SUM(F95:Q95) -> 0 | S95: 0 | T95: 0 | U95: 0 | V95: 0 | W95: 0 | X95: 0 | Y95: 0 | Z95: 0 | AA95: 0 | AB95: 0 | AC95: 0 | AD95: 0 | AE95: =SUM(S95:AD95) -> 0 | AF95: =+$D95*12 -> 0 | AG95: 0 | AH95: 0
B96: Liður 3 | E96: á mán | F96: 0 | G96: 0 | H96: 0 | I96: 0 | J96: 0 | K96: 0 | L96: 0 | M96: 0 | N96: 0 | O96: 0 | P96: 0 | Q96: 0 | R96: =SUM(F96:Q96) -> 0 | S96: 0 | T96: 0 | U96: 0 | V96: 0 | W96: 0 | X96: 0 | Y96: 0 | Z96: 0 | AA96: 0 | AB96: 0 | AC96: 0 | AD96: 0 | AE96: =SUM(S96:AD96) -> 0 | AF96: 0 | AG96: 0 | AH96: 0
B97: Liður 4 | E97: á mán | F97: 0 | G97: 0 | H97: 0 | I97: 0 | J97: 0 | K97: 0 | L97: 0 | M97: 0 | N97: 0 | O97: 0 | P97: 0 | Q97: 0 | R97: =SUM(F97:Q97) -> 0 | S97: 0 | T97: 0 | U97: 0 | V97: 0 | W97: 0 | X97: 0 | Y97: 0 | Z97: 0 | AA97: 0 | AB97: 0 | AC97: 0 | AD97: 0 | AE97: =SUM(S97:AD97) -> 0 | AF97: 0 | AG97: 0 | AH97: 0
B98: Samtals | C98: 7 | F98: =SUM(F94:F97)*IF(Naemi!$C$15=1,1+Naemi!$C$51,1) -> 0 | G98: =SUM(G94:G97)*IF(Naemi!$C$15=1,1+Naemi!$C$51,1) -> 0 | H98: =SUM(H94:H97)*IF(Naemi!$C$15=1,1+Naemi!$C$51,1) -> 0 | I98: =SUM(I94:I97)*IF(Naemi!$C$15=1,1+Naemi!$C$51,1) -> 0 | J98: =SUM(J94:J97)*IF(Naemi!$C$15=1,1+Naemi!$C$51,1) -> 0 | K98: =SUM(K94:K97)*IF(Naemi!$C$15=1,1+Naemi!$C$51,1) -> 0 | L98: =SUM(L94:L97)*IF(Naemi!$C$15=1,1+Naemi!$C$51,1) -> 0 | M98: =SUM(M94:M97)*IF(Naemi!$C$15=1,1+Naemi!$C$51,1) -> 0 | N98: =SUM(N94:N97)*IF(Naemi!$C$15=1,1+Naemi!$C$51,1) -> 0 | O98: =SUM(O94:O97)*IF(Naemi!$C$15=1,1+Naemi!$C$51,1) -> 0 | P98: =SUM(P94:P97)*IF(Naemi!$C$15=1,1+Naemi!$C$51,1) -> 0 | Q98: =SUM(Q94:Q97)*IF(Naemi!$C$15=1,1+Naemi!$C$51,1) -> 0 | R98: =SUM(F98:Q98) -> 0 | S98: =SUM(S94:S97)*IF(Naemi!$C$15=1,1+Naemi!$C$51,1) -> 0 | T98: =SUM(T94:T97)*IF(Naemi!$C$15=1,1+Naemi!$C$51,1) -> 0 | U98: =SUM(U94:U97)*IF(Naemi!$C$15=1,1+Naemi!$C$51,1) -> 0 | V98: =SUM(V94:V97)*IF(Naemi!$C$15=1,1+Naemi!$C$51,1) -> 0 | W98: =SUM(W94:W97)*IF(Naemi!$C$15=1,1+Naemi!$C$51,1) -> 0 | X98: =SUM(X94:X97)*IF(Naemi!$C$15=1,1+Naemi!$C$51,1) -> 0 | Y98: =SUM(Y94:Y97)*IF(Naemi!$C$15=1,1+Naemi!$C$51,1) -> 0 | Z98: =SUM(Z94:Z97)*IF(Naemi!$C$15=1,1+Naemi!$C$51,1) -> 0 | AA98: =SUM(AA94:AA97)*IF(Naemi!$C$15=1,1+Naemi!$C$51,1) -> 0 | AB98: =SUM(AB94:AB97)*IF(Naemi!$C$15=1,1+Naemi!$C$51,1) -> 0 | AC98: =SUM(AC94:AC97)*IF(Naemi!$C$15=1,1+Naemi!$C$51,1) -> 0 | AD98: =SUM(AD94:AD97)*IF(Naemi!$C$15=1,1+Naemi!$C$51,1) -> 0 | AE98: =SUM(S98:AD98) -> 0 | AF98: =SUM(AF94:AF97)*IF(Naemi!$C$15=1,1+Naemi!$C$51,1) -> 0 | AG98: =SUM(AG94:AG97)*IF(Naemi!$C$15=1,1+Naemi!$C$51,1) -> 0 | AH98: =SUM(AH94:AH97)*IF(Naemi!$C$15=1,1+Naemi!$C$51,1) -> 0
B100: Kostnaðarliður no 3
B102: Liður 1 | E102: á mán | F102: =+$D102 -> 0 | G102: =+$D102 -> 0 | H102: 0 | I102: 0 | J102: 0 | K102: 0 | L102: 0 | M102: 0 | N102: 0 | O102: 0 | P102: 0 | Q102: 0 | R102: =SUM(F102:Q102) -> 0 | S102: 0 | T102: 0 | U102: 0 | V102: 0 | W102: 0 | X102: 0 | Y102: 0 | Z102: 0 | AA102: 0 | AB102: 0 | AC102: 0 | AD102: 0 | AE102: =SUM(S102:AD102) -> 0 | AF102: =+$D102*12 -> 0 | AG102: =+$D102*12 -> 0 | AH102: =+$D102*12 -> 0
B103: Liður 2 | E103: á mán | F103: =+$D103 -> 0 | G103: 0 | H103: 0 | I103: 0 | J103: 0 | K103: 0 | L103: 0 | M103: 0 | N103: 0 | O103: 0 | P103: 0 | Q103: 0 | R103: =SUM(F103:Q103) -> 0 | S103: 0 | T103: 0 | U103: 0 | V103: 0 | W103: 0 | X103: 0 | Y103: 0 | Z103: 0 | AA103: 0 | AB103: 0 | AC103: 0 | AD103: 0 | AE103: =SUM(S103:AD103) -> 0 | AF103: =+$D103*12 -> 0 | AG103: 0 | AH103: 0
B104: Liður 3 | E104: á mán | F104: 0 | G104: 0 | H104: 0 | I104: 0 | J104: 0 | K104: 0 | L104: 0 | M104: 0 | N104: 0 | O104: 0 | P104: 0 | Q104: 0 | R104: =SUM(F104:Q104) -> 0 | S104: 0 | T104: 0 | U104: 0 | V104: 0 | W104: 0 | X104: 0 | Y104: 0 | Z104: 0 | AA104: 0 | AB104: 0 | AC104: 0 | AD104: 0 | AE104: =SUM(S104:AD104) -> 0 | AF104: 0 | AG104: 0 | AH104: 0
B105: Liður 4 | E105: á mán | F105: 0 | G105: 0 | H105: 0 | I105: 0 | J105: 0 | K105: 0 | L105: 0 | M105: 0 | N105: 0 | O105: 0 | P105: 0 | Q105: 0 | R105: =SUM(F105:Q105) -> 0 | S105: 0 | T105: 0 | U105: 0 | V105: 0 | W105: 0 | X105: 0 | Y105: 0 | Z105: 0 | AA105: 0 | AB105: 0 | AC105: 0 | AD105: 0 | AE105: =SUM(S105:AD105) -> 0 | AF105: 0 | AG105: 0 | AH105: 0
B106: Samtals | C106: 8 | F106: =SUM(F102:F105)*IF(Naemi!$C$16=1,1+Naemi!$C$51,1) -> 0 | G106: =SUM(G102:G105)*IF(Naemi!$C$16=1,1+Naemi!$C$51,1) -> 0 | H106: =SUM(H102:H105)*IF(Naemi!$C$16=1,1+Naemi!$C$51,1) -> 0 | I106: =SUM(I102:I105)*IF(Naemi!$C$16=1,1+Naemi!$C$51,1) -> 0 | J106: =SUM(J102:J105)*IF(Naemi!$C$16=1,1+Naemi!$C$51,1) -> 0 | K106: =SUM(K102:K105)*IF(Naemi!$C$16=1,1+Naemi!$C$51,1) -> 0 | L106: =SUM(L102:L105)*IF(Naemi!$C$16=1,1+Naemi!$C$51,1) -> 0 | M106: =SUM(M102:M105)*IF(Naemi!$C$16=1,1+Naemi!$C$51,1) -> 0 | N106: =SUM(N102:N105)*IF(Naemi!$C$16=1,1+Naemi!$C$51,1) -> 0 | O106: =SUM(O102:O105)*IF(Naemi!$C$16=1,1+Naemi!$C$51,1) -> 0 | P106: =SUM(P102:P105)*IF(Naemi!$C$16=1,1+Naemi!$C$51,1) -> 0 | Q106: =SUM(Q102:Q105)*IF(Naemi!$C$16=1,1+Naemi!$C$51,1) -> 0 | R106: =SUM(F106:Q106) -> 0 | S106: =SUM(S102:S105)*IF(Naemi!$C$16=1,1+Naemi!$C$51,1) -> 0 | T106: =SUM(T102:T105)*IF(Naemi!$C$16=1,1+Naemi!$C$51,1) -> 0 | U106: =SUM(U102:U105)*IF(Naemi!$C$16=1,1+Naemi!$C$51,1) -> 0 | V106: =SUM(V102:V105)*IF(Naemi!$C$16=1,1+Naemi!$C$51,1) -> 0 | W106: =SUM(W102:W105)*IF(Naemi!$C$16=1,1+Naemi!$C$51,1) -> 0 | X106: =SUM(X102:X105)*IF(Naemi!$C$16=1,1+Naemi!$C$51,1) -> 0 | Y106: =SUM(Y102:Y105)*IF(Naemi!$C$16=1,1+Naemi!$C$51,1) -> 0 | Z106: =SUM(Z102:Z105)*IF(Naemi!$C$16=1,1+Naemi!$C$51,1) -> 0 | AA106: =SUM(AA102:AA105)*IF(Naemi!$C$16=1,1+Naemi!$C$51,1) -> 0 | AB106: =SUM(AB102:AB105)*IF(Naemi!$C$16=1,1+Naemi!$C$51,1) -> 0 | AC106: =SUM(AC102:AC105)*IF(Naemi!$C$16=1,1+Naemi!$C$51,1) -> 0 | AD106: =SUM(AD102:AD105)*IF(Naemi!$C$16=1,1+Naemi!$C$51,1) -> 0 | AE106: =SUM(S106:AD106) -> 0 | AF106: =SUM(AF102:AF105)*IF(Naemi!$C$16=1,1+Naemi!$C$51,1) -> 0 | AG106: =SUM(AG102:AG105)*IF(Naemi!$C$16=1,1+Naemi!$C$51,1) -> 0 | AH106: =SUM(AH102:AH105)*IF(Naemi!$C$16=1,1+Naemi!$C$51,1) -> 0
B108: Kostnaðarliður no 4
B110: Liður 1 | R110: =SUM(F110:Q110) -> 0 | AE110: =SUM(S110:AD110) -> 0
B111: Liður 2 | R111: =SUM(F111:Q111) -> 0 | AE111: =SUM(S111:AD111) -> 0
B112: Liður 3 | R112: =SUM(F112:Q112) -> 0 | AE112: =SUM(S112:AD112) -> 0
B113: Liður 4 | R113: =SUM(F113:Q113) -> 0 | AE113: =SUM(S113:AD113) -> 0
B114: Samtals | C114: 9 | F114: =SUM(F110:F113)*IF(Naemi!$C$17=1,1+Naemi!$C$51,1) -> 0 | G114: =SUM(G110:G113)*IF(Naemi!$C$17=1,1+Naemi!$C$51,1) -> 0 | H114: =SUM(H110:H113)*IF(Naemi!$C$17=1,1+Naemi!$C$51,1) -> 0 | I114: =SUM(I110:I113)*IF(Naemi!$C$17=1,1+Naemi!$C$51,1) -> 0 | J114: =SUM(J110:J113)*IF(Naemi!$C$17=1,1+Naemi!$C$51,1) -> 0 | K114: =SUM(K110:K113)*IF(Naemi!$C$17=1,1+Naemi!$C$51,1) -> 0 | L114: =SUM(L110:L113)*IF(Naemi!$C$17=1,1+Naemi!$C$51,1) -> 0 | M114: =SUM(M110:M113)*IF(Naemi!$C$17=1,1+Naemi!$C$51,1) -> 0 | N114: =SUM(N110:N113)*IF(Naemi!$C$17=1,1+Naemi!$C$51,1) -> 0 | O114: =SUM(O110:O113)*IF(Naemi!$C$17=1,1+Naemi!$C$51,1) -> 0 | P114: =SUM(P110:P113)*IF(Naemi!$C$17=1,1+Naemi!$C$51,1) -> 0 | Q114: =SUM(Q110:Q113)*IF(Naemi!$C$17=1,1+Naemi!$C$51,1) -> 0 | R114: =SUM(F114:Q114) -> 0 | S114: =SUM(S110:S113)*IF(Naemi!$C$17=1,1+Naemi!$C$51,1) -> 0 | T114: =SUM(T110:T113)*IF(Naemi!$C$17=1,1+Naemi!$C$51,1) -> 0 | U114: =SUM(U110:U113)*IF(Naemi!$C$17=1,1+Naemi!$C$51,1) -> 0 | V114: =SUM(V110:V113)*IF(Naemi!$C$17=1,1+Naemi!$C$51,1) -> 0 | W114: =SUM(W110:W113)*IF(Naemi!$C$17=1,1+Naemi!$C$51,1) -> 0 | X114: =SUM(X110:X113)*IF(Naemi!$C$17=1,1+Naemi!$C$51,1) -> 0 | Y114: =SUM(Y110:Y113)*IF(Naemi!$C$17=1,1+Naemi!$C$51,1) -> 0 | Z114: =SUM(Z110:Z113)*IF(Naemi!$C$17=1,1+Naemi!$C$51,1) -> 0 | AA114: =SUM(AA110:AA113)*IF(Naemi!$C$17=1,1+Naemi!$C$51,1) -> 0 | AB114: =SUM(AB110:AB113)*IF(Naemi!$C$17=1,1+Naemi!$C$51,1) -> 0 | AC114: =SUM(AC110:AC113)*IF(Naemi!$C$17=1,1+Naemi!$C$51,1) -> 0 | AD114: =SUM(AD110:AD113)*IF(Naemi!$C$17=1,1+Naemi!$C$51,1) -> 0 | AE114: =SUM(S114:AD114) -> 0 | AF114: =SUM(AF110:AF113)*IF(Naemi!$C$17=1,1+Naemi!$C$51,1) -> 0 | AG114: =SUM(AG110:AG113)*IF(Naemi!$C$17=1,1+Naemi!$C$51,1) -> 0 | AH114: =SUM(AH110:AH113)*IF(Naemi!$C$17=1,1+Naemi!$C$51,1) -> 0
B117: Samtals kostnaður | F117: =SUM(F98,F90,F106,F114,F74) -> 0 | G117: 0 | H117: 0 | I117: 0 | J117: 0 | K117: 0 | L117: 0 | M117: 0 | N117: 0 | O117: 0 | P117: 0 | Q117: 0 | R117: =SUM(F117:Q117) -> 0 | S117: =SUM(S98,S90,S106,S114,S74) -> 0 | T117: 0 | U117: 0 | V117: 0 | W117: 0 | X117: 0 | Y117: 0 | Z117: 0 | AA117: 0 | AB117: 0 | AC117: 0 | AD117: 0 | AE117: =SUM(S117:AD117) -> 0 | AF117: =SUM(AF98,AF90,AF106,AF114,AF74) -> 0 | AG117: =SUM(AG98,AG90,AG106,AG114,AG74) -> 0 | AH117: =SUM(AH98,AH90,AH106,AH114,AH74) -> 0
B120: Framlegð fyrir vexti, afskriftir og skatta | F120: =F63-F117 -> 0 | G120: 0 | H120: 0 | I120: 0 | J120: 0 | K120: 0 | L120: 0 | M120: 0 | N120: 0 | O120: 0 | P120: 0 | Q120: 0 | R120: =SUM(F120:Q120) -> 0 | S120: =S63-S117 -> 0 | T120: 0 | U120: 0 | V120: 0 | W120: 0 | X120: 0 | Y120: 0 | Z120: 0 | AA120: 0 | AB120: 0 | AC120: 0 | AD120: 0 | AE120: =SUM(S120:AD120) -> 0 | AF120: =AF63-AF117 -> 0 | AG120: =AG63-AG117 -> 0 | AH120: =AH63-AH117 -> 0

Sheet Fyrningar
A1: =+Forsendur!$C$5 -> Nafn fyrirtækis
C3: Afskrifta % pr. ár | D3: Niðurlags- hlutfall | E3: Fyrninga- flokkur | F3: Fyrning reiknuð út frá | G3: Skýr. | I3: =+Efnahagur!G3 -> Árið 2015 | J3: =+Efnahagur!H3 -> Jan 2016 | K3: =+Efnahagur!I3 -> Feb 2016 | L3: =+Efnahagur!J3 -> Mar 2016 | M3: =+Efnahagur!K3 -> Apr 2016 | N3: =+Efnahagur!L3 -> Maí 2016 | O3: =+Efnahagur!M3 -> Jún 2016 | P3: =+Efnahagur!N3 -> Júl 2016 | Q3: =+Efnahagur!O3 -> Ágú 2016 | R3: =+Efnahagur!P3 -> Sep 2016 | S3: =+Efnahagur!Q3 -> Okt 2016 | T3: =+Efnahagur!R3 -> Nóv 2016 | U3: =+Efnahagur!S3 -> Des 2016 | V3: =+Efnahagur!T3 -> Árið 2016 | W3: =+Efnahagur!U3 -> Jan 2017 | X3: =+Efnahagur!V3 -> Feb 2017 | Y3: =+Efnahagur!W3 -> Mar 2017 | Z3: =+Efnahagur!X3 -> Apr 2017 | AA3: =+Efnahagur!Y3 -> Maí 2017 | AB3: =+Efnahagur!Z3 -> Jún 2017 | AC3: =+Efnahagur!AA3 -> Júl 2017 | AD3: =+Efnahagur!AB3 -> Ágú 2017 | AE3: =+Efnahagur!AC3 -> Sep 2017 | AF3: =+Efnahagur!AD3 -> Okt 2017 | AG3: =+Efnahagur!AE3 -> Nóv 2017 | AH3: =+Efnahagur!AF3 -> Des 2017 | AI3: =+Efnahagur!AG3 -> Árið 2017 | AJ3: =+Efnahagur!AH3 -> Árið 2018 | AK3: =+Efnahagur!AI3 -> Árið 2019 | AL3: =+Efnahagur!AJ3 -> Árið 2020
A5: Skrifið inn heiti á eign / eignarflokki hér
B7: Grunnforsendur | C7: 0 | D7: 0.1 | E7: Fyrningaflokkur 1 | F7: Stofnverðmæti | G7: =INDEX(Forsendur!$C$99:$C$102,MATCH($E7,Fyrningaflokkur,0)) -> 16
B8: Keyptar eignir | G8: =G7&"_2" -> 16_2 | V8: =SUM(J8:U8) -> 0 | AI8: =SUM(W8:AH8) -> 0
B9: Seldar eignir | G9: =G7&"_3" -> 16_3 | V9: =SUM(J9:U9) -> 0 | AI9: =SUM(W9:AH9) -> 0
B10: Stofnverð | G10: =G7&"_4" -> 16_4 | J10: =+IF(SUM($I9:I9)<>0,0,IF(J9<>0,0,I10+J8-J9)) -> 0 | K10: =+IF(SUM($I9:J9)<>0,0,IF(K9<>0,0,J10+K8-K9)) -> 0 | L10: =+IF(SUM($I9:K9)<>0,0,IF(L9<>0,0,K10+L8-L9)) -> 0 | M10: =+IF(SUM($I9:L9)<>0,0,IF(M9<>0,0,L10+M8-M9)) -> 0 | N10: =+IF(SUM($I9:M9)<>0,0,IF(N9<>0,0,M10+N8-N9)) -> 0 | O10: =+IF(SUM($I9:N9)<>0,0,IF(O9<>0,0,N10+O8-O9)) -> 0 | P10: =+IF(SUM($I9:O9)<>0,0,IF(P9<>0,0,O10+P8-P9)) -> 0 | Q10: =+IF(SUM($I9:P9)<>0,0,IF(Q9<>0,0,P10+Q8-Q9)) -> 0 | R10: =+IF(SUM($I9:Q9)<>0,0,IF(R9<>0,0,Q10+R8-R9)) -> 0 | S10: =+IF(SUM($I9:R9)<>0,0,IF(S9<>0,0,R10+S8-S9)) -> 0 | T10: =+IF(SUM($I9:S9)<>0,0,IF(T9<>0,0,S10+T8-T9)) -> 0 | U10: =+IF(SUM($I9:T9)<>0,0,IF(U9<>0,0,T10+U8-U9)) -> 0 | V10: =+U10 -> 0 | W10: =+IF(SUM($I9:V9)<>0,0,IF(W9<>0,0,V10+W8-W9)) -> 0 | X10: =+IF(SUM($I9:W9)<>0,0,IF(X9<>0,0,W10+X8-X9)) -> 0 | Y10: =+IF(SUM($I9:X9)<>0,0,IF(Y9<>0,0,X10+Y8-Y9)) -> 0 | Z10: =+IF(SUM($I9:Y9)<>0,0,IF(Z9<>0,0,Y10+Z8-Z9)) -> 0 | AA10: =+IF(SUM($I9:Z9)<>0,0,IF(AA9<>0,0,Z10+AA8-AA9)) -> 0 | AB10: =+IF(SUM($I9:AA9)<>0,0,IF(AB9<>0,0,AA10+AB8-AB9)) -> 0 | AC10: =+IF(SUM($I9:AB9)<>0,0,IF(AC9<>0,0,AB10+AC8-AC9)) -> 0 | AD10: =+IF(SUM($I9:AC9)<>0,0,IF(AD9<>0,0,AC10+AD8-AD9)) -> 0 | AE10: =+IF(SUM($I9:AD9)<>0,0,IF(AE9<>0,0,AD10+AE8-AE9)) -> 0 | AF10: =+IF(SUM($I9:AE9)<>0,0,IF(AF9<>0,0,AE10+AF8-AF9)) -> 0 | AG10: =+IF(SUM($I9:AF9)<>0,0,IF(AG9<>0,0,AF10+AG8-AG9)) -> 0 | AH10: =+IF(SUM($I9:AG9)<>0,0,IF(AH9<>0,0,AG10+AH8-AH9)) -> 0 | AI10: =+AH10 -> 0 | AJ10: =+IF(SUM($I9:AI9)<>0,0,IF(AJ9<>0,0,AI10+AJ8-AJ9)) -> 0 | AK10: =+IF(SUM($I9:AJ9)<>0,0,IF(AK9<>0,0,AJ10+AK8-AK9)) -> 0 | AL10: =+IF(SUM($I9:AK9)<>0,0,IF(AL9<>0,0,AK10+AL8-AL9)) -> 0
B11: Fyrning | G11: =Arsreikningur!$E$25 -> 10 | J11: =+IF(SUM($I9:J9)<>0,0,IF((I12+J8)-IF($F7="Bókfært verðmæti",(I12+J8)*$C7/12,(J10)*$C7/12)<I10*$D$7,I12-I10*$D$7,IF($F7="Bókfært verðmæti",(I12+J8)*$C7/12,(J10)*$C7/12))) -> 0 | K11: =+IF(SUM($I9:K9)<>0,0,IF((J12+K8)-IF($F7="Bókfært verðmæti",(J12+K8)*$C7/12,(K10)*$C7/12)<J10*$D$7,J12-J10*$D$7,IF($F7="Bókfært verðmæti",(J12+K8)*$C7/12,(K10)*$C7/12))) -> 0 | L11: =+IF(SUM($I9:L9)<>0,0,IF((K12+L8)-IF($F7="Bókfært verðmæti",(K12+L8)*$C7/12,(L10)*$C7/12)<K10*$D$7,K12-K10*$D$7,IF($F7="Bókfært verðmæti",(K12+L8)*$C7/12,(L10)*$C7/12))) -> 0 | M11: =+IF(SUM($I9:M9)<>0,0,IF((L12+M8)-IF($F7="Bókfært verðmæti",(L12+M8)*$C7/12,(M10)*$C7/12)<L10*$D$7,L12-L10*$D$7,IF($F7="Bókfært verðmæti",(L12+M8)*$C7/12,(M10)*$C7/12))) -> 0 | N11: =+IF(SUM($I9:N9)<>0,0,IF((M12+N8)-IF($F7="Bókfært verðmæti",(M12+N8)*$C7/12,(N10)*$C7/12)<M10*$D$7,M12-M10*$D$7,IF($F7="Bókfært verðmæti",(M12+N8)*$C7/12,(N10)*$C7/12))) -> 0 | O11: =+IF(SUM($I9:O9)<>0,0,IF((N12+O8)-IF($F7="Bókfært verðmæti",(N12+O8)*$C7/12,(O10)*$C7/12)<N10*$D$7,N12-N10*$D$7,IF($F7="Bókfært verðmæti",(N12+O8)*$C7/12,(O10)*$C7/12))) -> 0 | P11: =+IF(SUM($I9:P9)<>0,0,IF((O12+P8)-IF($F7="Bókfært verðmæti",(O12+P8)*$C7/12,(P10)*$C7/12)<O10*$D$7,O12-O10*$D$7,IF($F7="Bókfært verðmæti",(O12+P8)*$C7/12,(P10)*$C7/12))) -> 0 | Q11: =+IF(SUM($I9:Q9)<>0,0,IF((P12+Q8)-IF($F7="Bókfært verðmæti",(P12+Q8)*$C7/12,(Q10)*$C7/12)<P10*$D$7,P12-P10*$D$7,IF($F7="Bókfært verðmæti",(P12+Q8)*$C7/12,(Q10)*$C7/12))) -> 0 | R11: =+IF(SUM($I9:R9)<>0,0,IF((Q12+R8)-IF($F7="Bókfært verðmæti",(Q12+R8)*$C7/12,(R10)*$C7/12)<Q10*$D$7,Q12-Q10*$D$7,IF($F7="Bókfært verðmæti",(Q12+R8)*$C7/12,(R10)*$C7/12))) -> 0 | S11: =+IF(SUM($I9:S9)<>0,0,IF((R12+S8)-IF($F7="Bókfært verðmæti",(R12+S8)*$C7/12,(S10)*$C7/12)<R10*$D$7,R12-R10*$D$7,IF($F7="Bókfært verðmæti",(R12+S8)*$C7/12,(S10)*$C7/12))) -> 0 | T11: =+IF(SUM($I9:T9)<>0,0,IF((S12+T8)-IF($F7="Bókfært verðmæti",(S12+T8)*$C7/12,(T10)*$C7/12)<S10*$D$7,S12-S10*$D$7,IF($F7="Bókfært verðmæti",(S12+T8)*$C7/12,(T10)*$C7/12))) -> 0 | U11: =+IF(SUM($I9:U9)<>0,0,IF((T12+U8)-IF($F7="Bókfært verðmæti",(T12+U8)*$C7/12,(U10)*$C7/12)<T10*$D$7,T12-T10*$D$7,IF($F7="Bókfært verðmæti",(T12+U8)*$C7/12,(U10)*$C7/12))) -> 0 | V11: =SUM(J11:U11) -> 0 | W11: =+IF(SUM($I9:W9)<>0,0,IF((V12+W8)-IF($F7="Bókfært verðmæti",(V12+W8)*$C7/12,(W10)*$C7/12)<V10*$D$7,V12-V10*$D$7,IF($F7="Bókfært verðmæti",(V12+W8)*$C7/12,(W10)*$C7/12))) -> 0 | X11: =+IF(SUM($I9:X9)<>0,0,IF((W12+X8)-IF($F7="Bókfært verðmæti",(W12+X8)*$C7/12,(X10)*$C7/12)<W10*$D$7,W12-W10*$D$7,IF($F7="Bókfært verðmæti",(W12+X8)*$C7/12,(X10)*$C7/12))) -> 0 | Y11: =+IF(SUM($I9:Y9)<>0,0,IF((X12+Y8)-IF($F7="Bókfært verðmæti",(X12+Y8)*$C7/12,(Y10)*$C7/12)<X10*$D$7,X12-X10*$D$7,IF($F7="Bókfært verðmæti",(X12+Y8)*$C7/12,(Y10)*$C7/12))) -> 0 | Z11: =+IF(SUM($I9:Z9)<>0,0,IF((Y12+Z8)-IF($F7="Bókfært verðmæti",(Y12+Z8)*$C7/12,(Z10)*$C7/12)<Y10*$D$7,Y12-Y10*$D$7,IF($F7="Bókfært verðmæti",(Y12+Z8)*$C7/12,(Z10)*$C7/12))) -> 0 | AA11: =+IF(SUM($I9:AA9)<>0,0,IF((Z12+AA8)-IF($F7="Bókfært verðmæti",(Z12+AA8)*$C7/12,(AA10)*$C7/12)<Z10*$D$7,Z12-Z10*$D$7,IF($F7="Bókfært verðmæti",(Z12+AA8)*$C7/12,(AA10)*$C7/12))) -> 0 | AB11: =+IF(SUM($I9:AB9)<>0,0,IF((AA12+AB8)-IF($F7="Bókfært verðmæti",(AA12+AB8)*$C7/12,(AB10)*$C7/12)<AA10*$D$7,AA12-AA10*$D$7,IF($F7="Bókfært verðmæti",(AA12+AB8)*$C7/12,(AB10)*$C7/12))) -> 0 | AC11: =+IF(SUM($I9:AC9)<>0,0,IF((AB12+AC8)-IF($F7="Bókfært verðmæti",(AB12+AC8)*$C7/12,(AC10)*$C7/12)<AB10*$D$7,AB12-AB10*$D$7,IF($F7="Bókfært verðmæti",(AB12+AC8)*$C7/12,(AC10)*$C7/12))) -> 0 | AD11: =+IF(SUM($I9:AD9)<>0,0,IF((AC12+AD8)-IF($F7="Bókfært verðmæti",(AC12+AD8)*$C7/12,(AD10)*$C7/12)<AC10*$D$7,AC12-AC10*$D$7,IF($F7="Bókfært verðmæti",(AC12+AD8)*$C7/12,(AD10)*$C7/12))) -> 0 | AE11: =+IF(SUM($I9:AE9)<>0,0,IF((AD12+AE8)-IF($F7="Bókfært verðmæti",(AD12+AE8)*$C7/12,(AE10)*$C7/12)<AD10*$D$7,AD12-AD10*$D$7,IF($F7="Bókfært verðmæti",(AD12+AE8)*$C7/12,(AE10)*$C7/12))) -> 0 | AF11: =+IF(SUM($I9:AF9)<>0,0,IF((AE12+AF8)-IF($F7="Bókfært verðmæti",(AE12+AF8)*$C7/12,(AF10)*$C7/12)<AE10*$D$7,AE12-AE10*$D$7,IF($F7="Bókfært verðmæti",(AE12+AF8)*$C7/12,(AF10)*$C7/12))) -> 0 | AG11: =+IF(SUM($I9:AG9)<>0,0,IF((AF12+AG8)-IF($F7="Bókfært verðmæti",(AF12+AG8)*$C7/12,(AG10)*$C7/12)<AF10*$D$7,AF12-AF10*$D$7,IF($F7="Bókfært verðmæti",(AF12+AG8)*$C7/12,(AG10)*$C7/12))) -> 0 | AH11: =+IF(SUM($I9:AH9)<>0,0,IF((AG12+AH8)-IF($F7="Bókfært verðmæti",(AG12+AH8)*$C7/12,(AH10)*$C7/12)<AG10*$D$7,AG12-AG10*$D$7,IF($F7="Bókfært verðmæti",(AG12+AH8)*$C7/12,(AH10)*$C7/12))) -> 0 | AI11: =SUM(W11:AH11) -> 0 | AJ11: =+IF(SUM($I9:AJ9)<>0,0,IF((AI12+AJ8)-IF($F7="Bókfært verðmæti",(AI12+AJ8)*$C7,(AJ10)*$C7)<AI10*$D$7,AI12-AI10*$D$7,IF($F7="Bókfært verðmæti",(AI12+AJ8)*$C7,(AJ10)*$C7))) -> 0 | AK11: =+IF(SUM($I9:AK9)<>0,0,IF((AJ12+AK8)-IF($F7="Bókfært verðmæti",(AJ12+AK8)*$C7,(AK10)*$C7)<AJ10*$D$7,AJ12-AJ10*$D$7,IF($F7="Bókfært verðmæti",(AJ12+AK8)*$C7,(AK10)*$C7))) -> 0 | AL11: =+IF(SUM($I9:AL9)<>0,0,IF((AK12+AL8)-IF($F7="Bókfært verðmæti",(AK12+AL8)*$C7,(AL10)*$C7)<AK10*$D$7,AK12-AK10*$D$7,IF($F7="Bókfært verðmæti",(AK12+AL8)*$C7,(AL10)*$C7))) -> 0
B12: Bókfærð staða í lok tímabils | G12: =G7&"_1" -> 16_1 | I12: =+I10-I11 -> 0 | J12: =+IF(SUM($I9:I9)<>0,0,IF(J9<>0,0,I12+J8-J11)) -> 0 | K12: =+IF(SUM($I9:J9)<>0,0,IF(K9<>0,0,J12+K8-K11)) -> 0 | L12: =+IF(SUM($I9:K9)<>0,0,IF(L9<>0,0,K12+L8-L11)) -> 0 | M12: =+IF(SUM($I9:L9)<>0,0,IF(M9<>0,0,L12+M8-M11)) -> 0 | N12: =+IF(SUM($I9:M9)<>0,0,IF(N9<>0,0,M12+N8-N11)) -> 0 | O12: =+IF(SUM($I9:N9)<>0,0,IF(O9<>0,0,N12+O8-O11)) -> 0 | P12: =+IF(SUM($I9:O9)<>0,0,IF(P9<>0,0,O12+P8-P11)) -> 0 | Q12: =+IF(SUM($I9:P9)<>0,0,IF(Q9<>0,0,P12+Q8-Q11)) -> 0 | R12: =+IF(SUM($I9:Q9)<>0,0,IF(R9<>0,0,Q12+R8-R11)) -> 0 | S12: =+IF(SUM($I9:R9)<>0,0,IF(S9<>0,0,R12+S8-S11)) -> 0 | T12: =+IF(SUM($I9:S9)<>0,0,IF(T9<>0,0,S12+T8-T11)) -> 0 | U12: =+IF(SUM($I9:T9)<>0,0,IF(U9<>0,0,T12+U8-U11)) -> 0 | V12: =+U12 -> 0 | W12: =+IF(SUM($I9:V9)<>0,0,IF(W9<>0,0,V12+W8-W11)) -> 0 | X12: =+IF(SUM($I9:W9)<>0,0,IF(X9<>0,0,W12+X8-X11)) -> 0 | Y12: =+IF(SUM($I9:X9)<>0,0,IF(Y9<>0,0,X12+Y8-Y11)) -> 0 | Z12: =+IF(SUM($I9:Y9)<>0,0,IF(Z9<>0,0,Y12+Z8-Z11)) -> 0 | AA12: =+IF(SUM($I9:Z9)<>0,0,IF(AA9<>0,0,Z12+AA8-AA11)) -> 0 | AB12: =+IF(SUM($I9:AA9)<>0,0,IF(AB9<>0,0,AA12+AB8-AB11)) -> 0 | AC12: =+IF(SUM($I9:AB9)<>0,0,IF(AC9<>0,0,AB12+AC8-AC11)) -> 0 | AD12: =+IF(SUM($I9:AC9)<>0,0,IF(AD9<>0,0,AC12+AD8-AD11)) -> 0 | AE12: =+IF(SUM($I9:AD9)<>0,0,IF(AE9<>0,0,AD12+AE8-AE11)) -> 0 | AF12: =+IF(SUM($I9:AE9)<>0,0,IF(AF9<>0,0,AE12+AF8-AF11)) -> 0 | AG12: =+IF(SUM($I9:AF9)<>0,0,IF(AG9<>0,0,AF12+AG8-AG11)) -> 0 | AH12: =+IF(SUM($I9:AG9)<>0,0,IF(AH9<>0,0,AG12+AH8-AH11)) -> 0 | AI12: =+AH12 -> 0 | AJ12: =+IF(SUM($I9:AI9)<>0,0,IF(AJ9<>0,0,AI12+AJ8-AJ11)) -> 0 | AK12: =+IF(SUM($I9:AJ9)<>0,0,IF(AK9<>0,0,AJ12+AK8-AK11)) -> 0 | AL12: =+IF(SUM($I9:AK9)<>0,0,IF(AL9<>0,0,AK12+AL8-AL11)) -> 0
B13: Söluhagnaður (-tap) | G13: =Arsreikningur!$E$37 -> 12 | J13: =+IF(SUM($I9:I9)<>0,0,IF(J9<>0,J9-(I12),0)) -> 0 | K13: =+IF(SUM($I9:J9)<>0,0,IF(K9<>0,K9-(J12),0)) -> 0 | L13: =+IF(SUM($I9:K9)<>0,0,IF(L9<>0,L9-(K12),0)) -> 0 | M13: =+IF(SUM($I9:L9)<>0,0,IF(M9<>0,M9-(L12),0)) -> 0 | N13: =+IF(SUM($I9:M9)<>0,0,IF(N9<>0,N9-(M12),0)) -> 0 | O13: =+IF(SUM($I9:N9)<>0,0,IF(O9<>0,O9-(N12),0)) -> 0 | P13: =+IF(SUM($I9:O9)<>0,0,IF(P9<>0,P9-(O12),0)) -> 0 | Q13: =+IF(SUM($I9:P9)<>0,0,IF(Q9<>0,Q9-(P12),0)) -> 0 | R13: =+IF(SUM($I9:Q9)<>0,0,IF(R9<>0,R9-(Q12),0)) -> 0 | S13: =+IF(SUM($I9:R9)<>0,0,IF(S9<>0,S9-(R12),0)) -> 0 | T13: =+IF(SUM($I9:S9)<>0,0,IF(T9<>0,T9-(S12),0)) -> 0 | U13: =+IF(SUM($I9:T9)<>0,0,IF(U9<>0,U9-(T12),0)) -> 0 | V13: =SUM(J13:U13) -> 0 | W13: =+IF(SUM($I9:V9)<>0,0,IF(W9<>0,W9-(V12),0)) -> 0 | X13: =+IF(SUM($I9:W9)<>0,0,IF(X9<>0,X9-(W12),0)) -> 0 | Y13: =+IF(SUM($I9:X9)<>0,0,IF(Y9<>0,Y9-(X12),0)) -> 0 | Z13: =+IF(SUM($I9:Y9)<>0,0,IF(Z9<>0,Z9-(Y12),0)) -> 0 | AA13: =+IF(SUM($I9:Z9)<>0,0,IF(AA9<>0,AA9-(Z12),0)) -> 0 | AB13: =+IF(SUM($I9:AA9)<>0,0,IF(AB9<>0,AB9-(AA12),0)) -> 0 | AC13: =+IF(SUM($I9:AB9)<>0,0,IF(AC9<>0,AC9-(AB12),0)) -> 0 | AD13: =+IF(SUM($I9:AC9)<>0,0,IF(AD9<>0,AD9-(AC12),0)) -> 0 | AE13: =+IF(SUM($I9:AD9)<>0,0,IF(AE9<>0,AE9-(AD12),0)) -> 0 | AF13: =+IF(SUM($I9:AE9)<>0,0,IF(AF9<>0,AF9-(AE12),0)) -> 0 | AG13: =+IF(SUM($I9:AF9)<>0,0,IF(AG9<>0,AG9-(AF12),0)) -> 0 | AH13: =+IF(SUM($I9:AG9)<>0,0,IF(AH9<>0,AH9-(AG12),0)) -> 0 | AI13: =SUM(W13:AH13) -> 0 | AJ13: =+IF(SUM($I9:AI9)<>0,0,IF(AJ9<>0,AJ9-(AI12),0)) -> 0 | AK13: =+IF(SUM($I9:AJ9)<>0,0,IF(AK9<>0,AK9-(AJ12),0)) -> 0 | AL13: =+IF(SUM($I9:AK9)<>0,0,IF(AL9<>0,AL9-(AK12),0)) -> 0
A15: Skrifið inn heiti á eign / eignarflokki hér
B17: Grunnforsendur | C17: 0 | D17: 0.1 | E17: Fyrningaflokkur 1 | F17: Stofnverðmæti | G17: =INDEX(Forsendur!$C$99:$C$102,MATCH($E17,Fyrningaflokkur,0)) -> 16
B18: Keyptar eignir | G18: =G17&"_2" -> 16_2 | V18: =SUM(J18:U18) -> 0 | AI18: =SUM(W18:AH18) -> 0
B19: Seldar eignir | G19: =G17&"_3" -> 16_3 | V19: =SUM(J19:U19) -> 0 | AI19: =SUM(W19:AH19) -> 0
B20: Stofnverð | G20: =G17&"_4" -> 16_4 | J20: =+IF(SUM($I19:I19)<>0,0,IF(J19<>0,0,I20+J18-J19)) -> 0 | K20: =+IF(SUM($I19:J19)<>0,0,IF(K19<>0,0,J20+K18-K19)) -> 0 | L20: =+IF(SUM($I19:K19)<>0,0,IF(L19<>0,0,K20+L18-L19)) -> 0 | M20: =+IF(SUM($I19:L19)<>0,0,IF(M19<>0,0,L20+M18-M19)) -> 0 | N20: =+IF(SUM($I19:M19)<>0,0,IF(N19<>0,0,M20+N18-N19)) -> 0 | O20: =+IF(SUM($I19:N19)<>0,0,IF(O19<>0,0,N20+O18-O19)) -> 0 | P20: =+IF(SUM($I19:O19)<>0,0,IF(P19<>0,0,O20+P18-P19)) -> 0 | Q20: =+IF(SUM($I19:P19)<>0,0,IF(Q19<>0,0,P20+Q18-Q19)) -> 0 | R20: =+IF(SUM($I19:Q19)<>0,0,IF(R19<>0,0,Q20+R18-R19)) -> 0 | S20: =+IF(SUM($I19:R19)<>0,0,IF(S19<>0,0,R20+S18-S19)) -> 0 | T20: =+IF(SUM($I19:S19)<>0,0,IF(T19<>0,0,S20+T18-T19)) -> 0 | U20: =+IF(SUM($I19:T19)<>0,0,IF(U19<>0,0,T20+U18-U19)) -> 0 | V20: =+U20 -> 0 | W20: =+IF(SUM($I19:V19)<>0,0,IF(W19<>0,0,V20+W18-W19)) -> 0 | X20: =+IF(SUM($I19:W19)<>0,0,IF(X19<>0,0,W20+X18-X19)) -> 0 | Y20: =+IF(SUM($I19:X19)<>0,0,IF(Y19<>0,0,X20+Y18-Y19)) -> 0 | Z20: =+IF(SUM($I19:Y19)<>0,0,IF(Z19<>0,0,Y20+Z18-Z19)) -> 0 | AA20: =+IF(SUM($I19:Z19)<>0,0,IF(AA19<>0,0,Z20+AA18-AA19)) -> 0 | AB20: =+IF(SUM($I19:AA19)<>0,0,IF(AB19<>0,0,AA20+AB18-AB19)) -> 0 | AC20: =+IF(SUM($I19:AB19)<>0,0,IF(AC19<>0,0,AB20+AC18-AC19)) -> 0 | AD20: =+IF(SUM($I19:AC19)<>0,0,IF(AD19<>0,0,AC20+AD18-AD19)) -> 0 | AE20: =+IF(SUM($I19:AD19)<>0,0,IF(AE19<>0,0,AD20+AE18-AE19)) -> 0 | AF20: =+IF(SUM($I19:AE19)<>0,0,IF(AF19<>0,0,AE20+AF18-AF19)) -> 0 | AG20: =+IF(SUM($I19:AF19)<>0,0,IF(AG19<>0,0,AF20+AG18-AG19)) -> 0 | AH20: =+IF(SUM($I19:AG19)<>0,0,IF(AH19<>0,0,AG20+AH18-AH19)) -> 0 | AI20: =+AH20 -> 0 | AJ20: =+IF(SUM($I19:AI19)<>0,0,IF(AJ19<>0,0,AI20+AJ18-AJ19)) -> 0 | AK20: =+IF(SUM($I19:AJ19)<>0,0,IF(AK19<>0,0,AJ20+AK18-AK19)) -> 0 | AL20: =+IF(SUM($I19:AK19)<>0,0,IF(AL19<>0,0,AK20+AL18-AL19)) -> 0
B21: Fyrning | G21: =Arsreikningur!$E$25 -> 10 | J21: =+IF(SUM($I19:J19)<>0,0,IF((I22+J18)-IF($F17="Bókfært verðmæti",(I22+J18)*$C17/12,(J20)*$C17/12)<I20*$D$7,I22-I20*$D$7,IF($F17="Bókfært verðmæti",(I22+J18)*$C17/12,(J20)*$C17/12))) -> 0 | K21: =+IF(SUM($I19:K19)<>0,0,IF((J22+K18)-IF($F17="Bókfært verðmæti",(J22+K18)*$C17/12,(K20)*$C17/12)<J20*$D$7,J22-J20*$D$7,IF($F17="Bókfært verðmæti",(J22+K18)*$C17/12,(K20)*$C17/12))) -> 0 | L21: =+IF(SUM($I19:L19)<>0,0,IF((K22+L18)-IF($F17="Bókfært verðmæti",(K22+L18)*$C17/12,(L20)*$C17/12)<K20*$D$7,K22-K20*$D$7,IF($F17="Bókfært verðmæti",(K22+L18)*$C17/12,(L20)*$C17/12))) -> 0 | M21: =+IF(SUM($I19:M19)<>0,0,IF((L22+M18)-IF($F17="Bókfært verðmæti",(L22+M18)*$C17/12,(M20)*$C17/12)<L20*$D$7,L22-L20*$D$7,IF($F17="Bókfært verðmæti",(L22+M18)*$C17/12,(M20)*$C17/12))) -> 0 | N21: =+IF(SUM($I19:N19)<>0,0,IF((M22+N18)-IF($F17="Bókfært verðmæti",(M22+N18)*$C17/12,(N20)*$C17/12)<M20*$D$7,M22-M20*$D$7,IF($F17="Bókfært verðmæti",(M22+N18)*$C17/12,(N20)*$C17/12))) -> 0 | O21: =+IF(SUM($I19:O19)<>0,0,IF((N22+O18)-IF($F17="Bókfært verðmæti",(N22+O18)*$C17/12,(O20)*$C17/12)<N20*$D$7,N22-N20*$D$7,IF($F17="Bókfært verðmæti",(N22+O18)*$C17/12,(O20)*$C17/12))) -> 0 | P21: =+IF(SUM($I19:P19)<>0,0,IF((O22+P18)-IF($F17="Bókfært verðmæti",(O22+P18)*$C17/12,(P20)*$C17/12)<O20*$D$7,O22-O20*$D$7,IF($F17="Bókfært verðmæti",(O22+P18)*$C17/12,(P20)*$C17/12))) -> 0 | Q21: =+IF(SUM($I19:Q19)<>0,0,IF((P22+Q18)-IF($F17="Bókfært verðmæti",(P22+Q18)*$C17/12,(Q20)*$C17/12)<P20*$D$7,P22-P20*$D$7,IF($F17="Bókfært verðmæti",(P22+Q18)*$C17/12,(Q20)*$C17/12))) -> 0 | R21: =+IF(SUM($I19:R19)<>0,0,IF((Q22+R18)-IF($F17="Bókfært verðmæti",(Q22+R18)*$C17/12,(R20)*$C17/12)<Q20*$D$7,Q22-Q20*$D$7,IF($F17="Bókfært verðmæti",(Q22+R18)*$C17/12,(R20)*$C17/12))) -> 0 | S21: =+IF(SUM($I19:S19)<>0,0,IF((R22+S18)-IF($F17="Bókfært verðmæti",(R22+S18)*$C17/12,(S20)*$C17/12)<R20*$D$7,R22-R20*$D$7,IF($F17="Bókfært verðmæti",(R22+S18)*$C17/12,(S20)*$C17/12))) -> 0 | T21: =+IF(SUM($I19:T19)<>0,0,IF((S22+T18)-IF($F17="Bókfært verðmæti",(S22+T18)*$C17/12,(T20)*$C17/12)<S20*$D$7,S22-S20*$D$7,IF($F17="Bókfært verðmæti",(S22+T18)*$C17/12,(T20)*$C17/12))) -> 0 | U21: =+IF(SUM($I19:U19)<>0,0,IF((T22+U18)-IF($F17="Bókfært verðmæti",(T22+U18)*$C17/12,(U20)*$C17/12)<T20*$D$7,T22-T20*$D$7,IF($F17="Bókfært verðmæti",(T22+U18)*$C17/12,(U20)*$C17/12))) -> 0 | V21: =SUM(J21:U21) -> 0 | W21: =+IF(SUM($I19:W19)<>0,0,IF((V22+W18)-IF($F17="Bókfært verðmæti",(V22+W18)*$C17/12,(W20)*$C17/12)<V20*$D$7,V22-V20*$D$7,IF($F17="Bókfært verðmæti",(V22+W18)*$C17/12,(W20)*$C17/12))) -> 0 | X21: =+IF(SUM($I19:X19)<>0,0,IF((W22+X18)-IF($F17="Bókfært verðmæti",(W22+X18)*$C17/12,(X20)*$C17/12)<W20*$D$7,W22-W20*$D$7,IF($F17="Bókfært verðmæti",(W22+X18)*$C17/12,(X20)*$C17/12))) -> 0 | Y21: =+IF(SUM($I19:Y19)<>0,0,IF((X22+Y18)-IF($F17="Bókfært verðmæti",(X22+Y18)*$C17/12,(Y20)*$C17/12)<X20*$D$7,X22-X20*$D$7,IF($F17="Bókfært verðmæti",(X22+Y18)*$C17/12,(Y20)*$C17/12))) -> 0 | Z21: =+IF(SUM($I19:Z19)<>0,0,IF((Y22+Z18)-IF($F17="Bókfært verðmæti",(Y22+Z18)*$C17/12,(Z20)*$C17/12)<Y20*$D$7,Y22-Y20*$D$7,IF($F17="Bókfært verðmæti",(Y22+Z18)*$C17/12,(Z20)*$C17/12))) -> 0 | AA21: =+IF(SUM($I19:AA19)<>0,0,IF((Z22+AA18)-IF($F17="Bókfært verðmæti",(Z22+AA18)*$C17/12,(AA20)*$C17/12)<Z20*$D$7,Z22-Z20*$D$7,IF($F17="Bókfært verðmæti",(Z22+AA18)*$C17/12,(AA20)*$C17/12))) -> 0 | AB21: =+IF(SUM($I19:AB19)<>0,0,IF((AA22+AB18)-IF($F17="Bókfært verðmæti",(AA22+AB18)*$C17/12,(AB20)*$C17/12)<AA20*$D$7,AA22-AA20*$D$7,IF($F17="Bókfært verðmæti",(AA22+AB18)*$C17/12,(AB20)*$C17/12))) -> 0 | AC21: =+IF(SUM($I19:AC19)<>0,0,IF((AB22+AC18)-IF($F17="Bókfært verðmæti",(AB22+AC18)*$C17/12,(AC20)*$C17/12)<AB20*$D$7,AB22-AB20*$D$7,IF($F17="Bókfært verðmæti",(AB22+AC18)*$C17/12,(AC20)*$C17/12))) -> 0 | AD21: =+IF(SUM($I19:AD19)<>0,0,IF((AC22+AD18)-IF($F17="Bókfært verðmæti",(AC22+AD18)*$C17/12,(AD20)*$C17/12)<AC20*$D$7,AC22-AC20*$D$7,IF($F17="Bókfært verðmæti",(AC22+AD18)*$C17/12,(AD20)*$C17/12))) -> 0 | AE21: =+IF(SUM($I19:AE19)<>0,0,IF((AD22+AE18)-IF($F17="Bókfært verðmæti",(AD22+AE18)*$C17/12,(AE20)*$C17/12)<AD20*$D$7,AD22-AD20*$D$7,IF($F17="Bókfært verðmæti",(AD22+AE18)*$C17/12,(AE20)*$C17/12))) -> 0 | AF21: =+IF(SUM($I19:AF19)<>0,0,IF((AE22+AF18)-IF($F17="Bókfært verðmæti",(AE22+AF18)*$C17/12,(AF20)*$C17/12)<AE20*$D$7,AE22-AE20*$D$7,IF($F17="Bókfært verðmæti",(AE22+AF18)*$C17/12,(AF20)*$C17/12))) -> 0 | AG21: =+IF(SUM($I19:AG19)<>0,0,IF((AF22+AG18)-IF($F17="Bókfært verðmæti",(AF22+AG18)*$C17/12,(AG20)*$C17/12)<AF20*$D$7,AF22-AF20*$D$7,IF($F17="Bókfært verðmæti",(AF22+AG18)*$C17/12,(AG20)*$C17/12))) -> 0 | AH21: =+IF(SUM($I19:AH19)<>0,0,IF((AG22+AH18)-IF($F17="Bókfært verðmæti",(AG22+AH18)*$C17/12,(AH20)*$C17/12)<AG20*$D$7,AG22-AG20*$D$7,IF($F17="Bókfært verðmæti",(AG22+AH18)*$C17/12,(AH20)*$C17/12))) -> 0 | AI21: =SUM(W21:AH21) -> 0 | AJ21: =+IF(SUM($I19:AJ19)<>0,0,IF((AI22+AJ18)-IF($F17="Bókfært verðmæti",(AI22+AJ18)*$C17,(AJ20)*$C17)<AI20*$D$7,AI22-AI20*$D$7,IF($F17="Bókfært verðmæti",(AI22+AJ18)*$C17,(AJ20)*$C17))) -> 0 | AK21: =+IF(SUM($I19:AK19)<>0,0,IF((AJ22+AK18)-IF($F17="Bókfært verðmæti",(AJ22+AK18)*$C17,(AK20)*$C17)<AJ20*$D$7,AJ22-AJ20*$D$7,IF($F17="Bókfært verðmæti",(AJ22+AK18)*$C17,(AK20)*$C17))) -> 0 | AL21: =+IF(SUM($I19:AL19)<>0,0,IF((AK22+AL18)-IF($F17="Bókfært verðmæti",(AK22+AL18)*$C17,(AL20)*$C17)<AK20*$D$7,AK22-AK20*$D$7,IF($F17="Bókfært verðmæti",(AK22+AL18)*$C17,(AL20)*$C17))) -> 0
B22: Bókfærð staða í lok tímabils | G22: =G17&"_1" -> 16_1 | I22: =+I20-I21 -> 0 | J22: =+IF(SUM($I19:I19)<>0,0,IF(J19<>0,0,I22+J18-J21)) -> 0 | K22: =+IF(SUM($I19:J19)<>0,0,IF(K19<>0,0,J22+K18-K21)) -> 0 | L22: =+IF(SUM($I19:K19)<>0,0,IF(L19<>0,0,K22+L18-L21)) -> 0 | M22: =+IF(SUM($I19:L19)<>0,0,IF(M19<>0,0,L22+M18-M21)) -> 0 | N22: =+IF(SUM($I19:M19)<>0,0,IF(N19<>0,0,M22+N18-N21)) -> 0 | O22: =+IF(SUM($I19:N19)<>0,0,IF(O19<>0,0,N22+O18-O21)) -> 0 | P22: =+IF(SUM($I19:O19)<>0,0,IF(P19<>0,0,O22+P18-P21)) -> 0 | Q22: =+IF(SUM($I19:P19)<>0,0,IF(Q19<>0,0,P22+Q18-Q21)) -> 0 | R22: =+IF(SUM($I19:Q19)<>0,0,IF(R19<>0,0,Q22+R18-R21)) -> 0 | S22: =+IF(SUM($I19:R19)<>0,0,IF(S19<>0,0,R22+S18-S21)) -> 0 | T22: =+IF(SUM($I19:S19)<>0,0,IF(T19<>0,0,S22+T18-T21)) -> 0 | U22: =+IF(SUM($I19:T19)<>0,0,IF(U19<>0,0,T22+U18-U21)) -> 0 | V22: =+U22 -> 0 | W22: =+IF(SUM($I19:V19)<>0,0,IF(W19<>0,0,V22+W18-W21)) -> 0 | X22: =+IF(SUM($I19:W19)<>0,0,IF(X19<>0,0,W22+X18-X21)) -> 0 | Y22: =+IF(SUM($I19:X19)<>0,0,IF(Y19<>0,0,X22+Y18-Y21)) -> 0 | Z22: =+IF(SUM($I19:Y19)<>0,0,IF(Z19<>0,0,Y22+Z18-Z21)) -> 0 | AA22: =+IF(SUM($I19:Z19)<>0,0,IF(AA19<>0,0,Z22+AA18-AA21)) -> 0 | AB22: =+IF(SUM($I19:AA19)<>0,0,IF(AB19<>0,0,AA22+AB18-AB21)) -> 0 | AC22: =+IF(SUM($I19:AB19)<>0,0,IF(AC19<>0,0,AB22+AC18-AC21)) -> 0 | AD22: =+IF(SUM($I19:AC19)<>0,0,IF(AD19<>0,0,AC22+AD18-AD21)) -> 0 | AE22: =+IF(SUM($I19:AD19)<>0,0,IF(AE19<>0,0,AD22+AE18-AE21)) -> 0 | AF22: =+IF(SUM($I19:AE19)<>0,0,IF(AF19<>0,0,AE22+AF18-AF21)) -> 0 | AG22: =+IF(SUM($I19:AF19)<>0,0,IF(AG19<>0,0,AF22+AG18-AG21)) -> 0 | AH22: =+IF(SUM($I19:AG19)<>0,0,IF(AH19<>0,0,AG22+AH18-AH21)) -> 0 | AI22: =+AH22 -> 0 | AJ22: =+IF(SUM($I19:AI19)<>0,0,IF(AJ19<>0,0,AI22+AJ18-AJ21)) -> 0 | AK22: =+IF(SUM($I19:AJ19)<>0,0,IF(AK19<>0,0,AJ22+AK18-AK21)) -> 0 | AL22: =+IF(SUM($I19:AK19)<>0,0,IF(AL19<>0,0,AK22+AL18-AL21)) -> 0
B23: Söluhagnaður (-tap) | G23: =Arsreikningur!$E$37 -> 12 | J23: =+IF(SUM($I19:I19)<>0,0,IF(J19<>0,J19-(I22),0)) -> 0 | K23: =+IF(SUM($I19:J19)<>0,0,IF(K19<>0,K19-(J22),0)) -> 0 | L23: =+IF(SUM($I19:K19)<>0,0,IF(L19<>0,L19-(K22),0)) -> 0 | M23: =+IF(SUM($I19:L19)<>0,0,IF(M19<>0,M19-(L22),0)) -> 0 | N23: =+IF(SUM($I19:M19)<>0,0,IF(N19<>0,N19-(M22),0)) -> 0 | O23: =+IF(SUM($I19:N19)<>0,0,IF(O19<>0,O19-(N22),0)) -> 0 | P23: =+IF(SUM($I19:O19)<>0,0,IF(P19<>0,P19-(O22),0)) -> 0 | Q23: =+IF(SUM($I19:P19)<>0,0,IF(Q19<>0,Q19-(P22),0)) -> 0 | R23: =+IF(SUM($I19:Q19)<>0,0,IF(R19<>0,R19-(Q22),0)) -> 0 | S23: =+IF(SUM($I19:R19)<>0,0,IF(S19<>0,S19-(R22),0)) -> 0 | T23: =+IF(SUM($I19:S19)<>0,0,IF(T19<>0,T19-(S22),0)) -> 0 | U23: =+IF(SUM($I19:T19)<>0,0,IF(U19<>0,U19-(T22),0)) -> 0 | V23: =SUM(J23:U23) -> 0 | W23: =+IF(SUM($I19:V19)<>0,0,IF(W19<>0,W19-(V22),0)) -> 0 | X23: =+IF(SUM($I19:W19)<>0,0,IF(X19<>0,X19-(W22),0)) -> 0 | Y23: =+IF(SUM($I19:X19)<>0,0,IF(Y19<>0,Y19-(X22),0)) -> 0 | Z23: =+IF(SUM($I19:Y19)<>0,0,IF(Z19<>0,Z19-(Y22),0)) -> 0 | AA23: =+IF(SUM($I19:Z19)<>0,0,IF(AA19<>0,AA19-(Z22),0)) -> 0 | AB23: =+IF(SUM($I19:AA19)<>0,0,IF(AB19<>0,AB19-(AA22),0)) -> 0 | AC23: =+IF(SUM($I19:AB19)<>0,0,IF(AC19<>0,AC19-(AB22),0)) -> 0 | AD23: =+IF(SUM($I19:AC19)<>0,0,IF(AD19<>0,AD19-(AC22),0)) -> 0 | AE23: =+IF(SUM($I19:AD19)<>0,0,IF(AE19<>0,AE19-(AD22),0)) -> 0 | AF23: =+IF(SUM($I19:AE19)<>0,0,IF(AF19<>0,AF19-(AE22),0)) -> 0 | AG23: =+IF(SUM($I19:AF19)<>0,0,IF(AG19<>0,AG19-(AF22),0)) -> 0 | AH23: =+IF(SUM($I19:AG19)<>0,0,IF(AH19<>0,AH19-(AG22),0)) -> 0 | AI23: =SUM(W23:AH23) -> 0 | AJ23: =+IF(SUM($I19:AI19)<>0,0,IF(AJ19<>0,AJ19-(AI22),0)) -> 0 | AK23: =+IF(SUM($I19:AJ19)<>0,0,IF(AK19<>0,AK19-(AJ22),0)) -> 0 | AL23: =+IF(SUM($I19:AK19)<>0,0,IF(AL19<>0,AL19-(AK22),0)) -> 0
A25: Skrifið inn heiti á eign / eignarflokki hér
B27: Grunnforsendur | C27: 0 | D27: 0.1 | E27: Fyrningaflokkur 1 | F27: Stofnverðmæti | G27: =INDEX(Forsendur!$C$99:$C$102,MATCH($E27,Fyrningaflokkur,0)) -> 16
B28: Keyptar eignir | G28: =G27&"_2" -> 16_2 | V28: =SUM(J28:U28) -> 0 | AI28: =SUM(W28:AH28) -> 0
B29: Seldar eignir | G29: =G27&"_3" -> 16_3 | V29: =SUM(J29:U29) -> 0 | AI29: =SUM(W29:AH29) -> 0
B30: Stofnverð | G30: =G27&"_4" -> 16_4 | J30: =+IF(SUM($I29:I29)<>0,0,IF(J29<>0,0,I30+J28-J29)) -> 0 | K30: =+IF(SUM($I29:J29)<>0,0,IF(K29<>0,0,J30+K28-K29)) -> 0 | L30: =+IF(SUM($I29:K29)<>0,0,IF(L29<>0,0,K30+L28-L29)) -> 0 | M30: =+IF(SUM($I29:L29)<>0,0,IF(M29<>0,0,L30+M28-M29)) -> 0 | N30: =+IF(SUM($I29:M29)<>0,0,IF(N29<>0,0,M30+N28-N29)) -> 0 | O30: =+IF(SUM($I29:N29)<>0,0,IF(O29<>0,0,N30+O28-O29)) -> 0 | P30: =+IF(SUM($I29:O29)<>0,0,IF(P29<>0,0,O30+P28-P29)) -> 0 | Q30: =+IF(SUM($I29:P29)<>0,0,IF(Q29<>0,0,P30+Q28-Q29)) -> 0 | R30: =+IF(SUM($I29:Q29)<>0,0,IF(R29<>0,0,Q30+R28-R29)) -> 0 | S30: =+IF(SUM($I29:R29)<>0,0,IF(S29<>0,0,R30+S28-S29)) -> 0 | T30: =+IF(SUM($I29:S29)<>0,0,IF(T29<>0,0,S30+T28-T29)) -> 0 | U30: =+IF(SUM($I29:T29)<>0,0,IF(U29<>0,0,T30+U28-U29)) -> 0 | V30: =+U30 -> 0 | W30: =+IF(SUM($I29:V29)<>0,0,IF(W29<>0,0,V30+W28-W29)) -> 0 | X30: =+IF(SUM($I29:W29)<>0,0,IF(X29<>0,0,W30+X28-X29)) -> 0 | Y30: =+IF(SUM($I29:X29)<>0,0,IF(Y29<>0,0,X30+Y28-Y29)) -> 0 | Z30: =+IF(SUM($I29:Y29)<>0,0,IF(Z29<>0,0,Y30+Z28-Z29)) -> 0 | AA30: =+IF(SUM($I29:Z29)<>0,0,IF(AA29<>0,0,Z30+AA28-AA29)) -> 0 | AB30: =+IF(SUM($I29:AA29)<>0,0,IF(AB29<>0,0,AA30+AB28-AB29)) -> 0 | AC30: =+IF(SUM($I29:AB29)<>0,0,IF(AC29<>0,0,AB30+AC28-AC29)) -> 0 | AD30: =+IF(SUM($I29:AC29)<>0,0,IF(AD29<>0,0,AC30+AD28-AD29)) -> 0 | AE30: =+IF(SUM($I29:AD29)<>0,0,IF(AE29<>0,0,AD30+AE28-AE29)) -> 0 | AF30: =+IF(SUM($I29:AE29)<>0,0,IF(AF29<>0,0,AE30+AF28-AF29)) -> 0 | AG30: =+IF(SUM($I29:AF29)<>0,0,IF(AG29<>0,0,AF30+AG28-AG29)) -> 0 | AH30: =+IF(SUM($I29:AG29)<>0,0,IF(AH29<>0,0,AG30+AH28-AH29)) -> 0 | AI30: =+AH30 -> 0 | AJ30: =+IF(SUM($I29:AI29)<>0,0,IF(AJ29<>0,0,AI30+AJ28-AJ29)) -> 0 | AK30: =+IF(SUM($I29:AJ29)<>0,0,IF(AK29<>0,0,AJ30+AK28-AK29)) -> 0 | AL30: =+IF(SUM($I29:AK29)<>0,0,IF(AL29<>0,0,AK30+AL28-AL29)) -> 0
B31: Fyrning | G31: =Arsreikningur!$E$25 -> 10 | J31: =+IF(SUM($I29:J29)<>0,0,IF((I32+J28)-IF($F27="Bókfært verðmæti",(I32+J28)*$C27/12,(J30)*$C27/12)<I30*$D$7,I32-I30*$D$7,IF($F27="Bókfært verðmæti",(I32+J28)*$C27/12,(J30)*$C27/12))) -> 0 | K31: =+IF(SUM($I29:K29)<>0,0,IF((J32+K28)-IF($F27="Bókfært verðmæti",(J32+K28)*$C27/12,(K30)*$C27/12)<J30*$D$7,J32-J30*$D$7,IF($F27="Bókfært verðmæti",(J32+K28)*$C27/12,(K30)*$C27/12))) -> 0 | L31: =+IF(SUM($I29:L29)<>0,0,IF((K32+L28)-IF($F27="Bókfært verðmæti",(K32+L28)*$C27/12,(L30)*$C27/12)<K30*$D$7,K32-K30*$D$7,IF($F27="Bókfært verðmæti",(K32+L28)*$C27/12,(L30)*$C27/12))) -> 0 | M31: =+IF(SUM($I29:M29)<>0,0,IF((L32+M28)-IF($F27="Bókfært verðmæti",(L32+M28)*$C27/12,(M30)*$C27/12)<L30*$D$7,L32-L30*$D$7,IF($F27="Bókfært verðmæti",(L32+M28)*$C27/12,(M30)*$C27/12))) -> 0 | N31: =+IF(SUM($I29:N29)<>0,0,IF((M32+N28)-IF($F27="Bókfært verðmæti",(M32+N28)*$C27/12,(N30)*$C27/12)<M30*$D$7,M32-M30*$D$7,IF($F27="Bókfært verðmæti",(M32+N28)*$C27/12,(N30)*$C27/12))) -> 0 | O31: =+IF(SUM($I29:O29)<>0,0,IF((N32+O28)-IF($F27="Bókfært verðmæti",(N32+O28)*$C27/12,(O30)*$C27/12)<N30*$D$7,N32-N30*$D$7,IF($F27="Bókfært verðmæti",(N32+O28)*$C27/12,(O30)*$C27/12))) -> 0 | P31: =+IF(SUM($I29:P29)<>0,0,IF((O32+P28)-IF($F27="Bókfært verðmæti",(O32+P28)*$C27/12,(P30)*$C27/12)<O30*$D$7,O32-O30*$D$7,IF($F27="Bókfært verðmæti",(O32+P28)*$C27/12,(P30)*$C27/12))) -> 0 | Q31: =+IF(SUM($I29:Q29)<>0,0,IF((P32+Q28)-IF($F27="Bókfært verðmæti",(P32+Q28)*$C27/12,(Q30)*$C27/12)<P30*$D$7,P32-P30*$D$7,IF($F27="Bókfært verðmæti",(P32+Q28)*$C27/12,(Q30)*$C27/12))) -> 0 | R31: =+IF(SUM($I29:R29)<>0,0,IF((Q32+R28)-IF($F27="Bókfært verðmæti",(Q32+R28)*$C27/12,(R30)*$C27/12)<Q30*$D$7,Q32-Q30*$D$7,IF($F27="Bókfært verðmæti",(Q32+R28)*$C27/12,(R30)*$C27/12))) -> 0 | S31: =+IF(SUM($I29:S29)<>0,0,IF((R32+S28)-IF($F27="Bókfært verðmæti",(R32+S28)*$C27/12,(S30)*$C27/12)<R30*$D$7,R32-R30*$D$7,IF($F27="Bókfært verðmæti",(R32+S28)*$C27/12,(S30)*$C27/12))) -> 0 | T31: =+IF(SUM($I29:T29)<>0,0,IF((S32+T28)-IF($F27="Bókfært verðmæti",(S32+T28)*$C27/12,(T30)*$C27/12)<S30*$D$7,S32-S30*$D$7,IF($F27="Bókfært verðmæti",(S32+T28)*$C27/12,(T30)*$C27/12))) -> 0 | U31: =+IF(SUM($I29:U29)<>0,0,IF((T32+U28)-IF($F27="Bókfært verðmæti",(T32+U28)*$C27/12,(U30)*$C27/12)<T30*$D$7,T32-T30*$D$7,IF($F27="Bókfært verðmæti",(T32+U28)*$C27/12,(U30)*$C27/12))) -> 0 | V31: =SUM(J31:U31) -> 0 | W31: =+IF(SUM($I29:W29)<>0,0,IF((V32+W28)-IF($F27="Bókfært verðmæti",(V32+W28)*$C27/12,(W30)*$C27/12)<V30*$D$7,V32-V30*$D$7,IF($F27="Bókfært verðmæti",(V32+W28)*$C27/12,(W30)*$C27/12))) -> 0 | X31: =+IF(SUM($I29:X29)<>0,0,IF((W32+X28)-IF($F27="Bókfært verðmæti",(W32+X28)*$C27/12,(X30)*$C27/12)<W30*$D$7,W32-W30*$D$7,IF($F27="Bókfært verðmæti",(W32+X28)*$C27/12,(X30)*$C27/12))) -> 0 | Y31: =+IF(SUM($I29:Y29)<>0,0,IF((X32+Y28)-IF($F27="Bókfært verðmæti",(X32+Y28)*$C27/12,(Y30)*$C27/12)<X30*$D$7,X32-X30*$D$7,IF($F27="Bókfært verðmæti",(X32+Y28)*$C27/12,(Y30)*$C27/12))) -> 0 | Z31: =+IF(SUM($I29:Z29)<>0,0,IF((Y32+Z28)-IF($F27="Bókfært verðmæti",(Y32+Z28)*$C27/12,(Z30)*$C27/12)<Y30*$D$7,Y32-Y30*$D$7,IF($F27="Bókfært verðmæti",(Y32+Z28)*$C27/12,(Z30)*$C27/12))) -> 0 | AA31: =+IF(SUM($I29:AA29)<>0,0,IF((Z32+AA28)-IF($F27="Bókfært verðmæti",(Z32+AA28)*$C27/12,(AA30)*$C27/12)<Z30*$D$7,Z32-Z30*$D$7,IF($F27="Bókfært verðmæti",(Z32+AA28)*$C27/12,(AA30)*$C27/12))) -> 0 | AB31: =+IF(SUM($I29:AB29)<>0,0,IF((AA32+AB28)-IF($F27="Bókfært verðmæti",(AA32+AB28)*$C27/12,(AB30)*$C27/12)<AA30*$D$7,AA32-AA30*$D$7,IF($F27="Bókfært verðmæti",(AA32+AB28)*$C27/12,(AB30)*$C27/12))) -> 0 | AC31: =+IF(SUM($I29:AC29)<>0,0,IF((AB32+AC28)-IF($F27="Bókfært verðmæti",(AB32+AC28)*$C27/12,(AC30)*$C27/12)<AB30*$D$7,AB32-AB30*$D$7,IF($F27="Bókfært verðmæti",(AB32+AC28)*$C27/12,(AC30)*$C27/12))) -> 0 | AD31: =+IF(SUM($I29:AD29)<>0,0,IF((AC32+AD28)-IF($F27="Bókfært verðmæti",(AC32+AD28)*$C27/12,(AD30)*$C27/12)<AC30*$D$7,AC32-AC30*$D$7,IF($F27="Bókfært verðmæti",(AC32+AD28)*$C27/12,(AD30)*$C27/12))) -> 0 | AE31: =+IF(SUM($I29:AE29)<>0,0,IF((AD32+AE28)-IF($F27="Bókfært verðmæti",(AD32+AE28)*$C27/12,(AE30)*$C27/12)<AD30*$D$7,AD32-AD30*$D$7,IF($F27="Bókfært verðmæti",(AD32+AE28)*$C27/12,(AE30)*$C27/12))) -> 0 | AF31: =+IF(SUM($I29:AF29)<>0,0,IF((AE32+AF28)-IF($F27="Bókfært verðmæti",(AE32+AF28)*$C27/12,(AF30)*$C27/12)<AE30*$D$7,AE32-AE30*$D$7,IF($F27="Bókfært verðmæti",(AE32+AF28)*$C27/12,(AF30)*$C27/12))) -> 0 | AG31: =+IF(SUM($I29:AG29)<>0,0,IF((AF32+AG28)-IF($F27="Bókfært verðmæti",(AF32+AG28)*$C27/12,(AG30)*$C27/12)<AF30*$D$7,AF32-AF30*$D$7,IF($F27="Bókfært verðmæti",(AF32+AG28)*$C27/12,(AG30)*$C27/12))) -> 0 | AH31: =+IF(SUM($I29:AH29)<>0,0,IF((AG32+AH28)-IF($F27="Bókfært verðmæti",(AG32+AH28)*$C27/12,(AH30)*$C27/12)<AG30*$D$7,AG32-AG30*$D$7,IF($F27="Bókfært verðmæti",(AG32+AH28)*$C27/12,(AH30)*$C27/12))) -> 0 | AI31: =SUM(W31:AH31) -> 0 | AJ31: =+IF(SUM($I29:AJ29)<>0,0,IF((AI32+AJ28)-IF($F27="Bókfært verðmæti",(AI32+AJ28)*$C27,(AJ30)*$C27)<AI30*$D$7,AI32-AI30*$D$7,IF($F27="Bókfært verðmæti",(AI32+AJ28)*$C27,(AJ30)*$C27))) -> 0 | AK31: =+IF(SUM($I29:AK29)<>0,0,IF((AJ32+AK28)-IF($F27="Bókfært verðmæti",(AJ32+AK28)*$C27,(AK30)*$C27)<AJ30*$D$7,AJ32-AJ30*$D$7,IF($F27="Bókfært verðmæti",(AJ32+AK28)*$C27,(AK30)*$C27))) -> 0 | AL31: =+IF(SUM($I29:AL29)<>0,0,IF((AK32+AL28)-IF($F27="Bókfært verðmæti",(AK32+AL28)*$C27,(AL30)*$C27)<AK30*$D$7,AK32-AK30*$D$7,IF($F27="Bókfært verðmæti",(AK32+AL28)*$C27,(AL30)*$C27))) -> 0
B32: Bókfærð staða í lok tímabils | G32: =G27&"_1" -> 16_1 | I32: =+I30-I31 -> 0 | J32: =+IF(SUM($I29:I29)<>0,0,IF(J29<>0,0,I32+J28-J31)) -> 0 | K32: =+IF(SUM($I29:J29)<>0,0,IF(K29<>0,0,J32+K28-K31)) -> 0 | L32: =+IF(SUM($I29:K29)<>0,0,IF(L29<>0,0,K32+L28-L31)) -> 0 | M32: =+IF(SUM($I29:L29)<>0,0,IF(M29<>0,0,L32+M28-M31)) -> 0 | N32: =+IF(SUM($I29:M29)<>0,0,IF(N29<>0,0,M32+N28-N31)) -> 0 | O32: =+IF(SUM($I29:N29)<>0,0,IF(O29<>0,0,N32+O28-O31)) -> 0 | P32: =+IF(SUM($I29:O29)<>0,0,IF(P29<>0,0,O32+P28-P31)) -> 0 | Q32: =+IF(SUM($I29:P29)<>0,0,IF(Q29<>0,0,P32+Q28-Q31)) -> 0 | R32: =+IF(SUM($I29:Q29)<>0,0,IF(R29<>0,0,Q32+R28-R31)) -> 0 | S32: =+IF(SUM($I29:R29)<>0,0,IF(S29<>0,0,R32+S28-S31)) -> 0 | T32: =+IF(SUM($I29:S29)<>0,0,IF(T29<>0,0,S32+T28-T31)) -> 0 | U32: =+IF(SUM($I29:T29)<>0,0,IF(U29<>0,0,T32+U28-U31)) -> 0 | V32: =+U32 -> 0 | W32: =+IF(SUM($I29:V29)<>0,0,IF(W29<>0,0,V32+W28-W31)) -> 0 | X32: =+IF(SUM($I29:W29)<>0,0,IF(X29<>0,0,W32+X28-X31)) -> 0 | Y32: =+IF(SUM($I29:X29)<>0,0,IF(Y29<>0,0,X32+Y28-Y31)) -> 0 | Z32: =+IF(SUM($I29:Y29)<>0,0,IF(Z29<>0,0,Y32+Z28-Z31)) -> 0 | AA32: =+IF(SUM($I29:Z29)<>0,0,IF(AA29<>0,0,Z32+AA28-AA31)) -> 0 | AB32: =+IF(SUM($I29:AA29)<>0,0,IF(AB29<>0,0,AA32+AB28-AB31)) -> 0 | AC32: =+IF(SUM($I29:AB29)<>0,0,IF(AC29<>0,0,AB32+AC28-AC31)) -> 0 | AD32: =+IF(SUM($I29:AC29)<>0,0,IF(AD29<>0,0,AC32+AD28-AD31)) -> 0 | AE32: =+IF(SUM($I29:AD29)<>0,0,IF(AE29<>0,0,AD32+AE28-AE31)) -> 0 | AF32: =+IF(SUM($I29:AE29)<>0,0,IF(AF29<>0,0,AE32+AF28-AF31)) -> 0 | AG32: =+IF(SUM($I29:AF29)<>0,0,IF(AG29<>0,0,AF32+AG28-AG31)) -> 0 | AH32: =+IF(SUM($I29:AG29)<>0,0,IF(AH29<>0,0,AG32+AH28-AH31)) -> 0 | AI32: =+AH32 -> 0 | AJ32: =+IF(SUM($I29:AI29)<>0,0,IF(AJ29<>0,0,AI32+AJ28-AJ31)) -> 0 | AK32: =+IF(SUM($I29:AJ29)<>0,0,IF(AK29<>0,0,AJ32+AK28-AK31)) -> 0 | AL32: =+IF(SUM($I29:AK29)<>0,0,IF(AL29<>0,0,AK32+AL28-AL31)) -> 0
B33: Söluhagnaður (-tap) | G33: =Arsreikningur!$E$37 -> 12 | J33: =+IF(SUM($I29:I29)<>0,0,IF(J29<>0,J29-(I32),0)) -> 0 | K33: =+IF(SUM($I29:J29)<>0,0,IF(K29<>0,K29-(J32),0)) -> 0 | L33: =+IF(SUM($I29:K29)<>0,0,IF(L29<>0,L29-(K32),0)) -> 0 | M33: =+IF(SUM($I29:L29)<>0,0,IF(M29<>0,M29-(L32),0)) -> 0 | N33: =+IF(SUM($I29:M29)<>0,0,IF(N29<>0,N29-(M32),0)) -> 0 | O33: =+IF(SUM($I29:N29)<>0,0,IF(O29<>0,O29-(N32),0)) -> 0 | P33: =+IF(SUM($I29:O29)<>0,0,IF(P29<>0,P29-(O32),0)) -> 0 | Q33: =+IF(SUM($I29:P29)<>0,0,IF(Q29<>0,Q29-(P32),0)) -> 0 | R33: =+IF(SUM($I29:Q29)<>0,0,IF(R29<>0,R29-(Q32),0)) -> 0 | S33: =+IF(SUM($I29:R29)<>0,0,IF(S29<>0,S29-(R32),0)) -> 0 | T33: =+IF(SUM($I29:S29)<>0,0,IF(T29<>0,T29-(S32),0)) -> 0 | U33: =+IF(SUM($I29:T29)<>0,0,IF(U29<>0,U29-(T32),0)) -> 0 | V33: =SUM(J33:U33) -> 0 | W33: =+IF(SUM($I29:V29)<>0,0,IF(W29<>0,W29-(V32),0)) -> 0 | X33: =+IF(SUM($I29:W29)<>0,0,IF(X29<>0,X29-(W32),0)) -> 0 | Y33: =+IF(SUM($I29:X29)<>0,0,IF(Y29<>0,Y29-(X32),0)) -> 0 | Z33: =+IF(SUM($I29:Y29)<>0,0,IF(Z29<>0,Z29-(Y32),0)) -> 0 | AA33: =+IF(SUM($I29:Z29)<>0,0,IF(AA29<>0,AA29-(Z32),0)) -> 0 | AB33: =+IF(SUM($I29:AA29)<>0,0,IF(AB29<>0,AB29-(AA32),0)) -> 0 | AC33: =+IF(SUM($I29:AB29)<>0,0,IF(AC29<>0,AC29-(AB32),0)) -> 0 | AD33: =+IF(SUM($I29:AC29)<>0,0,IF(AD29<>0,AD29-(AC32),0)) -> 0 | AE33: =+IF(SUM($I29:AD29)<>0,0,IF(AE29<>0,AE29-(AD32),0)) -> 0 | AF33: =+IF(SUM($I29:AE29)<>0,0,IF(AF29<>0,AF29-(AE32),0)) -> 0 | AG33: =+IF(SUM($I29:AF29)<>0,0,IF(AG29<>0,AG29-(AF32),0)) -> 0 | AH33: =+IF(SUM($I29:AG29)<>0,0,IF(AH29<>0,AH29-(AG32),0)) -> 0 | AI33: =SUM(W33:AH33) -> 0 | AJ33: =+IF(SUM($I29:AI29)<>0,0,IF(AJ29<>0,AJ29-(AI32),0)) -> 0 | AK33: =+IF(SUM($I29:AJ29)<>0,0,IF(AK29<>0,AK29-(AJ32),0)) -> 0 | AL33: =+IF(SUM($I29:AK29)<>0,0,IF(AL29<>0,AL29-(AK32),0)) -> 0
A35: Skrifið inn heiti á eign / eignarflokki hér
B37: Grunnforsendur | C37: 0 | D37: 0.1 | E37: Fyrningaflokkur 1 | F37: Stofnverðmæti | G37: =INDEX(Forsendur!$C$99:$C$102,MATCH($E37,Fyrningaflokkur,0)) -> 16
B38: Keyptar eignir | G38: =G37&"_2" -> 16_2 | V38: =SUM(J38:U38) -> 0 | AI38: =SUM(W38:AH38) -> 0
B39: Seldar eignir | G39: =G37&"_3" -> 16_3 | V39: =SUM(J39:U39) -> 0 | AI39: =SUM(W39:AH39) -> 0
B40: Stofnverð | G40: =G37&"_4" -> 16_4 | J40: =+IF(SUM($I39:I39)<>0,0,IF(J39<>0,0,I40+J38-J39)) -> 0 | K40: =+IF(SUM($I39:J39)<>0,0,IF(K39<>0,0,J40+K38-K39)) -> 0 | L40: =+IF(SUM($I39:K39)<>0,0,IF(L39<>0,0,K40+L38-L39)) -> 0 | M40: =+IF(SUM($I39:L39)<>0,0,IF(M39<>0,0,L40+M38-M39)) -> 0 | N40: =+IF(SUM($I39:M39)<>0,0,IF(N39<>0,0,M40+N38-N39)) -> 0 | O40: =+IF(SUM($I39:N39)<>0,0,IF(O39<>0,0,N40+O38-O39)) -> 0 | P40: =+IF(SUM($I39:O39)<>0,0,IF(P39<>0,0,O40+P38-P39)) -> 0 | Q40: =+IF(SUM($I39:P39)<>0,0,IF(Q39<>0,0,P40+Q38-Q39)) -> 0 | R40: =+IF(SUM($I39:Q39)<>0,0,IF(R39<>0,0,Q40+R38-R39)) -> 0 | S40: =+IF(SUM($I39:R39)<>0,0,IF(S39<>0,0,R40+S38-S39)) -> 0 | T40: =+IF(SUM($I39:S39)<>0,0,IF(T39<>0,0,S40+T38-T39)) -> 0 | U40: =+IF(SUM($I39:T39)<>0,0,IF(U39<>0,0,T40+U38-U39)) -> 0 | V40: =+U40 -> 0 | W40: =+IF(SUM($I39:V39)<>0,0,IF(W39<>0,0,V40+W38-W39)) -> 0 | X40: =+IF(SUM($I39:W39)<>0,0,IF(X39<>0,0,W40+X38-X39)) -> 0 | Y40: =+IF(SUM($I39:X39)<>0,0,IF(Y39<>0,0,X40+Y38-Y39)) -> 0 | Z40: =+IF(SUM($I39:Y39)<>0,0,IF(Z39<>0,0,Y40+Z38-Z39)) -> 0 | AA40: =+IF(SUM($I39:Z39)<>0,0,IF(AA39<>0,0,Z40+AA38-AA39)) -> 0 | AB40: =+IF(SUM($I39:AA39)<>0,0,IF(AB39<>0,0,AA40+AB38-AB39)) -> 0 | AC40: =+IF(SUM($I39:AB39)<>0,0,IF(AC39<>0,0,AB40+AC38-AC39)) -> 0 | AD40: =+IF(SUM($I39:AC39)<>0,0,IF(AD39<>0,0,AC40+AD38-AD39)) -> 0 | AE40: =+IF(SUM($I39:AD39)<>0,0,IF(AE39<>0,0,AD40+AE38-AE39)) -> 0 | AF40: =+IF(SUM($I39:AE39)<>0,0,IF(AF39<>0,0,AE40+AF38-AF39)) -> 0 | AG40: =+IF(SUM($I39:AF39)<>0,0,IF(AG39<>0,0,AF40+AG38-AG39)) -> 0 | AH40: =+IF(SUM($I39:AG39)<>0,0,IF(AH39<>0,0,AG40+AH38-AH39)) -> 0 | AI40: =+AH40 -> 0 | AJ40: =+IF(SUM($I39:AI39)<>0,0,IF(AJ39<>0,0,AI40+AJ38-AJ39)) -> 0 | AK40: =+IF(SUM($I39:AJ39)<>0,0,IF(AK39<>0,0,AJ40+AK38-AK39)) -> 0 | AL40: =+IF(SUM($I39:AK39)<>0,0,IF(AL39<>0,0,AK40+AL38-AL39)) -> 0
B41: Fyrning | G41: =Arsreikningur!$E$25 -> 10 | J41: =+IF(SUM($I39:J39)<>0,0,IF((I42+J38)-IF($F37="Bókfært verðmæti",(I42+J38)*$C37/12,(J40)*$C37/12)<I40*$D$7,I42-I40*$D$7,IF($F37="Bókfært verðmæti",(I42+J38)*$C37/12,(J40)*$C37/12))) -> 0 | K41: =+IF(SUM($I39:K39)<>0,0,IF((J42+K38)-IF($F37="Bókfært verðmæti",(J42+K38)*$C37/12,(K40)*$C37/12)<J40*$D$7,J42-J40*$D$7,IF($F37="Bókfært verðmæti",(J42+K38)*$C37/12,(K40)*$C37/12))) -> 0 | L41: =+IF(SUM($I39:L39)<>0,0,IF((K42+L38)-IF($F37="Bókfært verðmæti",(K42+L38)*$C37/12,(L40)*$C37/12)<K40*$D$7,K42-K40*$D$7,IF($F37="Bókfært verðmæti",(K42+L38)*$C37/12,(L40)*$C37/12))) -> 0 | M41: =+IF(SUM($I39:M39)<>0,0,IF((L42+M38)-IF($F37="Bókfært verðmæti",(L42+M38)*$C37/12,(M40)*$C37/12)<L40*$D$7,L42-L40*$D$7,IF($F37="Bókfært verðmæti",(L42+M38)*$C37/12,(M40)*$C37/12))) -> 0 | N41: =+IF(SUM($I39:N39)<>0,0,IF((M42+N38)-IF($F37="Bókfært verðmæti",(M42+N38)*$C37/12,(N40)*$C37/12)<M40*$D$7,M42-M40*$D$7,IF($F37="Bókfært verðmæti",(M42+N38)*$C37/12,(N40)*$C37/12))) -> 0 | O41: =+IF(SUM($I39:O39)<>0,0,IF((N42+O38)-IF($F37="Bókfært verðmæti",(N42+O38)*$C37/12,(O40)*$C37/12)<N40*$D$7,N42-N40*$D$7,IF($F37="Bókfært verðmæti",(N42+O38)*$C37/12,(O40)*$C37/12))) -> 0 | P41: =+IF(SUM($I39:P39)<>0,0,IF((O42+P38)-IF($F37="Bókfært verðmæti",(O42+P38)*$C37/12,(P40)*$C37/12)<O40*$D$7,O42-O40*$D$7,IF($F37="Bókfært verðmæti",(O42+P38)*$C37/12,(P40)*$C37/12))) -> 0 | Q41: =+IF(SUM($I39:Q39)<>0,0,IF((P42+Q38)-IF($F37="Bókfært verðmæti",(P42+Q38)*$C37/12,(Q40)*$C37/12)<P40*$D$7,P42-P40*$D$7,IF($F37="Bókfært verðmæti",(P42+Q38)*$C37/12,(Q40)*$C37/12))) -> 0 | R41: =+IF(SUM($I39:R39)<>0,0,IF((Q42+R38)-IF($F37="Bókfært verðmæti",(Q42+R38)*$C37/12,(R40)*$C37/12)<Q40*$D$7,Q42-Q40*$D$7,IF($F37="Bókfært verðmæti",(Q42+R38)*$C37/12,(R40)*$C37/12))) -> 0 | S41: =+IF(SUM($I39:S39)<>0,0,IF((R42+S38)-IF($F37="Bókfært verðmæti",(R42+S38)*$C37/12,(S40)*$C37/12)<R40*$D$7,R42-R40*$D$7,IF($F37="Bókfært verðmæti",(R42+S38)*$C37/12,(S40)*$C37/12))) -> 0 | T41: =+IF(SUM($I39:T39)<>0,0,IF((S42+T38)-IF($F37="Bókfært verðmæti",(S42+T38)*$C37/12,(T40)*$C37/12)<S40*$D$7,S42-S40*$D$7,IF($F37="Bókfært verðmæti",(S42+T38)*$C37/12,(T40)*$C37/12))) -> 0 | U41: =+IF(SUM($I39:U39)<>0,0,IF((T42+U38)-IF($F37="Bókfært verðmæti",(T42+U38)*$C37/12,(U40)*$C37/12)<T40*$D$7,T42-T40*$D$7,IF($F37="Bókfært verðmæti",(T42+U38)*$C37/12,(U40)*$C37/12))) -> 0 | V41: =SUM(J41:U41) -> 0 | W41: =+IF(SUM($I39:W39)<>0,0,IF((V42+W38)-IF($F37="Bókfært verðmæti",(V42+W38)*$C37/12,(W40)*$C37/12)<V40*$D$7,V42-V40*$D$7,IF($F37="Bókfært verðmæti",(V42+W38)*$C37/12,(W40)*$C37/12))) -> 0 | X41: =+IF(SUM($I39:X39)<>0,0,IF((W42+X38)-IF($F37="Bókfært verðmæti",(W42+X38)*$C37/12,(X40)*$C37/12)<W40*$D$7,W42-W40*$D$7,IF($F37="Bókfært verðmæti",(W42+X38)*$C37/12,(X40)*$C37/12))) -> 0 | Y41: =+IF(SUM($I39:Y39)<>0,0,IF((X42+Y38)-IF($F37="Bókfært verðmæti",(X42+Y38)*$C37/12,(Y40)*$C37/12)<X40*$D$7,X42-X40*$D$7,IF($F37="Bókfært verðmæti",(X42+Y38)*$C37/12,(Y40)*$C37/12))) -> 0 | Z41: =+IF(SUM($I39:Z39)<>0,0,IF((Y42+Z38)-IF($F37="Bókfært verðmæti",(Y42+Z38)*$C37/12,(Z40)*$C37/12)<Y40*$D$7,Y42-Y40*$D$7,IF($F37="Bókfært verðmæti",(Y42+Z38)*$C37/12,(Z40)*$C37/12))) -> 0 | AA41: =+IF(SUM($I39:AA39)<>0,0,IF((Z42+AA38)-IF($F37="Bókfært verðmæti",(Z42+AA38)*$C37/12,(AA40)*$C37/12)<Z40*$D$7,Z42-Z40*$D$7,IF($F37="Bókfært verðmæti",(Z42+AA38)*$C37/12,(AA40)*$C37/12))) -> 0 | AB41: =+IF(SUM($I39:AB39)<>0,0,IF((AA42+AB38)-IF($F37="Bókfært verðmæti",(AA42+AB38)*$C37/12,(AB40)*$C37/12)<AA40*$D$7,AA42-AA40*$D$7,IF($F37="Bókfært verðmæti",(AA42+AB38)*$C37/12,(AB40)*$C37/12))) -> 0 | AC41: =+IF(SUM($I39:AC39)<>0,0,IF((AB42+AC38)-IF($F37="Bókfært verðmæti",(AB42+AC38)*$C37/12,(AC40)*$C37/12)<AB40*$D$7,AB42-AB40*$D$7,IF($F37="Bókfært verðmæti",(AB42+AC38)*$C37/12,(AC40)*$C37/12))) -> 0 | AD41: =+IF(SUM($I39:AD39)<>0,0,IF((AC42+AD38)-IF($F37="Bókfært verðmæti",(AC42+AD38)*$C37/12,(AD40)*$C37/12)<AC40*$D$7,AC42-AC40*$D$7,IF($F37="Bókfært verðmæti",(AC42+AD38)*$C37/12,(AD40)*$C37/12))) -> 0 | AE41: =+IF(SUM($I39:AE39)<>0,0,IF((AD42+AE38)-IF($F37="Bókfært verðmæti",(AD42+AE38)*$C37/12,(AE40)*$C37/12)<AD40*$D$7,AD42-AD40*$D$7,IF($F37="Bókfært verðmæti",(AD42+AE38)*$C37/12,(AE40)*$C37/12))) -> 0 | AF41: =+IF(SUM($I39:AF39)<>0,0,IF((AE42+AF38)-IF($F37="Bókfært verðmæti",(AE42+AF38)*$C37/12,(AF40)*$C37/12)<AE40*$D$7,AE42-AE40*$D$7,IF($F37="Bókfært verðmæti",(AE42+AF38)*$C37/12,(AF40)*$C37/12))) -> 0 | AG41: =+IF(SUM($I39:AG39)<>0,0,IF((AF42+AG38)-IF($F37="Bókfært verðmæti",(AF42+AG38)*$C37/12,(AG40)*$C37/12)<AF40*$D$7,AF42-AF40*$D$7,IF($F37="Bókfært verðmæti",(AF42+AG38)*$C37/12,(AG40)*$C37/12))) -> 0 | AH41: =+IF(SUM($I39:AH39)<>0,0,IF((AG42+AH38)-IF($F37="Bókfært verðmæti",(AG42+AH38)*$C37/12,(AH40)*$C37/12)<AG40*$D$7,AG42-AG40*$D$7,IF($F37="Bókfært verðmæti",(AG42+AH38)*$C37/12,(AH40)*$C37/12))) -> 0 | AI41: =SUM(W41:AH41) -> 0 | AJ41: =+IF(SUM($I39:AJ39)<>0,0,IF((AI42+AJ38)-IF($F37="Bókfært verðmæti",(AI42+AJ38)*$C37,(AJ40)*$C37)<AI40*$D$7,AI42-AI40*$D$7,IF($F37="Bókfært verðmæti",(AI42+AJ38)*$C37,(AJ40)*$C37))) -> 0 | AK41: =+IF(SUM($I39:AK39)<>0,0,IF((AJ42+AK38)-IF($F37="Bókfært verðmæti",(AJ42+AK38)*$C37,(AK40)*$C37)<AJ40*$D$7,AJ42-AJ40*$D$7,IF($F37="Bókfært verðmæti",(AJ42+AK38)*$C37,(AK40)*$C37))) -> 0 | AL41: =+IF(SUM($I39:AL39)<>0,0,IF((AK42+AL38)-IF($F37="Bókfært verðmæti",(AK42+AL38)*$C37,(AL40)*$C37)<AK40*$D$7,AK42-AK40*$D$7,IF($F37="Bókfært verðmæti",(AK42+AL38)*$C37,(AL40)*$C37))) -> 0
B42: Bókfærð staða í lok tímabils | G42: =G37&"_1" -> 16_1 | I42: =+I40-I41 -> 0 | J42: =+IF(SUM($I39:I39)<>0,0,IF(J39<>0,0,I42+J38-J41)) -> 0 | K42: =+IF(SUM($I39:J39)<>0,0,IF(K39<>0,0,J42+K38-K41)) -> 0 | L42: =+IF(SUM($I39:K39)<>0,0,IF(L39<>0,0,K42+L38-L41)) -> 0 | M42: =+IF(SUM($I39:L39)<>0,0,IF(M39<>0,0,L42+M38-M41)) -> 0 | N42: =+IF(SUM($I39:M39)<>0,0,IF(N39<>0,0,M42+N38-N41)) -> 0 | O42: =+IF(SUM($I39:N39)<>0,0,IF(O39<>0,0,N42+O38-O41)) -> 0 | P42: =+IF(SUM($I39:O39)<>0,0,IF(P39<>0,0,O42+P38-P41)) -> 0 | Q42: =+IF(SUM($I39:P39)<>0,0,IF(Q39<>0,0,P42+Q38-Q41)) -> 0 | R42: =+IF(SUM($I39:Q39)<>0,0,IF(R39<>0,0,Q42+R38-R41)) -> 0 | S42: =+IF(SUM($I39:R39)<>0,0,IF(S39<>0,0,R42+S38-S41)) -> 0 | T42: =+IF(SUM($I39:S39)<>0,0,IF(T39<>0,0,S42+T38-T41)) -> 0 | U42: =+IF(SUM($I39:T39)<>0,0,IF(U39<>0,0,T42+U38-U41)) -> 0 | V42: =+U42 -> 0 | W42: =+IF(SUM($I39:V39)<>0,0,IF(W39<>0,0,V42+W38-W41)) -> 0 | X42: =+IF(SUM($I39:W39)<>0,0,IF(X39<>0,0,W42+X38-X41)) -> 0 | Y42: =+IF(SUM($I39:X39)<>0,0,IF(Y39<>0,0,X42+Y38-Y41)) -> 0 | Z42: =+IF(SUM($I39:Y39)<>0,0,IF(Z39<>0,0,Y42+Z38-Z41)) -> 0 | AA42: =+IF(SUM($I39:Z39)<>0,0,IF(AA39<>0,0,Z42+AA38-AA41)) -> 0 | AB42: =+IF(SUM($I39:AA39)<>0,0,IF(AB39<>0,0,AA42+AB38-AB41)) -> 0 | AC42: =+IF(SUM($I39:AB39)<>0,0,IF(AC39<>0,0,AB42+AC38-AC41)) -> 0 | AD42: =+IF(SUM($I39:AC39)<>0,0,IF(AD39<>0,0,AC42+AD38-AD41)) -> 0 | AE42: =+IF(SUM($I39:AD39)<>0,0,IF(AE39<>0,0,AD42+AE38-AE41)) -> 0 | AF42: =+IF(SUM($I39:AE39)<>0,0,IF(AF39<>0,0,AE42+AF38-AF41)) -> 0 | AG42: =+IF(SUM($I39:AF39)<>0,0,IF(AG39<>0,0,AF42+AG38-AG41)) -> 0 | AH42: =+IF(SUM($I39:AG39)<>0,0,IF(AH39<>0,0,AG42+AH38-AH41)) -> 0 | AI42: =+AH42 -> 0 | AJ42: =+IF(SUM($I39:AI39)<>0,0,IF(AJ39<>0,0,AI42+AJ38-AJ41)) -> 0 | AK42: =+IF(SUM($I39:AJ39)<>0,0,IF(AK39<>0,0,AJ42+AK38-AK41)) -> 0 | AL42: =+IF(SUM($I39:AK39)<>0,0,IF(AL39<>0,0,AK42+AL38-AL41)) -> 0
B43: Söluhagnaður (-tap) | G43: =Arsreikningur!$E$37 -> 12 | J43: =+IF(SUM($I39:I39)<>0,0,IF(J39<>0,J39-(I42),0)) -> 0 | K43: =+IF(SUM($I39:J39)<>0,0,IF(K39<>0,K39-(J42),0)) -> 0 | L43: =+IF(SUM($I39:K39)<>0,0,IF(L39<>0,L39-(K42),0)) -> 0 | M43: =+IF(SUM($I39:L39)<>0,0,IF(M39<>0,M39-(L42),0)) -> 0 | N43: =+IF(SUM($I39:M39)<>0,0,IF(N39<>0,N39-(M42),0)) -> 0 | O43: =+IF(SUM($I39:N39)<>0,0,IF(O39<>0,O39-(N42),0)) -> 0 | P43: =+IF(SUM($I39:O39)<>0,0,IF(P39<>0,P39-(O42),0)) -> 0 | Q43: =+IF(SUM($I39:P39)<>0,0,IF(Q39<>0,Q39-(P42),0)) -> 0 | R43: =+IF(SUM($I39:Q39)<>0,0,IF(R39<>0,R39-(Q42),0)) -> 0 | S43: =+IF(SUM($I39:R39)<>0,0,IF(S39<>0,S39-(R42),0)) -> 0 | T43: =+IF(SUM($I39:S39)<>0,0,IF(T39<>0,T39-(S42),0)) -> 0 | U43: =+IF(SUM($I39:T39)<>0,0,IF(U39<>0,U39-(T42),0)) -> 0 | V43: =SUM(J43:U43) -> 0 | W43: =+IF(SUM($I39:V39)<>0,0,IF(W39<>0,W39-(V42),0)) -> 0 | X43: =+IF(SUM($I39:W39)<>0,0,IF(X39<>0,X39-(W42),0)) -> 0 | Y43: =+IF(SUM($I39:X39)<>0,0,IF(Y39<>0,Y39-(X42),0)) -> 0 | Z43: =+IF(SUM($I39:Y39)<>0,0,IF(Z39<>0,Z39-(Y42),0)) -> 0 | AA43: =+IF(SUM($I39:Z39)<>0,0,IF(AA39<>0,AA39-(Z42),0)) -> 0 | AB43: =+IF(SUM($I39:AA39)<>0,0,IF(AB39<>0,AB39-(AA42),0)) -> 0 | AC43: =+IF(SUM($I39:AB39)<>0,0,IF(AC39<>0,AC39-(AB42),0)) -> 0 | AD43: =+IF(SUM($I39:AC39)<>0,0,IF(AD39<>0,AD39-(AC42),0)) -> 0 | AE43: =+IF(SUM($I39:AD39)<>0,0,IF(AE39<>0,AE39-(AD42),0)) -> 0 | AF43: =+IF(SUM($I39:AE39)<>0,0,IF(AF39<>0,AF39-(AE42),0)) -> 0 | AG43: =+IF(SUM($I39:AF39)<>0,0,IF(AG39<>0,AG39-(AF42),0)) -> 0 | AH43: =+IF(SUM($I39:AG39)<>0,0,IF(AH39<>0,AH39-(AG42),0)) -> 0 | AI43: =SUM(W43:AH43) -> 0 | AJ43: =+IF(SUM($I39:AI39)<>0,0,IF(AJ39<>0,AJ39-(AI42),0)) -> 0 | AK43: =+IF(SUM($I39:AJ39)<>0,0,IF(AK39<>0,AK39-(AJ42),0)) -> 0 | AL43: =+IF(SUM($I39:AK39)<>0,0,IF(AL39<>0,AL39-(AK42),0)) -> 0
A45: Skrifið inn heiti á eign / eignarflokki hér
B47: Grunnforsendur | C47: 0 | D47: 0.1 | E47: Fyrningaflokkur 1 | F47: Stofnverðmæti | G47: =INDEX(Forsendur!$C$99:$C$102,MATCH($E47,Fyrningaflokkur,0)) -> 16
B48: Keyptar eignir | G48: =G47&"_2" -> 16_2 | V48: =SUM(J48:U48) -> 0 | AI48: =SUM(W48:AH48) -> 0
B49: Seldar eignir | G49: =G47&"_3" -> 16_3 | V49: =SUM(J49:U49) -> 0 | AI49: =SUM(W49:AH49) -> 0
B50: Stofnverð | G50: =G47&"_4" -> 16_4 | J50: =+IF(SUM($I49:I49)<>0,0,IF(J49<>0,0,I50+J48-J49)) -> 0 | K50: =+IF(SUM($I49:J49)<>0,0,IF(K49<>0,0,J50+K48-K49)) -> 0 | L50: =+IF(SUM($I49:K49)<>0,0,IF(L49<>0,0,K50+L48-L49)) -> 0 | M50: =+IF(SUM($I49:L49)<>0,0,IF(M49<>0,0,L50+M48-M49)) -> 0 | N50: =+IF(SUM($I49:M49)<>0,0,IF(N49<>0,0,M50+N48-N49)) -> 0 | O50: =+IF(SUM($I49:N49)<>0,0,IF(O49<>0,0,N50+O48-O49)) -> 0 | P50: =+IF(SUM($I49:O49)<>0,0,IF(P49<>0,0,O50+P48-P49)) -> 0 | Q50: =+IF(SUM($I49:P49)<>0,0,IF(Q49<>0,0,P50+Q48-Q49)) -> 0 | R50: =+IF(SUM($I49:Q49)<>0,0,IF(R49<>0,0,Q50+R48-R49)) -> 0 | S50: =+IF(SUM($I49:R49)<>0,0,IF(S49<>0,0,R50+S48-S49)) -> 0 | T50: =+IF(SUM($I49:S49)<>0,0,IF(T49<>0,0,S50+T48-T49)) -> 0 | U50: =+IF(SUM($I49:T49)<>0,0,IF(U49<>0,0,T50+U48-U49)) -> 0 | V50: =+U50 -> 0 | W50: =+IF(SUM($I49:V49)<>0,0,IF(W49<>0,0,V50+W48-W49)) -> 0 | X50: =+IF(SUM($I49:W49)<>0,0,IF(X49<>0,0,W50+X48-X49)) -> 0 | Y50: =+IF(SUM($I49:X49)<>0,0,IF(Y49<>0,0,X50+Y48-Y49)) -> 0 | Z50: =+IF(SUM($I49:Y49)<>0,0,IF(Z49<>0,0,Y50+Z48-Z49)) -> 0 | AA50: =+IF(SUM($I49:Z49)<>0,0,IF(AA49<>0,0,Z50+AA48-AA49)) -> 0 | AB50: =+IF(SUM($I49:AA49)<>0,0,IF(AB49<>0,0,AA50+AB48-AB49)) -> 0 | AC50: =+IF(SUM($I49:AB49)<>0,0,IF(AC49<>0,0,AB50+AC48-AC49)) -> 0 | AD50: =+IF(SUM($I49:AC49)<>0,0,IF(AD49<>0,0,AC50+AD48-AD49)) -> 0 | AE50: =+IF(SUM($I49:AD49)<>0,0,IF(AE49<>0,0,AD50+AE48-AE49)) -> 0 | AF50: =+IF(SUM($I49:AE49)<>0,0,IF(AF49<>0,0,AE50+AF48-AF49)) -> 0 | AG50: =+IF(SUM($I49:AF49)<>0,0,IF(AG49<>0,0,AF50+AG48-AG49)) -> 0 | AH50: =+IF(SUM($I49:AG49)<>0,0,IF(AH49<>0,0,AG50+AH48-AH49)) -> 0 | AI50: =+AH50 -> 0 | AJ50: =+IF(SUM($I49:AI49)<>0,0,IF(AJ49<>0,0,AI50+AJ48-AJ49)) -> 0 | AK50: =+IF(SUM($I49:AJ49)<>0,0,IF(AK49<>0,0,AJ50+AK48-AK49)) -> 0 | AL50: =+IF(SUM($I49:AK49)<>0,0,IF(AL49<>0,0,AK50+AL48-AL49)) -> 0
B51: Fyrning | G51: =Arsreikningur!$E$25 -> 10 | J51: =+IF(SUM($I49:J49)<>0,0,IF((I52+J48)-IF($F47="Bókfært verðmæti",(I52+J48)*$C47/12,(J50)*$C47/12)<I50*$D$7,I52-I50*$D$7,IF($F47="Bókfært verðmæti",(I52+J48)*$C47/12,(J50)*$C47/12))) -> 0 | K51: =+IF(SUM($I49:K49)<>0,0,IF((J52+K48)-IF($F47="Bókfært verðmæti",(J52+K48)*$C47/12,(K50)*$C47/12)<J50*$D$7,J52-J50*$D$7,IF($F47="Bókfært verðmæti",(J52+K48)*$C47/12,(K50)*$C47/12))) -> 0 | L51: =+IF(SUM($I49:L49)<>0,0,IF((K52+L48)-IF($F47="Bókfært verðmæti",(K52+L48)*$C47/12,(L50)*$C47/12)<K50*$D$7,K52-K50*$D$7,IF($F47="Bókfært verðmæti",(K52+L48)*$C47/12,(L50)*$C47/12))) -> 0 | M51: =+IF(SUM($I49:M49)<>0,0,IF((L52+M48)-IF($F47="Bókfært verðmæti",(L52+M48)*$C47/12,(M50)*$C47/12)<L50*$D$7,L52-L50*$D$7,IF($F47="Bókfært verðmæti",(L52+M48)*$C47/12,(M50)*$C47/12))) -> 0 | N51: =+IF(SUM($I49:N49)<>0,0,IF((M52+N48)-IF($F47="Bókfært verðmæti",(M52+N48)*$C47/12,(N50)*$C47/12)<M50*$D$7,M52-M50*$D$7,IF($F47="Bókfært verðmæti",(M52+N48)*$C47/12,(N50)*$C47/12))) -> 0 | O51: =+IF(SUM($I49:O49)<>0,0,IF((N52+O48)-IF($F47="Bókfært verðmæti",(N52+O48)*$C47/12,(O50)*$C47/12)<N50*$D$7,N52-N50*$D$7,IF($F47="Bókfært verðmæti",(N52+O48)*$C47/12,(O50)*$C47/12))) -> 0 | P51: =+IF(SUM($I49:P49)<>0,0,IF((O52+P48)-IF($F47="Bókfært verðmæti",(O52+P48)*$C47/12,(P50)*$C47/12)<O50*$D$7,O52-O50*$D$7,IF($F47="Bókfært verðmæti",(O52+P48)*$C47/12,(P50)*$C47/12))) -> 0 | Q51: =+IF(SUM($I49:Q49)<>0,0,IF((P52+Q48)-IF($F47="Bókfært verðmæti",(P52+Q48)*$C47/12,(Q50)*$C47/12)<P50*$D$7,P52-P50*$D$7,IF($F47="Bókfært verðmæti",(P52+Q48)*$C47/12,(Q50)*$C47/12))) -> 0 | R51: =+IF(SUM($I49:R49)<>0,0,IF((Q52+R48)-IF($F47="Bókfært verðmæti",(Q52+R48)*$C47/12,(R50)*$C47/12)<Q50*$D$7,Q52-Q50*$D$7,IF($F47="Bókfært verðmæti",(Q52+R48)*$C47/12,(R50)*$C47/12))) -> 0 | S51: =+IF(SUM($I49:S49)<>0,0,IF((R52+S48)-IF($F47="Bókfært verðmæti",(R52+S48)*$C47/12,(S50)*$C47/12)<R50*$D$7,R52-R50*$D$7,IF($F47="Bókfært verðmæti",(R52+S48)*$C47/12,(S50)*$C47/12))) -> 0 | T51: =+IF(SUM($I49:T49)<>0,0,IF((S52+T48)-IF($F47="Bókfært verðmæti",(S52+T48)*$C47/12,(T50)*$C47/12)<S50*$D$7,S52-S50*$D$7,IF($F47="Bókfært verðmæti",(S52+T48)*$C47/12,(T50)*$C47/12))) -> 0 | U51: =+IF(SUM($I49:U49)<>0,0,IF((T52+U48)-IF($F47="Bókfært verðmæti",(T52+U48)*$C47/12,(U50)*$C47/12)<T50*$D$7,T52-T50*$D$7,IF($F47="Bókfært verðmæti",(T52+U48)*$C47/12,(U50)*$C47/12))) -> 0 | V51: =SUM(J51:U51) -> 0 | W51: =+IF(SUM($I49:W49)<>0,0,IF((V52+W48)-IF($F47="Bókfært verðmæti",(V52+W48)*$C47/12,(W50)*$C47/12)<V50*$D$7,V52-V50*$D$7,IF($F47="Bókfært verðmæti",(V52+W48)*$C47/12,(W50)*$C47/12))) -> 0 | X51: =+IF(SUM($I49:X49)<>0,0,IF((W52+X48)-IF($F47="Bókfært verðmæti",(W52+X48)*$C47/12,(X50)*$C47/12)<W50*$D$7,W52-W50*$D$7,IF($F47="Bókfært verðmæti",(W52+X48)*$C47/12,(X50)*$C47/12))) -> 0 | Y51: =+IF(SUM($I49:Y49)<>0,0,IF((X52+Y48)-IF($F47="Bókfært verðmæti",(X52+Y48)*$C47/12,(Y50)*$C47/12)<X50*$D$7,X52-X50*$D$7,IF($F47="Bókfært verðmæti",(X52+Y48)*$C47/12,(Y50)*$C47/12))) -> 0 | Z51: =+IF(SUM($I49:Z49)<>0,0,IF((Y52+Z48)-IF($F47="Bókfært verðmæti",(Y52+Z48)*$C47/12,(Z50)*$C47/12)<Y50*$D$7,Y52-Y50*$D$7,IF($F47="Bókfært verðmæti",(Y52+Z48)*$C47/12,(Z50)*$C47/12))) -> 0 | AA51: =+IF(SUM($I49:AA49)<>0,0,IF((Z52+AA48)-IF($F47="Bókfært verðmæti",(Z52+AA48)*$C47/12,(AA50)*$C47/12)<Z50*$D$7,Z52-Z50*$D$7,IF($F47="Bókfært verðmæti",(Z52+AA48)*$C47/12,(AA50)*$C47/12))) -> 0 | AB51: =+IF(SUM($I49:AB49)<>0,0,IF((AA52+AB48)-IF($F47="Bókfært verðmæti",(AA52+AB48)*$C47/12,(AB50)*$C47/12)<AA50*$D$7,AA52-AA50*$D$7,IF($F47="Bókfært verðmæti",(AA52+AB48)*$C47/12,(AB50)*$C47/12))) -> 0 | AC51: =+IF(SUM($I49:AC49)<>0,0,IF((AB52+AC48)-IF($F47="Bókfært verðmæti",(AB52+AC48)*$C47/12,(AC50)*$C47/12)<AB50*$D$7,AB52-AB50*$D$7,IF($F47="Bókfært verðmæti",(AB52+AC48)*$C47/12,(AC50)*$C47/12))) -> 0 | AD51: =+IF(SUM($I49:AD49)<>0,0,IF((AC52+AD48)-IF($F47="Bókfært verðmæti",(AC52+AD48)*$C47/12,(AD50)*$C47/12)<AC50*$D$7,AC52-AC50*$D$7,IF($F47="Bókfært verðmæti",(AC52+AD48)*$C47/12,(AD50)*$C47/12))) -> 0 | AE51: =+IF(SUM($I49:AE49)<>0,0,IF((AD52+AE48)-IF($F47="Bókfært verðmæti",(AD52+AE48)*$C47/12,(AE50)*$C47/12)<AD50*$D$7,AD52-AD50*$D$7,IF($F47="Bókfært verðmæti",(AD52+AE48)*$C47/12,(AE50)*$C47/12))) -> 0 | AF51: =+IF(SUM($I49:AF49)<>0,0,IF((AE52+AF48)-IF($F47="Bókfært verðmæti",(AE52+AF48)*$C47/12,(AF50)*$C47/12)<AE50*$D$7,AE52-AE50*$D$7,IF($F47="Bókfært verðmæti",(AE52+AF48)*$C47/12,(AF50)*$C47/12))) -> 0 | AG51: =+IF(SUM($I49:AG49)<>0,0,IF((AF52+AG48)-IF($F47="Bókfært verðmæti",(AF52+AG48)*$C47/12,(AG50)*$C47/12)<AF50*$D$7,AF52-AF50*$D$7,IF($F47="Bókfært verðmæti",(AF52+AG48)*$C47/12,(AG50)*$C47/12))) -> 0 | AH51: =+IF(SUM($I49:AH49)<>0,0,IF((AG52+AH48)-IF($F47="Bókfært verðmæti",(AG52+AH48)*$C47/12,(AH50)*$C47/12)<AG50*$D$7,AG52-AG50*$D$7,IF($F47="Bókfært verðmæti",(AG52+AH48)*$C47/12,(AH50)*$C47/12))) -> 0 | AI51: =SUM(W51:AH51) -> 0 | AJ51: =+IF(SUM($I49:AJ49)<>0,0,IF((AI52+AJ48)-IF($F47="Bókfært verðmæti",(AI52+AJ48)*$C47,(AJ50)*$C47)<AI50*$D$7,AI52-AI50*$D$7,IF($F47="Bókfært verðmæti",(AI52+AJ48)*$C47,(AJ50)*$C47))) -> 0 | AK51: =+IF(SUM($I49:AK49)<>0,0,IF((AJ52+AK48)-IF($F47="Bókfært verðmæti",(AJ52+AK48)*$C47,(AK50)*$C47)<AJ50*$D$7,AJ52-AJ50*$D$7,IF($F47="Bókfært verðmæti",(AJ52+AK48)*$C47,(AK50)*$C47))) -> 0 | AL51: =+IF(SUM($I49:AL49)<>0,0,IF((AK52+AL48)-IF($F47="Bókfært verðmæti",(AK52+AL48)*$C47,(AL50)*$C47)<AK50*$D$7,AK52-AK50*$D$7,IF($F47="Bókfært verðmæti",(AK52+AL48)*$C47,(AL50)*$C47))) -> 0
B52: Bókfærð staða í lok tímabils | G52: =G47&"_1" -> 16_1 | I52: =+I50-I51 -> 0 | J52: =+IF(SUM($I49:I49)<>0,0,IF(J49<>0,0,I52+J48-J51)) -> 0 | K52: =+IF(SUM($I49:J49)<>0,0,IF(K49<>0,0,J52+K48-K51)) -> 0 | L52: =+IF(SUM($I49:K49)<>0,0,IF(L49<>0,0,K52+L48-L51)) -> 0 | M52: =+IF(SUM($I49:L49)<>0,0,IF(M49<>0,0,L52+M48-M51)) -> 0 | N52: =+IF(SUM($I49:M49)<>0,0,IF(N49<>0,0,M52+N48-N51)) -> 0 | O52: =+IF(SUM($I49:N49)<>0,0,IF(O49<>0,0,N52+O48-O51)) -> 0 | P52: =+IF(SUM($I49:O49)<>0,0,IF(P49<>0,0,O52+P48-P51)) -> 0 | Q52: =+IF(SUM($I49:P49)<>0,0,IF(Q49<>0,0,P52+Q48-Q51)) -> 0 | R52: =+IF(SUM($I49:Q49)<>0,0,IF(R49<>0,0,Q52+R48-R51)) -> 0 | S52: =+IF(SUM($I49:R49)<>0,0,IF(S49<>0,0,R52+S48-S51)) -> 0 | T52: =+IF(SUM($I49:S49)<>0,0,IF(T49<>0,0,S52+T48-T51)) -> 0 | U52: =+IF(SUM($I49:T49)<>0,0,IF(U49<>0,0,T52+U48-U51)) -> 0 | V52: =+U52 -> 0 | W52: =+IF(SUM($I49:V49)<>0,0,IF(W49<>0,0,V52+W48-W51)) -> 0 | X52: =+IF(SUM($I49:W49)<>0,0,IF(X49<>0,0,W52+X48-X51)) -> 0 | Y52: =+IF(SUM($I49:X49)<>0,0,IF(Y49<>0,0,X52+Y48-Y51)) -> 0 | Z52: =+IF(SUM($I49:Y49)<>0,0,IF(Z49<>0,0,Y52+Z48-Z51)) -> 0 | AA52: =+IF(SUM($I49:Z49)<>0,0,IF(AA49<>0,0,Z52+AA48-AA51)) -> 0 | AB52: =+IF(SUM($I49:AA49)<>0,0,IF(AB49<>0,0,AA52+AB48-AB51)) -> 0 | AC52: =+IF(SUM($I49:AB49)<>0,0,IF(AC49<>0,0,AB52+AC48-AC51)) -> 0 | AD52: =+IF(SUM($I49:AC49)<>0,0,IF(AD49<>0,0,AC52+AD48-AD51)) -> 0 | AE52: =+IF(SUM($I49:AD49)<>0,0,IF(AE49<>0,0,AD52+AE48-AE51)) -> 0 | AF52: =+IF(SUM($I49:AE49)<>0,0,IF(AF49<>0,0,AE52+AF48-AF51)) -> 0 | AG52: =+IF(SUM($I49:AF49)<>0,0,IF(AG49<>0,0,AF52+AG48-AG51)) -> 0 | AH52: =+IF(SUM($I49:AG49)<>0,0,IF(AH49<>0,0,AG52+AH48-AH51)) -> 0 | AI52: =+AH52 -> 0 | AJ52: =+IF(SUM($I49:AI49)<>0,0,IF(AJ49<>0,0,AI52+AJ48-AJ51)) -> 0 | AK52: =+IF(SUM($I49:AJ49)<>0,0,IF(AK49<>0,0,AJ52+AK48-AK51)) -> 0 | AL52: =+IF(SUM($I49:AK49)<>0,0,IF(AL49<>0,0,AK52+AL48-AL51)) -> 0
B53: Söluhagnaður (-tap) | G53: =Arsreikningur!$E$37 -> 12 | J53: =+IF(SUM($I49:I49)<>0,0,IF(J49<>0,J49-(I52),0)) -> 0 | K53: =+IF(SUM($I49:J49)<>0,0,IF(K49<>0,K49-(J52),0)) -> 0 | L53: =+IF(SUM($I49:K49)<>0,0,IF(L49<>0,L49-(K52),0)) -> 0 | M53: =+IF(SUM($I49:L49)<>0,0,IF(M49<>0,M49-(L52),0)) -> 0 | N53: =+IF(SUM($I49:M49)<>0,0,IF(N49<>0,N49-(M52),0)) -> 0 | O53: =+IF(SUM($I49:N49)<>0,0,IF(O49<>0,O49-(N52),0)) -> 0 | P53: =+IF(SUM($I49:O49)<>0,0,IF(P49<>0,P49-(O52),0)) -> 0 | Q53: =+IF(SUM($I49:P49)<>0,0,IF(Q49<>0,Q49-(P52),0)) -> 0 | R53: =+IF(SUM($I49:Q49)<>0,0,IF(R49<>0,R49-(Q52),0)) -> 0 | S53: =+IF(SUM($I49:R49)<>0,0,IF(S49<>0,S49-(R52),0)) -> 0 | T53: =+IF(SUM($I49:S49)<>0,0,IF(T49<>0,T49-(S52),0)) -> 0 | U53: =+IF(SUM($I49:T49)<>0,0,IF(U49<>0,U49-(T52),0)) -> 0 | V53: =SUM(J53:U53) -> 0 | W53: =+IF(SUM($I49:V49)<>0,0,IF(W49<>0,W49-(V52),0)) -> 0 | X53: =+IF(SUM($I49:W49)<>0,0,IF(X49<>0,X49-(W52),0)) -> 0 | Y53: =+IF(SUM($I49:X49)<>0,0,IF(Y49<>0,Y49-(X52),0)) -> 0 | Z53: =+IF(SUM($I49:Y49)<>0,0,IF(Z49<>0,Z49-(Y52),0)) -> 0 | AA53: =+IF(SUM($I49:Z49)<>0,0,IF(AA49<>0,AA49-(Z52),0)) -> 0 | AB53: =+IF(SUM($I49:AA49)<>0,0,IF(AB49<>0,AB49-(AA52),0)) -> 0 | AC53: =+IF(SUM($I49:AB49)<>0,0,IF(AC49<>0,AC49-(AB52),0)) -> 0 | AD53: =+IF(SUM($I49:AC49)<>0,0,IF(AD49<>0,AD49-(AC52),0)) -> 0 | AE53: =+IF(SUM($I49:AD49)<>0,0,IF(AE49<>0,AE49-(AD52),0)) -> 0 | AF53: =+IF(SUM($I49:AE49)<>0,0,IF(AF49<>0,AF49-(AE52),0)) -> 0 | AG53: =+IF(SUM($I49:AF49)<>0,0,IF(AG49<>0,AG49-(AF52),0)) -> 0 | AH53: =+IF(SUM($I49:AG49)<>0,0,IF(AH49<>0,AH49-(AG52),0)) -> 0 | AI53: =SUM(W53:AH53) -> 0 | AJ53: =+IF(SUM($I49:AI49)<>0,0,IF(AJ49<>0,AJ49-(AI52),0)) -> 0 | AK53: =+IF(SUM($I49:AJ49)<>0,0,IF(AK49<>0,AK49-(AJ52),0)) -> 0 | AL53: =+IF(SUM($I49:AK49)<>0,0,IF(AL49<>0,AL49-(AK52),0)) -> 0

Sheet Lan
A1: =+Forsendur!$C$5 -> Nafn fyrirtækis
C3: Lánaflokkur | D3: Fjöldi afborgana | E3: Fjöldi afb. á heilum árum | F3: Vextir p.a. | G3: Skýr | I3: =+Efnahagur!G3 -> Árið 2015 | J3: =+Efnahagur!H3 -> Jan 2016 | K3: =+Efnahagur!I3 -> Feb 2016 | L3: =+Efnahagur!J3 -> Mar 2016 | M3: =+Efnahagur!K3 -> Apr 2016 | N3: =+Efnahagur!L3 -> Maí 2016 | O3: =+Efnahagur!M3 -> Jún 2016 | P3: =+Efnahagur!N3 -> Júl 2016 | Q3: =+Efnahagur!O3 -> Ágú 2016 | R3: =+Efnahagur!P3 -> Sep 2016 | S3: =+Efnahagur!Q3 -> Okt 2016 | T3: =+Efnahagur!R3 -> Nóv 2016 | U3: =+Efnahagur!S3 -> Des 2016 | V3: =+Efnahagur!T3 -> Árið 2016 | W3: =+Efnahagur!U3 -> Jan 2017 | X3: =+Efnahagur!V3 -> Feb 2017 | Y3: =+Efnahagur!W3 -> Mar 2017 | Z3: =+Efnahagur!X3 -> Apr 2017 | AA3: =+Efnahagur!Y3 -> Maí 2017 | AB3: =+Efnahagur!Z3 -> Jún 2017 | AC3: =+Efnahagur!AA3 -> Júl 2017 | AD3: =+Efnahagur!AB3 -> Ágú 2017 | AE3: =+Efnahagur!AC3 -> Sep 2017 | AF3: =+Efnahagur!AD3 -> Okt 2017 | AG3: =+Efnahagur!AE3 -> Nóv 2017 | AH3: =+Efnahagur!AF3 -> Des 2017 | AI3: =+Efnahagur!AG3 -> Árið 2017 | AJ3: =+Efnahagur!AH3 -> Árið 2018 | AK3: =+Efnahagur!AI3 -> Árið 2019 | AL3: =+Efnahagur!AJ3 -> Árið 2020 | AM3: =+Efnahagur!AK3 -> Árið 2021
A5: Notað í lánaútreikningi - ekki eyða | AJ5: 1 | AK5: 1 | AL5: 1 | AM5: 1
A6: Skrifið inn heiti á láni / lánaflokki hér
B8: Grunnforsendur | C8: Lánaflokkur 1 | D8: 0 | E8: 12 | F8: 0 | G8: =INDEX(Forsendur!$C$107:$C$109,MATCH($C8,Lanaflokkur,0)) -> 25
B9: Ný lán | G9: =G8&"_1" -> 25_1 | V9: =SUM(J9:U9) -> 0 | AI9: =SUM(W9:AH9) -> 0
B11: Afborganir lána (talan 1 táknar afborgun) | J11: 1 | K11: 1 | L11: 1 | M11: 1 | N11: 1 | O11: 1 | P11: 1 | Q11: 1 | R11: 1 | S11: 1 | T11: 1 | U11: 1 | V11: =SUM(J11:U11) -> 12 | W11: 1 | X11: 1 | Y11: 1 | Z11: 1 | AA11: 1 | AB11: 1 | AC11: 1 | AD11: 1 | AE11: 1 | AF11: 1 | AG11: 1 | AH11: 1 | AJ11: 1 | AK11: 1 | AL11: 1 | AM11: 1
B12: Reiknaðar afborganir tímabils | J12: =IF(OR(J11=0,I22=0,$D8=0),0, MIN(I22+J9,(($I22+SUM($I9:J9))/$D8)*IF(J$5=0,1,$E8*J$5))) -> 0 | K12: =IF(OR(K11=0,J22=0,$D8=0),0, MIN(J22+K9,(($I22+SUM($I9:K9))/$D8)*IF(K$5=0,1,$E8*K$5))) -> 0 | L12: =IF(OR(L11=0,K22=0,$D8=0),0, MIN(K22+L9,(($I22+SUM($I9:L9))/$D8)*IF(L$5=0,1,$E8*L$5))) -> 0 | M12: =IF(OR(M11=0,L22=0,$D8=0),0, MIN(L22+M9,(($I22+SUM($I9:M9))/$D8)*IF(M$5=0,1,$E8*M$5))) -> 0 | N12: =IF(OR(N11=0,M22=0,$D8=0),0, MIN(M22+N9,(($I22+SUM($I9:N9))/$D8)*IF(N$5=0,1,$E8*N$5))) -> 0 | O12: =IF(OR(O11=0,N22=0,$D8=0),0, MIN(N22+O9,(($I22+SUM($I9:O9))/$D8)*IF(O$5=0,1,$E8*O$5))) -> 0 | P12: =IF(OR(P11=0,O22=0,$D8=0),0, MIN(O22+P9,(($I22+SUM($I9:P9))/$D8)*IF(P$5=0,1,$E8*P$5))) -> 0 | Q12: =IF(OR(Q11=0,P22=0,$D8=0),0, MIN(P22+Q9,(($I22+SUM($I9:Q9))/$D8)*IF(Q$5=0,1,$E8*Q$5))) -> 0 | R12: =IF(OR(R11=0,Q22=0,$D8=0),0, MIN(Q22+R9,(($I22+SUM($I9:R9))/$D8)*IF(R$5=0,1,$E8*R$5))) -> 0 | S12: =IF(OR(S11=0,R22=0,$D8=0),0, MIN(R22+S9,(($I22+SUM($I9:S9))/$D8)*IF(S$5=0,1,$E8*S$5))) -> 0 | T12: =IF(OR(T11=0,S22=0,$D8=0),0, MIN(S22+T9,(($I22+SUM($I9:T9))/$D8)*IF(T$5=0,1,$E8*T$5))) -> 0 | U12: =IF(OR(U11=0,T22=0,$D8=0),0, MIN(T22+U9,(($I22+SUM($I9:U9))/$D8)*IF(U$5=0,1,$E8*U$5))) -> 0 | V12: =SUM(J12:U12) -> 0 | W12: =IF(OR(W11=0,V22=0,$D8=0),0, MIN(V22+W9,(($I22+SUM($I9:W9)-$V9)/$D8)*IF(W$5=0,1,$E8*W$5))) -> 0 | X12: =IF(OR(X11=0,W22=0,$D8=0),0, MIN(W22+X9,(($I22+SUM($I9:X9)-$V9)/$D8)*IF(X$5=0,1,$E8*X$5))) -> 0 | Y12: =IF(OR(Y11=0,X22=0,$D8=0),0, MIN(X22+Y9,(($I22+SUM($I9:Y9)-$V9)/$D8)*IF(Y$5=0,1,$E8*Y$5))) -> 0 | Z12: =IF(OR(Z11=0,Y22=0,$D8=0),0, MIN(Y22+Z9,(($I22+SUM($I9:Z9)-$V9)/$D8)*IF(Z$5=0,1,$E8*Z$5))) -> 0 | AA12: =IF(OR(AA11=0,Z22=0,$D8=0),0, MIN(Z22+AA9,(($I22+SUM($I9:AA9)-$V9)/$D8)*IF(AA$5=0,1,$E8*AA$5))) -> 0 | AB12: =IF(OR(AB11=0,AA22=0,$D8=0),0, MIN(AA22+AB9,(($I22+SUM($I9:AB9)-$V9)/$D8)*IF(AB$5=0,1,$E8*AB$5))) -> 0 | AC12: =IF(OR(AC11=0,AB22=0,$D8=0),0, MIN(AB22+AC9,(($I22+SUM($I9:AC9)-$V9)/$D8)*IF(AC$5=0,1,$E8*AC$5))) -> 0 | AD12: =IF(OR(AD11=0,AC22=0,$D8=0),0, MIN(AC22+AD9,(($I22+SUM($I9:AD9)-$V9)/$D8)*IF(AD$5=0,1,$E8*AD$5))) -> 0 | AE12: =IF(OR(AE11=0,AD22=0,$D8=0),0, MIN(AD22+AE9,(($I22+SUM($I9:AE9)-$V9)/$D8)*IF(AE$5=0,1,$E8*AE$5))) -> 0 | AF12: =IF(OR(AF11=0,AE22=0,$D8=0),0, MIN(AE22+AF9,(($I22+SUM($I9:AF9)-$V9)/$D8)*IF(AF$5=0,1,$E8*AF$5))) -> 0 | AG12: =IF(OR(AG11=0,AF22=0,$D8=0),0, MIN(AF22+AG9,(($I22+SUM($I9:AG9)-$V9)/$D8)*IF(AG$5=0,1,$E8*AG$5))) -> 0 | AH12: =IF(OR(AH11=0,AG22=0,$D8=0),0, MIN(AG22+AH9,(($I22+SUM($I9:AH9)-$V9)/$D8)*IF(AH$5=0,1,$E8*AH$5))) -> 0 | AI12: =SUM(W12:AH12) -> 0 | AJ12: =IF(OR(AJ11=0,AI22=0,$D8=0),0, MIN(AI22+AJ9,(($I22+SUM($I9:AJ9)-$V9-$AI9)/$D8)*IF(AJ$5=0,1,$E8*AJ$5))) -> 0 | AK12: =IF(OR(AK11=0,AJ22=0,$D8=0),0, MIN(AJ22+AK9,(($I22+SUM($I9:AK9)-$V9-$AI9)/$D8)*IF(AK$5=0,1,$E8*AK$5))) -> 0 | AL12: =IF(OR(AL11=0,AK22=0,$D8=0),0, MIN(AK22+AL9,(($I22+SUM($I9:AL9)-$V9-$AI9)/$D8)*IF(AL$5=0,1,$E8*AL$5))) -> 0 | AM12: =IF(OR(AM11=0,AL22=0,$D8=0),0, MIN(AL22+AM9,(($I22+SUM($I9:AM9)-$V9-$AI9)/$D8)*IF(AM$5=0,1,$E8*AM$5))) -> 0
B13: Leiðréttar afborganir | V13: =SUM(J13:U13) -> 0 | AI13: =SUM(W13:AH13) -> 0
B14: Afborganir samtals | G14: =G8&"_2" -> 25_2 | J14: =+J13+J12 -> 0 | K14: 0 | L14: 0 | M14: 0 | N14: 0 | O14: 0 | P14: 0 | Q14: 0 | R14: 0 | S14: 0 | T14: 0 | U14: 0 | V14: =SUM(J14:U14) -> 0 | W14: =+W13+W12 -> 0 | X14: 0 | Y14: 0 | Z14: 0 | AA14: 0 | AB14: 0 | AC14: 0 | AD14: 0 | AE14: 0 | AF14: 0 | AG14: 0 | AH14: 0 | AI14: =SUM(W14:AH14) -> 0 | AJ14: =+AJ13+AJ12 -> 0 | AK14: =+AK13+AK12 -> 0 | AL14: =+AL13+AL12 -> 0 | AM14: =+AM13+AM12 -> 0
B15: Næsta árs afborgun (+12 mánuðir) | G15: =+Arsreikningur!$E$84 -> 28 | J15: =IF(J22=0,0,SUM(K14:$U14)+SUM($W14:W14)) -> 0 | K15: =IF(K22=0,0,SUM(L14:$U14)+SUM($W14:X14)) -> 0 | L15: =IF(L22=0,0,SUM(M14:$U14)+SUM($W14:Y14)) -> 0 | M15: =IF(M22=0,0,SUM(N14:$U14)+SUM($W14:Z14)) -> 0 | N15: =IF(N22=0,0,SUM(O14:$U14)+SUM($W14:AA14)) -> 0 | O15: =IF(O22=0,0,SUM(P14:$U14)+SUM($W14:AB14)) -> 0 | P15: =IF(P22=0,0,SUM(Q14:$U14)+SUM($W14:AC14)) -> 0 | Q15: =IF(Q22=0,0,SUM(R14:$U14)+SUM($W14:AD14)) -> 0 | R15: =IF(R22=0,0,SUM(S14:$U14)+SUM($W14:AE14)) -> 0 | S15: =IF(S22=0,0,SUM(T14:$U14)+SUM($W14:AF14)) -> 0 | T15: =IF(T22=0,0,SUM(U14:$U14)+SUM($W14:AG14)) -> 0 | U15: =IF(U22=0,0,SUM($W14:AH14)) -> 0 | V15: =+U15 -> 0 | W15: =IF(W22=0,0,SUM(X14:$AH14)+$AJ14/12*1) -> 0 | X15: =IF(X22=0,0,SUM(Y14:$AH14)+$AJ14/12*2) -> 0 | Y15: =IF(Y22=0,0,SUM(Z14:$AH14)+$AJ14/12*3) -> 0 | Z15: =IF(Z22=0,0,SUM(AA14:$AH14)+$AJ14/12*4) -> 0 | AA15: =IF(AA22=0,0,SUM(AB14:$AH14)+$AJ14/12*5) -> 0 | AB15: =IF(AB22=0,0,SUM(AC14:$AH14)+$AJ14/12*6) -> 0 | AC15: =IF(AC22=0,0,SUM(AD14:$AH14)+$AJ14/12*7) -> 0 | AD15: =IF(AD22=0,0,SUM(AE14:$AH14)+$AJ14/12*8) -> 0 | AE15: =IF(AE22=0,0,SUM(AF14:$AH14)+$AJ14/12*9) -> 0 | AF15: =IF(AF22=0,0,SUM(AG14:$AH14)+$AJ14/12*10) -> 0 | AG15: =IF(AG22=0,0,SUM(AH14:$AH14)+$AJ14/12*11) -> 0 | AH15: =IF(AH22=0,0,+AJ14) -> 0 | AI15: =+AH15 -> 0 | AJ15: =IF(AJ22=0,0,+AK14) -> 0 | AK15: =IF(AK22=0,0,+AL14) -> 0 | AL15: =IF(AL22=0,0,+AM14) -> 0
B17: Reiknaðir vextir | I17: 0 | J17: =+(I22+(J9-J14)/2)*($F8/12) -> 0 | K17: =+(J22+(K9-K14)/2)*($F8/12) -> 0 | L17: 0 | M17: 0 | N17: 0 | O17: 0 | P17: 0 | Q17: 0 | R17: 0 | S17: 0 | T17: 0 | U17: 0 | V17: =SUM(J17:U17) -> 0 | W17: =+(V22+(W9-W14)/2)*($F8/12) -> 0 | X17: 0 | Y17: 0 | Z17: 0 | AA17: 0 | AB17: 0 | AC17: 0 | AD17: 0 | AE17: 0 | AF17: 0 | AG17: 0 | AH17: 0 | AI17: =SUM(W17:AH17) -> 0 | AJ17: =+(AI22+(AJ9-AJ14)/2)*$F8 -> 0 | AK17: =+(AJ22+(AK9-AK14)/2)*$F8 -> 0 | AL17: =+(AK22+(AL9-AL14)/2)*$F8 -> 0
B18: Leiðréttir vextir | V18: =SUM(J18:U18) -> 0 | AI18: =SUM(W18:AH18) -> 0
B19: Vextir samtals | G19: 11_2 | J19: =+J18+J17 -> 0 | K19: 0 | L19: 0 | M19: 0 | N19: 0 | O19: 0 | P19: 0 | Q19: 0 | R19: 0 | S19: 0 | T19: 0 | U19: 0 | V19: =SUM(J19:U19) -> 0 | W19: =+W18+W17 -> 0 | X19: 0 | Y19: 0 | Z19: 0 | AA19: 0 | AB19: 0 | AC19: 0 | AD19: 0 | AE19: 0 | AF19: 0 | AG19: 0 | AH19: 0 | AI19: =SUM(W19:AH19) -> 0 | AJ19: =+AJ18+AJ17 -> 0 | AK19: =+AK18+AK17 -> 0 | AL19: =+AL18+AL17 -> 0
B20: Afb. vaxta (talan 1 táknar afborgun) | I20: 0 | J20: 1 | K20: 1 | L20: 1 | M20: 1 | N20: 1 | O20: 1 | P20: 1 | Q20: 1 | R20: 1 | S20: 1 | T20: 1 | U20: 1 | W20: 1 | X20: 1 | Y20: 1 | Z20: 1 | AA20: 1 | AB20: 1 | AC20: 1 | AD20: 1 | AE20: 1 | AF20: 1 | AG20: 1 | AH20: 1 | AJ20: 1 | AK20: 1 | AL20: 1
B21: Ógreiddir vextir (fært í efnahag) | G21: =+Arsreikningur!$E$90 -> 32 | J21: =IF(J20=1,0,I21+J17) -> 0 | K21: =IF(K20=1,0,J21+K17) -> 0 | L21: =IF(L20=1,0,K21+L17) -> 0 | M21: 0 | N21: 0 | O21: 0 | P21: 0 | Q21: 0 | R21: 0 | S21: 0 | T21: 0 | U21: 0 | V21: =+U21 -> 0 | W21: =IF(W20=1,0,V21+W17) -> 0 | X21: 0 | Y21: 0 | Z21: 0 | AA21: 0 | AB21: 0 | AC21: 0 | AD21: 0 | AE21: 0 | AF21: 0 | AG21: 0 | AH21: 0 | AI21: =+AH21 -> 0 | AJ21: =IF(AJ20=1,0,AI21+AJ17) -> 0 | AK21: =IF(AK20=1,0,AJ21+AK17) -> 0 | AL21: =IF(AL20=1,0,AK21+AL17) -> 0
B22: Bókfærð staða í lok tímabils | G22: =G8&"_3" -> 25_3 | J22: =+I22+J9-J14 -> 0 | K22: 0 | L22: 0 | M22: 0 | N22: 0 | O22: 0 | P22: 0 | Q22: 0 | R22: 0 | S22: 0 | T22: 0 | U22: 0 | V22: =+U22 -> 0 | W22: =+V22+W9-W14 -> 0 | X22: 0 | Y22: 0 | Z22: 0 | AA22: 0 | AB22: 0 | AC22: 0 | AD22: 0 | AE22: 0 | AF22: 0 | AG22: 0 | AH22: 0 | AI22: =+AH22 -> 0 | AJ22: =+AI22+AJ9-AJ14 -> 0 | AK22: =+AJ22+AK9-AK14 -> 0 | AL22: =+AK22+AL9-AL14 -> 0
A24: Skrifið inn heiti á láni / lánaflokki hér
B26: Grunnforsendur | C26: Lánaflokkur 1 | D26: 0 | E26: 12 | F26: 0 | G26: =INDEX(Forsendur!$C$107:$C$109,MATCH($C26,Lanaflokkur,0)) -> 25
B27: Ný lán | G27: =G26&"_1" -> 25_1 | V27: =SUM(J27:U27) -> 0 | AI27: =SUM(W27:AH27) -> 0
B29: Afborganir lána (talan 1 táknar afborgun) | J29: 1 | K29: 1 | L29: 1 | M29: 1 | N29: 1 | O29: 1 | P29: 1 | Q29: 1 | R29: 1 | S29: 1 | T29: 1 | U29: 1 | V29: =SUM(J29:U29) -> 12 | W29: 1 | X29: 1 | Y29: 1 | Z29: 1 | AA29: 1 | AB29: 1 | AC29: 1 | AD29: 1 | AE29: 1 | AF29: 1 | AG29: 1 | AH29: 1 | AJ29: 1 | AK29: 1 | AL29: 1 | AM29: 1
B30: Reiknaðar afborganir tímabils | J30: =IF(OR(J29=0,I40=0,$D26=0),0, MIN(I40+J27,(($I40+SUM($I27:J27))/$D26)*IF(J$5=0,1,$E26*J$5))) -> 0 | K30: =IF(OR(K29=0,J40=0,$D26=0),0, MIN(J40+K27,(($I40+SUM($I27:K27))/$D26)*IF(K$5=0,1,$E26*K$5))) -> 0 | L30: =IF(OR(L29=0,K40=0,$D26=0),0, MIN(K40+L27,(($I40+SUM($I27:L27))/$D26)*IF(L$5=0,1,$E26*L$5))) -> 0 | M30: =IF(OR(M29=0,L40=0,$D26=0),0, MIN(L40+M27,(($I40+SUM($I27:M27))/$D26)*IF(M$5=0,1,$E26*M$5))) -> 0 | N30: =IF(OR(N29=0,M40=0,$D26=0),0, MIN(M40+N27,(($I40+SUM($I27:N27))/$D26)*IF(N$5=0,1,$E26*N$5))) -> 0 | O30: =IF(OR(O29=0,N40=0,$D26=0),0, MIN(N40+O27,(($I40+SUM($I27:O27))/$D26)*IF(O$5=0,1,$E26*O$5))) -> 0 | P30: =IF(OR(P29=0,O40=0,$D26=0),0, MIN(O40+P27,(($I40+SUM($I27:P27))/$D26)*IF(P$5=0,1,$E26*P$5))) -> 0 | Q30: =IF(OR(Q29=0,P40=0,$D26=0),0, MIN(P40+Q27,(($I40+SUM($I27:Q27))/$D26)*IF(Q$5=0,1,$E26*Q$5))) -> 0 | R30: =IF(OR(R29=0,Q40=0,$D26=0),0, MIN(Q40+R27,(($I40+SUM($I27:R27))/$D26)*IF(R$5=0,1,$E26*R$5))) -> 0 | S30: =IF(OR(S29=0,R40=0,$D26=0),0, MIN(R40+S27,(($I40+SUM($I27:S27))/$D26)*IF(S$5=0,1,$E26*S$5))) -> 0 | T30: =IF(OR(T29=0,S40=0,$D26=0),0, MIN(S40+T27,(($I40+SUM($I27:T27))/$D26)*IF(T$5=0,1,$E26*T$5))) -> 0 | U30: =IF(OR(U29=0,T40=0,$D26=0),0, MIN(T40+U27,(($I40+SUM($I27:U27))/$D26)*IF(U$5=0,1,$E26*U$5))) -> 0 | V30: =SUM(J30:U30) -> 0 | W30: =IF(OR(W29=0,V40=0,$D26=0),0, MIN(V40+W27,(($I40+SUM($I27:W27)-$V27)/$D26)*IF(W$5=0,1,$E26*W$5))) -> 0 | X30: =IF(OR(X29=0,W40=0,$D26=0),0, MIN(W40+X27,(($I40+SUM($I27:X27)-$V27)/$D26)*IF(X$5=0,1,$E26*X$5))) -> 0 | Y30: =IF(OR(Y29=0,X40=0,$D26=0),0, MIN(X40+Y27,(($I40+SUM($I27:Y27)-$V27)/$D26)*IF(Y$5=0,1,$E26*Y$5))) -> 0 | Z30: =IF(OR(Z29=0,Y40=0,$D26=0),0, MIN(Y40+Z27,(($I40+SUM($I27:Z27)-$V27)/$D26)*IF(Z$5=0,1,$E26*Z$5))) -> 0 | AA30: =IF(OR(AA29=0,Z40=0,$D26=0),0, MIN(Z40+AA27,(($I40+SUM($I27:AA27)-$V27)/$D26)*IF(AA$5=0,1,$E26*AA$5))) -> 0 | AB30: =IF(OR(AB29=0,AA40=0,$D26=0),0, MIN(AA40+AB27,(($I40+SUM($I27:AB27)-$V27)/$D26)*IF(AB$5=0,1,$E26*AB$5))) -> 0 | AC30: =IF(OR(AC29=0,AB40=0,$D26=0),0, MIN(AB40+AC27,(($I40+SUM($I27:AC27)-$V27)/$D26)*IF(AC$5=0,1,$E26*AC$5))) -> 0 | AD30: =IF(OR(AD29=0,AC40=0,$D26=0),0, MIN(AC40+AD27,(($I40+SUM($I27:AD27)-$V27)/$D26)*IF(AD$5=0,1,$E26*AD$5))) -> 0 | AE30: =IF(OR(AE29=0,AD40=0,$D26=0),0, MIN(AD40+AE27,(($I40+SUM($I27:AE27)-$V27)/$D26)*IF(AE$5=0,1,$E26*AE$5))) -> 0 | AF30: =IF(OR(AF29=0,AE40=0,$D26=0),0, MIN(AE40+AF27,(($I40+SUM($I27:AF27)-$V27)/$D26)*IF(AF$5=0,1,$E26*AF$5))) -> 0 | AG30: =IF(OR(AG29=0,AF40=0,$D26=0),0, MIN(AF40+AG27,(($I40+SUM($I27:AG27)-$V27)/$D26)*IF(AG$5=0,1,$E26*AG$5))) -> 0 | AH30: =IF(OR(AH29=0,AG40=0,$D26=0),0, MIN(AG40+AH27,(($I40+SUM($I27:AH27)-$V27)/$D26)*IF(AH$5=0,1,$E26*AH$5))) -> 0 | AI30: =SUM(W30:AH30) -> 0 | AJ30: =IF(OR(AJ29=0,AI40=0,$D26=0),0, MIN(AI40+AJ27,(($I40+SUM($I27:AJ27)-$V27-$AI27)/$D26)*IF(AJ$5=0,1,$E26*AJ$5))) -> 0 | AK30: =IF(OR(AK29=0,AJ40=0,$D26=0),0, MIN(AJ40+AK27,(($I40+SUM($I27:AK27)-$V27-$AI27)/$D26)*IF(AK$5=0,1,$E26*AK$5))) -> 0 | AL30: =IF(OR(AL29=0,AK40=0,$D26=0),0, MIN(AK40+AL27,(($I40+SUM($I27:AL27)-$V27-$AI27)/$D26)*IF(AL$5=0,1,$E26*AL$5))) -> 0 | AM30: =IF(OR(AM29=0,AL40=0,$D26=0),0, MIN(AL40+AM27,(($I40+SUM($I27:AM27)-$V27-$AI27)/$D26)*IF(AM$5=0,1,$E26*AM$5))) -> 0
B31: Leiðréttar afborganir | V31: =SUM(J31:U31) -> 0 | AI31: =SUM(W31:AH31) -> 0
B32: Afborganir samtals | G32: =G26&"_2" -> 25_2 | J32: =+J31+J30 -> 0 | K32: 0 | L32: 0 | M32: 0 | N32: 0 | O32: 0 | P32: 0 | Q32: 0 | R32: 0 | S32: 0 | T32: 0 | U32: 0 | V32: =SUM(J32:U32) -> 0 | W32: =+W31+W30 -> 0 | X32: 0 | Y32: 0 | Z32: 0 | AA32: 0 | AB32: 0 | AC32: 0 | AD32: 0 | AE32: 0 | AF32: 0 | AG32: 0 | AH32: 0 | AI32: =SUM(W32:AH32) -> 0 | AJ32: =+AJ31+AJ30 -> 0 | AK32: =+AK31+AK30 -> 0 | AL32: =+AL31+AL30 -> 0 | AM32: =+AM31+AM30 -> 0
B33: Næsta árs afborgun (+12 mánuðir) | G33: =+Arsreikningur!$E$84 -> 28 | J33: =IF(J40=0,0,SUM(K32:$U32)+SUM($W32:W32)) -> 0 | K33: =IF(K40=0,0,SUM(L32:$U32)+SUM($W32:X32)) -> 0 | L33: =IF(L40=0,0,SUM(M32:$U32)+SUM($W32:Y32)) -> 0 | M33: =IF(M40=0,0,SUM(N32:$U32)+SUM($W32:Z32)) -> 0 | N33: =IF(N40=0,0,SUM(O32:$U32)+SUM($W32:AA32)) -> 0 | O33: =IF(O40=0,0,SUM(P32:$U32)+SUM($W32:AB32)) -> 0 | P33: =IF(P40=0,0,SUM(Q32:$U32)+SUM($W32:AC32)) -> 0 | Q33: =IF(Q40=0,0,SUM(R32:$U32)+SUM($W32:AD32)) -> 0 | R33: =IF(R40=0,0,SUM(S32:$U32)+SUM($W32:AE32)) -> 0 | S33: =IF(S40=0,0,SUM(T32:$U32)+SUM($W32:AF32)) -> 0 | T33: =IF(T40=0,0,SUM(U32:$U32)+SUM($W32:AG32)) -> 0 | U33: =IF(U40=0,0,SUM($W32:AH32)) -> 0 | V33: =+U33 -> 0 | W33: =IF(W40=0,0,SUM(X32:$AH32)+$AJ32/12*1) -> 0 | X33: =IF(X40=0,0,SUM(Y32:$AH32)+$AJ32/12*2) -> 0 | Y33: =IF(Y40=0,0,SUM(Z32:$AH32)+$AJ32/12*3) -> 0 | Z33: =IF(Z40=0,0,SUM(AA32:$AH32)+$AJ32/12*4) -> 0 | AA33: =IF(AA40=0,0,SUM(AB32:$AH32)+$AJ32/12*5) -> 0 | AB33: =IF(AB40=0,0,SUM(AC32:$AH32)+$AJ32/12*6) -> 0 | AC33: =IF(AC40=0,0,SUM(AD32:$AH32)+$AJ32/12*7) -> 0 | AD33: =IF(AD40=0,0,SUM(AE32:$AH32)+$AJ32/12*8) -> 0 | AE33: =IF(AE40=0,0,SUM(AF32:$AH32)+$AJ32/12*9) -> 0 | AF33: =IF(AF40=0,0,SUM(AG32:$AH32)+$AJ32/12*10) -> 0 | AG33: =IF(AG40=0,0,SUM(AH32:$AH32)+$AJ32/12*11) -> 0 | AH33: =IF(AH40=0,0,+AJ32) -> 0 | AI33: =+AH33 -> 0 | AJ33: =IF(AJ40=0,0,+AK32) -> 0 | AK33: =IF(AK40=0,0,+AL32) -> 0 | AL33: =IF(AL40=0,0,+AM32) -> 0
B35: Reiknaðir vextir | G35: 11_2 | I35: 0 | J35: =+(I40+(J27-J32)/2)*($F26/12) -> 0 | K35: 0 | L35: 0 | M35: 0 | N35: 0 | O35: 0 | P35: 0 | Q35: 0 | R35: 0 | S35: 0 | T35: 0 | U35: 0 | V35: =SUM(J35:U35) -> 0 | W35: =+(V40+(W27-W32)/2)*($F26/12) -> 0 | X35: 0 | Y35: 0 | Z35: 0 | AA35: 0 | AB35: 0 | AC35: 0 | AD35: 0 | AE35: 0 | AF35: 0 | AG35: 0 | AH35: 0 | AI35: =SUM(W35:AH35) -> 0 | AJ35: =+(AI40+(AJ27-AJ32)/2)*$F26 -> 0 | AK35: =+(AJ40+(AK27-AK32)/2)*$F26 -> 0 | AL35: =+(AK40+(AL27-AL32)/2)*$F26 -> 0
B36: Leiðréttir vextir | V36: =SUM(J36:U36) -> 0 | AI36: =SUM(W36:AH36) -> 0
B37: Vextir samtals | G37: 11_2 | J37: =+J36+J35 -> 0 | K37: 0 | L37: 0 | M37: 0 | N37: 0 | O37: 0 | P37: 0 | Q37: 0 | R37: 0 | S37: 0 | T37: 0 | U37: 0 | V37: =SUM(J37:U37) -> 0 | W37: =+W36+W35 -> 0 | X37: 0 | Y37: 0 | Z37: 0 | AA37: 0 | AB37: 0 | AC37: 0 | AD37: 0 | AE37: 0 | AF37: 0 | AG37: 0 | AH37: 0 | AI37: =SUM(W37:AH37) -> 0 | AJ37: =+AJ36+AJ35 -> 0 | AK37: =+AK36+AK35 -> 0 | AL37: =+AL36+AL35 -> 0
B38: Afb. vaxta (talan 1 táknar afborgun) | I38: 0 | J38: 1 | K38: 1 | L38: 1 | M38: 1 | N38: 1 | O38: 1 | P38: 1 | Q38: 1 | R38: 1 | S38: 1 | T38: 1 | U38: 1 | W38: 1 | X38: 1 | Y38: 1 | Z38: 1 | AA38: 1 | AB38: 1 | AC38: 1 | AD38: 1 | AE38: 1 | AF38: 1 | AG38: 1 | AH38: 1 | AJ38: 1 | AK38: 1 | AL38: 1
B39: Ógreiddir vextir (fært í efnahag) | G39: =+Arsreikningur!$E$90 -> 32 | J39: =IF(J38=1,0,I39+J35) -> 0 | K39: 0 | L39: 0 | M39: 0 | N39: 0 | O39: 0 | P39: 0 | Q39: 0 | R39: 0 | S39: 0 | T39: 0 | U39: 0 | V39: =+U39 -> 0 | W39: =IF(W38=1,0,V39+W35) -> 0 | X39: 0 | Y39: 0 | Z39: 0 | AA39: 0 | AB39: 0 | AC39: 0 | AD39: 0 | AE39: 0 | AF39: 0 | AG39: 0 | AH39: 0 | AI39: =+AH39 -> 0 | AJ39: =IF(AJ38=1,0,AI39+AJ35) -> 0 | AK39: =IF(AK38=1,0,AJ39+AK35) -> 0 | AL39: =IF(AL38=1,0,AK39+AL35) -> 0
B40: Bókfærð staða í lok tímabils | G40: =G26&"_3" -> 25_3 | J40: =+I40+J27-J32 -> 0 | K40: 0 | L40: 0 | M40: 0 | N40: 0 | O40: 0 | P40: 0 | Q40: 0 | R40: 0 | S40: 0 | T40: 0 | U40: 0 | V40: =+U40 -> 0 | W40: =+V40+W27-W32 -> 0 | X40: 0 | Y40: 0 | Z40: 0 | AA40: 0 | AB40: 0 | AC40: 0 | AD40: 0 | AE40: 0 | AF40: 0 | AG40: 0 | AH40: 0 | AI40: =+AH40 -> 0 | AJ40: =+AI40+AJ27-AJ32 -> 0 | AK40: =+AJ40+AK27-AK32 -> 0 | AL40: =+AK40+AL27-AL32 -> 0
A42: Skrifið inn heiti á láni / lánaflokki hér
B44: Grunnforsendur | C44: Lánaflokkur 1 | D44: 0 | E44: 12 | F44: 0 | G44: =INDEX(Forsendur!$C$107:$C$109,MATCH($C44,Lanaflokkur,0)) -> 25
B45: Ný lán | G45: =G44&"_1" -> 25_1 | V45: =SUM(J45:U45) -> 0 | AI45: =SUM(W45:AH45) -> 0
B47: Afborganir lána (talan 1 táknar afborgun) | J47: 1 | K47: 1 | L47: 1 | M47: 1 | N47: 1 | O47: 1 | P47: 1 | Q47: 1 | R47: 1 | S47: 1 | T47: 1 | U47: 1 | W47: 1 | X47: 1 | Y47: 1 | Z47: 1 | AA47: 1 | AB47: 1 | AC47: 1 | AD47: 1 | AE47: 1 | AF47: 1 | AG47: 1 | AH47: 1 | AJ47: 1 | AK47: 1 | AL47: 1 | AM47: 1
B48: Reiknaðar afborganir tímabils | J48: =IF(OR(J47=0,I58=0,$D44=0),0, MIN(I58+J45,(($I58+SUM($I45:J45))/$D44)*IF(J$5=0,1,$E44*J$5))) -> 0 | K48: =IF(OR(K47=0,J58=0,$D44=0),0, MIN(J58+K45,(($I58+SUM($I45:K45))/$D44)*IF(K$5=0,1,$E44*K$5))) -> 0 | L48: =IF(OR(L47=0,K58=0,$D44=0),0, MIN(K58+L45,(($I58+SUM($I45:L45))/$D44)*IF(L$5=0,1,$E44*L$5))) -> 0 | M48: =IF(OR(M47=0,L58=0,$D44=0),0, MIN(L58+M45,(($I58+SUM($I45:M45))/$D44)*IF(M$5=0,1,$E44*M$5))) -> 0 | N48: =IF(OR(N47=0,M58=0,$D44=0),0, MIN(M58+N45,(($I58+SUM($I45:N45))/$D44)*IF(N$5=0,1,$E44*N$5))) -> 0 | O48: =IF(OR(O47=0,N58=0,$D44=0),0, MIN(N58+O45,(($I58+SUM($I45:O45))/$D44)*IF(O$5=0,1,$E44*O$5))) -> 0 | P48: =IF(OR(P47=0,O58=0,$D44=0),0, MIN(O58+P45,(($I58+SUM($I45:P45))/$D44)*IF(P$5=0,1,$E44*P$5))) -> 0 | Q48: =IF(OR(Q47=0,P58=0,$D44=0),0, MIN(P58+Q45,(($I58+SUM($I45:Q45))/$D44)*IF(Q$5=0,1,$E44*Q$5))) -> 0 | R48: =IF(OR(R47=0,Q58=0,$D44=0),0, MIN(Q58+R45,(($I58+SUM($I45:R45))/$D44)*IF(R$5=0,1,$E44*R$5))) -> 0 | S48: =IF(OR(S47=0,R58=0,$D44=0),0, MIN(R58+S45,(($I58+SUM($I45:S45))/$D44)*IF(S$5=0,1,$E44*S$5))) -> 0 | T48: =IF(OR(T47=0,S58=0,$D44=0),0, MIN(S58+T45,(($I58+SUM($I45:T45))/$D44)*IF(T$5=0,1,$E44*T$5))) -> 0 | U48: =IF(OR(U47=0,T58=0,$D44=0),0, MIN(T58+U45,(($I58+SUM($I45:U45))/$D44)*IF(U$5=0,1,$E44*U$5))) -> 0 | V48: =SUM(J48:U48) -> 0 | W48: =IF(OR(W47=0,V58=0,$D44=0),0, MIN(V58+W45,(($I58+SUM($I45:W45)-$V45)/$D44)*IF(W$5=0,1,$E44*W$5))) -> 0 | X48: =IF(OR(X47=0,W58=0,$D44=0),0, MIN(W58+X45,(($I58+SUM($I45:X45)-$V45)/$D44)*IF(X$5=0,1,$E44*X$5))) -> 0 | Y48: =IF(OR(Y47=0,X58=0,$D44=0),0, MIN(X58+Y45,(($I58+SUM($I45:Y45)-$V45)/$D44)*IF(Y$5=0,1,$E44*Y$5))) -> 0 | Z48: =IF(OR(Z47=0,Y58=0,$D44=0),0, MIN(Y58+Z45,(($I58+SUM($I45:Z45)-$V45)/$D44)*IF(Z$5=0,1,$E44*Z$5))) -> 0 | AA48: =IF(OR(AA47=0,Z58=0,$D44=0),0, MIN(Z58+AA45,(($I58+SUM($I45:AA45)-$V45)/$D44)*IF(AA$5=0,1,$E44*AA$5))) -> 0 | AB48: =IF(OR(AB47=0,AA58=0,$D44=0),0, MIN(AA58+AB45,(($I58+SUM($I45:AB45)-$V45)/$D44)*IF(AB$5=0,1,$E44*AB$5))) -> 0 | AC48: =IF(OR(AC47=0,AB58=0,$D44=0),0, MIN(AB58+AC45,(($I58+SUM($I45:AC45)-$V45)/$D44)*IF(AC$5=0,1,$E44*AC$5))) -> 0 | AD48: =IF(OR(AD47=0,AC58=0,$D44=0),0, MIN(AC58+AD45,(($I58+SUM($I45:AD45)-$V45)/$D44)*IF(AD$5=0,1,$E44*AD$5))) -> 0 | AE48: =IF(OR(AE47=0,AD58=0,$D44=0),0, MIN(AD58+AE45,(($I58+SUM($I45:AE45)-$V45)/$D44)*IF(AE$5=0,1,$E44*AE$5))) -> 0 | AF48: =IF(OR(AF47=0,AE58=0,$D44=0),0, MIN(AE58+AF45,(($I58+SUM($I45:AF45)-$V45)/$D44)*IF(AF$5=0,1,$E44*AF$5))) -> 0 | AG48: =IF(OR(AG47=0,AF58=0,$D44=0),0, MIN(AF58+AG45,(($I58+SUM($I45:AG45)-$V45)/$D44)*IF(AG$5=0,1,$E44*AG$5))) -> 0 | AH48: =IF(OR(AH47=0,AG58=0,$D44=0),0, MIN(AG58+AH45,(($I58+SUM($I45:AH45)-$V45)/$D44)*IF(AH$5=0,1,$E44*AH$5))) -> 0 | AI48: =SUM(W48:AH48) -> 0 | AJ48: =IF(OR(AJ47=0,AI58=0,$D44=0),0, MIN(AI58+AJ45,(($I58+SUM($I45:AJ45)-$V45-$AI45)/$D44)*IF(AJ$5=0,1,$E44*AJ$5))) -> 0 | AK48: =IF(OR(AK47=0,AJ58=0,$D44=0),0, MIN(AJ58+AK45,(($I58+SUM($I45:AK45)-$V45-$AI45)/$D44)*IF(AK$5=0,1,$E44*AK$5))) -> 0 | AL48: =IF(OR(AL47=0,AK58=0,$D44=0),0, MIN(AK58+AL45,(($I58+SUM($I45:AL45)-$V45-$AI45)/$D44)*IF(AL$5=0,1,$E44*AL$5))) -> 0 | AM48: =IF(OR(AM47=0,AL58=0,$D44=0),0, MIN(AL58+AM45,(($I58+SUM($I45:AM45)-$V45-$AI45)/$D44)*IF(AM$5=0,1,$E44*AM$5))) -> 0
B49: Leiðréttar afborganir | V49: =SUM(J49:U49) -> 0 | AI49: =SUM(W49:AH49) -> 0
B50: Afborganir samtals | G50: =G44&"_2" -> 25_2 | J50: =+J49+J48 -> 0 | K50: 0 | L50: 0 | M50: 0 | N50: 0 | O50: 0 | P50: 0 | Q50: 0 | R50: 0 | S50: 0 | T50: 0 | U50: 0 | V50: =SUM(J50:U50) -> 0 | W50: =+W49+W48 -> 0 | X50: 0 | Y50: 0 | Z50: 0 | AA50: 0 | AB50: 0 | AC50: 0 | AD50: 0 | AE50: 0 | AF50: 0 | AG50: 0 | AH50: 0 | AI50: =SUM(W50:AH50) -> 0 | AJ50: =+AJ49+AJ48 -> 0 | AK50: =+AK49+AK48 -> 0 | AL50: =+AL49+AL48 -> 0 | AM50: =+AM49+AM48 -> 0
B51: Næsta árs afborgun (+12 mánuðir) | G51: =+Arsreikningur!$E$84 -> 28 | J51: =IF(J58=0,0,SUM(K50:$U50)+SUM($W50:W50)) -> 0 | K51: =IF(K58=0,0,SUM(L50:$U50)+SUM($W50:X50)) -> 0 | L51: =IF(L58=0,0,SUM(M50:$U50)+SUM($W50:Y50)) -> 0 | M51: =IF(M58=0,0,SUM(N50:$U50)+SUM($W50:Z50)) -> 0 | N51: =IF(N58=0,0,SUM(O50:$U50)+SUM($W50:AA50)) -> 0 | O51: =IF(O58=0,0,SUM(P50:$U50)+SUM($W50:AB50)) -> 0 | P51: =IF(P58=0,0,SUM(Q50:$U50)+SUM($W50:AC50)) -> 0 | Q51: =IF(Q58=0,0,SUM(R50:$U50)+SUM($W50:AD50)) -> 0 | R51: =IF(R58=0,0,SUM(S50:$U50)+SUM($W50:AE50)) -> 0 | S51: =IF(S58=0,0,SUM(T50:$U50)+SUM($W50:AF50)) -> 0 | T51: =IF(T58=0,0,SUM(U50:$U50)+SUM($W50:AG50)) -> 0 | U51: =IF(U58=0,0,SUM($W50:AH50)) -> 0 | V51: =+U51 -> 0 | W51: =IF(W58=0,0,SUM(X50:$AH50)+$AJ50/12*1) -> 0 | X51: =IF(X58=0,0,SUM(Y50:$AH50)+$AJ50/12*2) -> 0 | Y51: =IF(Y58=0,0,SUM(Z50:$AH50)+$AJ50/12*3) -> 0 | Z51: =IF(Z58=0,0,SUM(AA50:$AH50)+$AJ50/12*4) -> 0 | AA51: =IF(AA58=0,0,SUM(AB50:$AH50)+$AJ50/12*5) -> 0 | AB51: =IF(AB58=0,0,SUM(AC50:$AH50)+$AJ50/12*6) -> 0 | AC51: =IF(AC58=0,0,SUM(AD50:$AH50)+$AJ50/12*7) -> 0 | AD51: =IF(AD58=0,0,SUM(AE50:$AH50)+$AJ50/12*8) -> 0 | AE51: =IF(AE58=0,0,SUM(AF50:$AH50)+$AJ50/12*9) -> 0 | AF51: =IF(AF58=0,0,SUM(AG50:$AH50)+$AJ50/12*10) -> 0 | AG51: =IF(AG58=0,0,SUM(AH50:$AH50)+$AJ50/12*11) -> 0 | AH51: =IF(AH58=0,0,+AJ50) -> 0 | AI51: =+AH51 -> 0 | AJ51: =IF(AJ58=0,0,+AK50) -> 0 | AK51: =IF(AK58=0,0,+AL50) -> 0 | AL51: =IF(AL58=0,0,+AM50) -> 0
B53: Reiknaðir vextir | G53: 11_2 | I53: 0 | J53: =+(I58+(J45-J50)/2)*($F44/12) -> 0 | K53: 0 | L53: 0 | M53: 0 | N53: 0 | O53: 0 | P53: 0 | Q53: 0 | R53: 0 | S53: 0 | T53: 0 | U53: 0 | V53: =SUM(J53:U53) -> 0 | W53: =+(V58+(W45-W50)/2)*($F44/12) -> 0 | X53: 0 | Y53: 0 | Z53: 0 | AA53: 0 | AB53: 0 | AC53: 0 | AD53: 0 | AE53: 0 | AF53: 0 | AG53: 0 | AH53: 0 | AI53: =SUM(W53:AH53) -> 0 | AJ53: =+(AI58+(AJ45-AJ50)/2)*$F44 -> 0 | AK53: =+(AJ58+(AK45-AK50)/2)*$F44 -> 0 | AL53: =+(AK58+(AL45-AL50)/2)*$F44 -> 0
B54: Leiðréttir vextir | V54: =SUM(J54:U54) -> 0 | AI54: =SUM(W54:AH54) -> 0
B55: Vextir samtals | G55: 11_2 | J55: =+J54+J53 -> 0 | K55: 0 | L55: 0 | M55: 0 | N55: 0 | O55: 0 | P55: 0 | Q55: 0 | R55: 0 | S55: 0 | T55: 0 | U55: 0 | V55: =SUM(J55:U55) -> 0 | W55: =+W54+W53 -> 0 | X55: 0 | Y55: 0 | Z55: 0 | AA55: 0 | AB55: 0 | AC55: 0 | AD55: 0 | AE55: 0 | AF55: 0 | AG55: 0 | AH55: 0 | AI55: =SUM(W55:AH55) -> 0 | AJ55: =+AJ54+AJ53 -> 0 | AK55: =+AK54+AK53 -> 0 | AL55: =+AL54+AL53 -> 0
B56: Afb. vaxta (talan 1 táknar afborgun) | I56: 0 | J56: 1 | K56: 1 | L56: 1 | M56: 1 | N56: 1 | O56: 1 | P56: 1 | Q56: 1 | R56: 1 | S56: 1 | T56: 1 | U56: 1 | W56: 1 | X56: 1 | Y56: 1 | Z56: 1 | AA56: 1 | AB56: 1 | AC56: 1 | AD56: 1 | AE56: 1 | AF56: 1 | AG56: 1 | AH56: 1 | AJ56: 1 | AK56: 1 | AL56: 1
B57: Ógreiddir vextir (fært í efnahag) | G57: =+Arsreikningur!$E$90 -> 32 | J57: =IF(J56=1,0,I57+J53) -> 0 | K57: 0 | L57: 0 | M57: 0 | N57: 0 | O57: 0 | P57: 0 | Q57: 0 | R57: 0 | S57: 0 | T57: 0 | U57: 0 | V57: =+U57 -> 0 | W57: =IF(W56=1,0,V57+W53) -> 0 | X57: 0 | Y57: 0 | Z57: 0 | AA57: 0 | AB57: 0 | AC57: 0 | AD57: 0 | AE57: 0 | AF57: 0 | AG57: 0 | AH57: 0 | AI57: =+AH57 -> 0 | AJ57: =IF(AJ56=1,0,AI57+AJ53) -> 0 | AK57: =IF(AK56=1,0,AJ57+AK53) -> 0 | AL57: =IF(AL56=1,0,AK57+AL53) -> 0
B58: Bókfærð staða í lok tímabils | G58: =G44&"_3" -> 25_3 | J58: =+I58+J45-J50 -> 0 | K58: 0 | L58: 0 | M58: 0 | N58: 0 | O58: 0 | P58: 0 | Q58: 0 | R58: 0 | S58: 0 | T58: 0 | U58: 0 | V58: =+U58 -> 0 | W58: =+V58+W45-W50 -> 0 | X58: 0 | Y58: 0 | Z58: 0 | AA58: 0 | AB58: 0 | AC58: 0 | AD58: 0 | AE58: 0 | AF58: 0 | AG58: 0 | AH58: 0 | AI58: =+AH58 -> 0 | AJ58: =+AI58+AJ45-AJ50 -> 0 | AK58: =+AJ58+AK45-AK50 -> 0 | AL58: =+AK58+AL45-AL50 -> 0
A60: Skrifið inn heiti á láni / lánaflokki hér
B62: Grunnforsendur | C62: Lánaflokkur 1 | D62: 1 | E62: 12 | F62: 0 | G62: =INDEX(Forsendur!$C$107:$C$109,MATCH($C62,Lanaflokkur,0)) -> 25
B63: Ný lán | G63: =G62&"_1" -> 25_1 | V63: =SUM(J63:U63) -> 0 | AI63: =SUM(W63:AH63) -> 0
B65: Afborganir lána (talan 1 táknar afborgun) | J65: 1 | K65: 1 | L65: 1 | M65: 1 | N65: 1 | O65: 1 | P65: 1 | Q65: 1 | R65: 1 | S65: 1 | T65: 1 | U65: 1 | W65: 1 | X65: 1 | Y65: 1 | Z65: 1 | AA65: 1 | AB65: 1 | AC65: 1 | AD65: 1 | AE65: 1 | AF65: 1 | AG65: 1 | AH65: 1 | AJ65: 1 | AK65: 1 | AL65: 1 | AM65: 1
B66: Reiknaðar afborganir tímabils | J66: =IF(OR(J65=0,I76=0,$D62=0),0, MIN(I76+J63,(($I76+SUM($I63:J63))/$D62)*IF(J$5=0,1,$E62*J$5))) -> 0 | K66: =IF(OR(K65=0,J76=0,$D62=0),0, MIN(J76+K63,(($I76+SUM($I63:K63))/$D62)*IF(K$5=0,1,$E62*K$5))) -> 0 | L66: =IF(OR(L65=0,K76=0,$D62=0),0, MIN(K76+L63,(($I76+SUM($I63:L63))/$D62)*IF(L$5=0,1,$E62*L$5))) -> 0 | M66: =IF(OR(M65=0,L76=0,$D62=0),0, MIN(L76+M63,(($I76+SUM($I63:M63))/$D62)*IF(M$5=0,1,$E62*M$5))) -> 0 | N66: =IF(OR(N65=0,M76=0,$D62=0),0, MIN(M76+N63,(($I76+SUM($I63:N63))/$D62)*IF(N$5=0,1,$E62*N$5))) -> 0 | O66: =IF(OR(O65=0,N76=0,$D62=0),0, MIN(N76+O63,(($I76+SUM($I63:O63))/$D62)*IF(O$5=0,1,$E62*O$5))) -> 0 | P66: =IF(OR(P65=0,O76=0,$D62=0),0, MIN(O76+P63,(($I76+SUM($I63:P63))/$D62)*IF(P$5=0,1,$E62*P$5))) -> 0 | Q66: =IF(OR(Q65=0,P76=0,$D62=0),0, MIN(P76+Q63,(($I76+SUM($I63:Q63))/$D62)*IF(Q$5=0,1,$E62*Q$5))) -> 0 | R66: =IF(OR(R65=0,Q76=0,$D62=0),0, MIN(Q76+R63,(($I76+SUM($I63:R63))/$D62)*IF(R$5=0,1,$E62*R$5))) -> 0 | S66: =IF(OR(S65=0,R76=0,$D62=0),0, MIN(R76+S63,(($I76+SUM($I63:S63))/$D62)*IF(S$5=0,1,$E62*S$5))) -> 0 | T66: =IF(OR(T65=0,S76=0,$D62=0),0, MIN(S76+T63,(($I76+SUM($I63:T63))/$D62)*IF(T$5=0,1,$E62*T$5))) -> 0 | U66: =IF(OR(U65=0,T76=0,$D62=0),0, MIN(T76+U63,(($I76+SUM($I63:U63))/$D62)*IF(U$5=0,1,$E62*U$5))) -> 0 | V66: =SUM(J66:U66) -> 0 | W66: =IF(OR(W65=0,V76=0,$D62=0),0, MIN(V76+W63,(($I76+SUM($I63:W63)-$V63)/$D62)*IF(W$5=0,1,$E62*W$5))) -> 0 | X66: =IF(OR(X65=0,W76=0,$D62=0),0, MIN(W76+X63,(($I76+SUM($I63:X63)-$V63)/$D62)*IF(X$5=0,1,$E62*X$5))) -> 0 | Y66: =IF(OR(Y65=0,X76=0,$D62=0),0, MIN(X76+Y63,(($I76+SUM($I63:Y63)-$V63)/$D62)*IF(Y$5=0,1,$E62*Y$5))) -> 0 | Z66: =IF(OR(Z65=0,Y76=0,$D62=0),0, MIN(Y76+Z63,(($I76+SUM($I63:Z63)-$V63)/$D62)*IF(Z$5=0,1,$E62*Z$5))) -> 0 | AA66: =IF(OR(AA65=0,Z76=0,$D62=0),0, MIN(Z76+AA63,(($I76+SUM($I63:AA63)-$V63)/$D62)*IF(AA$5=0,1,$E62*AA$5))) -> 0 | AB66: =IF(OR(AB65=0,AA76=0,$D62=0),0, MIN(AA76+AB63,(($I76+SUM($I63:AB63)-$V63)/$D62)*IF(AB$5=0,1,$E62*AB$5))) -> 0 | AC66: =IF(OR(AC65=0,AB76=0,$D62=0),0, MIN(AB76+AC63,(($I76+SUM($I63:AC63)-$V63)/$D62)*IF(AC$5=0,1,$E62*AC$5))) -> 0 | AD66: =IF(OR(AD65=0,AC76=0,$D62=0),0, MIN(AC76+AD63,(($I76+SUM($I63:AD63)-$V63)/$D62)*IF(AD$5=0,1,$E62*AD$5))) -> 0 | AE66: =IF(OR(AE65=0,AD76=0,$D62=0),0, MIN(AD76+AE63,(($I76+SUM($I63:AE63)-$V63)/$D62)*IF(AE$5=0,1,$E62*AE$5))) -> 0 | AF66: =IF(OR(AF65=0,AE76=0,$D62=0),0, MIN(AE76+AF63,(($I76+SUM($I63:AF63)-$V63)/$D62)*IF(AF$5=0,1,$E62*AF$5))) -> 0 | AG66: =IF(OR(AG65=0,AF76=0,$D62=0),0, MIN(AF76+AG63,(($I76+SUM($I63:AG63)-$V63)/$D62)*IF(AG$5=0,1,$E62*AG$5))) -> 0 | AH66: =IF(OR(AH65=0,AG76=0,$D62=0),0, MIN(AG76+AH63,(($I76+SUM($I63:AH63)-$V63)/$D62)*IF(AH$5=0,1,$E62*AH$5))) -> 0 | AI66: =SUM(W66:AH66) -> 0 | AJ66: =IF(OR(AJ65=0,AI76=0,$D62=0),0, MIN(AI76+AJ63,(($I76+SUM($I63:AJ63)-$V63-$AI63)/$D62)*IF(AJ$5=0,1,$E62*AJ$5))) -> 0 | AK66: =IF(OR(AK65=0,AJ76=0,$D62=0),0, MIN(AJ76+AK63,(($I76+SUM($I63:AK63)-$V63-$AI63)/$D62)*IF(AK$5=0,1,$E62*AK$5))) -> 0 | AL66: =IF(OR(AL65=0,AK76=0,$D62=0),0, MIN(AK76+AL63,(($I76+SUM($I63:AL63)-$V63-$AI63)/$D62)*IF(AL$5=0,1,$E62*AL$5))) -> 0 | AM66: =IF(OR(AM65=0,AL76=0,$D62=0),0, MIN(AL76+AM63,(($I76+SUM($I63:AM63)-$V63-$AI63)/$D62)*IF(AM$5=0,1,$E62*AM$5))) -> 0
B67: Leiðréttar afborganir | V67: =SUM(J67:U67) -> 0 | AI67: =SUM(W67:AH67) -> 0
B68: Afborganir samtals | G68: =G62&"_2" -> 25_2 | J68: =+J67+J66 -> 0 | K68: 0 | L68: 0 | M68: 0 | N68: 0 | O68: 0 | P68: 0 | Q68: 0 | R68: 0 | S68: 0 | T68: 0 | U68: 0 | V68: =SUM(J68:U68) -> 0 | W68: =+W67+W66 -> 0 | X68: 0 | Y68: 0 | Z68: 0 | AA68: 0 | AB68: 0 | AC68: 0 | AD68: 0 | AE68: 0 | AF68: 0 | AG68: 0 | AH68: 0 | AI68: =SUM(W68:AH68) -> 0 | AJ68: =+AJ67+AJ66 -> 0 | AK68: =+AK67+AK66 -> 0 | AL68: =+AL67+AL66 -> 0 | AM68: =+AM67+AM66 -> 0
B69: Næsta árs afborgun (+12 mánuðir) | G69: =+Arsreikningur!$E$84 -> 28 | J69: =IF(J76=0,0,SUM(K68:$U68)+SUM($W68:W68)) -> 0 | K69: =IF(K76=0,0,SUM(L68:$U68)+SUM($W68:X68)) -> 0 | L69: =IF(L76=0,0,SUM(M68:$U68)+SUM($W68:Y68)) -> 0 | M69: =IF(M76=0,0,SUM(N68:$U68)+SUM($W68:Z68)) -> 0 | N69: =IF(N76=0,0,SUM(O68:$U68)+SUM($W68:AA68)) -> 0 | O69: =IF(O76=0,0,SUM(P68:$U68)+SUM($W68:AB68)) -> 0 | P69: =IF(P76=0,0,SUM(Q68:$U68)+SUM($W68:AC68)) -> 0 | Q69: =IF(Q76=0,0,SUM(R68:$U68)+SUM($W68:AD68)) -> 0 | R69: =IF(R76=0,0,SUM(S68:$U68)+SUM($W68:AE68)) -> 0 | S69: =IF(S76=0,0,SUM(T68:$U68)+SUM($W68:AF68)) -> 0 | T69: =IF(T76=0,0,SUM(U68:$U68)+SUM($W68:AG68)) -> 0 | U69: =IF(U76=0,0,SUM($W68:AH68)) -> 0 | V69: =+U69 -> 0 | W69: =IF(W76=0,0,SUM(X68:$AH68)+$AJ68/12*1) -> 0 | X69: =IF(X76=0,0,SUM(Y68:$AH68)+$AJ68/12*2) -> 0 | Y69: =IF(Y76=0,0,SUM(Z68:$AH68)+$AJ68/12*3) -> 0 | Z69: =IF(Z76=0,0,SUM(AA68:$AH68)+$AJ68/12*4) -> 0 | AA69: =IF(AA76=0,0,SUM(AB68:$AH68)+$AJ68/12*5) -> 0 | AB69: =IF(AB76=0,0,SUM(AC68:$AH68)+$AJ68/12*6) -> 0 | AC69: =IF(AC76=0,0,SUM(AD68:$AH68)+$AJ68/12*7) -> 0 | AD69: =IF(AD76=0,0,SUM(AE68:$AH68)+$AJ68/12*8) -> 0 | AE69: =IF(AE76=0,0,SUM(AF68:$AH68)+$AJ68/12*9) -> 0 | AF69: =IF(AF76=0,0,SUM(AG68:$AH68)+$AJ68/12*10) -> 0 | AG69: =IF(AG76=0,0,SUM(AH68:$AH68)+$AJ68/12*11) -> 0 | AH69: =IF(AH76=0,0,+AJ68) -> 0 | AI69: =+AH69 -> 0 | AJ69: =IF(AJ76=0,0,+AK68) -> 0 | AK69: =IF(AK76=0,0,+AL68) -> 0 | AL69: =IF(AL76=0,0,+AM68) -> 0
B71: Reiknaðir vextir | G71: 11_2 | I71: 0 | J71: =+(I76+(J63-J68)/2)*($F62/12) -> 0 | K71: 0 | L71: 0 | M71: 0 | N71: 0 | O71: 0 | P71: 0 | Q71: 0 | R71: 0 | S71: 0 | T71: 0 | U71: 0 | V71: =SUM(J71:U71) -> 0 | W71: =+(V76+(W63-W68)/2)*($F62/12) -> 0 | X71: 0 | Y71: 0 | Z71: 0 | AA71: 0 | AB71: 0 | AC71: 0 | AD71: 0 | AE71: 0 | AF71: 0 | AG71: 0 | AH71: 0 | AI71: =SUM(W71:AH71) -> 0 | AJ71: =+(AI76+(AJ63-AJ68)/2)*$F62 -> 0 | AK71: =+(AJ76+(AK63-AK68)/2)*$F62 -> 0 | AL71: =+(AK76+(AL63-AL68)/2)*$F62 -> 0
B72: Leiðréttir vextir | V72: =SUM(J72:U72) -> 0 | AI72: =SUM(W72:AH72) -> 0
B73: Vextir samtals | G73: 11_2 | J73: =+J72+J71 -> 0 | K73: 0 | L73: 0 | M73: 0 | N73: 0 | O73: 0 | P73: 0 | Q73: 0 | R73: 0 | S73: 0 | T73: 0 | U73: 0 | V73: =SUM(J73:U73) -> 0 | W73: =+W72+W71 -> 0 | X73: 0 | Y73: 0 | Z73: 0 | AA73: 0 | AB73: 0 | AC73: 0 | AD73: 0 | AE73: 0 | AF73: 0 | AG73: 0 | AH73: 0 | AI73: =SUM(W73:AH73) -> 0 | AJ73: =+AJ72+AJ71 -> 0 | AK73: =+AK72+AK71 -> 0 | AL73: =+AL72+AL71 -> 0
B74: Afb. vaxta (talan 1 táknar afborgun) | I74: 0 | J74: 1 | K74: 1 | L74: 1 | M74: 1 | N74: 1 | O74: 1 | P74: 1 | Q74: 1 | R74: 1 | S74: 1 | T74: 1 | U74: 1 | W74: 1 | X74: 1 | Y74: 1 | Z74: 1 | AA74: 1 | AB74: 1 | AC74: 1 | AD74: 1 | AE74: 1 | AF74: 1 | AG74: 1 | AH74: 1 | AJ74: 1 | AK74: 1 | AL74: 1
B75: Ógreiddir vextir (fært í efnahag) | G75: =+Arsreikningur!$E$90 -> 32 | J75: =IF(J74=1,0,I75+J71) -> 0 | K75: 0 | L75: 0 | M75: 0 | N75: 0 | O75: 0 | P75: 0 | Q75: 0 | R75: 0 | S75: 0 | T75: 0 | U75: 0 | V75: =+U75 -> 0 | W75: =IF(W74=1,0,V75+W71) -> 0 | X75: 0 | Y75: 0 | Z75: 0 | AA75: 0 | AB75: 0 | AC75: 0 | AD75: 0 | AE75: 0 | AF75: 0 | AG75: 0 | AH75: 0 | AI75: =+AH75 -> 0 | AJ75: =IF(AJ74=1,0,AI75+AJ71) -> 0 | AK75: =IF(AK74=1,0,AJ75+AK71) -> 0 | AL75: =IF(AL74=1,0,AK75+AL71) -> 0
B76: Bókfærð staða í lok tímabils | G76: =G62&"_3" -> 25_3 | J76: =+I76+J63-J68 -> 0 | K76: 0 | L76: 0 | M76: 0 | N76: 0 | O76: 0 | P76: 0 | Q76: 0 | R76: 0 | S76: 0 | T76: 0 | U76: 0 | V76: =+U76 -> 0 | W76: =+V76+W63-W68 -> 0 | X76: 0 | Y76: 0 | Z76: 0 | AA76: 0 | AB76: 0 | AC76: 0 | AD76: 0 | AE76: 0 | AF76: 0 | AG76: 0 | AH76: 0 | AI76: =+AH76 -> 0 | AJ76: =+AI76+AJ63-AJ68 -> 0 | AK76: =+AJ76+AK63-AK68 -> 0 | AL76: =+AK76+AL63-AL68 -> 0

Sheet Efnahagur
A1: =Forsendur!$C$5 -> Nafn fyrirtækis
E3: Skýr. | G3: =IF(Forsendur!$C$7=1,"Árið "&Forsendur!$C$6-1,"Árið "&Forsendur!$C$6-1&"-"&Forsendur!$C$6) -> Árið 2015 | H3: =PROPER(TEXT(DATE(Forsendur!$C$6,Forsendur!$C$7,1),"Mmm yyy")) -> Jan 2016 | I3: =PROPER(TEXT(DATE(Forsendur!$C$6,Forsendur!$C$7+1,1),"Mmm yyy")) -> Feb 2016 | J3: =PROPER(TEXT(DATE(Forsendur!$C$6,Forsendur!$C$7+2,1),"Mmm yyy")) -> Mar 2016 | K3: =PROPER(TEXT(DATE(Forsendur!$C$6,Forsendur!$C$7+3,1),"Mmm yyy")) -> Apr 2016 | L3: =PROPER(TEXT(DATE(Forsendur!$C$6,Forsendur!$C$7+4,1),"Mmm yyy")) -> Maí 2016 | M3: =PROPER(TEXT(DATE(Forsendur!$C$6,Forsendur!$C$7+5,1),"Mmm yyy")) -> Jún 2016 | N3: =PROPER(TEXT(DATE(Forsendur!$C$6,Forsendur!$C$7+6,1),"Mmm yyy")) -> Júl 2016 | O3: =PROPER(TEXT(DATE(Forsendur!$C$6,Forsendur!$C$7+7,1),"Mmm yyy")) -> Ágú 2016 | P3: =PROPER(TEXT(DATE(Forsendur!$C$6,Forsendur!$C$7+8,1),"Mmm yyy")) -> Sep 2016 | Q3: =PROPER(TEXT(DATE(Forsendur!$C$6,Forsendur!$C$7+9,1),"Mmm yyy")) -> Okt 2016 | R3: =PROPER(TEXT(DATE(Forsendur!$C$6,Forsendur!$C$7+10,1),"Mmm yyy")) -> Nóv 2016 | S3: =PROPER(TEXT(DATE(Forsendur!$C$6,Forsendur!$C$7+11,1),"Mmm yyy")) -> Des 2016 | T3: =IF(Forsendur!$C$7=1,"Árið "&Forsendur!$C$6,"Árið "&Forsendur!$C$6&"-"&Forsendur!$C$6+1) -> Árið 2016 | U3: =PROPER(TEXT(DATE(Forsendur!$C$6+1,Forsendur!$C$7,1),"Mmm yyy")) -> Jan 2017 | V3: =PROPER(TEXT(DATE(Forsendur!$C$6+1,Forsendur!$C$7+1,1),"Mmm yyy")) -> Feb 2017 | W3: =PROPER(TEXT(DATE(Forsendur!$C$6+1,Forsendur!$C$7+2,1),"Mmm yyy")) -> Mar 2017 | X3: =PROPER(TEXT(DATE(Forsendur!$C$6+1,Forsendur!$C$7+3,1),"Mmm yyy")) -> Apr 2017 | Y3: =PROPER(TEXT(DATE(Forsendur!$C$6+1,Forsendur!$C$7+4,1),"Mmm yyy")) -> Maí 2017 | Z3: =PROPER(TEXT(DATE(Forsendur!$C$6+1,Forsendur!$C$7+5,1),"Mmm yyy")) -> Jún 2017 | AA3: =PROPER(TEXT(DATE(Forsendur!$C$6+1,Forsendur!$C$7+6,1),"Mmm yyy")) -> Júl 2017 | AB3: =PROPER(TEXT(DATE(Forsendur!$C$6+1,Forsendur!$C$7+7,1),"Mmm yyy")) -> Ágú 2017 | AC3: =PROPER(TEXT(DATE(Forsendur!$C$6+1,Forsendur!$C$7+8,1),"Mmm yyy")) -> Sep 2017 | AD3: =PROPER(TEXT(DATE(Forsendur!$C$6+1,Forsendur!$C$7+9,1),"Mmm yyy")) -> Okt 2017 | AE3: =PROPER(TEXT(DATE(Forsendur!$C$6+1,Forsendur!$C$7+10,1),"Mmm yyy")) -> Nóv 2017 | AF3: =PROPER(TEXT(DATE(Forsendur!$C$6+1,Forsendur!$C$7+11,1),"Mmm yyy")) -> Des 2017 | AG3: =IF(Forsendur!$C$7=1,"Árið "&Forsendur!$C$6+1,"Árið "&Forsendur!$C$6+1&"-"&Forsendur!$C$6+2) -> Árið 2017 | AH3: =IF(Forsendur!$C$7=1,"Árið "&Forsendur!$C$6+2,"Árið "&Forsendur!$C$6+2&"-"&Forsendur!$C$6+3) -> Árið 2018 | AI3: =IF(Forsendur!$C$7=1,"Árið "&Forsendur!$C$6+3,"Árið "&Forsendur!$C$6+3&"-"&Forsendur!$C$6+4) -> Árið 2019 | AJ3: =IF(Forsendur!$C$7=1,"Árið "&Forsendur!$C$6+4,"Árið "&Forsendur!$C$6+4&"-"&Forsendur!$C$6+5) -> Árið 2020 | AK3: =IF(Forsendur!$C$7=1,"Árið "&Forsendur!$C$6+5,"Árið "&Forsendur!$C$6+5&"-"&Forsendur!$C$6+6) -> Árið 2021
A5: EIGNIR
A7: Eignarhlutir í öðrum félögum
B9: Breyting milli tímabila | T9: =SUM(H9:S9) -> 0 | AG9: =SUM(U9:AF9) -> 0
B10: Bókfærð staða í lok tímabils | H10: =+G10+H9 -> 0 | I10: =+H10+I9 -> 0 | J10: 0 | K10: 0 | L10: 0 | M10: 0 | N10: 0 | O10: 0 | P10: 0 | Q10: 0 | R10: 0 | S10: 0 | T10: =+S10 -> 0 | U10: 0 | V10: =+U10+V9 -> 0 | W10: 0 | X10: 0 | Y10: 0 | Z10: 0 | AA10: 0 | AB10: 0 | AC10: 0 | AD10: 0 | AE10: 0 | AF10: 0 | AG10: =+AF10 -> 0 | AH10: =+AG10+AH9 -> 0 | AI10: =+AH10+AI9 -> 0 | AJ10: =+AI10+AJ9 -> 0
A12: Skuldabréfaeign
B14: Breyting milli tímabila | T14: =SUM(H14:S14) -> 0 | AG14: =SUM(U14:AF14) -> 0
B15: Bókfærð staða í lok tímabils | H15: =G15+H14 -> 0 | I15: =+H15+I14 -> 0 | J15: 0 | K15: 0 | L15: 0 | M15: 0 | N15: 0 | O15: 0 | P15: 0 | Q15: 0 | R15: 0 | S15: 0 | T15: =+S15 -> 0 | U15: =+T15+U14 -> 0 | V15: 0 | W15: 0 | X15: 0 | Y15: 0 | Z15: 0 | AA15: 0 | AB15: 0 | AC15: 0 | AD15: 0 | AE15: 0 | AF15: 0 | AG15: =+AF15 -> 0 | AH15: =+AG15+AH14 -> 0 | AI15: =+AH15+AI14 -> 0 | AJ15: =+AI15+AJ14 -> 0
B16: Vextir (vaxtabært / vextir) | C16: 0 | D16: 0 | H16: =G15*$C16*$D16/12 -> 0 | I16: =H15*$C16*$D16/12 -> 0 | J16: 0 | K16: 0 | L16: 0 | M16: 0 | N16: 0 | O16: 0 | P16: 0 | Q16: 0 | R16: 0 | S16: 0 | T16: =SUM(H16:S16) -> 0 | U16: =T15*$C16*$D16/12 -> 0 | V16: 0 | W16: 0 | X16: 0 | Y16: 0 | Z16: 0 | AA16: 0 | AB16: 0 | AC16: 0 | AD16: 0 | AE16: 0 | AF16: 0 | AG16: =SUM(U16:AF16) -> 0 | AH16: =AG15*$C16*$D16 -> 0 | AI16: =AH15*$C16*$D16 -> 0 | AJ16: =AI15*$C16*$D16 -> 0
A18: Skammtímakröfur
B20: Stofn til útreiknings á dagafjölda | H20: =+Rekstur!F63 -> 0 | I20: =+Rekstur!G63 -> 0 | J20: =+Rekstur!H63 -> 0 | K20: =+Rekstur!I63 -> 0 | L20: =+Rekstur!J63 -> 0 | M20: =+Rekstur!K63 -> 0 | N20: =+Rekstur!L63 -> 0 | O20: =+Rekstur!M63 -> 0 | P20: =+Rekstur!N63 -> 0 | Q20: =+Rekstur!O63 -> 0 | R20: =+Rekstur!P63 -> 0 | S20: =+Rekstur!Q63 -> 0 | T20: =+Rekstur!R63 -> 0 | U20: =+Rekstur!S63 -> 0 | V20: =+Rekstur!T63 -> 0 | W20: =+Rekstur!U63 -> 0 | X20: =+Rekstur!V63 -> 0 | Y20: =+Rekstur!W63 -> 0 | Z20: =+Rekstur!X63 -> 0 | AA20: =+Rekstur!Y63 -> 0 | AB20: =+Rekstur!Z63 -> 0 | AC20: =+Rekstur!AA63 -> 0 | AD20: =+Rekstur!AB63 -> 0 | AE20: =+Rekstur!AC63 -> 0 | AF20: =+Rekstur!AD63 -> 0 | AG20: =+Rekstur!AE63 -> 0 | AH20: =+Rekstur!AF63 -> 0 | AI20: =+Rekstur!AG63 -> 0 | AJ20: =+Rekstur!AH63 -> 0
B21: Breyting milli tímabila | C21: Dagar: | D21: 0 | H21: =H20/30*$D21-G22 -> 0 | I21: =I20/30*$D21-H22 -> 0 | J21: 0 | K21: 0 | L21: 0 | M21: 0 | N21: 0 | O21: 0 | P21: 0 | Q21: 0 | R21: 0 | S21: 0 | T21: =SUM(H21:S21) -> 0 | U21: =U20/30*$D21-T22 -> 0 | V21: 0 | W21: 0 | X21: 0 | Y21: 0 | Z21: 0 | AA21: 0 | AB21: 0 | AC21: 0 | AD21: 0 | AE21: 0 | AF21: 0 | AG21: =SUM(U21:AF21) -> 0 | AH21: =AH20/360*$D21-AG22 -> 0 | AI21: =AI20/360*$D21-AH22 -> 0 | AJ21: =AJ20/360*$D21-AI22 -> 0
B22: Bókfærð staða í lok tímabils | H22: =G22+H21 -> 0 | I22: =+H22+I21 -> 0 | J22: 0 | K22: 0 | L22: 0 | M22: 0 | N22: 0 | O22: 0 | P22: 0 | Q22: 0 | R22: 0 | S22: 0 | T22: =+S22 -> 0 | U22: =+T22+U21 -> 0 | V22: 0 | W22: 0 | X22: 0 | Y22: 0 | Z22: 0 | AA22: 0 | AB22: 0 | AC22: 0 | AD22: 0 | AE22: 0 | AF22: 0 | AG22: =+AF22 -> 0 | AH22: =+AG22+AH21 -> 0 | AI22: =+AH22+AI21 -> 0 | AJ22: =+AI22+AJ21 -> 0
B23: Vextir (vaxtabært / vextir) | C23: 0 | D23: 0 | H23: =G22*$C23*$D23/12 -> 0 | I23: =H22*$C23*$D23/12 -> 0 | J23: 0 | K23: 0 | L23: 0 | M23: 0 | N23: 0 | O23: 0 | P23: 0 | Q23: 0 | R23: 0 | S23: 0 | T23: =SUM(H23:S23) -> 0 | U23: =T22*$C23*$D23/12 -> 0 | V23: 0 | W23: 0 | X23: 0 | Y23: 0 | Z23: 0 | AA23: 0 | AB23: 0 | AC23: 0 | AD23: 0 | AE23: 0 | AF23: 0 | AG23: =SUM(U23:AF23) -> 0 | AH23: =AG22*$C23*$D23 -> 0 | AI23: =AH22*$C23*$D23 -> 0 | AJ23: =AI22*$C23*$D23 -> 0
A25: Birgðir
B27: Stofn til útreiknings á dagafjölda
B28: Breyting milli tímabila | C28: Dagar: | D28: 0 | H28: =H27/30*$D$28-G29 -> 0 | I28: 0 | J28: 0 | K28: 0 | L28: 0 | M28: 0 | N28: 0 | O28: 0 | P28: 0 | Q28: 0 | R28: 0 | S28: 0 | T28: =SUM(H28:S28) -> 0 | U28: =U27/30*$D$28-T29 -> 0 | V28: 0 | W28: 0 | X28: 0 | Y28: 0 | Z28: 0 | AA28: 0 | AB28: 0 | AC28: 0 | AD28: 0 | AE28: 0 | AF28: 0 | AG28: =SUM(U28:AF28) -> 0 | AH28: =AH27/360*$D$28-AG29 -> 0 | AI28: =AI27/360*$D$28-AH29 -> 0 | AJ28: =AJ27/360*$D$28-AI29 -> 0
B29: Bókfærð staða í lok tímabils | H29: =+G29+H28 -> 0 | I29: =+H29+I28 -> 0 | J29: 0 | K29: 0 | L29: 0 | M29: 0 | N29: 0 | O29: 0 | P29: 0 | Q29: 0 | R29: 0 | S29: 0 | T29: =+S29 -> 0 | U29: =+T29+U28 -> 0 | V29: 0 | W29: 0 | X29: 0 | Y29: 0 | Z29: 0 | AA29: 0 | AB29: 0 | AC29: 0 | AD29: 0 | AE29: 0 | AF29: 0 | AG29: =+AF29 -> 0 | AH29: =+AG29+AH28 -> 0 | AI29: =+AH29+AI28 -> 0 | AJ29: =+AI29+AJ28 -> 0
A31: Handbært fé
B33: Bókfærð staða í lok tímabils | H33: =+Arsreikningur!H63 -> 0 | I33: =+Arsreikningur!I63 -> 0 | J33: =+Arsreikningur!J63 -> 0 | K33: =+Arsreikningur!K63 -> 0 | L33: =+Arsreikningur!L63 -> 0 | M33: =+Arsreikningur!M63 -> 0 | N33: =+Arsreikningur!N63 -> 0 | O33: =+Arsreikningur!O63 -> 0 | P33: =+Arsreikningur!P63 -> 0 | Q33: =+Arsreikningur!Q63 -> 0 | R33: =+Arsreikningur!R63 -> 0 | S33: =+Arsreikningur!S63 -> 0 | T33: =+Arsreikningur!T63 -> 0 | U33: =+Arsreikningur!U63 -> 0 | V33: =+Arsreikningur!V63 -> 0 | W33: =+Arsreikningur!W63 -> 0 | X33: =+Arsreikningur!X63 -> 0 | Y33: =+Arsreikningur!Y63 -> 0 | Z33: =+Arsreikningur!Z63 -> 0 | AA33: =+Arsreikningur!AA63 -> 0 | AB33: =+Arsreikningur!AB63 -> 0 | AC33: =+Arsreikningur!AC63 -> 0 | AD33: =+Arsreikningur!AD63 -> 0 | AE33: =+Arsreikningur!AE63 -> 0 | AF33: =+Arsreikningur!AF63 -> 0 | AG33: =+Arsreikningur!AG63 -> 0 | AH33: =+Arsreikningur!AH63 -> 0 | AI33: =+Arsreikningur!AI63 -> 0 | AJ33: =+Arsreikningur!AJ63 -> 0
B34: Vextir (vaxtabært / vextir) | C34: 0 | D34: 0 | H34: =G33*$C34*$D34/12 -> 0 | I34: =H33*$C34*$D34/12 -> 0 | J34: 0 | K34: 0 | L34: 0 | M34: 0 | N34: 0 | O34: 0 | P34: 0 | Q34: 0 | R34: 0 | S34: 0 | T34: =SUM(H34:S34) -> 0 | U34: =T33*$C34*$D34/12 -> 0 | V34: 0 | W34: 0 | X34: 0 | Y34: 0 | Z34: 0 | AA34: 0 | AB34: 0 | AC34: 0 | AD34: 0 | AE34: 0 | AF34: 0 | AG34: =SUM(U34:AF34) -> 0 | AH34: =AG33*$C34*$D34 -> 0 | AI34: =AH33*$C34*$D34 -> 0 | AJ34: =AI33*$C34*$D34 -> 0
A36: EIGIÐ FÉ
A38: Hlutafé
B40: Breyting milli tímabila | T40: =SUM(H40:S40) -> 0 | AG40: =SUM(U40:AF40) -> 0
B41: Bókfærð staða í lok tímabils | H41: =+G41+H40 -> 0 | I41: =+H41+I40 -> 0 | J41: 0 | K41: 0 | L41: 0 | M41: 0 | N41: 0 | O41: 0 | P41: 0 | Q41: 0 | R41: 0 | S41: 0 | T41: =+S41 -> 0 | U41: =+T41+U40 -> 0 | V41: 0 | W41: 0 | X41: 0 | Y41: 0 | Z41: 0 | AA41: 0 | AB41: 0 | AC41: 0 | AD41: 0 | AE41: 0 | AF41: 0 | AG41: =+AF41 -> 0 | AH41: =+AG41+AH40 -> 0 | AI41: =+AH41+AI40 -> 0 | AJ41: =+AI41+AJ40 -> 0
A43: Annað eigið fé
B45: Hagnaður tímabilsins | H45: =+Arsreikningur!H43 -> 0 | I45: =+Arsreikningur!I43 -> 0 | J45: =+Arsreikningur!J43 -> 0 | K45: =+Arsreikningur!K43 -> 0 | L45: =+Arsreikningur!L43 -> 0 | M45: =+Arsreikningur!M43 -> 0 | N45: =+Arsreikningur!N43 -> 0 | O45: =+Arsreikningur!O43 -> 0 | P45: =+Arsreikningur!P43 -> 0 | Q45: =+Arsreikningur!Q43 -> 0 | R45: =+Arsreikningur!R43 -> 0 | S45: =+Arsreikningur!S43 -> 0 | T45: =+Arsreikningur!T43 -> 0 | U45: =+Arsreikningur!U43 -> 0 | V45: =+Arsreikningur!V43 -> 0 | W45: =+Arsreikningur!W43 -> 0 | X45: =+Arsreikningur!X43 -> 0 | Y45: =+Arsreikningur!Y43 -> 0 | Z45: =+Arsreikningur!Z43 -> 0 | AA45: =+Arsreikningur!AA43 -> 0 | AB45: =+Arsreikningur!AB43 -> 0 | AC45: =+Arsreikningur!AC43 -> 0 | AD45: =+Arsreikningur!AD43 -> 0 | AE45: =+Arsreikningur!AE43 -> 0 | AF45: =+Arsreikningur!AF43 -> 0 | AG45: =+Arsreikningur!AG43 -> 0 | AH45: =+Arsreikningur!AH43 -> 0 | AI45: =+Arsreikningur!AI43 -> 0 | AJ45: =+Arsreikningur!AJ43 -> 0
B46: Arðgreiðslur sem hlutfall af hlutafé | D46: 0
B47: Arðgreiðslur til hluthafa | H47: =G41*$D46/12 -> 0 | I47: =H41*$D46/12 -> 0 | J47: 0 | K47: 0 | L47: 0 | M47: 0 | N47: 0 | O47: 0 | P47: 0 | Q47: 0 | R47: 0 | S47: 0 | T47: =SUM(H47:S47) -> 0 | U47: =T41*$D46/12 -> 0 | V47: 0 | W47: 0 | X47: 0 | Y47: 0 | Z47: 0 | AA47: 0 | AB47: 0 | AC47: 0 | AD47: 0 | AE47: 0 | AF47: 0 | AG47: =+AF47 -> 0 | AH47: =AG41*$D46 -> 0 | AI47: =AH41*$D46 -> 0 | AJ47: =AI41*$D46 -> 0
B48: Önnur breyting milli tímabila | T48: =SUM(H48:S48) -> 0 | AG48: =SUM(U48:AF48) -> 0
B49: Bókfærð staða í lok tímabils | G49: =+Arsreikningur!F69-Arsreikningur!F97-Arsreikningur!F73 -> 0 | H49: =+G49+H48-H47+H45 -> 0 | I49: =+H49+I48-I47+I45 -> 0 | J49: 0 | K49: 0 | L49: 0 | M49: 0 | N49: 0 | O49: 0 | P49: 0 | Q49: 0 | R49: 0 | S49: 0 | T49: =+S49 -> 0 | U49: =+T49+U48-U47+U45 -> 0 | V49: =+U49+V48-V47+V45 -> 0 | W49: 0 | X49: 0 | Y49: 0 | Z49: 0 | AA49: 0 | AB49: 0 | AC49: 0 | AD49: 0 | AE49: 0 | AF49: 0 | AG49: =+AF49 -> 0 | AH49: =+AG49+AH48-AH47+AH45 -> 0 | AI49: =+AH49+AI48-AI47+AI45 -> 0 | AJ49: =+AI49+AJ48-AJ47+AJ45 -> 0
A51: SKULDIR
A53: Tekjuskattsskuldbinding
B55: Breyting milli tímabila | T55: =SUM(H55:S55) -> 0 | AG55: =SUM(U55:AF55) -> 0
B56: Bókfærð staða í lok tímabils | H56: =+G56+H55 -> 0 | I56: =+H56+I55 -> 0 | J56: 0 | K56: 0 | L56: 0 | M56: 0 | N56: 0 | O56: 0 | P56: 0 | Q56: 0 | R56: 0 | S56: 0 | T56: =+S56 -> 0 | U56: =+T56+U55 -> 0 | V56: 0 | W56: 0 | X56: 0 | Y56: 0 | Z56: 0 | AA56: 0 | AB56: 0 | AC56: 0 | AD56: 0 | AE56: 0 | AF56: 0 | AG56: =+AF56 -> 0 | AH56: =+AG56+AH55 -> 0 | AI56: =+AH56+AI55 -> 0 | AJ56: =+AI56+AJ55 -> 0
A58: Skuldir við lánastofnanir
B60: Breyting milli tímabila | T60: =SUM(H60:S60) -> 0 | AG60: =SUM(U60:AF60) -> 0
B61: Bókfærð staða í lok tímabils | H61: =+G61+H60 -> 0 | I61: =+H61+I60 -> 0 | J61: 0 | K61: 0 | L61: 0 | M61: 0 | N61: 0 | O61: 0 | P61: 0 | Q61: 0 | R61: 0 | S61: 0 | T61: =+S61 -> 0 | U61: =+T61+U60 -> 0 | V61: 0 | W61: 0 | X61: 0 | Y61: 0 | Z61: 0 | AA61: 0 | AB61: 0 | AC61: 0 | AD61: 0 | AE61: 0 | AF61: 0 | AG61: =+AF61 -> 0 | AH61: =+AG61+AH60 -> 0 | AI61: =+AH61+AI60 -> 0 | AJ61: =+AI61+AJ60 -> 0
B62: Vextir (vaxtabært / vextir) | C62: 0 | D62: 0 | H62: =G61*$C62*$D62/12 -> 0 | I62: =H61*$C62*$D62/12 -> 0 | J62: =I61*$C62*$D62/12 -> 0 | K62: 0 | L62: =K61*$C62*$D62/12 -> 0 | M62: =L61*$C62*$D62/12 -> 0 | N62: 0 | O62: 0 | P62: 0 | Q62: 0 | R62: 0 | S62: 0 | T62: =SUM(H62:S62) -> 0 | U62: =T61*$C62*$D62/12 -> 0 | V62: 0 | W62: 0 | X62: 0 | Y62: 0 | Z62: 0 | AA62: 0 | AB62: 0 | AC62: 0 | AD62: 0 | AE62: 0 | AF62: 0 | AG62: =SUM(U62:AF62) -> 0 | AH62: =AG61*$C62*$D62 -> 0 | AI62: =AH61*$C62*$D62 -> 0 | AJ62: =AI61*$C62*$D62 -> 0
A64: Viðskiptaskuldir
B66: Stofn til útreiknings á dagafjölda
B67: Breyting milli tímabila | C67: Dagar: | D67: 0 | H67: =H66/30*$D$67-G68 -> 0 | I67: 0 | J67: 0 | K67: 0 | L67: 0 | M67: 0 | N67: 0 | O67: 0 | P67: 0 | Q67: 0 | R67: 0 | S67: 0 | T67: =SUM(H67:S67) -> 0 | U67: =U66/30*$D$67-T68 -> 0 | V67: 0 | W67: 0 | X67: 0 | Y67: 0 | Z67: 0 | AA67: 0 | AB67: 0 | AC67: 0 | AD67: 0 | AE67: 0 | AF67: 0 | AG67: =SUM(U67:AF67) -> 0 | AH67: =AH66/360*$D$67-AG68 -> 0 | AI67: =AI66/360*$D$67-AH68 -> 0 | AJ67: =AJ66/360*$D$67-AI68 -> 0
B68: Bókfærð staða í lok tímabils | H68: =+G68+H67 -> 0 | I68: =+H68+I67 -> 0 | J68: 0 | K68: 0 | L68: 0 | M68: 0 | N68: 0 | O68: 0 | P68: 0 | Q68: 0 | R68: 0 | S68: 0 | T68: =+S68 -> 0 | U68: =+T68+U67 -> 0 | V68: 0 | W68: 0 | X68: 0 | Y68: 0 | Z68: 0 | AA68: 0 | AB68: 0 | AC68: 0 | AD68: 0 | AE68: 0 | AF68: 0 | AG68: =+AF68 -> 0 | AH68: =+AG68+AH67 -> 0 | AI68: =+AH68+AI67 -> 0 | AJ68: =+AI68+AJ67 -> 0
B69: Vextir (vaxtabært / vextir) | C69: 0 | D69: 0 | H69: =G68*$C69*$D69/12 -> 0 | I69: =H68*$C69*$D69/12 -> 0 | J69: 0 | K69: 0 | L69: 0 | M69: 0 | N69: 0 | O69: =N68*$C69*$D69/12 -> 0 | P69: 0 | Q69: 0 | R69: 0 | S69: 0 | T69: =SUM(H69:S69) -> 0 | U69: =T68*$C69*$D69/12 -> 0 | V69: 0 | W69: 0 | X69: 0 | Y69: 0 | Z69: 0 | AA69: 0 | AB69: 0 | AC69: 0 | AD69: 0 | AE69: 0 | AF69: 0 | AG69: =SUM(U69:AF69) -> 0 | AH69: =AG68*$C69*$D69 -> 0 | AI69: =AH68*$C69*$D69 -> 0 | AJ69: =AI68*$C69*$D69 -> 0
A71: Ógr. kostn. og aðrar skammtímask.
B73: Stofn til útreiknings á dagafjölda
B74: Breyting milli tímabila | C74: Dagar: | D74: 0 | H74: =H73/30*$D$74-G75 -> 0 | I74: 0 | J74: 0 | K74: 0 | L74: 0 | M74: 0 | N74: 0 | O74: 0 | P74: 0 | Q74: 0 | R74: 0 | S74: 0 | T74: =SUM(H74:S74) -> 0 | U74: =U73/30*$D$74-T75 -> 0 | V74: 0 | W74: 0 | X74: 0 | Y74: 0 | Z74: 0 | AA74: 0 | AB74: 0 | AC74: 0 | AD74: 0 | AE74: 0 | AF74: 0 | AG74: =SUM(U74:AF74) -> 0 | AH74: =AH73/360*$D$74-AG75 -> 0 | AI74: =AI73/360*$D$74-AH75 -> 0 | AJ74: =AJ73/360*$D$74-AI75 -> 0
B75: Bókfærð staða í lok tímabils | H75: =+G75+H74 -> 0 | I75: =+H75+I74 -> 0 | J75: 0 | K75: 0 | L75: 0 | M75: 0 | N75: 0 | O75: 0 | P75: 0 | Q75: 0 | R75: 0 | S75: 0 | T75: =+S75 -> 0 | U75: =+T75+U74 -> 0 | V75: 0 | W75: 0 | X75: 0 | Y75: 0 | Z75: 0 | AA75: 0 | AB75: 0 | AC75: 0 | AD75: 0 | AE75: 0 | AF75: 0 | AG75: =+AF75 -> 0 | AH75: =+AG75+AH74 -> 0 | AI75: =+AH75+AI74 -> 0 | AJ75: =+AI75+AJ74 -> 0
B76: Vextir (vaxtabært / vextir) | C76: 0 | D76: 0 | H76: =G75*$C76*$D76/12 -> 0 | I76: =H75*$C76*$D76/12 -> 0 | J76: =I75*$C76*$D76/12 -> 0 | K76: 0 | L76: 0 | M76: 0 | N76: 0 | O76: 0 | P76: 0 | Q76: 0 | R76: 0 | S76: 0 | T76: =SUM(H76:S76) -> 0 | U76: =T75*$C76*$D76/12 -> 0 | V76: 0 | W76: 0 | X76: 0 | Y76: 0 | Z76: 0 | AA76: 0 | AB76: 0 | AC76: 0 | AD76: 0 | AE76: 0 | AF76: 0 | AG76: =SUM(U76:AF76) -> 0 | AH76: =AG75*$C76*$D76 -> 0 | AI76: =AH75*$C76*$D76 -> 0 | AJ76: =AI75*$C76*$D76 -> 0
A78: Reiknuð fjárþörf
B80: Bókfærð staða í lok tímabils | H80: =+Arsreikningur!H92 -> 0 | I80: =+Arsreikningur!I92 -> 0 | J80: =+Arsreikningur!J92 -> 0 | K80: =+Arsreikningur!K92 -> 0 | L80: =+Arsreikningur!L92 -> 0 | M80: =+Arsreikningur!M92 -> 0 | N80: =+Arsreikningur!N92 -> 0 | O80: =+Arsreikningur!O92 -> 0 | P80: =+Arsreikningur!P92 -> 0 | Q80: =+Arsreikningur!Q92 -> 0 | R80: =+Arsreikningur!R92 -> 0 | S80: =+Arsreikningur!S92 -> 0 | T80: =+Arsreikningur!T92 -> 0 | U80: =+Arsreikningur!U92 -> 0 | V80: =+Arsreikningur!V92 -> 0 | W80: =+Arsreikningur!W92 -> 0 | X80: =+Arsreikningur!X92 -> 0 | Y80: =+Arsreikningur!Y92 -> 0 | Z80: =+Arsreikningur!Z92 -> 0 | AA80: =+Arsreikningur!AA92 -> 0 | AB80: =+Arsreikningur!AB92 -> 0 | AC80: =+Arsreikningur!AC92 -> 0 | AD80: =+Arsreikningur!AD92 -> 0 | AE80: =+Arsreikningur!AE92 -> 0 | AF80: =+Arsreikningur!AF92 -> 0 | AG80: =+Arsreikningur!AG92 -> 0 | AH80: =+Arsreikningur!AH92 -> 0 | AI80: =+Arsreikningur!AI92 -> 0 | AJ80: =+Arsreikningur!AJ92 -> 0
B81: Vextir (vaxtabært / vextir) | C81: 0 | D81: 0 | H81: =G80*$C81*$D81/12 -> 0 | I81: 0 | J81: 0 | K81: 0 | L81: 0 | M81: 0 | N81: 0 | O81: 0 | P81: 0 | Q81: 0 | R81: 0 | S81: 0 | T81: =SUM(H81:S81) -> 0 | U81: =T80*$C81*$D81/12 -> 0 | V81: 0 | W81: 0 | X81: 0 | Y81: 0 | Z81: 0 | AA81: 0 | AB81: 0 | AC81: 0 | AD81: 0 | AE81: 0 | AF81: 0 | AG81: =SUM(U81:AF81) -> 0 | AH81: =AG80*$C81*$D81 -> 0 | AI81: =AH80*$C81*$D81 -> 0 | AJ81: =AI80*$C81*$D81 -> 0
A83: Reiknaður tekjuskattur
B85: Yfirfæranlegt tap | H85: =G85 -> 0 | I85: =+IF(H87<0,-H87,0) -> 0 | J85: =+IF(I87<0,-I87,0) -> 0 | K85: 0 | L85: 0 | M85: 0 | N85: 0 | O85: 0 | P85: 0 | Q85: 0 | R85: 0 | S85: 0 | T85: 0 | U85: =+T85 -> 0 | V85: 0 | W85: 0 | X85: 0 | Y85: 0 | Z85: 0 | AA85: 0 | AB85: 0 | AC85: 0 | AD85: 0 | AE85: 0 | AF85: 0 | AG85: 0 | AH85: =+AG85 -> 0 | AI85: =+IF(AH87<0,-AH87,0) -> 0 | AJ85: =+IF(AI87<0,-AI87,0) -> 0
B86: Rekstrarafkoma fyrir skatta | H86: =+Arsreikningur!H40 -> 0 | I86: =+Arsreikningur!I40 -> 0 | J86: =+Arsreikningur!J40 -> 0 | K86: =+Arsreikningur!K40 -> 0 | L86: =+Arsreikningur!L40 -> 0 | M86: =+Arsreikningur!M40 -> 0 | N86: =+Arsreikningur!N40 -> 0 | O86: =+Arsreikningur!O40 -> 0 | P86: =+Arsreikningur!P40 -> 0 | Q86: =+Arsreikningur!Q40 -> 0 | R86: =+Arsreikningur!R40 -> 0 | S86: =+Arsreikningur!S40 -> 0 | T86: =SUM(H86:S86) -> 0 | U86: =+Arsreikningur!U40 -> 0 | V86: =+Arsreikningur!V40 -> 0 | W86: =+Arsreikningur!W40 -> 0 | X86: =+Arsreikningur!X40 -> 0 | Y86: =+Arsreikningur!Y40 -> 0 | Z86: =+Arsreikningur!Z40 -> 0 | AA86: =+Arsreikningur!AA40 -> 0 | AB86: =+Arsreikningur!AB40 -> 0 | AC86: =+Arsreikningur!AC40 -> 0 | AD86: =+Arsreikningur!AD40 -> 0 | AE86: =+Arsreikningur!AE40 -> 0 | AF86: =+Arsreikningur!AF40 -> 0 | AG86: =SUM(U86:AF86) -> 0 | AH86: =+Arsreikningur!AH40 -> 0 | AI86: =+Arsreikningur!AI40 -> 0 | AJ86: =+Arsreikningur!AJ40 -> 0
B87: Uppsöfnuð rekstrarafkoma ársins | H87: =+H86-G85 -> 0 | I87: =+I86+H87 -> 0 | J87: =+J86+I87 -> 0 | K87: 0 | L87: 0 | M87: 0 | N87: 0 | O87: 0 | P87: 0 | Q87: 0 | R87: 0 | S87: =+S86+R87 -> 0 | T87: =+S87 -> 0 | U87: =+U86-T85 -> 0 | V87: =+V86+U87 -> 0 | W87: =+W86+V87 -> 0 | X87: 0 | Y87: 0 | Z87: 0 | AA87: 0 | AB87: 0 | AC87: 0 | AD87: 0 | AE87: 0 | AF87: 0 | AG87: =+AF87 -> 0 | AH87: =+AH86-AH85 -> 0 | AI87: =+AI86-AI85 -> 0 | AJ87: =+AJ86-AJ85 -> 0
B88: Önnur breyting á skattstofni | T88: =SUM(H88:S88) -> 0 | AG88: =SUM(U88:AF88) -> 0
B89: Stofn til útreiknings á tekjuskatti | H89: =+IF(H87>0,H86+H88-H85,H88-SUM($G89:G89)) -> 0 | I89: =+IF(I87>0,I86+I88-I85,I88-SUM($G89:H89)) -> 0 | J89: =+IF(J87>0,J86+J88-J85,J88-SUM($G89:I89)) -> 0 | K89: =+IF(K87>0,K86+K88-K85,K88-SUM($G89:J89)) -> 0 | L89: =+IF(L87>0,L86+L88-L85,L88-SUM($G89:K89)) -> 0 | M89: =+IF(M87>0,M86+M88-M85,M88-SUM($G89:L89)) -> 0 | N89: =+IF(N87>0,N86+N88-N85,N88-SUM($G89:M89)) -> 0 | O89: =+IF(O87>0,O86+O88-O85,O88-SUM($G89:N89)) -> 0 | P89: =+IF(P87>0,P86+P88-P85,P88-SUM($G89:O89)) -> 0 | Q89: =+IF(Q87>0,Q86+Q88-Q85,Q88-SUM($G89:P89)) -> 0 | R89: =+IF(R87>0,R86+R88-R85,R88-SUM($G89:Q89)) -> 0 | S89: =+IF(S87>0,S86+S88-S85,S88-SUM($G89:R89)) -> 0 | T89: =SUM(H89:S89) -> 0 | U89: =+IF(U87>0,U86+U88-U85,U88-SUM($T89:T89)) -> 0 | V89: =+IF(V87>0,V86+V88-V85,V88-SUM($T89:U89)) -> 0 | W89: =+IF(W87>0,W86+W88-W85,W88-SUM($T89:V89)) -> 0 | X89: =+IF(X87>0,X86+X88-X85,X88-SUM($T89:W89)) -> 0 | Y89: =+IF(Y87>0,Y86+Y88-Y85,Y88-SUM($T89:X89)) -> 0 | Z89: =+IF(Z87>0,Z86+Z88-Z85,Z88-SUM($T89:Y89)) -> 0 | AA89: =+IF(AA87>0,AA86+AA88-AA85,AA88-SUM($T89:Z89)) -> 0 | AB89: =+IF(AB87>0,AB86+AB88-AB85,AB88-SUM($T89:AA89)) -> 0 | AC89: =+IF(AC87>0,AC86+AC88-AC85,AC88-SUM($T89:AB89)) -> 0 | AD89: =+IF(AD87>0,AD86+AD88-AD85,AD88-SUM($T89:AC89)) -> 0 | AE89: =+IF(AE87>0,AE86+AE88-AE85,AE88-SUM($T89:AD89)) -> 0 | AF89: =+IF(AF87>0,AF86+AF88-AF85,AF88-SUM($T89:AE89)) -> 0 | AG89: =SUM(U89:AF89) -> 0 | AH89: =+IF(AH87>0,AH86+AH88-AH85,AH88) -> 0 | AI89: =+IF(AI87>0,AI86+AI88-AI85,AI88) -> 0 | AJ89: =+IF(AJ87>0,AJ86+AJ88-AJ85,AJ88) -> 0
B90: Reiknaður tekjuskattur af afkomu | G90: 0.15 | H90: =+H89*$G90 -> 0 | I90: =+I89*$G90 -> 0 | J90: 0 | K90: 0 | L90: =+L89*$G90 -> 0 | M90: =+M89*$G90 -> 0 | N90: 0 | O90: 0 | P90: 0 | Q90: 0 | R90: 0 | S90: 0 | T90: =SUM(H90:S90) -> 0 | U90: =+U89*$G90 -> 0 | V90: 0 | W90: 0 | X90: 0 | Y90: 0 | Z90: 0 | AA90: 0 | AB90: 0 | AC90: 0 | AD90: 0 | AE90: 0 | AF90: 0 | AG90: =SUM(U90:AF90) -> 0 | AH90: =+AH89*$G90 -> 0 | AI90: =+AI89*$G90 -> 0 | AJ90: =+AJ89*$G90 -> 0
B92: Reiknaðir skattar, breyting | H92: =+H90-IF(Forsendur!$C$7=11,G93,0) -> 0 | I92: =+I90-IF(Forsendur!$C$7=10,G93,0) -> 0 | J92: =+J90-IF(Forsendur!$C$7=9,G93,0) -> 0 | K92: =+K90-IF(Forsendur!$C$7=8,G93,0) -> 0 | L92: =+L90-IF(Forsendur!$C$7=7,G93,0) -> 0 | M92: =+M90-IF(Forsendur!$C$7=6,G93,0) -> 0 | N92: =+N90-IF(Forsendur!$C$7=5,G93,0) -> 0 | O92: =+O90-IF(Forsendur!$C$7=4,G93,0) -> 0 | P92: =+P90-IF(Forsendur!$C$7=3,G93,0) -> 0 | Q92: =+Q90-IF(Forsendur!$C$7=2,G93,0) -> 0 | R92: =+R90-IF(Forsendur!$C$7=1,G93,0) -> 0 | S92: =+S90-IF(Forsendur!$C$7=12,G93,0) -> 0 | T92: =SUM(H92:S92) -> 0 | U92: =+U90-IF(Forsendur!$C$7=11,T93,0) -> 0 | V92: =+V90-IF(Forsendur!$C$7=10,T93,0) -> 0 | W92: =+W90-IF(Forsendur!$C$7=9,T93,0) -> 0 | X92: =+X90-IF(Forsendur!$C$7=8,T93,0) -> 0 | Y92: =+Y90-IF(Forsendur!$C$7=7,T93,0) -> 0 | Z92: =+Z90-IF(Forsendur!$C$7=6,T93,0) -> 0 | AA92: =+AA90-IF(Forsendur!$C$7=5,T93,0) -> 0 | AB92: =+AB90-IF(Forsendur!$C$7=4,T93,0) -> 0 | AC92: =+AC90-IF(Forsendur!$C$7=3,T93,0) -> 0 | AD92: =+AD90-IF(Forsendur!$C$7=2,T93,0) -> 0 | AE92: =+AE90-IF(Forsendur!$C$7=1,T93,0) -> 0 | AF92: =+AF90-IF(Forsendur!$C$7=12,T93,0) -> 0 | AG92: =SUM(U92:AF92) -> 0 | AH92: =+AH90-AG93 -> 0 | AI92: =+AI90-AH93 -> 0 | AJ92: =+AJ90-AI93 -> 0
B93: Reiknaðir skattar, staða í lok tímabils | G93: 0 | H93: =G93+H92 -> 0 | I93: =+H93+I92 -> 0 | J93: 0 | K93: 0 | L93: 0 | M93: 0 | N93: 0 | O93: 0 | P93: 0 | Q93: 0 | R93: =+Q93+R92 -> 0 | S93: 0 | T93: =+S93 -> 0 | U93: =+T93+U92 -> 0 | V93: 0 | W93: 0 | X93: 0 | Y93: 0 | Z93: 0 | AA93: 0 | AB93: 0 | AC93: 0 | AD93: 0 | AE93: 0 | AF93: 0 | AG93: =+AF93 -> 0 | AH93: =+AG93+AH92 -> 0 | AI93: =+AH93+AI92 -> 0 | AJ93: =+AI93+AJ92 -> 0
A95: VSK skuldbinding
B97: Útskattur | C97: % af stofni | D97: Skattur
B98: =Arsreikningur!D7 -> Tekjuliður no 1 | C98: 1 | D98: 0.245 | H98: =+Arsreikningur!H7*$C98*(1-1/(1+$D98)) -> 0 | I98: =+Arsreikningur!I7*$C98*(1-1/(1+$D98)) -> 0 | J98: =+Arsreikningur!J7*$C98*(1-1/(1+$D98)) -> 0 | K98: =+Arsreikningur!K7*$C98*(1-1/(1+$D98)) -> 0 | L98: =+Arsreikningur!L7*$C98*(1-1/(1+$D98)) -> 0 | M98: =+Arsreikningur!M7*$C98*(1-1/(1+$D98)) -> 0 | N98: =+Arsreikningur!N7*$C98*(1-1/(1+$D98)) -> 0 | O98: =+Arsreikningur!O7*$C98*(1-1/(1+$D98)) -> 0 | P98: =+Arsreikningur!P7*$C98*(1-1/(1+$D98)) -> 0 | Q98: =+Arsreikningur!Q7*$C98*(1-1/(1+$D98)) -> 0 | R98: =+Arsreikningur!R7*$C98*(1-1/(1+$D98)) -> 0 | S98: =+Arsreikningur!S7*$C98*(1-1/(1+$D98)) -> 0 | T98: =SUM(H98:S98) -> 0 | U98: =+Arsreikningur!U7*$C98*(1-1/(1+$D98)) -> 0 | V98: =+Arsreikningur!V7*$C98*(1-1/(1+$D98)) -> 0 | W98: =+Arsreikningur!W7*$C98*(1-1/(1+$D98)) -> 0 | X98: =+Arsreikningur!X7*$C98*(1-1/(1+$D98)) -> 0 | Y98: =+Arsreikningur!Y7*$C98*(1-1/(1+$D98)) -> 0 | Z98: =+Arsreikningur!Z7*$C98*(1-1/(1+$D98)) -> 0 | AA98: =+Arsreikningur!AA7*$C98*(1-1/(1+$D98)) -> 0 | AB98: =+Arsreikningur!AB7*$C98*(1-1/(1+$D98)) -> 0 | AC98: =+Arsreikningur!AC7*$C98*(1-1/(1+$D98)) -> 0 | AD98: =+Arsreikningur!AD7*$C98*(1-1/(1+$D98)) -> 0 | AE98: =+Arsreikningur!AE7*$C98*(1-1/(1+$D98)) -> 0 | AF98: =+Arsreikningur!AF7*$C98*(1-1/(1+$D98)) -> 0 | AG98: =SUM(U98:AF98) -> 0 | AH98: =+Arsreikningur!AH7*$C98*(1-1/(1+$D98)) -> 0 | AI98: =+Arsreikningur!AI7*$C98*(1-1/(1+$D98)) -> 0 | AJ98: =+Arsreikningur!AJ7*$C98*(1-1/(1+$D98)) -> 0
B99: =Arsreikningur!D8 -> Tekjuliður no 2 | C99: 1 | D99: 0.245 | H99: =+Arsreikningur!H8*$C99*(1-1/(1+$D99)) -> 0 | I99: =+Arsreikningur!I8*$C99*(1-1/(1+$D99)) -> 0 | J99: =+Arsreikningur!J8*$C99*(1-1/(1+$D99)) -> 0 | K99: =+Arsreikningur!K8*$C99*(1-1/(1+$D99)) -> 0 | L99: =+Arsreikningur!L8*$C99*(1-1/(1+$D99)) -> 0 | M99: =+Arsreikningur!M8*$C99*(1-1/(1+$D99)) -> 0 | N99: =+Arsreikningur!N8*$C99*(1-1/(1+$D99)) -> 0 | O99: =+Arsreikningur!O8*$C99*(1-1/(1+$D99)) -> 0 | P99: =+Arsreikningur!P8*$C99*(1-1/(1+$D99)) -> 0 | Q99: =+Arsreikningur!Q8*$C99*(1-1/(1+$D99)) -> 0 | R99: =+Arsreikningur!R8*$C99*(1-1/(1+$D99)) -> 0 | S99: =+Arsreikningur!S8*$C99*(1-1/(1+$D99)) -> 0 | T99: =SUM(H99:S99) -> 0 | U99: =+Arsreikningur!U8*$C99*(1-1/(1+$D99)) -> 0 | V99: =+Arsreikningur!V8*$C99*(1-1/(1+$D99)) -> 0 | W99: =+Arsreikningur!W8*$C99*(1-1/(1+$D99)) -> 0 | X99: =+Arsreikningur!X8*$C99*(1-1/(1+$D99)) -> 0 | Y99: =+Arsreikningur!Y8*$C99*(1-1/(1+$D99)) -> 0 | Z99: =+Arsreikningur!Z8*$C99*(1-1/(1+$D99)) -> 0 | AA99: =+Arsreikningur!AA8*$C99*(1-1/(1+$D99)) -> 0 | AB99: =+Arsreikningur!AB8*$C99*(1-1/(1+$D99)) -> 0 | AC99: =+Arsreikningur!AC8*$C99*(1-1/(1+$D99)) -> 0 | AD99: =+Arsreikningur!AD8*$C99*(1-1/(1+$D99)) -> 0 | AE99: =+Arsreikningur!AE8*$C99*(1-1/(1+$D99)) -> 0 | AF99: =+Arsreikningur!AF8*$C99*(1-1/(1+$D99)) -> 0 | AG99: =SUM(U99:AF99) -> 0 | AH99: =+Arsreikningur!AH8*$C99*(1-1/(1+$D99)) -> 0 | AI99: =+Arsreikningur!AI8*$C99*(1-1/(1+$D99)) -> 0 | AJ99: =+Arsreikningur!AJ8*$C99*(1-1/(1+$D99)) -> 0
B100: =Arsreikningur!D9 -> Tekjuliður no 3 | C100: 1 | D100: 0.245 | H100: =+Arsreikningur!H9*$C100*(1-1/(1+$D100)) -> 0 | I100: =+Arsreikningur!I9*$C100*(1-1/(1+$D100)) -> 0 | J100: =+Arsreikningur!J9*$C100*(1-1/(1+$D100)) -> 0 | K100: =+Arsreikningur!K9*$C100*(1-1/(1+$D100)) -> 0 | L100: =+Arsreikningur!L9*$C100*(1-1/(1+$D100)) -> 0 | M100: =+Arsreikningur!M9*$C100*(1-1/(1+$D100)) -> 0 | N100: =+Arsreikningur!N9*$C100*(1-1/(1+$D100)) -> 0 | O100: =+Arsreikningur!O9*$C100*(1-1/(1+$D100)) -> 0 | P100: =+Arsreikningur!P9*$C100*(1-1/(1+$D100)) -> 0 | Q100: =+Arsreikningur!Q9*$C100*(1-1/(1+$D100)) -> 0 | R100: =+Arsreikningur!R9*$C100*(1-1/(1+$D100)) -> 0 | S100: =+Arsreikningur!S9*$C100*(1-1/(1+$D100)) -> 0 | T100: =SUM(H100:S100) -> 0 | U100: =+Arsreikningur!U9*$C100*(1-1/(1+$D100)) -> 0 | V100: =+Arsreikningur!V9*$C100*(1-1/(1+$D100)) -> 0 | W100: =+Arsreikningur!W9*$C100*(1-1/(1+$D100)) -> 0 | X100: =+Arsreikningur!X9*$C100*(1-1/(1+$D100)) -> 0 | Y100: =+Arsreikningur!Y9*$C100*(1-1/(1+$D100)) -> 0 | Z100: =+Arsreikningur!Z9*$C100*(1-1/(1+$D100)) -> 0 | AA100: =+Arsreikningur!AA9*$C100*(1-1/(1+$D100)) -> 0 | AB100: =+Arsreikningur!AB9*$C100*(1-1/(1+$D100)) -> 0 | AC100: =+Arsreikningur!AC9*$C100*(1-1/(1+$D100)) -> 0 | AD100: =+Arsreikningur!AD9*$C100*(1-1/(1+$D100)) -> 0 | AE100: =+Arsreikningur!AE9*$C100*(1-1/(1+$D100)) -> 0 | AF100: =+Arsreikningur!AF9*$C100*(1-1/(1+$D100)) -> 0 | AG100: =SUM(U100:AF100) -> 0 | AH100: =+Arsreikningur!AH9*$C100*(1-1/(1+$D100)) -> 0 | AI100: =+Arsreikningur!AI9*$C100*(1-1/(1+$D100)) -> 0 | AJ100: =+Arsreikningur!AJ9*$C100*(1-1/(1+$D100)) -> 0
B101: =Arsreikningur!D10 -> Tekjuliður no 4 | C101: 1 | D101: 0.245 | H101: =+Arsreikningur!H10*$C101*(1-1/(1+$D101)) -> 0 | I101: =+Arsreikningur!I10*$C101*(1-1/(1+$D101)) -> 0 | J101: =+Arsreikningur!J10*$C101*(1-1/(1+$D101)) -> 0 | K101: =+Arsreikningur!K10*$C101*(1-1/(1+$D101)) -> 0 | L101: =+Arsreikningur!L10*$C101*(1-1/(1+$D101)) -> 0 | M101: =+Arsreikningur!M10*$C101*(1-1/(1+$D101)) -> 0 | N101: =+Arsreikningur!N10*$C101*(1-1/(1+$D101)) -> 0 | O101: =+Arsreikningur!O10*$C101*(1-1/(1+$D101)) -> 0 | P101: =+Arsreikningur!P10*$C101*(1-1/(1+$D101)) -> 0 | Q101: =+Arsreikningur!Q10*$C101*(1-1/(1+$D101)) -> 0 | R101: =+Arsreikningur!R10*$C101*(1-1/(1+$D101)) -> 0 | S101: =+Arsreikningur!S10*$C101*(1-1/(1+$D101)) -> 0 | T101: =SUM(H101:S101) -> 0 | U101: =+Arsreikningur!U10*$C101*(1-1/(1+$D101)) -> 0 | V101: =+Arsreikningur!V10*$C101*(1-1/(1+$D101)) -> 0 | W101: =+Arsreikningur!W10*$C101*(1-1/(1+$D101)) -> 0 | X101: =+Arsreikningur!X10*$C101*(1-1/(1+$D101)) -> 0 | Y101: =+Arsreikningur!Y10*$C101*(1-1/(1+$D101)) -> 0 | Z101: =+Arsreikningur!Z10*$C101*(1-1/(1+$D101)) -> 0 | AA101: =+Arsreikningur!AA10*$C101*(1-1/(1+$D101)) -> 0 | AB101: =+Arsreikningur!AB10*$C101*(1-1/(1+$D101)) -> 0 | AC101: =+Arsreikningur!AC10*$C101*(1-1/(1+$D101)) -> 0 | AD101: =+Arsreikningur!AD10*$C101*(1-1/(1+$D101)) -> 0 | AE101: =+Arsreikningur!AE10*$C101*(1-1/(1+$D101)) -> 0 | AF101: =+Arsreikningur!AF10*$C101*(1-1/(1+$D101)) -> 0 | AG101: =SUM(U101:AF101) -> 0 | AH101: =+Arsreikningur!AH10*$C101*(1-1/(1+$D101)) -> 0 | AI101: =+Arsreikningur!AI10*$C101*(1-1/(1+$D101)) -> 0 | AJ101: =+Arsreikningur!AJ10*$C101*(1-1/(1+$D101)) -> 0
B102: Samtals | H102: =SUM(H98:H101) -> 0 | I102: =SUM(I98:I101) -> 0 | J102: 0 | K102: 0 | L102: 0 | M102: 0 | N102: 0 | O102: 0 | P102: 0 | Q102: 0 | R102: 0 | S102: 0 | T102: =SUM(T98:T101) -> 0 | U102: 0 | V102: 0 | W102: 0 | X102: 0 | Y102: 0 | Z102: 0 | AA102: 0 | AB102: 0 | AC102: 0 | AD102: 0 | AE102: 0 | AF102: 0 | AG102: 0 | AH102: 0 | AI102: 0 | AJ102: 0
B103: Innskattur | C103: % af stofni | D103: Skattur
B104: =Arsreikningur!D14 -> Kostnaður á einingu | C104: 1 | D104: 0.245 | H104: =+Arsreikningur!H14*$C104*(1-1/(1+$D104)) -> 0 | I104: =+Arsreikningur!I14*$C104*(1-1/(1+$D104)) -> 0 | J104: =+Arsreikningur!J14*$C104*(1-1/(1+$D104)) -> 0 | K104: =+Arsreikningur!K14*$C104*(1-1/(1+$D104)) -> 0 | L104: =+Arsreikningur!L14*$C104*(1-1/(1+$D104)) -> 0 | M104: =+Arsreikningur!M14*$C104*(1-1/(1+$D104)) -> 0 | N104: =+Arsreikningur!N14*$C104*(1-1/(1+$D104)) -> 0 | O104: =+Arsreikningur!O14*$C104*(1-1/(1+$D104)) -> 0 | P104: =+Arsreikningur!P14*$C104*(1-1/(1+$D104)) -> 0 | Q104: =+Arsreikningur!Q14*$C104*(1-1/(1+$D104)) -> 0 | R104: =+Arsreikningur!R14*$C104*(1-1/(1+$D104)) -> 0 | S104: =+Arsreikningur!S14*$C104*(1-1/(1+$D104)) -> 0 | T104: =SUM(H104:S104) -> 0 | U104: =+Arsreikningur!U14*$C104*(1-1/(1+$D104)) -> 0 | V104: =+Arsreikningur!V14*$C104*(1-1/(1+$D104)) -> 0 | W104: =+Arsreikningur!W14*$C104*(1-1/(1+$D104)) -> 0 | X104: =+Arsreikningur!X14*$C104*(1-1/(1+$D104)) -> 0 | Y104: =+Arsreikningur!Y14*$C104*(1-1/(1+$D104)) -> 0 | Z104: =+Arsreikningur!Z14*$C104*(1-1/(1+$D104)) -> 0 | AA104: =+Arsreikningur!AA14*$C104*(1-1/(1+$D104)) -> 0 | AB104: =+Arsreikningur!AB14*$C104*(1-1/(1+$D104)) -> 0 | AC104: =+Arsreikningur!AC14*$C104*(1-1/(1+$D104)) -> 0 | AD104: =+Arsreikningur!AD14*$C104*(1-1/(1+$D104)) -> 0 | AE104: =+Arsreikningur!AE14*$C104*(1-1/(1+$D104)) -> 0 | AF104: =+Arsreikningur!AF14*$C104*(1-1/(1+$D104)) -> 0 | AG104: =SUM(U104:AF104) -> 0 | AH104: =+Arsreikningur!AH14*$C104*(1-1/(1+$D104)) -> 0 | AI104: =+Arsreikningur!AI14*$C104*(1-1/(1+$D104)) -> 0 | AJ104: =+Arsreikningur!AJ14*$C104*(1-1/(1+$D104)) -> 0
B105: =Arsreikningur!D17 -> Laun og launatengd gjöld | C105: 0 | D105: 0 | H105: =+Arsreikningur!H17*$C105*(1-1/(1+$D105)) -> 0 | I105: =+Arsreikningur!I17*$C105*(1-1/(1+$D105)) -> 0 | J105: =+Arsreikningur!J17*$C105*(1-1/(1+$D105)) -> 0 | K105: =+Arsreikningur!K17*$C105*(1-1/(1+$D105)) -> 0 | L105: =+Arsreikningur!L17*$C105*(1-1/(1+$D105)) -> 0 | M105: =+Arsreikningur!M17*$C105*(1-1/(1+$D105)) -> 0 | N105: =+Arsreikningur!N17*$C105*(1-1/(1+$D105)) -> 0 | O105: =+Arsreikningur!O17*$C105*(1-1/(1+$D105)) -> 0 | P105: =+Arsreikningur!P17*$C105*(1-1/(1+$D105)) -> 0 | Q105: =+Arsreikningur!Q17*$C105*(1-1/(1+$D105)) -> 0 | R105: =+Arsreikningur!R17*$C105*(1-1/(1+$D105)) -> 0 | S105: =+Arsreikningur!S17*$C105*(1-1/(1+$D105)) -> 0 | T105: =SUM(H105:S105) -> 0 | U105: =+Arsreikningur!U17*$C105*(1-1/(1+$D105)) -> 0 | V105: =+Arsreikningur!V17*$C105*(1-1/(1+$D105)) -> 0 | W105: =+Arsreikningur!W17*$C105*(1-1/(1+$D105)) -> 0 | X105: =+Arsreikningur!X17*$C105*(1-1/(1+$D105)) -> 0 | Y105: =+Arsreikningur!Y17*$C105*(1-1/(1+$D105)) -> 0 | Z105: =+Arsreikningur!Z17*$C105*(1-1/(1+$D105)) -> 0 | AA105: =+Arsreikningur!AA17*$C105*(1-1/(1+$D105)) -> 0 | AB105: =+Arsreikningur!AB17*$C105*(1-1/(1+$D105)) -> 0 | AC105: =+Arsreikningur!AC17*$C105*(1-1/(1+$D105)) -> 0 | AD105: =+Arsreikningur!AD17*$C105*(1-1/(1+$D105)) -> 0 | AE105: =+Arsreikningur!AE17*$C105*(1-1/(1+$D105)) -> 0 | AF105: =+Arsreikningur!AF17*$C105*(1-1/(1+$D105)) -> 0 | AG105: =SUM(U105:AF105) -> 0 | AH105: =+Arsreikningur!AH17*$C105*(1-1/(1+$D105)) -> 0 | AI105: =+Arsreikningur!AI17*$C105*(1-1/(1+$D105)) -> 0 | AJ105: =+Arsreikningur!AJ17*$C105*(1-1/(1+$D105)) -> 0
B106: =Arsreikningur!D18 -> Kostnaðarliður no 2 | C106: 1 | D106: 0.245 | H106: =+Arsreikningur!H18*$C106*(1-1/(1+$D106)) -> 0 | I106: =+Arsreikningur!I18*$C106*(1-1/(1+$D106)) -> 0 | J106: =+Arsreikningur!J18*$C106*(1-1/(1+$D106)) -> 0 | K106: =+Arsreikningur!K18*$C106*(1-1/(1+$D106)) -> 0 | L106: =+Arsreikningur!L18*$C106*(1-1/(1+$D106)) -> 0 | M106: =+Arsreikningur!M18*$C106*(1-1/(1+$D106)) -> 0 | N106: =+Arsreikningur!N18*$C106*(1-1/(1+$D106)) -> 0 | O106: =+Arsreikningur!O18*$C106*(1-1/(1+$D106)) -> 0 | P106: =+Arsreikningur!P18*$C106*(1-1/(1+$D106)) -> 0 | Q106: =+Arsreikningur!Q18*$C106*(1-1/(1+$D106)) -> 0 | R106: =+Arsreikningur!R18*$C106*(1-1/(1+$D106)) -> 0 | S106: =+Arsreikningur!S18*$C106*(1-1/(1+$D106)) -> 0 | T106: =SUM(H106:S106) -> 0 | U106: =+Arsreikningur!U18*$C106*(1-1/(1+$D106)) -> 0 | V106: =+Arsreikningur!V18*$C106*(1-1/(1+$D106)) -> 0 | W106: =+Arsreikningur!W18*$C106*(1-1/(1+$D106)) -> 0 | X106: =+Arsreikningur!X18*$C106*(1-1/(1+$D106)) -> 0 | Y106: =+Arsreikningur!Y18*$C106*(1-1/(1+$D106)) -> 0 | Z106: =+Arsreikningur!Z18*$C106*(1-1/(1+$D106)) -> 0 | AA106: =+Arsreikningur!AA18*$C106*(1-1/(1+$D106)) -> 0 | AB106: =+Arsreikningur!AB18*$C106*(1-1/(1+$D106)) -> 0 | AC106: =+Arsreikningur!AC18*$C106*(1-1/(1+$D106)) -> 0 | AD106: =+Arsreikningur!AD18*$C106*(1-1/(1+$D106)) -> 0 | AE106: =+Arsreikningur!AE18*$C106*(1-1/(1+$D106)) -> 0 | AF106: =+Arsreikningur!AF18*$C106*(1-1/(1+$D106)) -> 0 | AG106: =SUM(U106:AF106) -> 0 | AH106: =+Arsreikningur!AH18*$C106*(1-1/(1+$D106)) -> 0 | AI106: =+Arsreikningur!AI18*$C106*(1-1/(1+$D106)) -> 0 | AJ106: =+Arsreikningur!AJ18*$C106*(1-1/(1+$D106)) -> 0
B107: =Arsreikningur!D19 -> Kostnaðarliður no 3 | C107: 1 | D107: 0.245 | H107: =+Arsreikningur!H19*$C107*(1-1/(1+$D107)) -> 0 | I107: =+Arsreikningur!I19*$C107*(1-1/(1+$D107)) -> 0 | J107: =+Arsreikningur!J19*$C107*(1-1/(1+$D107)) -> 0 | K107: =+Arsreikningur!K19*$C107*(1-1/(1+$D107)) -> 0 | L107: =+Arsreikningur!L19*$C107*(1-1/(1+$D107)) -> 0 | M107: =+Arsreikningur!M19*$C107*(1-1/(1+$D107)) -> 0 | N107: =+Arsreikningur!N19*$C107*(1-1/(1+$D107)) -> 0 | O107: =+Arsreikningur!O19*$C107*(1-1/(1+$D107)) -> 0 | P107: =+Arsreikningur!P19*$C107*(1-1/(1+$D107)) -> 0 | Q107: =+Arsreikningur!Q19*$C107*(1-1/(1+$D107)) -> 0 | R107: =+Arsreikningur!R19*$C107*(1-1/(1+$D107)) -> 0 | S107: =+Arsreikningur!S19*$C107*(1-1/(1+$D107)) -> 0 | T107: =SUM(H107:S107) -> 0 | U107: =+Arsreikningur!U19*$C107*(1-1/(1+$D107)) -> 0 | V107: =+Arsreikningur!V19*$C107*(1-1/(1+$D107)) -> 0 | W107: =+Arsreikningur!W19*$C107*(1-1/(1+$D107)) -> 0 | X107: =+Arsreikningur!X19*$C107*(1-1/(1+$D107)) -> 0 | Y107: =+Arsreikningur!Y19*$C107*(1-1/(1+$D107)) -> 0 | Z107: =+Arsreikningur!Z19*$C107*(1-1/(1+$D107)) -> 0 | AA107: =+Arsreikningur!AA19*$C107*(1-1/(1+$D107)) -> 0 | AB107: =+Arsreikningur!AB19*$C107*(1-1/(1+$D107)) -> 0 | AC107: =+Arsreikningur!AC19*$C107*(1-1/(1+$D107)) -> 0 | AD107: =+Arsreikningur!AD19*$C107*(1-1/(1+$D107)) -> 0 | AE107: =+Arsreikningur!AE19*$C107*(1-1/(1+$D107)) -> 0 | AF107: =+Arsreikningur!AF19*$C107*(1-1/(1+$D107)) -> 0 | AG107: =SUM(U107:AF107) -> 0 | AH107: =+Arsreikningur!AH19*$C107*(1-1/(1+$D107)) -> 0 | AI107: =+Arsreikningur!AI19*$C107*(1-1/(1+$D107)) -> 0 | AJ107: =+Arsreikningur!AJ19*$C107*(1-1/(1+$D107)) -> 0
B108: =Arsreikningur!D20 -> Kostnaðarliður no 4 | C108: 1 | D108: 0.245 | H108: =+Arsreikningur!H20*$C108*(1-1/(1+$D108)) -> 0 | I108: =+Arsreikningur!I20*$C108*(1-1/(1+$D108)) -> 0 | J108: =+Arsreikningur!J20*$C108*(1-1/(1+$D108)) -> 0 | K108: =+Arsreikningur!K20*$C108*(1-1/(1+$D108)) -> 0 | L108: =+Arsreikningur!L20*$C108*(1-1/(1+$D108)) -> 0 | M108: =+Arsreikningur!M20*$C108*(1-1/(1+$D108)) -> 0 | N108: =+Arsreikningur!N20*$C108*(1-1/(1+$D108)) -> 0 | O108: =+Arsreikningur!O20*$C108*(1-1/(1+$D108)) -> 0 | P108: =+Arsreikningur!P20*$C108*(1-1/(1+$D108)) -> 0 | Q108: =+Arsreikningur!Q20*$C108*(1-1/(1+$D108)) -> 0 | R108: =+Arsreikningur!R20*$C108*(1-1/(1+$D108)) -> 0 | S108: =+Arsreikningur!S20*$C108*(1-1/(1+$D108)) -> 0 | T108: =SUM(H108:S108) -> 0 | U108: =+Arsreikningur!U20*$C108*(1-1/(1+$D108)) -> 0 | V108: =+Arsreikningur!V20*$C108*(1-1/(1+$D108)) -> 0 | W108: =+Arsreikningur!W20*$C108*(1-1/(1+$D108)) -> 0 | X108: =+Arsreikningur!X20*$C108*(1-1/(1+$D108)) -> 0 | Y108: =+Arsreikningur!Y20*$C108*(1-1/(1+$D108)) -> 0 | Z108: =+Arsreikningur!Z20*$C108*(1-1/(1+$D108)) -> 0 | AA108: =+Arsreikningur!AA20*$C108*(1-1/(1+$D108)) -> 0 | AB108: =+Arsreikningur!AB20*$C108*(1-1/(1+$D108)) -> 0 | AC108: =+Arsreikningur!AC20*$C108*(1-1/(1+$D108)) -> 0 | AD108: =+Arsreikningur!AD20*$C108*(1-1/(1+$D108)) -> 0 | AE108: =+Arsreikningur!AE20*$C108*(1-1/(1+$D108)) -> 0 | AF108: =+Arsreikningur!AF20*$C108*(1-1/(1+$D108)) -> 0 | AG108: =SUM(U108:AF108) -> 0 | AH108: =+Arsreikningur!AH20*$C108*(1-1/(1+$D108)) -> 0 | AI108: =+Arsreikningur!AI20*$C108*(1-1/(1+$D108)) -> 0 | AJ108: =+Arsreikningur!AJ20*$C108*(1-1/(1+$D108)) -> 0
B109: Samtals | H109: =SUM(H104:H108) -> 0 | I109: =SUM(I104:I108) -> 0 | J109: 0 | K109: 0 | L109: 0 | M109: 0 | N109: 0 | O109: 0 | P109: 0 | Q109: 0 | R109: 0 | S109: 0 | T109: 0 | U109: 0 | V109: 0 | W109: 0 | X109: 0 | Y109: 0 | Z109: 0 | AA109: 0 | AB109: 0 | AC109: 0 | AD109: 0 | AE109: 0 | AF109: 0 | AG109: 0 | AH109: 0 | AI109: 0 | AJ109: 0
B111: Nettó skattur tímabils | H111: =+H102-H109 -> 0 | I111: 0 | J111: 0 | K111: 0 | L111: 0 | M111: 0 | N111: 0 | O111: 0 | P111: 0 | Q111: 0 | R111: 0 | S111: 0 | T111: =SUM(H111:S111) -> 0 | U111: =+U102-U109 -> 0 | V111: 0 | W111: 0 | X111: 0 | Y111: 0 | Z111: 0 | AA111: 0 | AB111: 0 | AC111: 0 | AD111: 0 | AE111: 0 | AF111: 0 | AG111: =SUM(U111:AF111) -> 0 | AH111: =+(AH102-AH109)/6 -> 0 | AI111: =+(AI102-AI109)/6 -> 0 | AJ111: =+(AJ102-AJ109)/6 -> 0
B112: Greiðslur | H112: =IF(MOD(Forsendur!$C$7,2)=0,-Efnahagur!F113,0) -> 0 | I112: =IF(MOD(Forsendur!$C$7,2)<>0,-Efnahagur!G113,0) -> 0 | J112: =IF(MOD(Forsendur!$C$7,2)=0,-Efnahagur!H113,0) -> 0 | K112: =IF(MOD(Forsendur!$C$7,2)<>0,-Efnahagur!I113,0) -> 0 | L112: =IF(MOD(Forsendur!$C$7,2)=0,-Efnahagur!J113,0) -> 0 | M112: =IF(MOD(Forsendur!$C$7,2)<>0,-Efnahagur!K113,0) -> 0 | N112: =IF(MOD(Forsendur!$C$7,2)=0,-Efnahagur!L113,0) -> 0 | O112: =IF(MOD(Forsendur!$C$7,2)<>0,-Efnahagur!M113,0) -> 0 | P112: =IF(MOD(Forsendur!$C$7,2)=0,-Efnahagur!N113,0) -> 0 | Q112: =IF(MOD(Forsendur!$C$7,2)<>0,-Efnahagur!O113,0) -> 0 | R112: =IF(MOD(Forsendur!$C$7,2)=0,-Efnahagur!P113,0) -> 0 | S112: =IF(MOD(Forsendur!$C$7,2)<>0,-Efnahagur!Q113,0) -> 0 | T112: =SUM(H112:S112) -> 0 | U112: =IF(MOD(Forsendur!$C$7,2)=0,-Efnahagur!S113,0) -> 0 | V112: =IF(MOD(Forsendur!$C$7,2)<>0,-Efnahagur!T113,0) -> 0 | W112: =IF(MOD(Forsendur!$C$7,2)=0,-Efnahagur!U113,0) -> 0 | X112: =IF(MOD(Forsendur!$C$7,2)<>0,-Efnahagur!V113,0) -> 0 | Y112: =IF(MOD(Forsendur!$C$7,2)=0,-Efnahagur!W113,0) -> 0 | Z112: =IF(MOD(Forsendur!$C$7,2)<>0,-Efnahagur!X113,0) -> 0 | AA112: =IF(MOD(Forsendur!$C$7,2)=0,-Efnahagur!Y113,0) -> 0 | AB112: =IF(MOD(Forsendur!$C$7,2)<>0,-Efnahagur!Z113,0) -> 0 | AC112: =IF(MOD(Forsendur!$C$7,2)=0,-Efnahagur!AA113,0) -> 0 | AD112: =IF(MOD(Forsendur!$C$7,2)<>0,-Efnahagur!AB113,0) -> 0 | AE112: =IF(MOD(Forsendur!$C$7,2)=0,-Efnahagur!AC113,0) -> 0 | AF112: =IF(MOD(Forsendur!$C$7,2)<>0,-Efnahagur!AD113,0) -> 0 | AG112: =SUM(U112:AF112) -> 0 | AH112: =-AF113 -> 0
B113: Bókfærð staða í lok tímabils | H113: =+G113+H111+H112 -> 0 | I113: =+H113+I111+I112 -> 0 | J113: 0 | K113: 0 | L113: 0 | M113: 0 | N113: 0 | O113: 0 | P113: 0 | Q113: 0 | R113: 0 | S113: 0 | T113: =+S113 -> 0 | U113: =+T113+U111+U112 -> 0 | V113: 0 | W113: 0 | X113: 0 | Y113: 0 | Z113: 0 | AA113: 0 | AB113: 0 | AC113: 0 | AD113: 0 | AE113: 0 | AF113: 0 | AG113: =+AF113 -> 0 | AH113: =+AG113+AH111+AH112 -> 0 | AI113: =+AH113+AI111+AI112 -> 0 | AJ113: =+AI113+AJ111+AJ112 -> 0
A115: REKSTUR
A117: Niðurstöður vaxtaútreiknings
A119: VAXTATEKJUR
B120: Handbært fé | H120: =+H34 -> 0 | I120: =+I34 -> 0 | J120: 0 | K120: 0 | L120: 0 | M120: 0 | N120: 0 | O120: 0 | P120: 0 | Q120: 0 | R120: 0 | S120: 0 | T120: 0 | U120: 0 | V120: 0 | W120: 0 | X120: 0 | Y120: 0 | Z120: 0 | AA120: 0 | AB120: 0 | AC120: 0 | AD120: 0 | AE120: 0 | AF120: 0 | AG120: 0 | AH120: 0 | AI120: 0 | AJ120: 0
B121: Skammtímakröfur | H121: =+H23 -> 0 | I121: =+I23 -> 0 | J121: 0 | K121: 0 | L121: 0 | M121: 0 | N121: 0 | O121: 0 | P121: 0 | Q121: 0 | R121: 0 | S121: 0 | T121: 0 | U121: 0 | V121: 0 | W121: 0 | X121: 0 | Y121: 0 | Z121: 0 | AA121: 0 | AB121: 0 | AC121: 0 | AD121: 0 | AE121: 0 | AF121: 0 | AG121: 0 | AH121: 0 | AI121: 0 | AJ121: 0
B122: Skuldabréfaeign | H122: =+H16 -> 0 | I122: 0 | J122: 0 | K122: 0 | L122: 0 | M122: 0 | N122: 0 | O122: 0 | P122: 0 | Q122: 0 | R122: 0 | S122: 0 | T122: 0 | U122: 0 | V122: 0 | W122: 0 | X122: 0 | Y122: 0 | Z122: 0 | AA122: 0 | AB122: 0 | AC122: 0 | AD122: 0 | AE122: 0 | AF122: 0 | AG122: 0 | AH122: 0 | AI122: 0 | AJ122: 0
B123: Samtals | H123: =SUM(H120:H122) -> 0 | I123: =SUM(I120:I122) -> 0 | J123: 0 | K123: 0 | L123: 0 | M123: 0 | N123: 0 | O123: 0 | P123: 0 | Q123: 0 | R123: 0 | S123: 0 | T123: 0 | U123: 0 | V123: 0 | W123: 0 | X123: 0 | Y123: 0 | Z123: 0 | AA123: 0 | AB123: 0 | AC123: 0 | AD123: 0 | AE123: 0 | AF123: 0 | AG123: =SUM(AG120:AG122) -> 0 | AH123: =SUM(AH120:AH122) -> 0 | AI123: =SUM(AI120:AI122) -> 0 | AJ123: =SUM(AJ120:AJ122) -> 0
A125: VAXTAGJÖLD
B126: Skuldir við lánastofnanir | H126: =+H62 -> 0 | I126: =+I62 -> 0 | J126: 0 | K126: 0 | L126: 0 | M126: 0 | N126: 0 | O126: 0 | P126: 0 | Q126: 0 | R126: 0 | S126: 0 | T126: =SUM(H126:S126) -> 0 | U126: 0 | V126: 0 | W126: 0 | X126: 0 | Y126: 0 | Z126: 0 | AA126: 0 | AB126: 0 | AC126: 0 | AD126: 0 | AE126: 0 | AF126: 0 | AG126: =SUM(U126:AF126) -> 0 | AH126: 0 | AI126: 0 | AJ126: 0
B127: Viðskiptaskuldir | H127: =+H69 -> 0 | I127: =+I69 -> 0 | J127: 0 | K127: 0 | L127: 0 | M127: 0 | N127: 0 | O127: 0 | P127: 0 | Q127: 0 | R127: 0 | S127: 0 | T127: =SUM(H127:S127) -> 0 | U127: 0 | V127: 0 | W127: 0 | X127: 0 | Y127: 0 | Z127: 0 | AA127: 0 | AB127: 0 | AC127: 0 | AD127: 0 | AE127: 0 | AF127: 0 | AG127: =SUM(U127:AF127) -> 0 | AH127: 0 | AI127: 0 | AJ127: 0
B128: Ógr. kostn. og aðrar skammtímask. | H128: =+H76 -> 0 | I128: =+I76 -> 0 | J128: 0 | K128: 0 | L128: 0 | M128: 0 | N128: 0 | O128: 0 | P128: 0 | Q128: 0 | R128: 0 | S128: 0 | T128: =SUM(H128:S128) -> 0 | U128: 0 | V128: 0 | W128: 0 | X128: 0 | Y128: 0 | Z128: 0 | AA128: 0 | AB128: 0 | AC128: 0 | AD128: 0 | AE128: 0 | AF128: 0 | AG128: =SUM(U128:AF128) -> 0 | AH128: 0 | AI128: 0 | AJ128: 0
B129: Reiknuð fjárþörf | H129: =+H81 -> 0 | I129: =+I81 -> 0 | J129: 0 | K129: 0 | L129: 0 | M129: 0 | N129: 0 | O129: 0 | P129: 0 | Q129: 0 | R129: 0 | S129: 0 | T129: =SUM(H129:S129) -> 0 | U129: 0 | V129: 0 | W129: 0 | X129: 0 | Y129: 0 | Z129: 0 | AA129: 0 | AB129: 0 | AC129: 0 | AD129: 0 | AE129: 0 | AF129: 0 | AG129: =SUM(U129:AF129) -> 0 | AH129: 0 | AI129: 0 | AJ129: 0
B130: Langtímalán | E130: 11_2 | H130: =SUMIF(Lan!$G$1:$G$82,$E130,Lan!J$1:J$82) -> 0 | I130: =SUMIF(Lan!$G$1:$G$82,$E130,Lan!K$1:K$82) -> 0 | J130: =SUMIF(Lan!$G$1:$G$82,$E130,Lan!L$1:L$82) -> 0 | K130: =SUMIF(Lan!$G$1:$G$82,$E130,Lan!M$1:M$82) -> 0 | L130: =SUMIF(Lan!$G$1:$G$82,$E130,Lan!N$1:N$82) -> 0 | M130: =SUMIF(Lan!$G$1:$G$82,$E130,Lan!O$1:O$82) -> 0 | N130: =SUMIF(Lan!$G$1:$G$82,$E130,Lan!P$1:P$82) -> 0 | O130: =SUMIF(Lan!$G$1:$G$82,$E130,Lan!Q$1:Q$82) -> 0 | P130: =SUMIF(Lan!$G$1:$G$82,$E130,Lan!R$1:R$82) -> 0 | Q130: =SUMIF(Lan!$G$1:$G$82,$E130,Lan!S$1:S$82) -> 0 | R130: =SUMIF(Lan!$G$1:$G$82,$E130,Lan!T$1:T$82) -> 0 | S130: =SUMIF(Lan!$G$1:$G$82,$E130,Lan!U$1:U$82) -> 0 | T130: =SUM(H130:S130) -> 0 | U130: =SUMIF(Lan!$G$1:$G$82,$E130,Lan!W$1:W$82) -> 0 | V130: =SUMIF(Lan!$G$1:$G$82,$E130,Lan!X$1:X$82) -> 0 | W130: =SUMIF(Lan!$G$1:$G$82,$E130,Lan!Y$1:Y$82) -> 0 | X130: =SUMIF(Lan!$G$1:$G$82,$E130,Lan!Z$1:Z$82) -> 0 | Y130: =SUMIF(Lan!$G$1:$G$82,$E130,Lan!AA$1:AA$82) -> 0 | Z130: =SUMIF(Lan!$G$1:$G$82,$E130,Lan!AB$1:AB$82) -> 0 | AA130: =SUMIF(Lan!$G$1:$G$82,$E130,Lan!AC$1:AC$82) -> 0 | AB130: =SUMIF(Lan!$G$1:$G$82,$E130,Lan!AD$1:AD$82) -> 0 | AC130: =SUMIF(Lan!$G$1:$G$82,$E130,Lan!AE$1:AE$82) -> 0 | AD130: =SUMIF(Lan!$G$1:$G$82,$E130,Lan!AF$1:AF$82) -> 0 | AE130: =SUMIF(Lan!$G$1:$G$82,$E130,Lan!AG$1:AG$82) -> 0 | AF130: =SUMIF(Lan!$G$1:$G$82,$E130,Lan!AH$1:AH$82) -> 0 | AG130: =SUM(U130:AF130) -> 0 | AH130: =SUMIF(Lan!$G$1:$G$82,$E130,Lan!AJ$1:AJ$82) -> 0 | AI130: =SUMIF(Lan!$G$1:$G$82,$E130,Lan!AK$1:AK$82) -> 0 | AJ130: =SUMIF(Lan!$G$1:$G$82,$E130,Lan!AL$1:AL$82) -> 0
B131: Samtals | H131: =SUM(H126:H130) -> 0 | I131: 0 | J131: 0 | K131: =SUM(K126:K130) -> 0 | L131: 0 | M131: 0 | N131: 0 | O131: 0 | P131: 0 | Q131: 0 | R131: 0 | S131: 0 | T131: 0 | U131: 0 | V131: 0 | W131: 0 | X131: 0 | Y131: 0 | Z131: 0 | AA131: 0 | AB131: 0 | AC131: 0 | AD131: 0 | AE131: 0 | AF131: 0 | AG131: 0 | AH131: =SUM(AH126:AH130) -> 0 | AI131: =SUM(AI126:AI130) -> 0 | AJ131: =SUM(AJ126:AJ130) -> 0
B133: Vextir vegna fjármögnunar | H133: =SUM(H120)-SUM(H126,H129:H130) -> 0 | I133: =SUM(I120)-SUM(I126,I129:I130) -> 0 | J133: 0 | K133: =SUM(K120)-SUM(K126,K129:K130) -> 0 | L133: 0 | M133: 0 | N133: 0 | O133: 0 | P133: 0 | Q133: 0 | R133: 0 | S133: 0 | T133: =SUM(H133:S133) -> 0 | U133: 0 | V133: 0 | W133: 0 | X133: 0 | Y133: 0 | Z133: 0 | AA133: 0 | AB133: 0 | AC133: 0 | AD133: 0 | AE133: 0 | AF133: 0 | AG133: =SUM(U133:AF133) -> 0 | AH133: =SUM(AH120)-SUM(AH126,AH129:AH130) -> 0 | AI133: =SUM(AI120)-SUM(AI126,AI129:AI130) -> 0 | AJ133: =SUM(AJ120)-SUM(AJ126,AJ129:AJ130) -> 0

Sheet Arsreikningur
A1: Sktkröfur | B1: Viðsksk | C1: Ógrkostn | D1: =Forsendur!$C$5 -> Nafn fyrirtækis
D3: REKSTRARREIKNINGUR
E4: Skýr. | F4: =IF(Forsendur!$C$7=1,"Árið "&Forsendur!$C$6-1,"Árið "&Forsendur!$C$6-1&"-"&Forsendur!$C$6) -> Árið 2015 | H4: =Efnahagur!H3 -> Jan 2016 | I4: =Efnahagur!I3 -> Feb 2016 | J4: =Efnahagur!J3 -> Mar 2016 | K4: =Efnahagur!K3 -> Apr 2016 | L4: =Efnahagur!L3 -> Maí 2016 | M4: =Efnahagur!M3 -> Jún 2016 | N4: =Efnahagur!N3 -> Júl 2016 | O4: =Efnahagur!O3 -> Ágú 2016 | P4: =Efnahagur!P3 -> Sep 2016 | Q4: =Efnahagur!Q3 -> Okt 2016 | R4: =Efnahagur!R3 -> Nóv 2016 | S4: =Efnahagur!S3 -> Des 2016 | T4: =Efnahagur!T3 -> Árið 2016 | U4: =Efnahagur!U3 -> Jan 2017 | V4: =Efnahagur!V3 -> Feb 2017 | W4: =Efnahagur!W3 -> Mar 2017 | X4: =Efnahagur!X3 -> Apr 2017 | Y4: =Efnahagur!Y3 -> Maí 2017 | Z4: =Efnahagur!Z3 -> Jún 2017 | AA4: =Efnahagur!AA3 -> Júl 2017 | AB4: =Efnahagur!AB3 -> Ágú 2017 | AC4: =Efnahagur!AC3 -> Sep 2017 | AD4: =Efnahagur!AD3 -> Okt 2017 | AE4: =Efnahagur!AE3 -> Nóv 2017 | AF4: =Efnahagur!AF3 -> Des 2017 | AG4: ="Árið "&Forsendur!$C$6+1 -> Árið 2017 | AH4: ="Árið "&Forsendur!$C$6+2 -> Árið 2018 | AI4: ="Árið "&Forsendur!$C$6+3 -> Árið 2019 | AJ4: ="Árið "&Forsendur!$C$6+4 -> Árið 2020
D5: REKSTRARTEKJUR
D7: =+Rekstur!B7 -> Tekjuliður no 1 | E7: 1 | F7: =+Forsendur!D13 -> 0 | H7: =SUMIF(Rekstur!$C:$C,$E7,Rekstur!F:F) -> 0 | I7: =SUMIF(Rekstur!$C:$C,$E7,Rekstur!G:G) -> 0 | J7: =SUMIF(Rekstur!$C:$C,$E7,Rekstur!H:H) -> 0 | K7: =SUMIF(Rekstur!$C:$C,$E7,Rekstur!I:I) -> 0 | L7: =SUMIF(Rekstur!$C:$C,$E7,Rekstur!J:J) -> 0 | M7: =SUMIF(Rekstur!$C:$C,$E7,Rekstur!K:K) -> 0 | N7: =SUMIF(Rekstur!$C:$C,$E7,Rekstur!L:L) -> 0 | O7: =SUMIF(Rekstur!$C:$C,$E7,Rekstur!M:M) -> 0 | P7: =SUMIF(Rekstur!$C:$C,$E7,Rekstur!N:N) -> 0 | Q7: =SUMIF(Rekstur!$C:$C,$E7,Rekstur!O:O) -> 0 | R7: =SUMIF(Rekstur!$C:$C,$E7,Rekstur!P:P) -> 0 | S7: =SUMIF(Rekstur!$C:$C,$E7,Rekstur!Q:Q) -> 0 | T7: =SUM(H7:S7) -> 0 | U7: =SUMIF(Rekstur!$C:$C,$E7,Rekstur!S:S) -> 0 | V7: =SUMIF(Rekstur!$C:$C,$E7,Rekstur!T:T) -> 0 | W7: =SUMIF(Rekstur!$C:$C,$E7,Rekstur!U:U) -> 0 | X7: =SUMIF(Rekstur!$C:$C,$E7,Rekstur!V:V) -> 0 | Y7: =SUMIF(Rekstur!$C:$C,$E7,Rekstur!W:W) -> 0 | Z7: =SUMIF(Rekstur!$C:$C,$E7,Rekstur!X:X) -> 0 | AA7: =SUMIF(Rekstur!$C:$C,$E7,Rekstur!Y:Y) -> 0 | AB7: =SUMIF(Rekstur!$C:$C,$E7,Rekstur!Z:Z) -> 0 | AC7: =SUMIF(Rekstur!$C:$C,$E7,Rekstur!AA:AA) -> 0 | AD7: =SUMIF(Rekstur!$C:$C,$E7,Rekstur!AB:AB) -> 0 | AE7: =SUMIF(Rekstur!$C:$C,$E7,Rekstur!AC:AC) -> 0 | AF7: =SUMIF(Rekstur!$C:$C,$E7,Rekstur!AD:AD) -> 0 | AG7: =SUM(U7:AF7) -> 0 | AH7: =SUMIF(Rekstur!$C:$C,$E7,Rekstur!AF:AF) -> 0 | AI7: =SUMIF(Rekstur!$C:$C,$E7,Rekstur!AG:AG) -> 0 | AJ7: =SUMIF(Rekstur!$C:$C,$E7,Rekstur!AH:AH) -> 0
D8: =+Rekstur!B21 -> Tekjuliður no 2 | E8: 2 | F8: =+Forsendur!D14 -> 0 | H8: =SUMIF(Rekstur!$C:$C,$E8,Rekstur!F:F) -> 0 | I8: =SUMIF(Rekstur!$C:$C,$E8,Rekstur!G:G) -> 0 | J8: =SUMIF(Rekstur!$C:$C,$E8,Rekstur!H:H) -> 0 | K8: =SUMIF(Rekstur!$C:$C,$E8,Rekstur!I:I) -> 0 | L8: =SUMIF(Rekstur!$C:$C,$E8,Rekstur!J:J) -> 0 | M8: =SUMIF(Rekstur!$C:$C,$E8,Rekstur!K:K) -> 0 | N8: =SUMIF(Rekstur!$C:$C,$E8,Rekstur!L:L) -> 0 | O8: =SUMIF(Rekstur!$C:$C,$E8,Rekstur!M:M) -> 0 | P8: =SUMIF(Rekstur!$C:$C,$E8,Rekstur!N:N) -> 0 | Q8: =SUMIF(Rekstur!$C:$C,$E8,Rekstur!O:O) -> 0 | R8: =SUMIF(Rekstur!$C:$C,$E8,Rekstur!P:P) -> 0 | S8: =SUMIF(Rekstur!$C:$C,$E8,Rekstur!Q:Q) -> 0 | T8: =SUM(H8:S8) -> 0 | U8: =SUMIF(Rekstur!$C:$C,$E8,Rekstur!S:S) -> 0 | V8: =SUMIF(Rekstur!$C:$C,$E8,Rekstur!T:T) -> 0 | W8: =SUMIF(Rekstur!$C:$C,$E8,Rekstur!U:U) -> 0 | X8: =SUMIF(Rekstur!$C:$C,$E8,Rekstur!V:V) -> 0 | Y8: =SUMIF(Rekstur!$C:$C,$E8,Rekstur!W:W) -> 0 | Z8: =SUMIF(Rekstur!$C:$C,$E8,Rekstur!X:X) -> 0 | AA8: =SUMIF(Rekstur!$C:$C,$E8,Rekstur!Y:Y) -> 0 | AB8: =SUMIF(Rekstur!$C:$C,$E8,Rekstur!Z:Z) -> 0 | AC8: =SUMIF(Rekstur!$C:$C,$E8,Rekstur!AA:AA) -> 0 | AD8: =SUMIF(Rekstur!$C:$C,$E8,Rekstur!AB:AB) -> 0 | AE8: =SUMIF(Rekstur!$C:$C,$E8,Rekstur!AC:AC) -> 0 | AF8: =SUMIF(Rekstur!$C:$C,$E8,Rekstur!AD:AD) -> 0 | AG8: =SUM(U8:AF8) -> 0 | AH8: =SUMIF(Rekstur!$C:$C,$E8,Rekstur!AF:AF) -> 0 | AI8: =SUMIF(Rekstur!$C:$C,$E8,Rekstur!AG:AG) -> 0 | AJ8: =SUMIF(Rekstur!$C:$C,$E8,Rekstur!AH:AH) -> 0
D9: =+Rekstur!B35 -> Tekjuliður no 3 | E9: 3 | F9: =+Forsendur!D15 -> 0 | H9: =SUMIF(Rekstur!$C:$C,$E9,Rekstur!F:F) -> 0 | I9: =SUMIF(Rekstur!$C:$C,$E9,Rekstur!G:G) -> 0 | J9: =SUMIF(Rekstur!$C:$C,$E9,Rekstur!H:H) -> 0 | K9: =SUMIF(Rekstur!$C:$C,$E9,Rekstur!I:I) -> 0 | L9: =SUMIF(Rekstur!$C:$C,$E9,Rekstur!J:J) -> 0 | M9: =SUMIF(Rekstur!$C:$C,$E9,Rekstur!K:K) -> 0 | N9: =SUMIF(Rekstur!$C:$C,$E9,Rekstur!L:L) -> 0 | O9: =SUMIF(Rekstur!$C:$C,$E9,Rekstur!M:M) -> 0 | P9: =SUMIF(Rekstur!$C:$C,$E9,Rekstur!N:N) -> 0 | Q9: =SUMIF(Rekstur!$C:$C,$E9,Rekstur!O:O) -> 0 | R9: =SUMIF(Rekstur!$C:$C,$E9,Rekstur!P:P) -> 0 | S9: =SUMIF(Rekstur!$C:$C,$E9,Rekstur!Q:Q) -> 0 | T9: =SUM(H9:S9) -> 0 | U9: =SUMIF(Rekstur!$C:$C,$E9,Rekstur!S:S) -> 0 | V9: =SUMIF(Rekstur!$C:$C,$E9,Rekstur!T:T) -> 0 | W9: =SUMIF(Rekstur!$C:$C,$E9,Rekstur!U:U) -> 0 | X9: =SUMIF(Rekstur!$C:$C,$E9,Rekstur!V:V) -> 0 | Y9: =SUMIF(Rekstur!$C:$C,$E9,Rekstur!W:W) -> 0 | Z9: =SUMIF(Rekstur!$C:$C,$E9,Rekstur!X:X) -> 0 | AA9: =SUMIF(Rekstur!$C:$C,$E9,Rekstur!Y:Y) -> 0 | AB9: =SUMIF(Rekstur!$C:$C,$E9,Rekstur!Z:Z) -> 0 | AC9: =SUMIF(Rekstur!$C:$C,$E9,Rekstur!AA:AA) -> 0 | AD9: =SUMIF(Rekstur!$C:$C,$E9,Rekstur!AB:AB) -> 0 | AE9: =SUMIF(Rekstur!$C:$C,$E9,Rekstur!AC:AC) -> 0 | AF9: =SUMIF(Rekstur!$C:$C,$E9,Rekstur!AD:AD) -> 0 | AG9: =SUM(U9:AF9) -> 0 | AH9: =SUMIF(Rekstur!$C:$C,$E9,Rekstur!AF:AF) -> 0 | AI9: =SUMIF(Rekstur!$C:$C,$E9,Rekstur!AG:AG) -> 0 | AJ9: =SUMIF(Rekstur!$C:$C,$E9,Rekstur!AH:AH) -> 0
D10: =+Rekstur!B49 -> Tekjuliður no 4 | E10: 4 | F10: =+Forsendur!D16 -> 0 | H10: =SUMIF(Rekstur!$C:$C,$E10,Rekstur!F:F) -> 0 | I10: =SUMIF(Rekstur!$C:$C,$E10,Rekstur!G:G) -> 0 | J10: =SUMIF(Rekstur!$C:$C,$E10,Rekstur!H:H) -> 0 | K10: =SUMIF(Rekstur!$C:$C,$E10,Rekstur!I:I) -> 0 | L10: =SUMIF(Rekstur!$C:$C,$E10,Rekstur!J:J) -> 0 | M10: =SUMIF(Rekstur!$C:$C,$E10,Rekstur!K:K) -> 0 | N10: =SUMIF(Rekstur!$C:$C,$E10,Rekstur!L:L) -> 0 | O10: =SUMIF(Rekstur!$C:$C,$E10,Rekstur!M:M) -> 0 | P10: =SUMIF(Rekstur!$C:$C,$E10,Rekstur!N:N) -> 0 | Q10: =SUMIF(Rekstur!$C:$C,$E10,Rekstur!O:O) -> 0 | R10: =SUMIF(Rekstur!$C:$C,$E10,Rekstur!P:P) -> 0 | S10: =SUMIF(Rekstur!$C:$C,$E10,Rekstur!Q:Q) -> 0 | T10: =SUM(H10:S10) -> 0 | U10: =SUMIF(Rekstur!$C:$C,$E10,Rekstur!S:S) -> 0 | V10: =SUMIF(Rekstur!$C:$C,$E10,Rekstur!T:T) -> 0 | W10: =SUMIF(Rekstur!$C:$C,$E10,Rekstur!U:U) -> 0 | X10: =SUMIF(Rekstur!$C:$C,$E10,Rekstur!V:V) -> 0 | Y10: =SUMIF(Rekstur!$C:$C,$E10,Rekstur!W:W) -> 0 | Z10: =SUMIF(Rekstur!$C:$C,$E10,Rekstur!X:X) -> 0 | AA10: =SUMIF(Rekstur!$C:$C,$E10,Rekstur!Y:Y) -> 0 | AB10: =SUMIF(Rekstur!$C:$C,$E10,Rekstur!Z:Z) -> 0 | AC10: =SUMIF(Rekstur!$C:$C,$E10,Rekstur!AA:AA) -> 0 | AD10: =SUMIF(Rekstur!$C:$C,$E10,Rekstur!AB:AB) -> 0 | AE10: =SUMIF(Rekstur!$C:$C,$E10,Rekstur!AC:AC) -> 0 | AF10: =SUMIF(Rekstur!$C:$C,$E10,Rekstur!AD:AD) -> 0 | AG10: =SUM(U10:AF10) -> 0 | AH10: =SUMIF(Rekstur!$C:$C,$E10,Rekstur!AF:AF) -> 0 | AI10: =SUMIF(Rekstur!$C:$C,$E10,Rekstur!AG:AG) -> 0 | AJ10: =SUMIF(Rekstur!$C:$C,$E10,Rekstur!AH:AH) -> 0
F11: =SUM(F7:F10) -> 0 | H11: =SUM(H7:H10) -> 0 | I11: 0 | J11: 0 | K11: 0 | L11: 0 | M11: 0 | N11: 0 | O11: 0 | P11: 0 | Q11: 0 | R11: 0 | S11: 0 | T11: =SUM(H11:S11) -> 0 | U11: 0 | V11: 0 | W11: 0 | X11: 0 | Y11: 0 | Z11: 0 | AA11: 0 | AB11: 0 | AC11: 0 | AD11: 0 | AE11: 0 | AF11: 0 | AG11: =SUM(U11:AF11) -> 0 | AH11: =SUM(AH7:AH10) -> 0 | AI11: =SUM(AI7:AI10) -> 0 | AJ11: =SUM(AJ7:AJ10) -> 0
D13: REKSTRARGJÖLD:
D14: =+Rekstur!B67 -> Kostnaður á einingu | E14: 5 | F14: =+Forsendur!D20 -> 0 | H14: =SUMIF(Rekstur!$C:$C,$E14,Rekstur!F:F) -> 0 | I14: =SUMIF(Rekstur!$C:$C,$E14,Rekstur!G:G) -> 0 | J14: =SUMIF(Rekstur!$C:$C,$E14,Rekstur!H:H) -> 0 | K14: =SUMIF(Rekstur!$C:$C,$E14,Rekstur!I:I) -> 0 | L14: =SUMIF(Rekstur!$C:$C,$E14,Rekstur!J:J) -> 0 | M14: =SUMIF(Rekstur!$C:$C,$E14,Rekstur!K:K) -> 0 | N14: =SUMIF(Rekstur!$C:$C,$E14,Rekstur!L:L) -> 0 | O14: =SUMIF(Rekstur!$C:$C,$E14,Rekstur!M:M) -> 0 | P14: =SUMIF(Rekstur!$C:$C,$E14,Rekstur!N:N) -> 0 | Q14: =SUMIF(Rekstur!$C:$C,$E14,Rekstur!O:O) -> 0 | R14: =SUMIF(Rekstur!$C:$C,$E14,Rekstur!P:P) -> 0 | S14: =SUMIF(Rekstur!$C:$C,$E14,Rekstur!Q:Q) -> 0 | T14: =SUM(H14:S14) -> 0 | U14: =SUMIF(Rekstur!$C:$C,$E14,Rekstur!S:S) -> 0 | V14: =SUMIF(Rekstur!$C:$C,$E14,Rekstur!T:T) -> 0 | W14: =SUMIF(Rekstur!$C:$C,$E14,Rekstur!U:U) -> 0 | X14: =SUMIF(Rekstur!$C:$C,$E14,Rekstur!V:V) -> 0 | Y14: =SUMIF(Rekstur!$C:$C,$E14,Rekstur!W:W) -> 0 | Z14: =SUMIF(Rekstur!$C:$C,$E14,Rekstur!X:X) -> 0 | AA14: =SUMIF(Rekstur!$C:$C,$E14,Rekstur!Y:Y) -> 0 | AB14: =SUMIF(Rekstur!$C:$C,$E14,Rekstur!Z:Z) -> 0 | AC14: =SUMIF(Rekstur!$C:$C,$E14,Rekstur!AA:AA) -> 0 | AD14: =SUMIF(Rekstur!$C:$C,$E14,Rekstur!AB:AB) -> 0 | AE14: =SUMIF(Rekstur!$C:$C,$E14,Rekstur!AC:AC) -> 0 | AF14: =SUMIF(Rekstur!$C:$C,$E14,Rekstur!AD:AD) -> 0 | AG14: =SUM(U14:AF14) -> 0 | AH14: =SUMIF(Rekstur!$C:$C,$E14,Rekstur!AF:AF) -> 0 | AI14: =SUMIF(Rekstur!$C:$C,$E14,Rekstur!AG:AG) -> 0 | AJ14: =SUMIF(Rekstur!$C:$C,$E14,Rekstur!AH:AH) -> 0
D16: Framlegð I (Gross Profit) | F16: =F11-F14 -> 0 | H16: =H11-H14 -> 0 | I16: =I11-I14 -> 0 | J16: 0 | K16: 0 | L16: 0 | M16: 0 | N16: 0 | O16: 0 | P16: 0 | Q16: 0 | R16: 0 | S16: 0 | T16: 0 | U16: 0 | V16: 0 | W16: 0 | X16: 0 | Y16: 0 | Z16: 0 | AA16: 0 | AB16: 0 | AC16: 0 | AD16: 0 | AE16: 0 | AF16: 0 | AG16: 0 | AH16: 0 | AI16: 0 | AJ16: 0
D17: =+Rekstur!B76 -> Laun og launatengd gjöld | E17: 6 | F17: =+Forsendur!D23 -> 0 | H17: =SUMIF(Rekstur!$C:$C,$E17,Rekstur!F:F) -> 0 | I17: =SUMIF(Rekstur!$C:$C,$E17,Rekstur!G:G) -> 0 | J17: =SUMIF(Rekstur!$C:$C,$E17,Rekstur!H:H) -> 0 | K17: =SUMIF(Rekstur!$C:$C,$E17,Rekstur!I:I) -> 0 | L17: =SUMIF(Rekstur!$C:$C,$E17,Rekstur!J:J) -> 0 | M17: =SUMIF(Rekstur!$C:$C,$E17,Rekstur!K:K) -> 0 | N17: =SUMIF(Rekstur!$C:$C,$E17,Rekstur!L:L) -> 0 | O17: =SUMIF(Rekstur!$C:$C,$E17,Rekstur!M:M) -> 0 | P17: =SUMIF(Rekstur!$C:$C,$E17,Rekstur!N:N) -> 0 | Q17: =SUMIF(Rekstur!$C:$C,$E17,Rekstur!O:O) -> 0 | R17: =SUMIF(Rekstur!$C:$C,$E17,Rekstur!P:P) -> 0 | S17: =SUMIF(Rekstur!$C:$C,$E17,Rekstur!Q:Q) -> 0 | T17: =SUM(H17:S17) -> 0 | U17: =SUMIF(Rekstur!$C:$C,$E17,Rekstur!S:S) -> 0 | V17: =SUMIF(Rekstur!$C:$C,$E17,Rekstur!T:T) -> 0 | W17: =SUMIF(Rekstur!$C:$C,$E17,Rekstur!U:U) -> 0 | X17: =SUMIF(Rekstur!$C:$C,$E17,Rekstur!V:V) -> 0 | Y17: =SUMIF(Rekstur!$C:$C,$E17,Rekstur!W:W) -> 0 | Z17: =SUMIF(Rekstur!$C:$C,$E17,Rekstur!X:X) -> 0 | AA17: =SUMIF(Rekstur!$C:$C,$E17,Rekstur!Y:Y) -> 0 | AB17: =SUMIF(Rekstur!$C:$C,$E17,Rekstur!Z:Z) -> 0 | AC17: =SUMIF(Rekstur!$C:$C,$E17,Rekstur!AA:AA) -> 0 | AD17: =SUMIF(Rekstur!$C:$C,$E17,Rekstur!AB:AB) -> 0 | AE17: =SUMIF(Rekstur!$C:$C,$E17,Rekstur!AC:AC) -> 0 | AF17: =SUMIF(Rekstur!$C:$C,$E17,Rekstur!AD:AD) -> 0 | AG17: =SUM(U17:AF17) -> 0 | AH17: =SUMIF(Rekstur!$C:$C,$E17,Rekstur!AF:AF) -> 0 | AI17: =SUMIF(Rekstur!$C:$C,$E17,Rekstur!AG:AG) -> 0 | AJ17: =SUMIF(Rekstur!$C:$C,$E17,Rekstur!AH:AH) -> 0
D18: =+Rekstur!B92 -> Kostnaðarliður no 2 | E18: 7 | F18: =+Forsendur!D24 -> 0 | H18: =SUMIF(Rekstur!$C:$C,$E18,Rekstur!F:F) -> 0 | I18: =SUMIF(Rekstur!$C:$C,$E18,Rekstur!G:G) -> 0 | J18: =SUMIF(Rekstur!$C:$C,$E18,Rekstur!H:H) -> 0 | K18: =SUMIF(Rekstur!$C:$C,$E18,Rekstur!I:I) -> 0 | L18: =SUMIF(Rekstur!$C:$C,$E18,Rekstur!J:J) -> 0 | M18: =SUMIF(Rekstur!$C:$C,$E18,Rekstur!K:K) -> 0 | N18: =SUMIF(Rekstur!$C:$C,$E18,Rekstur!L:L) -> 0 | O18: =SUMIF(Rekstur!$C:$C,$E18,Rekstur!M:M) -> 0 | P18: =SUMIF(Rekstur!$C:$C,$E18,Rekstur!N:N) -> 0 | Q18: =SUMIF(Rekstur!$C:$C,$E18,Rekstur!O:O) -> 0 | R18: =SUMIF(Rekstur!$C:$C,$E18,Rekstur!P:P) -> 0 | S18: =SUMIF(Rekstur!$C:$C,$E18,Rekstur!Q:Q) -> 0 | T18: 0 | U18: =SUMIF(Rekstur!$C:$C,$E18,Rekstur!S:S) -> 0 | V18: =SUMIF(Rekstur!$C:$C,$E18,Rekstur!T:T) -> 0 | W18: =SUMIF(Rekstur!$C:$C,$E18,Rekstur!U:U) -> 0 | X18: =SUMIF(Rekstur!$C:$C,$E18,Rekstur!V:V) -> 0 | Y18: =SUMIF(Rekstur!$C:$C,$E18,Rekstur!W:W) -> 0 | Z18: =SUMIF(Rekstur!$C:$C,$E18,Rekstur!X:X) -> 0 | AA18: =SUMIF(Rekstur!$C:$C,$E18,Rekstur!Y:Y) -> 0 | AB18: =SUMIF(Rekstur!$C:$C,$E18,Rekstur!Z:Z) -> 0 | AC18: =SUMIF(Rekstur!$C:$C,$E18,Rekstur!AA:AA) -> 0 | AD18: =SUMIF(Rekstur!$C:$C,$E18,Rekstur!AB:AB) -> 0 | AE18: =SUMIF(Rekstur!$C:$C,$E18,Rekstur!AC:AC) -> 0 | AF18: =SUMIF(Rekstur!$C:$C,$E18,Rekstur!AD:AD) -> 0 | AG18: 0 | AH18: =SUMIF(Rekstur!$C:$C,$E18,Rekstur!AF:AF) -> 0 | AI18: =SUMIF(Rekstur!$C:$C,$E18,Rekstur!AG:AG) -> 0 | AJ18: =SUMIF(Rekstur!$C:$C,$E18,Rekstur!AH:AH) -> 0
D19: =+Rekstur!B100 -> Kostnaðarliður no 3 | E19: 8 | F19: =+Forsendur!D25 -> 0 | H19: =SUMIF(Rekstur!$C:$C,$E19,Rekstur!F:F) -> 0 | I19: =SUMIF(Rekstur!$C:$C,$E19,Rekstur!G:G) -> 0 | J19: =SUMIF(Rekstur!$C:$C,$E19,Rekstur!H:H) -> 0 | K19: =SUMIF(Rekstur!$C:$C,$E19,Rekstur!I:I) -> 0 | L19: =SUMIF(Rekstur!$C:$C,$E19,Rekstur!J:J) -> 0 | M19: =SUMIF(Rekstur!$C:$C,$E19,Rekstur!K:K) -> 0 | N19: =SUMIF(Rekstur!$C:$C,$E19,Rekstur!L:L) -> 0 | O19: =SUMIF(Rekstur!$C:$C,$E19,Rekstur!M:M) -> 0 | P19: =SUMIF(Rekstur!$C:$C,$E19,Rekstur!N:N) -> 0 | Q19: =SUMIF(Rekstur!$C:$C,$E19,Rekstur!O:O) -> 0 | R19: =SUMIF(Rekstur!$C:$C,$E19,Rekstur!P:P) -> 0 | S19: =SUMIF(Rekstur!$C:$C,$E19,Rekstur!Q:Q) -> 0 | T19: 0 | U19: =SUMIF(Rekstur!$C:$C,$E19,Rekstur!S:S) -> 0 | V19: =SUMIF(Rekstur!$C:$C,$E19,Rekstur!T:T) -> 0 | W19: =SUMIF(Rekstur!$C:$C,$E19,Rekstur!U:U) -> 0 | X19: =SUMIF(Rekstur!$C:$C,$E19,Rekstur!V:V) -> 0 | Y19: =SUMIF(Rekstur!$C:$C,$E19,Rekstur!W:W) -> 0 | Z19: =SUMIF(Rekstur!$C:$C,$E19,Rekstur!X:X) -> 0 | AA19: =SUMIF(Rekstur!$C:$C,$E19,Rekstur!Y:Y) -> 0 | AB19: =SUMIF(Rekstur!$C:$C,$E19,Rekstur!Z:Z) -> 0 | AC19: =SUMIF(Rekstur!$C:$C,$E19,Rekstur!AA:AA) -> 0 | AD19: =SUMIF(Rekstur!$C:$C,$E19,Rekstur!AB:AB) -> 0 | AE19: =SUMIF(Rekstur!$C:$C,$E19,Rekstur!AC:AC) -> 0 | AF19: =SUMIF(Rekstur!$C:$C,$E19,Rekstur!AD:AD) -> 0 | AG19: 0 | AH19: =SUMIF(Rekstur!$C:$C,$E19,Rekstur!AF:AF) -> 0 | AI19: =SUMIF(Rekstur!$C:$C,$E19,Rekstur!AG:AG) -> 0 | AJ19: =SUMIF(Rekstur!$C:$C,$E19,Rekstur!AH:AH) -> 0
D20: =+Rekstur!B108 -> Kostnaðarliður no 4 | E20: 9 | F20: =+Forsendur!D26 -> 0 | H20: =SUMIF(Rekstur!$C:$C,$E20,Rekstur!F:F) -> 0 | I20: =SUMIF(Rekstur!$C:$C,$E20,Rekstur!G:G) -> 0 | J20: =SUMIF(Rekstur!$C:$C,$E20,Rekstur!H:H) -> 0 | K20: =SUMIF(Rekstur!$C:$C,$E20,Rekstur!I:I) -> 0 | L20: =SUMIF(Rekstur!$C:$C,$E20,Rekstur!J:J) -> 0 | M20: =SUMIF(Rekstur!$C:$C,$E20,Rekstur!K:K) -> 0 | N20: =SUMIF(Rekstur!$C:$C,$E20,Rekstur!L:L) -> 0 | O20: =SUMIF(Rekstur!$C:$C,$E20,Rekstur!M:M) -> 0 | P20: =SUMIF(Rekstur!$C:$C,$E20,Rekstur!N:N) -> 0 | Q20: =SUMIF(Rekstur!$C:$C,$E20,Rekstur!O:O) -> 0 | R20: =SUMIF(Rekstur!$C:$C,$E20,Rekstur!P:P) -> 0 | S20: =SUMIF(Rekstur!$C:$C,$E20,Rekstur!Q:Q) -> 0 | T20: 0 | U20: =SUMIF(Rekstur!$C:$C,$E20,Rekstur!S:S) -> 0 | V20: =SUMIF(Rekstur!$C:$C,$E20,Rekstur!T:T) -> 0 | W20: =SUMIF(Rekstur!$C:$C,$E20,Rekstur!U:U) -> 0 | X20: =SUMIF(Rekstur!$C:$C,$E20,Rekstur!V:V) -> 0 | Y20: =SUMIF(Rekstur!$C:$C,$E20,Rekstur!W:W) -> 0 | Z20: =SUMIF(Rekstur!$C:$C,$E20,Rekstur!X:X) -> 0 | AA20: =SUMIF(Rekstur!$C:$C,$E20,Rekstur!Y:Y) -> 0 | AB20: =SUMIF(Rekstur!$C:$C,$E20,Rekstur!Z:Z) -> 0 | AC20: =SUMIF(Rekstur!$C:$C,$E20,Rekstur!AA:AA) -> 0 | AD20: =SUMIF(Rekstur!$C:$C,$E20,Rekstur!AB:AB) -> 0 | AE20: =SUMIF(Rekstur!$C:$C,$E20,Rekstur!AC:AC) -> 0 | AF20: =SUMIF(Rekstur!$C:$C,$E20,Rekstur!AD:AD) -> 0 | AG20: 0 | AH20: =SUMIF(Rekstur!$C:$C,$E20,Rekstur!AF:AF) -> 0 | AI20: =SUMIF(Rekstur!$C:$C,$E20,Rekstur!AG:AG) -> 0 | AJ20: =SUMIF(Rekstur!$C:$C,$E20,Rekstur!AH:AH) -> 0
F22: =SUM(F17:F21) -> 0 | H22: =SUM(H17:H21) -> 0 | I22: =SUM(I17:I21) -> 0 | J22: 0 | K22: 0 | L22: 0 | M22: 0 | N22: 0 | O22: 0 | P22: 0 | Q22: 0 | R22: 0 | S22: 0 | T22: =SUM(H22:S22) -> 0 | U22: =SUM(U17:U21) -> 0 | V22: 0 | W22: 0 | X22: 0 | Y22: 0 | Z22: 0 | AA22: 0 | AB22: 0 | AC22: 0 | AD22: 0 | AE22: 0 | AF22: 0 | AG22: =SUM(U22:AF22) -> 0 | AH22: =SUM(AH17:AH21) -> 0 | AI22: =SUM(AI17:AI21) -> 0 | AJ22: =SUM(AJ17:AJ21) -> 0
D23: Rekstrarafkoma án afskrifta og fjármagnsliða (EBITDA) | F23: =F16-F22 -> 0 | H23: =H16-H22 -> 0 | I23: =I16-I22 -> 0 | J23: =J16-J22 -> 0 | K23: 0 | L23: 0 | M23: 0 | N23: 0 | O23: 0 | P23: 0 | Q23: 0 | R23: 0 | S23: 0 | T23: 0 | U23: 0 | V23: 0 | W23: 0 | X23: 0 | Y23: 0 | Z23: 0 | AA23: 0 | AB23: 0 | AC23: 0 | AD23: 0 | AE23: 0 | AF23: 0 | AG23: 0 | AH23: 0 | AI23: 0 | AJ23: 0
D25: Afskriftir | E25: 10 | F25: =SUMIF(Fyrningar!$G$1:$G$62,$E$25,Fyrningar!I$1:I$62) -> 0 | H25: =SUMIF(Fyrningar!$G$1:$G$62,$E$25,Fyrningar!J$1:J$62) -> 0 | I25: =SUMIF(Fyrningar!$G$1:$G$62,$E$25,Fyrningar!K$1:K$62) -> 0 | J25: =SUMIF(Fyrningar!$G$1:$G$62,$E$25,Fyrningar!L$1:L$62) -> 0 | K25: =SUMIF(Fyrningar!$G$1:$G$62,$E$25,Fyrningar!M$1:M$62) -> 0 | L25: =SUMIF(Fyrningar!$G$1:$G$62,$E$25,Fyrningar!N$1:N$62) -> 0 | M25: =SUMIF(Fyrningar!$G$1:$G$62,$E$25,Fyrningar!O$1:O$62) -> 0 | N25: =SUMIF(Fyrningar!$G$1:$G$62,$E$25,Fyrningar!P$1:P$62) -> 0 | O25: =SUMIF(Fyrningar!$G$1:$G$62,$E$25,Fyrningar!Q$1:Q$62) -> 0 | P25: =SUMIF(Fyrningar!$G$1:$G$62,$E$25,Fyrningar!R$1:R$62) -> 0 | Q25: =SUMIF(Fyrningar!$G$1:$G$62,$E$25,Fyrningar!S$1:S$62) -> 0 | R25: =SUMIF(Fyrningar!$G$1:$G$62,$E$25,Fyrningar!T$1:T$62) -> 0 | S25: =SUMIF(Fyrningar!$G$1:$G$62,$E$25,Fyrningar!U$1:U$62) -> 0 | T25: 0 | U25: =SUMIF(Fyrningar!$G$1:$G$62,$E$25,Fyrningar!W$1:W$62) -> 0 | V25: =SUMIF(Fyrningar!$G$1:$G$62,$E$25,Fyrningar!X$1:X$62) -> 0 | W25: =SUMIF(Fyrningar!$G$1:$G$62,$E$25,Fyrningar!Y$1:Y$62) -> 0 | X25: =SUMIF(Fyrningar!$G$1:$G$62,$E$25,Fyrningar!Z$1:Z$62) -> 0 | Y25: =SUMIF(Fyrningar!$G$1:$G$62,$E$25,Fyrningar!AA$1:AA$62) -> 0 | Z25: =SUMIF(Fyrningar!$G$1:$G$62,$E$25,Fyrningar!AB$1:AB$62) -> 0 | AA25: =SUMIF(Fyrningar!$G$1:$G$62,$E$25,Fyrningar!AC$1:AC$62) -> 0 | AB25: =SUMIF(Fyrningar!$G$1:$G$62,$E$25,Fyrningar!AD$1:AD$62) -> 0 | AC25: =SUMIF(Fyrningar!$G$1:$G$62,$E$25,Fyrningar!AE$1:AE$62) -> 0 | AD25: =SUMIF(Fyrningar!$G$1:$G$62,$E$25,Fyrningar!AF$1:AF$62) -> 0 | AE25: =SUMIF(Fyrningar!$G$1:$G$62,$E$25,Fyrningar!AG$1:AG$62) -> 0 | AF25: =SUMIF(Fyrningar!$G$1:$G$62,$E$25,Fyrningar!AH$1:AH$62) -> 0 | AG25: 0 | AH25: =SUMIF(Fyrningar!$G$1:$G$62,$E$25,Fyrningar!AJ$1:AJ$62) -> 0 | AI25: =SUMIF(Fyrningar!$G$1:$G$62,$E$25,Fyrningar!AK$1:AK$62) -> 0 | AJ25: =SUMIF(Fyrningar!$G$1:$G$62,$E$25,Fyrningar!AL$1:AL$62) -> 0
D27: Rekstrarafkoma án fjármagnsliða (EBIT) | F27: =F23-F25 -> 0 | H27: =H23-H25 -> 0 | I27: =I23-I25 -> 0 | J27: =J23-J25 -> 0 | K27: 0 | L27: 0 | M27: 0 | N27: 0 | O27: 0 | P27: 0 | Q27: 0 | R27: 0 | S27: 0 | T27: 0 | U27: 0 | V27: 0 | W27: 0 | X27: 0 | Y27: 0 | Z27: 0 | AA27: 0 | AB27: 0 | AC27: 0 | AD27: 0 | AE27: 0 | AF27: 0 | AG27: 0 | AH27: 0 | AI27: 0 | AJ27: =AJ23-AJ25 -> 0
D29: FJÁRMUNATEKJUR OG (FJÁRMAGNSGJÖLD):
D31: Vaxtatekjur | F31: =+Forsendur!D36 -> 0 | H31: =Efnahagur!H123 -> 0 | I31: =Efnahagur!I123 -> 0 | J31: =Efnahagur!J123 -> 0 | K31: =Efnahagur!K123 -> 0 | L31: =Efnahagur!L123 -> 0 | M31: =Efnahagur!M123 -> 0 | N31: =Efnahagur!N123 -> 0 | O31: =Efnahagur!O123 -> 0 | P31: =Efnahagur!P123 -> 0 | Q31: =Efnahagur!Q123 -> 0 | R31: =Efnahagur!R123 -> 0 | S31: =Efnahagur!S123 -> 0 | T31: =SUM(H31:S31) -> 0 | U31: =Efnahagur!U123 -> 0 | V31: =Efnahagur!V123 -> 0 | W31: =Efnahagur!W123 -> 0 | X31: =Efnahagur!X123 -> 0 | Y31: =Efnahagur!Y123 -> 0 | Z31: =Efnahagur!Z123 -> 0 | AA31: =Efnahagur!AA123 -> 0 | AB31: =Efnahagur!AB123 -> 0 | AC31: =Efnahagur!AC123 -> 0 | AD31: =Efnahagur!AD123 -> 0 | AE31: =Efnahagur!AE123 -> 0 | AF31: =Efnahagur!AF123 -> 0 | AG31: =SUM(U31:AF31) -> 0 | AH31: =Efnahagur!AH123 -> 0 | AI31: =Efnahagur!AI123 -> 0 | AJ31: =Efnahagur!AJ123 -> 0
D32: Vaxtagjöld | F32: =+Forsendur!D37 -> 0 | H32: =-Efnahagur!H131 -> 0 | I32: =-Efnahagur!I131 -> 0 | J32: =-Efnahagur!J131 -> 0 | K32: =-Efnahagur!K131 -> 0 | L32: =-Efnahagur!L131 -> 0 | M32: =-Efnahagur!M131 -> 0 | N32: =-Efnahagur!N131 -> 0 | O32: =-Efnahagur!O131 -> 0 | P32: =-Efnahagur!P131 -> 0 | Q32: =-Efnahagur!Q131 -> 0 | R32: =-Efnahagur!R131 -> 0 | S32: =-Efnahagur!S131 -> 0 | T32: =SUM(H32:S32) -> 0 | U32: =-Efnahagur!U131 -> 0 | V32: =-Efnahagur!V131 -> 0 | W32: =-Efnahagur!W131 -> 0 | X32: =-Efnahagur!X131 -> 0 | Y32: =-Efnahagur!Y131 -> 0 | Z32: =-Efnahagur!Z131 -> 0 | AA32: =-Efnahagur!AA131 -> 0 | AB32: =-Efnahagur!AB131 -> 0 | AC32: =-Efnahagur!AC131 -> 0 | AD32: =-Efnahagur!AD131 -> 0 | AE32: =-Efnahagur!AE131 -> 0 | AF32: =-Efnahagur!AF131 -> 0 | AG32: =SUM(U32:AF32) -> 0 | AH32: =-Efnahagur!AH131 -> 0 | AI32: =-Efnahagur!AI131 -> 0 | AJ32: =-Efnahagur!AJ131 -> 0
E33: 11 | F33: =SUM(F31:F32) -> 0 | H33: =SUM(H31:H32) -> 0 | I33: 0 | J33: 0 | K33: 0 | L33: =SUM(L31:L32) -> 0 | M33: 0 | N33: 0 | O33: 0 | P33: 0 | Q33: 0 | R33: 0 | S33: =SUM(S31:S32) -> 0 | T33: =SUM(H33:S33) -> 0 | U33: 0 | V33: 0 | W33: 0 | X33: 0 | Y33: 0 | Z33: 0 | AA33: 0 | AB33: 0 | AC33: 0 | AD33: 0 | AE33: 0 | AF33: 0 | AG33: =SUM(U33:AF33) -> 0 | AH33: =SUM(AH31:AH32) -> 0 | AI33: =SUM(AI31:AI32) -> 0 | AJ33: =SUM(AJ31:AJ32) -> 0
D35: ÓREGLULEGAR TEKJUR OG (GJÖLD):
D37: Hagnaður (Tap) af sölu varanl. rekstrarfjármuna | E37: 12 | F37: =+Forsendur!D42 -> 0 | H37: =--SUMIF(Fyrningar!$G$1:$G$62,$E37,Fyrningar!J$1:J$62) -> 0 | I37: =--SUMIF(Fyrningar!$G$1:$G$62,$E37,Fyrningar!K$1:K$62) -> 0 | J37: =--SUMIF(Fyrningar!$G$1:$G$62,$E37,Fyrningar!L$1:L$62) -> 0 | K37: =--SUMIF(Fyrningar!$G$1:$G$62,$E37,Fyrningar!M$1:M$62) -> 0 | L37: =--SUMIF(Fyrningar!$G$1:$G$62,$E37,Fyrningar!N$1:N$62) -> 0 | M37: =--SUMIF(Fyrningar!$G$1:$G$62,$E37,Fyrningar!O$1:O$62) -> 0 | N37: =--SUMIF(Fyrningar!$G$1:$G$62,$E37,Fyrningar!P$1:P$62) -> 0 | O37: =--SUMIF(Fyrningar!$G$1:$G$62,$E37,Fyrningar!Q$1:Q$62) -> 0 | P37: =--SUMIF(Fyrningar!$G$1:$G$62,$E37,Fyrningar!R$1:R$62) -> 0 | Q37: =--SUMIF(Fyrningar!$G$1:$G$62,$E37,Fyrningar!S$1:S$62) -> 0 | R37: =--SUMIF(Fyrningar!$G$1:$G$62,$E37,Fyrningar!T$1:T$62) -> 0 | S37: =--SUMIF(Fyrningar!$G$1:$G$62,$E37,Fyrningar!U$1:U$62) -> 0 | T37: =SUM(H37:S37) -> 0 | U37: =--SUMIF(Fyrningar!$G$1:$G$62,$E37,Fyrningar!W$1:W$62) -> 0 | V37: =--SUMIF(Fyrningar!$G$1:$G$62,$E37,Fyrningar!X$1:X$62) -> 0 | W37: =--SUMIF(Fyrningar!$G$1:$G$62,$E37,Fyrningar!Y$1:Y$62) -> 0 | X37: =--SUMIF(Fyrningar!$G$1:$G$62,$E37,Fyrningar!Z$1:Z$62) -> 0 | Y37: =--SUMIF(Fyrningar!$G$1:$G$62,$E37,Fyrningar!AA$1:AA$62) -> 0 | Z37: =--SUMIF(Fyrningar!$G$1:$G$62,$E37,Fyrningar!AB$1:AB$62) -> 0 | AA37: =--SUMIF(Fyrningar!$G$1:$G$62,$E37,Fyrningar!AC$1:AC$62) -> 0 | AB37: =--SUMIF(Fyrningar!$G$1:$G$62,$E37,Fyrningar!AD$1:AD$62) -> 0 | AC37: =--SUMIF(Fyrningar!$G$1:$G$62,$E37,Fyrningar!AE$1:AE$62) -> 0 | AD37: =--SUMIF(Fyrningar!$G$1:$G$62,$E37,Fyrningar!AF$1:AF$62) -> 0 | AE37: =--SUMIF(Fyrningar!$G$1:$G$62,$E37,Fyrningar!AG$1:AG$62) -> 0 | AF37: =--SUMIF(Fyrningar!$G$1:$G$62,$E37,Fyrningar!AH$1:AH$62) -> 0 | AG37: =SUM(U37:AF37) -> 0 | AH37: =--SUMIF(Fyrningar!$G$1:$G$62,$E37,Fyrningar!AJ$1:AJ$62) -> 0 | AI37: =--SUMIF(Fyrningar!$G$1:$G$62,$E37,Fyrningar!AK$1:AK$62) -> 0 | AJ37: =--SUMIF(Fyrningar!$G$1:$G$62,$E37,Fyrningar!AL$1:AL$62) -> 0
F38: =SUM(F37:F37) -> 0 | H38: =SUM(H37:H37) -> 0 | I38: 0 | J38: 0 | K38: 0 | L38: =SUM(L37:L37) -> 0 | M38: 0 | N38: 0 | O38: 0 | P38: 0 | Q38: 0 | R38: 0 | S38: =SUM(S37:S37) -> 0 | T38: =SUM(H38:S38) -> 0 | U38: 0 | V38: 0 | W38: 0 | X38: 0 | Y38: 0 | Z38: 0 | AA38: 0 | AB38: 0 | AC38: 0 | AD38: 0 | AE38: 0 | AF38: 0 | AG38: =SUM(U38:AF38) -> 0 | AH38: =SUM(AH37:AH37) -> 0 | AI38: =SUM(AI37:AI37) -> 0 | AJ38: =SUM(AJ37:AJ37) -> 0
D40: Rekstrarafkoma fyrir skatta | F40: =F27+F33+F38 -> 0 | H40: =H27+H33+H38 -> 0 | I40: =I27+I33+I38 -> 0 | J40: 0 | K40: 0 | L40: =L27+L33+L38 -> 0 | M40: =M27+M33+M38 -> 0 | N40: 0 | O40: 0 | P40: 0 | Q40: 0 | R40: 0 | S40: =S27+S33+S38 -> 0 | T40: =SUM(H40:S40) -> 0 | U40: 0 | V40: 0 | W40: 0 | X40: 0 | Y40: 0 | Z40: 0 | AA40: 0 | AB40: 0 | AC40: 0 | AD40: 0 | AE40: 0 | AF40: 0 | AG40: =SUM(U40:AF40) -> 0 | AH40: =AH27+AH33+AH38 -> 0 | AI40: =AI27+AI33+AI38 -> 0 | AJ40: =AJ27+AJ33+AJ38 -> 0
D41: Tekjuskattur | E41: 13 | F41: =+Forsendur!D46 -> 0 | H41: =-Efnahagur!H90 -> 0 | I41: =-Efnahagur!I90 -> 0 | J41: =-Efnahagur!J90 -> 0 | K41: =-Efnahagur!K90 -> 0 | L41: =-Efnahagur!L90 -> 0 | M41: =-Efnahagur!M90 -> 0 | N41: =-Efnahagur!N90 -> 0 | O41: =-Efnahagur!O90 -> 0 | P41: =-Efnahagur!P90 -> 0 | Q41: =-Efnahagur!Q90 -> 0 | R41: =-Efnahagur!R90 -> 0 | S41: =-Efnahagur!S90 -> 0 | T41: =SUM(H41:S41) -> 0 | U41: =-Efnahagur!U90 -> 0 | V41: =-Efnahagur!V90 -> 0 | W41: =-Efnahagur!W90 -> 0 | X41: =-Efnahagur!X90 -> 0 | Y41: =-Efnahagur!Y90 -> 0 | Z41: =-Efnahagur!Z90 -> 0 | AA41: =-Efnahagur!AA90 -> 0 | AB41: =-Efnahagur!AB90 -> 0 | AC41: =-Efnahagur!AC90 -> 0 | AD41: =-Efnahagur!AD90 -> 0 | AE41: =-Efnahagur!AE90 -> 0 | AF41: =-Efnahagur!AF90 -> 0 | AG41: =SUM(U41:AF41) -> 0 | AH41: =-Efnahagur!AH90 -> 0 | AI41: =-Efnahagur!AI90 -> 0 | AJ41: =-Efnahagur!AJ90 -> 0
D43: REKSTRARNIÐURSTAÐA | F43: =SUM(F40:F41) -> 0 | H43: =SUM(H40:H41) -> 0 | I43: 0 | J43: 0 | K43: 0 | L43: 0 | M43: 0 | N43: 0 | O43: 0 | P43: 0 | Q43: 0 | R43: 0 | S43: 0 | T43: =SUM(H43:S43) -> 0 | U43: 0 | V43: 0 | W43: 0 | X43: 0 | Y43: 0 | Z43: 0 | AA43: 0 | AB43: 0 | AC43: 0 | AD43: 0 | AE43: 0 | AF43: 0 | AG43: =SUM(AG40:AG41) -> 0 | AH43: =SUM(AH40:AH41) -> 0 | AI43: =SUM(AI40:AI41) -> 0 | AJ43: =SUM(AJ40:AJ41) -> 0
D46: EFNAHAGSREIKNINGUR
D47: EIGNIR | E47: Skýr. | F47: =F$4 -> Árið 2015 | H47: =Efnahagur!H3 -> Jan 2016 | I47: =Efnahagur!I3 -> Feb 2016 | J47: =Efnahagur!J3 -> Mar 2016 | K47: =Efnahagur!K3 -> Apr 2016 | L47: =Efnahagur!L3 -> Maí 2016 | M47: =Efnahagur!M3 -> Jún 2016 | N47: =Efnahagur!N3 -> Júl 2016 | O47: =Efnahagur!O3 -> Ágú 2016 | P47: =Efnahagur!P3 -> Sep 2016 | Q47: =Efnahagur!Q3 -> Okt 2016 | R47: =Efnahagur!R3 -> Nóv 2016 | S47: =Efnahagur!S3 -> Des 2016 | T47: =Efnahagur!T3 -> Árið 2016 | U47: =Efnahagur!U3 -> Jan 2017 | V47: =Efnahagur!V3 -> Feb 2017 | W47: =Efnahagur!W3 -> Mar 2017 | X47: =Efnahagur!X3 -> Apr 2017 | Y47: =Efnahagur!Y3 -> Maí 2017 | Z47: =Efnahagur!Z3 -> Jún 2017 | AA47: =Efnahagur!AA3 -> Júl 2017 | AB47: =Efnahagur!AB3 -> Ágú 2017 | AC47: =Efnahagur!AC3 -> Sep 2017 | AD47: =Efnahagur!AD3 -> Okt 2017 | AE47: =Efnahagur!AE3 -> Nóv 2017 | AF47: =Efnahagur!AF3 -> Des 2017 | AG47: =AG$4 -> Árið 2017 | AH47: =AH$4 -> Árið 2018 | AI47: =AI$4 -> Árið 2019 | AJ47: =AJ$4 -> Árið 2020
D49: FASTAFJÁRMUNIR:
D50: Langtímakröfur:
D51: Eignarhlutir í öðrum félögum | E51: 14 | F51: =+Efnahagur!G10 -> 0 | H51: =+Efnahagur!H10 -> 0 | I51: =+Efnahagur!I10 -> 0 | J51: =+Efnahagur!J10 -> 0 | K51: =+Efnahagur!K10 -> 0 | L51: =+Efnahagur!L10 -> 0 | M51: =+Efnahagur!M10 -> 0 | N51: =+Efnahagur!N10 -> 0 | O51: =+Efnahagur!O10 -> 0 | P51: =+Efnahagur!P10 -> 0 | Q51: =+Efnahagur!Q10 -> 0 | R51: =+Efnahagur!R10 -> 0 | S51: =+Efnahagur!S10 -> 0 | T51: =+S51 -> 0 | U51: =+Efnahagur!U10 -> 0 | V51: =+Efnahagur!V10 -> 0 | W51: =+Efnahagur!W10 -> 0 | X51: =+Efnahagur!X10 -> 0 | Y51: =+Efnahagur!Y10 -> 0 | Z51: =+Efnahagur!Z10 -> 0 | AA51: =+Efnahagur!AA10 -> 0 | AB51: =+Efnahagur!AB10 -> 0 | AC51: =+Efnahagur!AC10 -> 0 | AD51: =+Efnahagur!AD10 -> 0 | AE51: =+Efnahagur!AE10 -> 0 | AF51: =+Efnahagur!AF10 -> 0 | AG51: =+AF51 -> 0 | AH51: =+Efnahagur!AH10 -> 0 | AI51: =+Efnahagur!AI10 -> 0 | AJ51: =+Efnahagur!AJ10 -> 0
D52: Skuldabréfaeign | E52: 15 | F52: =+Efnahagur!G15 -> 0 | H52: =+Efnahagur!H15 -> 0 | I52: =+Efnahagur!I15 -> 0 | J52: =+Efnahagur!J15 -> 0 | K52: =+Efnahagur!K15 -> 0 | L52: =+Efnahagur!L15 -> 0 | M52: =+Efnahagur!M15 -> 0 | N52: =+Efnahagur!N15 -> 0 | O52: =+Efnahagur!O15 -> 0 | P52: =+Efnahagur!P15 -> 0 | Q52: =+Efnahagur!Q15 -> 0 | R52: =+Efnahagur!R15 -> 0 | S52: =+Efnahagur!S15 -> 0 | T52: =+S52 -> 0 | U52: =+Efnahagur!U15 -> 0 | V52: =+Efnahagur!V15 -> 0 | W52: =+Efnahagur!W15 -> 0 | X52: =+Efnahagur!X15 -> 0 | Y52: =+Efnahagur!Y15 -> 0 | Z52: =+Efnahagur!Z15 -> 0 | AA52: =+Efnahagur!AA15 -> 0 | AB52: =+Efnahagur!AB15 -> 0 | AC52: =+Efnahagur!AC15 -> 0 | AD52: =+Efnahagur!AD15 -> 0 | AE52: =+Efnahagur!AE15 -> 0 | AF52: =+Efnahagur!AF15 -> 0 | AG52: =+AF52 -> 0 | AH52: =+Efnahagur!AH15 -> 0 | AI52: =+Efnahagur!AI15 -> 0 | AJ52: =+Efnahagur!AJ15 -> 0
F53: =SUM(F51:F52) -> 0 | H53: =SUM(H51:H52) -> 0 | I53: 0 | J53: 0 | K53: 0 | L53: =SUM(L51:L52) -> 0 | M53: 0 | N53: 0 | O53: 0 | P53: 0 | Q53: 0 | R53: 0 | S53: =SUM(S51:S52) -> 0 | T53: 0 | U53: 0 | V53: 0 | W53: 0 | X53: 0 | Y53: 0 | Z53: 0 | AA53: 0 | AB53: 0 | AC53: 0 | AD53: 0 | AE53: 0 | AF53: 0 | AG53: 0 | AH53: =SUM(AH51:AH52) -> 0 | AI53: =SUM(AI51:AI52) -> 0 | AJ53: =SUM(AJ51:AJ52) -> 0
D54: Varanlegir rekstrarfjármunir:
D55: =+Forsendur!B99 -> Fyrningaflokkur 1 | E55: =Forsendur!C99 -> 16 | F55: =SUMIF(Fyrningar!$G$1:$G$62,$E55&"_1",Fyrningar!I$1:I$62) -> 0 | H55: =SUMIF(Fyrningar!$G$1:$G$62,$E55&"_1",Fyrningar!J$1:J$62) -> 0 | I55: =SUMIF(Fyrningar!$G$1:$G$62,$E55&"_1",Fyrningar!K$1:K$62) -> 0 | J55: =SUMIF(Fyrningar!$G$1:$G$62,$E55&"_1",Fyrningar!L$1:L$62) -> 0 | K55: =SUMIF(Fyrningar!$G$1:$G$62,$E55&"_1",Fyrningar!M$1:M$62) -> 0 | L55: =SUMIF(Fyrningar!$G$1:$G$62,$E55&"_1",Fyrningar!N$1:N$62) -> 0 | M55: =SUMIF(Fyrningar!$G$1:$G$62,$E55&"_1",Fyrningar!O$1:O$62) -> 0 | N55: =SUMIF(Fyrningar!$G$1:$G$62,$E55&"_1",Fyrningar!P$1:P$62) -> 0 | O55: =SUMIF(Fyrningar!$G$1:$G$62,$E55&"_1",Fyrningar!Q$1:Q$62) -> 0 | P55: =SUMIF(Fyrningar!$G$1:$G$62,$E55&"_1",Fyrningar!R$1:R$62) -> 0 | Q55: =SUMIF(Fyrningar!$G$1:$G$62,$E55&"_1",Fyrningar!S$1:S$62) -> 0 | R55: =SUMIF(Fyrningar!$G$1:$G$62,$E55&"_1",Fyrningar!T$1:T$62) -> 0 | S55: =SUMIF(Fyrningar!$G$1:$G$62,$E55&"_1",Fyrningar!U$1:U$62) -> 0 | T55: 0 | U55: =SUMIF(Fyrningar!$G$1:$G$62,$E55&"_1",Fyrningar!W$1:W$62) -> 0 | V55: =SUMIF(Fyrningar!$G$1:$G$62,$E55&"_1",Fyrningar!X$1:X$62) -> 0 | W55: =SUMIF(Fyrningar!$G$1:$G$62,$E55&"_1",Fyrningar!Y$1:Y$62) -> 0 | X55: =SUMIF(Fyrningar!$G$1:$G$62,$E55&"_1",Fyrningar!Z$1:Z$62) -> 0 | Y55: =SUMIF(Fyrningar!$G$1:$G$62,$E55&"_1",Fyrningar!AA$1:AA$62) -> 0 | Z55: =SUMIF(Fyrningar!$G$1:$G$62,$E55&"_1",Fyrningar!AB$1:AB$62) -> 0 | AA55: =SUMIF(Fyrningar!$G$1:$G$62,$E55&"_1",Fyrningar!AC$1:AC$62) -> 0 | AB55: =SUMIF(Fyrningar!$G$1:$G$62,$E55&"_1",Fyrningar!AD$1:AD$62) -> 0 | AC55: =SUMIF(Fyrningar!$G$1:$G$62,$E55&"_1",Fyrningar!AE$1:AE$62) -> 0 | AD55: =SUMIF(Fyrningar!$G$1:$G$62,$E55&"_1",Fyrningar!AF$1:AF$62) -> 0 | AE55: =SUMIF(Fyrningar!$G$1:$G$62,$E55&"_1",Fyrningar!AG$1:AG$62) -> 0 | AF55: =SUMIF(Fyrningar!$G$1:$G$62,$E55&"_1",Fyrningar!AH$1:AH$62) -> 0 | AG55: 0 | AH55: =SUMIF(Fyrningar!$G$1:$G$62,$E55&"_1",Fyrningar!AJ$1:AJ$62) -> 0 | AI55: =SUMIF(Fyrningar!$G$1:$G$62,$E55&"_1",Fyrningar!AK$1:AK$62) -> 0 | AJ55: =SUMIF(Fyrningar!$G$1:$G$62,$E55&"_1",Fyrningar!AL$1:AL$62) -> 0
D56: =+Forsendur!B100 -> Fyrningaflokkur 2 | E56: =Forsendur!C100 -> 17 | F56: =SUMIF(Fyrningar!$G$1:$G$62,$E56&"_1",Fyrningar!I$1:I$62) -> 0 | H56: =SUMIF(Fyrningar!$G$1:$G$62,$E56&"_1",Fyrningar!J$1:J$62) -> 0 | I56: =SUMIF(Fyrningar!$G$1:$G$62,$E56&"_1",Fyrningar!K$1:K$62) -> 0 | J56: =SUMIF(Fyrningar!$G$1:$G$62,$E56&"_1",Fyrningar!L$1:L$62) -> 0 | K56: =SUMIF(Fyrningar!$G$1:$G$62,$E56&"_1",Fyrningar!M$1:M$62) -> 0 | L56: =SUMIF(Fyrningar!$G$1:$G$62,$E56&"_1",Fyrningar!N$1:N$62) -> 0 | M56: =SUMIF(Fyrningar!$G$1:$G$62,$E56&"_1",Fyrningar!O$1:O$62) -> 0 | N56: =SUMIF(Fyrningar!$G$1:$G$62,$E56&"_1",Fyrningar!P$1:P$62) -> 0 | O56: =SUMIF(Fyrningar!$G$1:$G$62,$E56&"_1",Fyrningar!Q$1:Q$62) -> 0 | P56: =SUMIF(Fyrningar!$G$1:$G$62,$E56&"_1",Fyrningar!R$1:R$62) -> 0 | Q56: =SUMIF(Fyrningar!$G$1:$G$62,$E56&"_1",Fyrningar!S$1:S$62) -> 0 | R56: =SUMIF(Fyrningar!$G$1:$G$62,$E56&"_1",Fyrningar!T$1:T$62) -> 0 | S56: =SUMIF(Fyrningar!$G$1:$G$62,$E56&"_1",Fyrningar!U$1:U$62) -> 0 | T56: 0 | U56: =SUMIF(Fyrningar!$G$1:$G$62,$E56&"_1",Fyrningar!W$1:W$62) -> 0 | V56: =SUMIF(Fyrningar!$G$1:$G$62,$E56&"_1",Fyrningar!X$1:X$62) -> 0 | W56: =SUMIF(Fyrningar!$G$1:$G$62,$E56&"_1",Fyrningar!Y$1:Y$62) -> 0 | X56: =SUMIF(Fyrningar!$G$1:$G$62,$E56&"_1",Fyrningar!Z$1:Z$62) -> 0 | Y56: =SUMIF(Fyrningar!$G$1:$G$62,$E56&"_1",Fyrningar!AA$1:AA$62) -> 0 | Z56: =SUMIF(Fyrningar!$G$1:$G$62,$E56&"_1",Fyrningar!AB$1:AB$62) -> 0 | AA56: =SUMIF(Fyrningar!$G$1:$G$62,$E56&"_1",Fyrningar!AC$1:AC$62) -> 0 | AB56: =SUMIF(Fyrningar!$G$1:$G$62,$E56&"_1",Fyrningar!AD$1:AD$62) -> 0 | AC56: =SUMIF(Fyrningar!$G$1:$G$62,$E56&"_1",Fyrningar!AE$1:AE$62) -> 0 | AD56: =SUMIF(Fyrningar!$G$1:$G$62,$E56&"_1",Fyrningar!AF$1:AF$62) -> 0 | AE56: =SUMIF(Fyrningar!$G$1:$G$62,$E56&"_1",Fyrningar!AG$1:AG$62) -> 0 | AF56: =SUMIF(Fyrningar!$G$1:$G$62,$E56&"_1",Fyrningar!AH$1:AH$62) -> 0 | AG56: 0 | AH56: =SUMIF(Fyrningar!$G$1:$G$62,$E56&"_1",Fyrningar!AJ$1:AJ$62) -> 0 | AI56: =SUMIF(Fyrningar!$G$1:$G$62,$E56&"_1",Fyrningar!AK$1:AK$62) -> 0 | AJ56: =SUMIF(Fyrningar!$G$1:$G$62,$E56&"_1",Fyrningar!AL$1:AL$62) -> 0
D57: =+Forsendur!B101 -> Fyrningaflokkur 3 | E57: =Forsendur!C101 -> 18 | F57: =SUMIF(Fyrningar!$G$1:$G$62,$E57&"_1",Fyrningar!I$1:I$62) -> 0 | H57: =SUMIF(Fyrningar!$G$1:$G$62,$E57&"_1",Fyrningar!J$1:J$62) -> 0 | I57: =SUMIF(Fyrningar!$G$1:$G$62,$E57&"_1",Fyrningar!K$1:K$62) -> 0 | J57: =SUMIF(Fyrningar!$G$1:$G$62,$E57&"_1",Fyrningar!L$1:L$62) -> 0 | K57: =SUMIF(Fyrningar!$G$1:$G$62,$E57&"_1",Fyrningar!M$1:M$62) -> 0 | L57: =SUMIF(Fyrningar!$G$1:$G$62,$E57&"_1",Fyrningar!N$1:N$62) -> 0 | M57: =SUMIF(Fyrningar!$G$1:$G$62,$E57&"_1",Fyrningar!O$1:O$62) -> 0 | N57: =SUMIF(Fyrningar!$G$1:$G$62,$E57&"_1",Fyrningar!P$1:P$62) -> 0 | O57: =SUMIF(Fyrningar!$G$1:$G$62,$E57&"_1",Fyrningar!Q$1:Q$62) -> 0 | P57: =SUMIF(Fyrningar!$G$1:$G$62,$E57&"_1",Fyrningar!R$1:R$62) -> 0 | Q57: =SUMIF(Fyrningar!$G$1:$G$62,$E57&"_1",Fyrningar!S$1:S$62) -> 0 | R57: =SUMIF(Fyrningar!$G$1:$G$62,$E57&"_1",Fyrningar!T$1:T$62) -> 0 | S57: =SUMIF(Fyrningar!$G$1:$G$62,$E57&"_1",Fyrningar!U$1:U$62) -> 0 | T57: 0 | U57: =SUMIF(Fyrningar!$G$1:$G$62,$E57&"_1",Fyrningar!W$1:W$62) -> 0 | V57: =SUMIF(Fyrningar!$G$1:$G$62,$E57&"_1",Fyrningar!X$1:X$62) -> 0 | W57: =SUMIF(Fyrningar!$G$1:$G$62,$E57&"_1",Fyrningar!Y$1:Y$62) -> 0 | X57: =SUMIF(Fyrningar!$G$1:$G$62,$E57&"_1",Fyrningar!Z$1:Z$62) -> 0 | Y57: =SUMIF(Fyrningar!$G$1:$G$62,$E57&"_1",Fyrningar!AA$1:AA$62) -> 0 | Z57: =SUMIF(Fyrningar!$G$1:$G$62,$E57&"_1",Fyrningar!AB$1:AB$62) -> 0 | AA57: =SUMIF(Fyrningar!$G$1:$G$62,$E57&"_1",Fyrningar!AC$1:AC$62) -> 0 | AB57: =SUMIF(Fyrningar!$G$1:$G$62,$E57&"_1",Fyrningar!AD$1:AD$62) -> 0 | AC57: =SUMIF(Fyrningar!$G$1:$G$62,$E57&"_1",Fyrningar!AE$1:AE$62) -> 0 | AD57: =SUMIF(Fyrningar!$G$1:$G$62,$E57&"_1",Fyrningar!AF$1:AF$62) -> 0 | AE57: =SUMIF(Fyrningar!$G$1:$G$62,$E57&"_1",Fyrningar!AG$1:AG$62) -> 0 | AF57: =SUMIF(Fyrningar!$G$1:$G$62,$E57&"_1",Fyrningar!AH$1:AH$62) -> 0 | AG57: 0 | AH57: =SUMIF(Fyrningar!$G$1:$G$62,$E57&"_1",Fyrningar!AJ$1:AJ$62) -> 0 | AI57: =SUMIF(Fyrningar!$G$1:$G$62,$E57&"_1",Fyrningar!AK$1:AK$62) -> 0 | AJ57: =SUMIF(Fyrningar!$G$1:$G$62,$E57&"_1",Fyrningar!AL$1:AL$62) -> 0
D58: =+Forsendur!B102 -> Óefnislegt | E58: =Forsendur!C102 -> 19 | F58: =SUMIF(Fyrningar!$G$1:$G$62,$E58&"_1",Fyrningar!I$1:I$62) -> 0 | H58: =SUMIF(Fyrningar!$G$1:$G$62,$E58&"_1",Fyrningar!J$1:J$62) -> 0 | I58: =SUMIF(Fyrningar!$G$1:$G$62,$E58&"_1",Fyrningar!K$1:K$62) -> 0 | J58: =SUMIF(Fyrningar!$G$1:$G$62,$E58&"_1",Fyrningar!L$1:L$62) -> 0 | K58: =SUMIF(Fyrningar!$G$1:$G$62,$E58&"_1",Fyrningar!M$1:M$62) -> 0 | L58: =SUMIF(Fyrningar!$G$1:$G$62,$E58&"_1",Fyrningar!N$1:N$62) -> 0 | M58: =SUMIF(Fyrningar!$G$1:$G$62,$E58&"_1",Fyrningar!O$1:O$62) -> 0 | N58: =SUMIF(Fyrningar!$G$1:$G$62,$E58&"_1",Fyrningar!P$1:P$62) -> 0 | O58: =SUMIF(Fyrningar!$G$1:$G$62,$E58&"_1",Fyrningar!Q$1:Q$62) -> 0 | P58: =SUMIF(Fyrningar!$G$1:$G$62,$E58&"_1",Fyrningar!R$1:R$62) -> 0 | Q58: =SUMIF(Fyrningar!$G$1:$G$62,$E58&"_1",Fyrningar!S$1:S$62) -> 0 | R58: =SUMIF(Fyrningar!$G$1:$G$62,$E58&"_1",Fyrningar!T$1:T$62) -> 0 | S58: =SUMIF(Fyrningar!$G$1:$G$62,$E58&"_1",Fyrningar!U$1:U$62) -> 0 | T58: 0 | U58: =SUMIF(Fyrningar!$G$1:$G$62,$E58&"_1",Fyrningar!W$1:W$62) -> 0 | V58: =SUMIF(Fyrningar!$G$1:$G$62,$E58&"_1",Fyrningar!X$1:X$62) -> 0 | W58: =SUMIF(Fyrningar!$G$1:$G$62,$E58&"_1",Fyrningar!Y$1:Y$62) -> 0 | X58: =SUMIF(Fyrningar!$G$1:$G$62,$E58&"_1",Fyrningar!Z$1:Z$62) -> 0 | Y58: =SUMIF(Fyrningar!$G$1:$G$62,$E58&"_1",Fyrningar!AA$1:AA$62) -> 0 | Z58: =SUMIF(Fyrningar!$G$1:$G$62,$E58&"_1",Fyrningar!AB$1:AB$62) -> 0 | AA58: =SUMIF(Fyrningar!$G$1:$G$62,$E58&"_1",Fyrningar!AC$1:AC$62) -> 0 | AB58: =SUMIF(Fyrningar!$G$1:$G$62,$E58&"_1",Fyrningar!AD$1:AD$62) -> 0 | AC58: =SUMIF(Fyrningar!$G$1:$G$62,$E58&"_1",Fyrningar!AE$1:AE$62) -> 0 | AD58: =SUMIF(Fyrningar!$G$1:$G$62,$E58&"_1",Fyrningar!AF$1:AF$62) -> 0 | AE58: =SUMIF(Fyrningar!$G$1:$G$62,$E58&"_1",Fyrningar!AG$1:AG$62) -> 0 | AF58: =SUMIF(Fyrningar!$G$1:$G$62,$E58&"_1",Fyrningar!AH$1:AH$62) -> 0 | AG58: 0 | AH58: =SUMIF(Fyrningar!$G$1:$G$62,$E58&"_1",Fyrningar!AJ$1:AJ$62) -> 0 | AI58: =SUMIF(Fyrningar!$G$1:$G$62,$E58&"_1",Fyrningar!AK$1:AK$62) -> 0 | AJ58: =SUMIF(Fyrningar!$G$1:$G$62,$E58&"_1",Fyrningar!AL$1:AL$62) -> 0
F59: =SUM(F55:F58) -> 0 | H59: =SUM(H55:H58) -> 0 | I59: 0 | J59: 0 | K59: 0 | L59: 0 | M59: 0 | N59: 0 | O59: 0 | P59: 0 | Q59: 0 | R59: 0 | S59: 0 | T59: 0 | U59: 0 | V59: 0 | W59: 0 | X59: 0 | Y59: 0 | Z59: 0 | AA59: 0 | AB59: 0 | AC59: 0 | AD59: 0 | AE59: 0 | AF59: 0 | AG59: 0 | AH59: =SUM(AH55:AH58) -> 0 | AI59: =SUM(AI55:AI58) -> 0 | AJ59: =SUM(AJ55:AJ58) -> 0
D60: Fastafjármunir | F60: =+F59+F53 -> 0 | H60: =+H59+H53 -> 0 | I60: 0 | J60: 0 | K60: 0 | L60: 0 | M60: 0 | N60: 0 | O60: 0 | P60: 0 | Q60: 0 | R60: 0 | S60: 0 | T60: 0 | U60: 0 | V60: 0 | W60: 0 | X60: 0 | Y60: 0 | Z60: 0 | AA60: 0 | AB60: 0 | AC60: 0 | AD60: 0 | AE60: 0 | AF60: 0 | AG60: 0 | AH60: =+AH59+AH53 -> 0 | AI60: =+AI59+AI53 -> 0 | AJ60: =+AJ59+AJ53 -> 0
D62: VELTUFJÁRMUNIR:
D63: Handbært fé | E63: 20 | F63: =+Efnahagur!G33 -> 0 | H63: =+IF(H143>0,H143,0) -> 0 | I63: =+IF(I143>0,I143,0) -> 0 | J63: 0 | K63: 0 | L63: =+IF(L143>0,L143,0) -> 0 | M63: 0 | N63: 0 | O63: 0 | P63: 0 | Q63: =+IF(Q143>0,Q143,0) -> 0 | R63: 0 | S63: 0 | T63: =+S63 -> 0 | U63: 0 | V63: 0 | W63: 0 | X63: 0 | Y63: 0 | Z63: 0 | AA63: 0 | AB63: 0 | AC63: 0 | AD63: 0 | AE63: 0 | AF63: 0 | AG63: =+AF63 -> 0 | AH63: 0 | AI63: 0 | AJ63: 0
D64: Skammtímakröfur | E64: 21 | F64: =+Efnahagur!G22 -> 0 | H64: =+Efnahagur!H22 -> 0 | I64: =+Efnahagur!I22 -> 0 | J64: =+Efnahagur!J22 -> 0 | K64: =+Efnahagur!K22 -> 0 | L64: =+Efnahagur!L22 -> 0 | M64: =+Efnahagur!M22 -> 0 | N64: =+Efnahagur!N22 -> 0 | O64: =+Efnahagur!O22 -> 0 | P64: =+Efnahagur!P22 -> 0 | Q64: =+Efnahagur!Q22 -> 0 | R64: =+Efnahagur!R22 -> 0 | S64: =+Efnahagur!S22 -> 0 | T64: =+S64 -> 0 | U64: =+Efnahagur!U22 -> 0 | V64: =+Efnahagur!V22 -> 0 | W64: =+Efnahagur!W22 -> 0 | X64: =+Efnahagur!X22 -> 0 | Y64: =+Efnahagur!Y22 -> 0 | Z64: =+Efnahagur!Z22 -> 0 | AA64: =+Efnahagur!AA22 -> 0 | AB64: =+Efnahagur!AB22 -> 0 | AC64: =+Efnahagur!AC22 -> 0 | AD64: =+Efnahagur!AD22 -> 0 | AE64: =+Efnahagur!AE22 -> 0 | AF64: =+Efnahagur!AF22 -> 0 | AG64: =+AF64 -> 0 | AH64: =+Efnahagur!AH22 -> 0 | AI64: =+Efnahagur!AI22 -> 0 | AJ64: =+Efnahagur!AJ22 -> 0
D65: Birgðir | E65: 22 | F65: =+Efnahagur!G29 -> 0 | H65: =+Efnahagur!H29 -> 0 | I65: =+Efnahagur!I29 -> 0 | J65: =+Efnahagur!J29 -> 0 | K65: =+Efnahagur!K29 -> 0 | L65: =+Efnahagur!L29 -> 0 | M65: =+Efnahagur!M29 -> 0 | N65: =+Efnahagur!N29 -> 0 | O65: =+Efnahagur!O29 -> 0 | P65: =+Efnahagur!P29 -> 0 | Q65: =+Efnahagur!Q29 -> 0 | R65: =+Efnahagur!R29 -> 0 | S65: =+Efnahagur!S29 -> 0 | T65: =+S65 -> 0 | U65: =+Efnahagur!U29 -> 0 | V65: =+Efnahagur!V29 -> 0 | W65: =+Efnahagur!W29 -> 0 | X65: =+Efnahagur!X29 -> 0 | Y65: =+Efnahagur!Y29 -> 0 | Z65: =+Efnahagur!Z29 -> 0 | AA65: =+Efnahagur!AA29 -> 0 | AB65: =+Efnahagur!AB29 -> 0 | AC65: =+Efnahagur!AC29 -> 0 | AD65: =+Efnahagur!AD29 -> 0 | AE65: =+Efnahagur!AE29 -> 0 | AF65: =+Efnahagur!AF29 -> 0 | AG65: =+AF65 -> 0 | AH65: =+Efnahagur!AH29 -> 0 | AI65: =+Efnahagur!AI29 -> 0 | AJ65: =+Efnahagur!AJ29 -> 0
D66: Veltufjármunir | F66: =SUM(F63:F65) -> 0 | H66: =SUM(H63:H65) -> 0 | I66: =SUM(I63:I65) -> 0 | J66: =SUM(J63:J65) -> 0 | K66: =SUM(K63:K65) -> 0 | L66: =SUM(L63:L65) -> 0 | M66: =SUM(M63:M65) -> 0 | N66: =SUM(N63:N65) -> 0 | O66: 0 | P66: 0 | Q66: 0 | R66: 0 | S66: =SUM(S63:S65) -> 0 | T66: =+S66 -> 0 | U66: 0 | V66: 0 | W66: 0 | X66: 0 | Y66: 0 | Z66: 0 | AA66: 0 | AB66: 0 | AC66: 0 | AD66: 0 | AE66: 0 | AF66: 0 | AG66: =+AF66 -> 0 | AH66: =SUM(AH63:AH65) -> 0 | AI66: =SUM(AI63:AI65) -> 0 | AJ66: =SUM(AJ63:AJ65) -> 0
D69: EIGNIR SAMTALS | F69: =F60+F66 -> 0 | H69: =H60+H66 -> 0 | I69: 0 | J69: 0 | K69: 0 | L69: 0 | M69: 0 | N69: 0 | O69: 0 | P69: 0 | Q69: 0 | R69: 0 | S69: 0 | T69: =+S69 -> 0 | U69: 0 | V69: 0 | W69: 0 | X69: 0 | Y69: 0 | Z69: 0 | AA69: 0 | AB69: 0 | AC69: 0 | AD69: 0 | AE69: 0 | AF69: 0 | AG69: =+AF69 -> 0 | AH69: =AH60+AH66 -> 0 | AI69: =AI60+AI66 -> 0 | AJ69: =AJ60+AJ66 -> 0
D71: SKULDIR OG EIGIÐ FÉ
D72: EIGIÐ FÉ:
D73: Hlutafé | E73: 23 | F73: =+Efnahagur!G41 -> 0 | H73: =+Efnahagur!H41 -> 0 | I73: =+Efnahagur!I41 -> 0 | J73: =+Efnahagur!J41 -> 0 | K73: =+Efnahagur!K41 -> 0 | L73: =+Efnahagur!L41 -> 0 | M73: =+Efnahagur!M41 -> 0 | N73: =+Efnahagur!N41 -> 0 | O73: =+Efnahagur!O41 -> 0 | P73: =+Efnahagur!P41 -> 0 | Q73: =+Efnahagur!Q41 -> 0 | R73: =+Efnahagur!R41 -> 0 | S73: =+Efnahagur!S41 -> 0 | T73: =+S73 -> 0 | U73: =+Efnahagur!U41 -> 0 | V73: =+Efnahagur!V41 -> 0 | W73: =+Efnahagur!W41 -> 0 | X73: =+Efnahagur!X41 -> 0 | Y73: =+Efnahagur!Y41 -> 0 | Z73: =+Efnahagur!Z41 -> 0 | AA73: =+Efnahagur!AA41 -> 0 | AB73: =+Efnahagur!AB41 -> 0 | AC73: =+Efnahagur!AC41 -> 0 | AD73: =+Efnahagur!AD41 -> 0 | AE73: =+Efnahagur!AE41 -> 0 | AF73: =+Efnahagur!AF41 -> 0 | AG73: =+AF73 -> 0 | AH73: =+Efnahagur!AH41 -> 0 | AI73: =+Efnahagur!AI41 -> 0 | AJ73: =+Efnahagur!AJ41 -> 0
D74: Annað eigið fé | E74: 24 | F74: =+Efnahagur!G49 -> 0 | H74: =+Efnahagur!H49 -> 0 | I74: =+Efnahagur!I49 -> 0 | J74: =+Efnahagur!J49 -> 0 | K74: =+Efnahagur!K49 -> 0 | L74: =+Efnahagur!L49 -> 0 | M74: =+Efnahagur!M49 -> 0 | N74: =+Efnahagur!N49 -> 0 | O74: =+Efnahagur!O49 -> 0 | P74: =+Efnahagur!P49 -> 0 | Q74: =+Efnahagur!Q49 -> 0 | R74: =+Efnahagur!R49 -> 0 | S74: =+Efnahagur!S49 -> 0 | T74: =+S74 -> 0 | U74: =+Efnahagur!U49 -> 0 | V74: =+Efnahagur!V49 -> 0 | W74: =+Efnahagur!W49 -> 0 | X74: =+Efnahagur!X49 -> 0 | Y74: =+Efnahagur!Y49 -> 0 | Z74: =+Efnahagur!Z49 -> 0 | AA74: =+Efnahagur!AA49 -> 0 | AB74: =+Efnahagur!AB49 -> 0 | AC74: =+Efnahagur!AC49 -> 0 | AD74: =+Efnahagur!AD49 -> 0 | AE74: =+Efnahagur!AE49 -> 0 | AF74: =+Efnahagur!AF49 -> 0 | AG74: =+AF74 -> 0 | AH74: =+Efnahagur!AH49 -> 0 | AI74: =+Efnahagur!AI49 -> 0 | AJ74: =+Efnahagur!AJ49 -> 0
D75: Eigið fé | F75: =+SUM(F73:F74) -> 0 | H75: =SUM(H73:H74) -> 0 | I75: 0 | J75: 0 | K75: 0 | L75: =SUM(L73:L74) -> 0 | M75: 0 | N75: 0 | O75: 0 | P75: 0 | Q75: 0 | R75: 0 | S75: =SUM(S73:S74) -> 0 | T75: =+S75 -> 0 | U75: 0 | V75: 0 | W75: 0 | X75: 0 | Y75: 0 | Z75: 0 | AA75: 0 | AB75: 0 | AC75: 0 | AD75: 0 | AE75: 0 | AF75: 0 | AG75: =+AF75 -> 0 | AH75: =SUM(AH73:AH74) -> 0 | AI75: =SUM(AI73:AI74) -> 0 | AJ75: =SUM(AJ73:AJ74) -> 0
D77: SKULDBINDINGAR
D78: Tekjuskattsskuldbinding | E78: =+E41 -> 13 | F78: =+Efnahagur!G56 -> 0 | H78: =+Efnahagur!H56 -> 0 | I78: =+Efnahagur!I56 -> 0 | J78: =+Efnahagur!J56 -> 0 | K78: =+Efnahagur!K56 -> 0 | L78: =+Efnahagur!L56 -> 0 | M78: =+Efnahagur!M56 -> 0 | N78: =+Efnahagur!N56 -> 0 | O78: =+Efnahagur!O56 -> 0 | P78: =+Efnahagur!P56 -> 0 | Q78: =+Efnahagur!Q56 -> 0 | R78: =+Efnahagur!R56 -> 0 | S78: =+Efnahagur!S56 -> 0 | T78: =+S78 -> 0 | U78: =+Efnahagur!U56 -> 0 | V78: =+Efnahagur!V56 -> 0 | W78: =+Efnahagur!W56 -> 0 | X78: =+Efnahagur!X56 -> 0 | Y78: =+Efnahagur!Y56 -> 0 | Z78: =+Efnahagur!Z56 -> 0 | AA78: =+Efnahagur!AA56 -> 0 | AB78: =+Efnahagur!AB56 -> 0 | AC78: =+Efnahagur!AC56 -> 0 | AD78: =+Efnahagur!AD56 -> 0 | AE78: =+Efnahagur!AE56 -> 0 | AF78: =+Efnahagur!AF56 -> 0 | AG78: =+AF78 -> 0 | AH78: =+Efnahagur!AH56 -> 0 | AI78: =+Efnahagur!AI56 -> 0 | AJ78: =+Efnahagur!AJ56 -> 0
D80: LANGTÍMASKULDIR:
D81: =Forsendur!B107 -> Lánaflokkur 1 | E81: =Forsendur!C107 -> 25 | F81: =SUMIF(Lan!$G$1:$G$82,$E81&"_3",Lan!I$1:I$82) -> 0 | H81: =SUMIF(Lan!$G$1:$G$82,$E81&"_3",Lan!J$1:J$82) -> 0 | I81: =SUMIF(Lan!$G$1:$G$82,$E81&"_3",Lan!K$1:K$82) -> 0 | J81: =SUMIF(Lan!$G$1:$G$82,$E81&"_3",Lan!L$1:L$82) -> 0 | K81: =SUMIF(Lan!$G$1:$G$82,$E81&"_3",Lan!M$1:M$82) -> 0 | L81: =SUMIF(Lan!$G$1:$G$82,$E81&"_3",Lan!N$1:N$82) -> 0 | M81: =SUMIF(Lan!$G$1:$G$82,$E81&"_3",Lan!O$1:O$82) -> 0 | N81: =SUMIF(Lan!$G$1:$G$82,$E81&"_3",Lan!P$1:P$82) -> 0 | O81: =SUMIF(Lan!$G$1:$G$82,$E81&"_3",Lan!Q$1:Q$82) -> 0 | P81: =SUMIF(Lan!$G$1:$G$82,$E81&"_3",Lan!R$1:R$82) -> 0 | Q81: =SUMIF(Lan!$G$1:$G$82,$E81&"_3",Lan!S$1:S$82) -> 0 | R81: =SUMIF(Lan!$G$1:$G$82,$E81&"_3",Lan!T$1:T$82) -> 0 | S81: =SUMIF(Lan!$G$1:$G$82,$E81&"_3",Lan!U$1:U$82) -> 0 | T81: =+S81 -> 0 | U81: =SUMIF(Lan!$G$1:$G$82,$E81&"_3",Lan!W$1:W$82) -> 0 | V81: =SUMIF(Lan!$G$1:$G$82,$E81&"_3",Lan!X$1:X$82) -> 0 | W81: =SUMIF(Lan!$G$1:$G$82,$E81&"_3",Lan!Y$1:Y$82) -> 0 | X81: =SUMIF(Lan!$G$1:$G$82,$E81&"_3",Lan!Z$1:Z$82) -> 0 | Y81: =SUMIF(Lan!$G$1:$G$82,$E81&"_3",Lan!AA$1:AA$82) -> 0 | Z81: =SUMIF(Lan!$G$1:$G$82,$E81&"_3",Lan!AB$1:AB$82) -> 0 | AA81: =SUMIF(Lan!$G$1:$G$82,$E81&"_3",Lan!AC$1:AC$82) -> 0 | AB81: =SUMIF(Lan!$G$1:$G$82,$E81&"_3",Lan!AD$1:AD$82) -> 0 | AC81: =SUMIF(Lan!$G$1:$G$82,$E81&"_3",Lan!AE$1:AE$82) -> 0 | AD81: =SUMIF(Lan!$G$1:$G$82,$E81&"_3",Lan!AF$1:AF$82) -> 0 | AE81: =SUMIF(Lan!$G$1:$G$82,$E81&"_3",Lan!AG$1:AG$82) -> 0 | AF81: =SUMIF(Lan!$G$1:$G$82,$E81&"_3",Lan!AH$1:AH$82) -> 0 | AG81: =+AF81 -> 0 | AH81: =SUMIF(Lan!$G$1:$G$82,$E81&"_3",Lan!AJ$1:AJ$82) -> 0 | AI81: =SUMIF(Lan!$G$1:$G$82,$E81&"_3",Lan!AK$1:AK$82) -> 0 | AJ81: =SUMIF(Lan!$G$1:$G$82,$E81&"_3",Lan!AL$1:AL$82) -> 0
D82: =Forsendur!B108 -> Lánaflokkur 2 | E82: =Forsendur!C108 -> 26 | F82: =SUMIF(Lan!$G$1:$G$82,$E82&"_3",Lan!I$1:I$82) -> 0 | H82: =SUMIF(Lan!$G$1:$G$82,$E82&"_3",Lan!J$1:J$82) -> 0 | I82: =SUMIF(Lan!$G$1:$G$82,$E82&"_3",Lan!K$1:K$82) -> 0 | J82: =SUMIF(Lan!$G$1:$G$82,$E82&"_3",Lan!L$1:L$82) -> 0 | K82: =SUMIF(Lan!$G$1:$G$82,$E82&"_3",Lan!M$1:M$82) -> 0 | L82: =SUMIF(Lan!$G$1:$G$82,$E82&"_3",Lan!N$1:N$82) -> 0 | M82: =SUMIF(Lan!$G$1:$G$82,$E82&"_3",Lan!O$1:O$82) -> 0 | N82: =SUMIF(Lan!$G$1:$G$82,$E82&"_3",Lan!P$1:P$82) -> 0 | O82: =SUMIF(Lan!$G$1:$G$82,$E82&"_3",Lan!Q$1:Q$82) -> 0 | P82: =SUMIF(Lan!$G$1:$G$82,$E82&"_3",Lan!R$1:R$82) -> 0 | Q82: =SUMIF(Lan!$G$1:$G$82,$E82&"_3",Lan!S$1:S$82) -> 0 | R82: =SUMIF(Lan!$G$1:$G$82,$E82&"_3",Lan!T$1:T$82) -> 0 | S82: =SUMIF(Lan!$G$1:$G$82,$E82&"_3",Lan!U$1:U$82) -> 0 | T82: =+S82 -> 0 | U82: =SUMIF(Lan!$G$1:$G$82,$E82&"_3",Lan!W$1:W$82) -> 0 | V82: =SUMIF(Lan!$G$1:$G$82,$E82&"_3",Lan!X$1:X$82) -> 0 | W82: =SUMIF(Lan!$G$1:$G$82,$E82&"_3",Lan!Y$1:Y$82) -> 0 | X82: =SUMIF(Lan!$G$1:$G$82,$E82&"_3",Lan!Z$1:Z$82) -> 0 | Y82: =SUMIF(Lan!$G$1:$G$82,$E82&"_3",Lan!AA$1:AA$82) -> 0 | Z82: =SUMIF(Lan!$G$1:$G$82,$E82&"_3",Lan!AB$1:AB$82) -> 0 | AA82: =SUMIF(Lan!$G$1:$G$82,$E82&"_3",Lan!AC$1:AC$82) -> 0 | AB82: =SUMIF(Lan!$G$1:$G$82,$E82&"_3",Lan!AD$1:AD$82) -> 0 | AC82: =SUMIF(Lan!$G$1:$G$82,$E82&"_3",Lan!AE$1:AE$82) -> 0 | AD82: =SUMIF(Lan!$G$1:$G$82,$E82&"_3",Lan!AF$1:AF$82) -> 0 | AE82: =SUMIF(Lan!$G$1:$G$82,$E82&"_3",Lan!AG$1:AG$82) -> 0 | AF82: =SUMIF(Lan!$G$1:$G$82,$E82&"_3",Lan!AH$1:AH$82) -> 0 | AG82: =+AF82 -> 0 | AH82: =SUMIF(Lan!$G$1:$G$82,$E82&"_3",Lan!AJ$1:AJ$82) -> 0 | AI82: =SUMIF(Lan!$G$1:$G$82,$E82&"_3",Lan!AK$1:AK$82) -> 0 | AJ82: =SUMIF(Lan!$G$1:$G$82,$E82&"_3",Lan!AL$1:AL$82) -> 0
D83: =Forsendur!B109 -> Lánaflokkur 3 | E83: =Forsendur!C109 -> 27 | F83: =SUMIF(Lan!$G$1:$G$82,$E83&"_3",Lan!I$1:I$82) -> 0 | H83: =SUMIF(Lan!$G$1:$G$82,$E83&"_3",Lan!J$1:J$82) -> 0 | I83: =SUMIF(Lan!$G$1:$G$82,$E83&"_3",Lan!K$1:K$82) -> 0 | J83: =SUMIF(Lan!$G$1:$G$82,$E83&"_3",Lan!L$1:L$82) -> 0 | K83: =SUMIF(Lan!$G$1:$G$82,$E83&"_3",Lan!M$1:M$82) -> 0 | L83: =SUMIF(Lan!$G$1:$G$82,$E83&"_3",Lan!N$1:N$82) -> 0 | M83: =SUMIF(Lan!$G$1:$G$82,$E83&"_3",Lan!O$1:O$82) -> 0 | N83: =SUMIF(Lan!$G$1:$G$82,$E83&"_3",Lan!P$1:P$82) -> 0 | O83: =SUMIF(Lan!$G$1:$G$82,$E83&"_3",Lan!Q$1:Q$82) -> 0 | P83: =SUMIF(Lan!$G$1:$G$82,$E83&"_3",Lan!R$1:R$82) -> 0 | Q83: =SUMIF(Lan!$G$1:$G$82,$E83&"_3",Lan!S$1:S$82) -> 0 | R83: =SUMIF(Lan!$G$1:$G$82,$E83&"_3",Lan!T$1:T$82) -> 0 | S83: =SUMIF(Lan!$G$1:$G$82,$E83&"_3",Lan!U$1:U$82) -> 0 | T83: =+S83 -> 0 | U83: =SUMIF(Lan!$G$1:$G$82,$E83&"_3",Lan!W$1:W$82) -> 0 | V83: =SUMIF(Lan!$G$1:$G$82,$E83&"_3",Lan!X$1:X$82) -> 0 | W83: =SUMIF(Lan!$G$1:$G$82,$E83&"_3",Lan!Y$1:Y$82) -> 0 | X83: =SUMIF(Lan!$G$1:$G$82,$E83&"_3",Lan!Z$1:Z$82) -> 0 | Y83: =SUMIF(Lan!$G$1:$G$82,$E83&"_3",Lan!AA$1:AA$82) -> 0 | Z83: =SUMIF(Lan!$G$1:$G$82,$E83&"_3",Lan!AB$1:AB$82) -> 0 | AA83: =SUMIF(Lan!$G$1:$G$82,$E83&"_3",Lan!AC$1:AC$82) -> 0 | AB83: =SUMIF(Lan!$G$1:$G$82,$E83&"_3",Lan!AD$1:AD$82) -> 0 | AC83: =SUMIF(Lan!$G$1:$G$82,$E83&"_3",Lan!AE$1:AE$82) -> 0 | AD83: =SUMIF(Lan!$G$1:$G$82,$E83&"_3",Lan!AF$1:AF$82) -> 0 | AE83: =SUMIF(Lan!$G$1:$G$82,$E83&"_3",Lan!AG$1:AG$82) -> 0 | AF83: =SUMIF(Lan!$G$1:$G$82,$E83&"_3",Lan!AH$1:AH$82) -> 0 | AG83: =+AF83 -> 0 | AH83: =SUMIF(Lan!$G$1:$G$82,$E83&"_3",Lan!AJ$1:AJ$82) -> 0 | AI83: =SUMIF(Lan!$G$1:$G$82,$E83&"_3",Lan!AK$1:AK$82) -> 0 | AJ83: =SUMIF(Lan!$G$1:$G$82,$E83&"_3",Lan!AL$1:AL$82) -> 0
D84: Næsta árs afborgun langtímaskulda | E84: 28 | F84: =-SUMIF(Lan!$G$1:$G$82,$E84,Lan!I$1:I$82) -> 0 | H84: =-SUMIF(Lan!$G$1:$G$82,$E84,Lan!J$1:J$82) -> 0 | I84: =-SUMIF(Lan!$G$1:$G$82,$E84,Lan!K$1:K$82) -> 0 | J84: =-SUMIF(Lan!$G$1:$G$82,$E84,Lan!L$1:L$82) -> 0 | K84: =-SUMIF(Lan!$G$1:$G$82,$E84,Lan!M$1:M$82) -> 0 | L84: =-SUMIF(Lan!$G$1:$G$82,$E84,Lan!N$1:N$82) -> 0 | M84: =-SUMIF(Lan!$G$1:$G$82,$E84,Lan!O$1:O$82) -> 0 | N84: =-SUMIF(Lan!$G$1:$G$82,$E84,Lan!P$1:P$82) -> 0 | O84: =-SUMIF(Lan!$G$1:$G$82,$E84,Lan!Q$1:Q$82) -> 0 | P84: =-SUMIF(Lan!$G$1:$G$82,$E84,Lan!R$1:R$82) -> 0 | Q84: =-SUMIF(Lan!$G$1:$G$82,$E84,Lan!S$1:S$82) -> 0 | R84: =-SUMIF(Lan!$G$1:$G$82,$E84,Lan!T$1:T$82) -> 0 | S84: =-SUMIF(Lan!$G$1:$G$82,$E84,Lan!U$1:U$82) -> 0 | T84: =+S84 -> 0 | U84: =-SUMIF(Lan!$G$1:$G$82,$E84,Lan!W$1:W$82) -> 0 | V84: =-SUMIF(Lan!$G$1:$G$82,$E84,Lan!X$1:X$82) -> 0 | W84: =-SUMIF(Lan!$G$1:$G$82,$E84,Lan!Y$1:Y$82) -> 0 | X84: =-SUMIF(Lan!$G$1:$G$82,$E84,Lan!Z$1:Z$82) -> 0 | Y84: =-SUMIF(Lan!$G$1:$G$82,$E84,Lan!AA$1:AA$82) -> 0 | Z84: =-SUMIF(Lan!$G$1:$G$82,$E84,Lan!AB$1:AB$82) -> 0 | AA84: =-SUMIF(Lan!$G$1:$G$82,$E84,Lan!AC$1:AC$82) -> 0 | AB84: =-SUMIF(Lan!$G$1:$G$82,$E84,Lan!AD$1:AD$82) -> 0 | AC84: =-SUMIF(Lan!$G$1:$G$82,$E84,Lan!AE$1:AE$82) -> 0 | AD84: =-SUMIF(Lan!$G$1:$G$82,$E84,Lan!AF$1:AF$82) -> 0 | AE84: =-SUMIF(Lan!$G$1:$G$82,$E84,Lan!AG$1:AG$82) -> 0 | AF84: =-SUMIF(Lan!$G$1:$G$82,$E84,Lan!AH$1:AH$82) -> 0 | AG84: =+AF84 -> 0 | AH84: =-SUMIF(Lan!$G$1:$G$82,$E84,Lan!AJ$1:AJ$82) -> 0 | AI84: =-SUMIF(Lan!$G$1:$G$82,$E84,Lan!AK$1:AK$82) -> 0 | AJ84: =-SUMIF(Lan!$G$1:$G$82,$E84,Lan!AL$1:AL$82) -> 0
F85: =SUM(F81:F84) -> 0 | H85: =SUM(H81:H84) -> 0 | I85: 0 | J85: 0 | K85: 0 | L85: 0 | M85: 0 | N85: 0 | O85: 0 | P85: 0 | Q85: 0 | R85: 0 | S85: 0 | T85: =+S85 -> 0 | U85: 0 | V85: 0 | W85: 0 | X85: 0 | Y85: 0 | Z85: 0 | AA85: 0 | AB85: 0 | AC85: 0 | AD85: 0 | AE85: 0 | AF85: 0 | AG85: =+AF85 -> 0 | AH85: =SUM(AH81:AH84) -> 0 | AI85: =SUM(AI81:AI84) -> 0 | AJ85: =SUM(AJ81:AJ84) -> 0
D86: SKAMMTÍMASKULDIR:
D87: Skuldir við lánastofnanir | E87: 29 | F87: =+Efnahagur!G61 -> 0 | H87: =+Efnahagur!H61 -> 0 | I87: =+Efnahagur!I61 -> 0 | J87: =+Efnahagur!J61 -> 0 | K87: =+Efnahagur!K61 -> 0 | L87: =+Efnahagur!L61 -> 0 | M87: =+Efnahagur!M61 -> 0 | N87: =+Efnahagur!N61 -> 0 | O87: =+Efnahagur!O61 -> 0 | P87: =+Efnahagur!P61 -> 0 | Q87: =+Efnahagur!Q61 -> 0 | R87: =+Efnahagur!R61 -> 0 | S87: =+Efnahagur!S61 -> 0 | T87: =+S87 -> 0 | U87: =+Efnahagur!U61 -> 0 | V87: =+Efnahagur!V61 -> 0 | W87: =+Efnahagur!W61 -> 0 | X87: =+Efnahagur!X61 -> 0 | Y87: =+Efnahagur!Y61 -> 0 | Z87: =+Efnahagur!Z61 -> 0 | AA87: =+Efnahagur!AA61 -> 0 | AB87: =+Efnahagur!AB61 -> 0 | AC87: =+Efnahagur!AC61 -> 0 | AD87: =+Efnahagur!AD61 -> 0 | AE87: =+Efnahagur!AE61 -> 0 | AF87: =+Efnahagur!AF61 -> 0 | AG87: =+AF87 -> 0 | AH87: =+Efnahagur!AH61 -> 0 | AI87: =+Efnahagur!AI61 -> 0 | AJ87: =+Efnahagur!AJ61 -> 0
D88: Viðskiptaskuldir | E88: 30 | F88: =+Efnahagur!G68 -> 0 | H88: =+Efnahagur!H68 -> 0 | I88: =+Efnahagur!I68 -> 0 | J88: =+Efnahagur!J68 -> 0 | K88: =+Efnahagur!K68 -> 0 | L88: =+Efnahagur!L68 -> 0 | M88: =+Efnahagur!M68 -> 0 | N88: =+Efnahagur!N68 -> 0 | O88: =+Efnahagur!O68 -> 0 | P88: =+Efnahagur!P68 -> 0 | Q88: =+Efnahagur!Q68 -> 0 | R88: =+Efnahagur!R68 -> 0 | S88: =+Efnahagur!S68 -> 0 | T88: 0 | U88: =+Efnahagur!U68 -> 0 | V88: =+Efnahagur!V68 -> 0 | W88: =+Efnahagur!W68 -> 0 | X88: =+Efnahagur!X68 -> 0 | Y88: =+Efnahagur!Y68 -> 0 | Z88: =+Efnahagur!Z68 -> 0 | AA88: =+Efnahagur!AA68 -> 0 | AB88: =+Efnahagur!AB68 -> 0 | AC88: =+Efnahagur!AC68 -> 0 | AD88: =+Efnahagur!AD68 -> 0 | AE88: =+Efnahagur!AE68 -> 0 | AF88: =+Efnahagur!AF68 -> 0 | AG88: 0 | AH88: =+Efnahagur!AH68 -> 0 | AI88: =+Efnahagur!AI68 -> 0 | AJ88: =+Efnahagur!AJ68 -> 0
D89: Ógr. kostn. og aðrar skammtímask. | E89: 31 | F89: =+Efnahagur!G75 -> 0 | H89: =+Efnahagur!H75 -> 0 | I89: =+Efnahagur!I75 -> 0 | J89: =+Efnahagur!J75 -> 0 | K89: =+Efnahagur!K75 -> 0 | L89: =+Efnahagur!L75 -> 0 | M89: =+Efnahagur!M75 -> 0 | N89: =+Efnahagur!N75 -> 0 | O89: =+Efnahagur!O75 -> 0 | P89: =+Efnahagur!P75 -> 0 | Q89: =+Efnahagur!Q75 -> 0 | R89: =+Efnahagur!R75 -> 0 | S89: =+Efnahagur!S75 -> 0 | T89: 0 | U89: =+Efnahagur!U75 -> 0 | V89: =+Efnahagur!V75 -> 0 | W89: =+Efnahagur!W75 -> 0 | X89: =+Efnahagur!X75 -> 0 | Y89: =+Efnahagur!Y75 -> 0 | Z89: =+Efnahagur!Z75 -> 0 | AA89: =+Efnahagur!AA75 -> 0 | AB89: =+Efnahagur!AB75 -> 0 | AC89: =+Efnahagur!AC75 -> 0 | AD89: =+Efnahagur!AD75 -> 0 | AE89: =+Efnahagur!AE75 -> 0 | AF89: =+Efnahagur!AF75 -> 0 | AG89: 0 | AH89: =+Efnahagur!AH75 -> 0 | AI89: =+Efnahagur!AI75 -> 0 | AJ89: =+Efnahagur!AJ75 -> 0
D90: Ógreiddir vextir langtímalána | E90: 32 | F90: =SUMIF(Lan!$G$1:$G$82,$E90,Lan!I$1:I$82) -> 0 | H90: =SUMIF(Lan!$G$1:$G$82,$E90,Lan!J$1:J$82) -> 0 | I90: =SUMIF(Lan!$G$1:$G$82,$E90,Lan!K$1:K$82) -> 0 | J90: =SUMIF(Lan!$G$1:$G$82,$E90,Lan!L$1:L$82) -> 0 | K90: =SUMIF(Lan!$G$1:$G$82,$E90,Lan!M$1:M$82) -> 0 | L90: =SUMIF(Lan!$G$1:$G$82,$E90,Lan!N$1:N$82) -> 0 | M90: =SUMIF(Lan!$G$1:$G$82,$E90,Lan!O$1:O$82) -> 0 | N90: =SUMIF(Lan!$G$1:$G$82,$E90,Lan!P$1:P$82) -> 0 | O90: =SUMIF(Lan!$G$1:$G$82,$E90,Lan!Q$1:Q$82) -> 0 | P90: =SUMIF(Lan!$G$1:$G$82,$E90,Lan!R$1:R$82) -> 0 | Q90: =SUMIF(Lan!$G$1:$G$82,$E90,Lan!S$1:S$82) -> 0 | R90: =SUMIF(Lan!$G$1:$G$82,$E90,Lan!T$1:T$82) -> 0 | S90: =SUMIF(Lan!$G$1:$G$82,$E90,Lan!U$1:U$82) -> 0 | T90: 0 | U90: =SUMIF(Lan!$G$1:$G$82,$E90,Lan!W$1:W$82) -> 0 | V90: =SUMIF(Lan!$G$1:$G$82,$E90,Lan!X$1:X$82) -> 0 | W90: =SUMIF(Lan!$G$1:$G$82,$E90,Lan!Y$1:Y$82) -> 0 | X90: =SUMIF(Lan!$G$1:$G$82,$E90,Lan!Z$1:Z$82) -> 0 | Y90: =SUMIF(Lan!$G$1:$G$82,$E90,Lan!AA$1:AA$82) -> 0 | Z90: =SUMIF(Lan!$G$1:$G$82,$E90,Lan!AB$1:AB$82) -> 0 | AA90: =SUMIF(Lan!$G$1:$G$82,$E90,Lan!AC$1:AC$82) -> 0 | AB90: =SUMIF(Lan!$G$1:$G$82,$E90,Lan!AD$1:AD$82) -> 0 | AC90: =SUMIF(Lan!$G$1:$G$82,$E90,Lan!AE$1:AE$82) -> 0 | AD90: =SUMIF(Lan!$G$1:$G$82,$E90,Lan!AF$1:AF$82) -> 0 | AE90: =SUMIF(Lan!$G$1:$G$82,$E90,Lan!AG$1:AG$82) -> 0 | AF90: =SUMIF(Lan!$G$1:$G$82,$E90,Lan!AH$1:AH$82) -> 0 | AG90: 0 | AH90: =SUMIF(Lan!$G$1:$G$82,$E90,Lan!AJ$1:AJ$82) -> 0 | AI90: =SUMIF(Lan!$G$1:$G$82,$E90,Lan!AK$1:AK$82) -> 0 | AJ90: =SUMIF(Lan!$G$1:$G$82,$E90,Lan!AL$1:AL$82) -> 0
D91: Næsta árs afborgun langtímaskulda | E91: =+E84 -> 28 | F91: =-F84 -> 0 | H91: =-H84 -> 0 | I91: =-I84 -> 0 | J91: 0 | K91: 0 | L91: 0 | M91: 0 | N91: 0 | O91: 0 | P91: 0 | Q91: 0 | R91: 0 | S91: 0 | T91: 0 | U91: 0 | V91: 0 | W91: 0 | X91: 0 | Y91: 0 | Z91: 0 | AA91: 0 | AB91: 0 | AC91: 0 | AD91: 0 | AE91: 0 | AF91: 0 | AG91: 0 | AH91: 0 | AI91: 0 | AJ91: 0
D92: Reiknuð fjárþörf | E92: 33 | H92: =+IF(H143<0,-H143,0) -> 0 | I92: 0 | J92: 0 | K92: 0 | L92: =+IF(L143<0,-L143,0) -> 0 | M92: 0 | N92: 0 | O92: 0 | P92: 0 | Q92: =+IF(Q143<0,-Q143,0) -> 0 | R92: 0 | S92: 0 | T92: 0 | U92: 0 | V92: 0 | W92: 0 | X92: 0 | Y92: 0 | Z92: 0 | AA92: 0 | AB92: 0 | AC92: 0 | AD92: 0 | AE92: 0 | AF92: 0 | AG92: 0 | AH92: 0 | AI92: 0 | AJ92: 0
A93: h | D93: VSK skuldbinding | E93: 34 | F93: =+Efnahagur!G113 -> 0 | H93: =+Efnahagur!H113 -> 0 | I93: =+Efnahagur!I113 -> 0 | J93: =+Efnahagur!J113 -> 0 | K93: =+Efnahagur!K113 -> 0 | L93: =+Efnahagur!L113 -> 0 | M93: =+Efnahagur!M113 -> 0 | N93: =+Efnahagur!N113 -> 0 | O93: =+Efnahagur!O113 -> 0 | P93: =+Efnahagur!P113 -> 0 | Q93: =+Efnahagur!Q113 -> 0 | R93: =+Efnahagur!R113 -> 0 | S93: =+Efnahagur!S113 -> 0 | T93: =+S93 -> 0 | U93: =+Efnahagur!U113 -> 0 | V93: =+Efnahagur!V113 -> 0 | W93: =+Efnahagur!W113 -> 0 | X93: =+Efnahagur!X113 -> 0 | Y93: =+Efnahagur!Y113 -> 0 | Z93: =+Efnahagur!Z113 -> 0 | AA93: =+Efnahagur!AA113 -> 0 | AB93: =+Efnahagur!AB113 -> 0 | AC93: =+Efnahagur!AC113 -> 0 | AD93: =+Efnahagur!AD113 -> 0 | AE93: =+Efnahagur!AE113 -> 0 | AF93: =+Efnahagur!AF113 -> 0 | AG93: =+AF93 -> 0 | AH93: =+Efnahagur!AH113 -> 0 | AI93: =+Efnahagur!AI113 -> 0 | AJ93: =+Efnahagur!AJ113 -> 0
D94: Reiknaðir skattar | E94: 35 | F94: =+Efnahagur!G93 -> 0 | H94: =+Efnahagur!H93 -> 0 | I94: =+Efnahagur!I93 -> 0 | J94: =+Efnahagur!J93 -> 0 | K94: =+Efnahagur!K93 -> 0 | L94: =+Efnahagur!L93 -> 0 | M94: =+Efnahagur!M93 -> 0 | N94: =+Efnahagur!N93 -> 0 | O94: =+Efnahagur!O93 -> 0 | P94: =+Efnahagur!P93 -> 0 | Q94: =+Efnahagur!Q93 -> 0 | R94: =+Efnahagur!R93 -> 0 | S94: =+Efnahagur!S93 -> 0 | T94: =+S94 -> 0 | U94: =+Efnahagur!U93 -> 0 | V94: =+Efnahagur!V93 -> 0 | W94: =+Efnahagur!W93 -> 0 | X94: =+Efnahagur!X93 -> 0 | Y94: =+Efnahagur!Y93 -> 0 | Z94: =+Efnahagur!Z93 -> 0 | AA94: =+Efnahagur!AA93 -> 0 | AB94: =+Efnahagur!AB93 -> 0 | AC94: =+Efnahagur!AC93 -> 0 | AD94: =+Efnahagur!AD93 -> 0 | AE94: =+Efnahagur!AE93 -> 0 | AF94: =+Efnahagur!AF93 -> 0 | AG94: =+AF94 -> 0 | AH94: =+Efnahagur!AH93 -> 0 | AI94: =+Efnahagur!AI93 -> 0 | AJ94: =+Efnahagur!AJ93 -> 0
F95: =SUM(F87:F94) -> 0 | H95: =SUM(H87:H94) -> 0 | I95: 0 | J95: =SUM(J87:J94) -> 0 | K95: 0 | L95: =SUM(L87:L94) -> 0 | M95: 0 | N95: 0 | O95: =SUM(O87:O94) -> 0 | P95: 0 | Q95: 0 | R95: 0 | S95: 0 | T95: 0 | U95: 0 | V95: 0 | W95: 0 | X95: 0 | Y95: 0 | Z95: 0 | AA95: 0 | AB95: 0 | AC95: 0 | AD95: 0 | AE95: 0 | AF95: =SUM(AF87:AF94) -> 0 | AG95: 0 | AH95: =SUM(AH87:AH94) -> 0 | AI95: =SUM(AI87:AI94) -> 0 | AJ95: =SUM(AJ87:AJ94) -> 0
D97: Skuldir samtals | F97: =F85+F95+F78 -> 0 | H97: =H85+H95+H78 -> 0 | I97: 0 | J97: 0 | K97: 0 | L97: 0 | M97: 0 | N97: 0 | O97: 0 | P97: 0 | Q97: 0 | R97: 0 | S97: 0 | T97: 0 | U97: =U85+U95+U78 -> 0 | V97: 0 | W97: 0 | X97: 0 | Y97: 0 | Z97: 0 | AA97: 0 | AB97: 0 | AC97: 0 | AD97: 0 | AE97: 0 | AF97: 0 | AG97: =+AF97 -> 0 | AH97: =AH85+AH95+AH78 -> 0 | AI97: =AI85+AI95+AI78 -> 0 | AJ97: =AJ85+AJ95+AJ78 -> 0
D99: SKULDIR OG EIGIÐ FÉ SAMTALS | F99: =F75+F97 -> 0 | H99: =H75+H97 -> 0 | I99: 0 | J99: 0 | K99: 0 | L99: 0 | M99: 0 | N99: 0 | O99: 0 | P99: 0 | Q99: 0 | R99: 0 | S99: 0 | T99: 0 | U99: =U75+U97 -> 0 | V99: 0 | W99: 0 | X99: 0 | Y99: 0 | Z99: 0 | AA99: 0 | AB99: 0 | AC99: 0 | AD99: 0 | AE99: 0 | AF99: 0 | AG99: =+AF99 -> 0 | AH99: =AH75+AH97 -> 0 | AI99: =AI75+AI97 -> 0 | AJ99: =AJ75+AJ97 -> 0
F101: =IF(ROUND(F99-F69,0)=0,"","VILLA") ->  | H101: =IF(ROUND(H99-H69,0)=0,"","VILLA") ->  | U101: =IF(ROUND(U99-U69,0)=0,"","VILLA") -> 
D102: SJÓÐSTREYMI
E103: Skýr. | F103: =F$4 -> Árið 2015 | H103: =Efnahagur!H3 -> Jan 2016 | I103: =Efnahagur!I3 -> Feb 2016 | J103: =Efnahagur!J3 -> Mar 2016 | K103: =Efnahagur!K3 -> Apr 2016 | L103: =Efnahagur!L3 -> Maí 2016 | M103: =Efnahagur!M3 -> Jún 2016 | N103: =Efnahagur!N3 -> Júl 2016 | O103: =Efnahagur!O3 -> Ágú 2016 | P103: =Efnahagur!P3 -> Sep 2016 | Q103: =Efnahagur!Q3 -> Okt 2016 | R103: =Efnahagur!R3 -> Nóv 2016 | S103: =Efnahagur!S3 -> Des 2016 | T103: =Efnahagur!T3 -> Árið 2016 | U103: =Efnahagur!U3 -> Jan 2017 | V103: =Efnahagur!V3 -> Feb 2017 | W103: =Efnahagur!W3 -> Mar 2017 | X103: =Efnahagur!X3 -> Apr 2017 | Y103: =Efnahagur!Y3 -> Maí 2017 | Z103: =Efnahagur!Z3 -> Jún 2017 | AA103: =Efnahagur!AA3 -> Júl 2017 | AB103: =Efnahagur!AB3 -> Ágú 2017 | AC103: =Efnahagur!AC3 -> Sep 2017 | AD103: =Efnahagur!AD3 -> Okt 2017 | AE103: =Efnahagur!AE3 -> Nóv 2017 | AF103: =Efnahagur!AF3 -> Des 2017 | AG103: =AG$4 -> Árið 2017 | AH103: =AH$4 -> Árið 2018 | AI103: =AI$4 -> Árið 2019 | AJ103: =AJ$4 -> Árið 2020
D104: HANDBÆRT FÉ (TIL) FRÁ REKSTRI:
D106: Hagnaður (tap) samkvæmt rekstrarreikningi | F106: =+Forsendur!D54 -> 0 | H106: =H43 -> 0 | I106: =I43 -> 0 | J106: =J43 -> 0 | K106: =K43 -> 0 | L106: =L43 -> 0 | M106: =M43 -> 0 | N106: 0 | O106: 0 | P106: 0 | Q106: 0 | R106: 0 | S106: =S43 -> 0 | T106: =SUM(H106:S106) -> 0 | U106: 0 | V106: 0 | W106: 0 | X106: =X43 -> 0 | Y106: 0 | Z106: 0 | AA106: 0 | AB106: 0 | AC106: 0 | AD106: 0 | AE106: 0 | AF106: =AF43 -> 0 | AG106: =SUM(U106:AF106) -> 0 | AH106: =AH43 -> 0 | AI106: =AI43 -> 0 | AJ106: =AJ43 -> 0
D107: Rekstrarliðir sem hafa ekki áhrif á fjárstreymi:
D108: Afskriftir | E108: =+E25 -> 10 | F108: =+F25 -> 0 | H108: =H25 -> 0 | I108: =I25 -> 0 | J108: =J25 -> 0 | K108: =K25 -> 0 | L108: =L25 -> 0 | M108: =M25 -> 0 | N108: 0 | O108: 0 | P108: 0 | Q108: 0 | R108: 0 | S108: =S25 -> 0 | T108: =SUM(H108:S108) -> 0 | U108: 0 | V108: 0 | W108: 0 | X108: 0 | Y108: 0 | Z108: 0 | AA108: 0 | AB108: 0 | AC108: 0 | AD108: 0 | AE108: 0 | AF108: 0 | AG108: =SUM(U108:AF108) -> 0 | AH108: =AH25 -> 0 | AI108: =AI25 -> 0 | AJ108: =AJ25 -> 0
D109: Tekjuskattsskuldbinding, breyting | E109: =+E41 -> 13 | F109: =+Forsendur!D57 -> 0 | H109: =Efnahagur!H55 -> 0 | I109: =Efnahagur!I55 -> 0 | J109: =Efnahagur!J55 -> 0 | K109: =Efnahagur!K55 -> 0 | L109: =Efnahagur!L55 -> 0 | M109: =Efnahagur!M55 -> 0 | N109: =Efnahagur!N55 -> 0 | O109: =Efnahagur!O55 -> 0 | P109: =Efnahagur!P55 -> 0 | Q109: =Efnahagur!Q55 -> 0 | R109: =Efnahagur!R55 -> 0 | S109: =Efnahagur!S55 -> 0 | T109: =SUM(H109:S109) -> 0 | U109: =Efnahagur!U55 -> 0 | V109: =Efnahagur!V55 -> 0 | W109: =Efnahagur!W55 -> 0 | X109: =Efnahagur!X55 -> 0 | Y109: =Efnahagur!Y55 -> 0 | Z109: =Efnahagur!Z55 -> 0 | AA109: =Efnahagur!AA55 -> 0 | AB109: =Efnahagur!AB55 -> 0 | AC109: =Efnahagur!AC55 -> 0 | AD109: =Efnahagur!AD55 -> 0 | AE109: =Efnahagur!AE55 -> 0 | AF109: =Efnahagur!AF55 -> 0 | AG109: =SUM(U109:AF109) -> 0 | AH109: =Efnahagur!AH55 -> 0 | AI109: =Efnahagur!AI55 -> 0 | AJ109: =Efnahagur!AJ55 -> 0
D110: Tap, (hagnaður) af sölu eigna | E110: =+E37 -> 12 | F110: =+Forsendur!D58 -> 0 | H110: =-SUMIF(Fyrningar!$G$1:$G$62,$E110,Fyrningar!J$1:J$62) -> 0 | I110: =-SUMIF(Fyrningar!$G$1:$G$62,$E110,Fyrningar!K$1:K$62) -> 0 | J110: =-SUMIF(Fyrningar!$G$1:$G$62,$E110,Fyrningar!L$1:L$62) -> 0 | K110: =-SUMIF(Fyrningar!$G$1:$G$62,$E110,Fyrningar!M$1:M$62) -> 0 | L110: =-SUMIF(Fyrningar!$G$1:$G$62,$E110,Fyrningar!N$1:N$62) -> 0 | M110: =-SUMIF(Fyrningar!$G$1:$G$62,$E110,Fyrningar!O$1:O$62) -> 0 | N110: =-SUMIF(Fyrningar!$G$1:$G$62,$E110,Fyrningar!P$1:P$62) -> 0 | O110: =-SUMIF(Fyrningar!$G$1:$G$62,$E110,Fyrningar!Q$1:Q$62) -> 0 | P110: =-SUMIF(Fyrningar!$G$1:$G$62,$E110,Fyrningar!R$1:R$62) -> 0 | Q110: =-SUMIF(Fyrningar!$G$1:$G$62,$E110,Fyrningar!S$1:S$62) -> 0 | R110: =-SUMIF(Fyrningar!$G$1:$G$62,$E110,Fyrningar!T$1:T$62) -> 0 | S110: =-SUMIF(Fyrningar!$G$1:$G$62,$E110,Fyrningar!U$1:U$62) -> 0 | T110: =SUM(H110:S110) -> 0 | U110: =-SUMIF(Fyrningar!$G$1:$G$62,$E110,Fyrningar!W$1:W$62) -> 0 | V110: =-SUMIF(Fyrningar!$G$1:$G$62,$E110,Fyrningar!X$1:X$62) -> 0 | W110: =-SUMIF(Fyrningar!$G$1:$G$62,$E110,Fyrningar!Y$1:Y$62) -> 0 | X110: =-SUMIF(Fyrningar!$G$1:$G$62,$E110,Fyrningar!Z$1:Z$62) -> 0 | Y110: =-SUMIF(Fyrningar!$G$1:$G$62,$E110,Fyrningar!AA$1:AA$62) -> 0 | Z110: =-SUMIF(Fyrningar!$G$1:$G$62,$E110,Fyrningar!AB$1:AB$62) -> 0 | AA110: =-SUMIF(Fyrningar!$G$1:$G$62,$E110,Fyrningar!AC$1:AC$62) -> 0 | AB110: =-SUMIF(Fyrningar!$G$1:$G$62,$E110,Fyrningar!AD$1:AD$62) -> 0 | AC110: =-SUMIF(Fyrningar!$G$1:$G$62,$E110,Fyrningar!AE$1:AE$62) -> 0 | AD110: =-SUMIF(Fyrningar!$G$1:$G$62,$E110,Fyrningar!AF$1:AF$62) -> 0 | AE110: =-SUMIF(Fyrningar!$G$1:$G$62,$E110,Fyrningar!AG$1:AG$62) -> 0 | AF110: =-SUMIF(Fyrningar!$G$1:$G$62,$E110,Fyrningar!AH$1:AH$62) -> 0 | AG110: =SUM(U110:AF110) -> 0 | AH110: =-SUMIF(Fyrningar!$G$1:$G$62,$E110,Fyrningar!AJ$1:AJ$62) -> 0 | AI110: =-SUMIF(Fyrningar!$G$1:$G$62,$E110,Fyrningar!AK$1:AK$62) -> 0 | AJ110: =-SUMIF(Fyrningar!$G$1:$G$62,$E110,Fyrningar!AL$1:AL$62) -> 0
D111: Veltufé (til) frá rekstri | F111: =SUM(F106:F110) -> 0 | H111: =SUM(H106:H110) -> 0 | I111: 0 | J111: 0 | K111: 0 | L111: 0 | M111: 0 | N111: 0 | O111: 0 | P111: 0 | Q111: 0 | R111: 0 | S111: 0 | T111: =SUM(H111:S111) -> 0 | U111: 0 | V111: 0 | W111: 0 | X111: 0 | Y111: 0 | Z111: 0 | AA111: 0 | AB111: 0 | AC111: 0 | AD111: 0 | AE111: 0 | AF111: 0 | AG111: =SUM(U111:AF111) -> 0 | AH111: =SUM(AH106:AH110) -> 0 | AI111: =SUM(AI106:AI110) -> 0 | AJ111: =SUM(AJ106:AJ110) -> 0
D112: Breyting á rekstrartengdum eignum og skuldum:
D113: Skammtímakröfur, lækkun (hækkun) | E113: 14 | F113: =+Forsendur!D61 -> 0 | H113: =+SUM(F64:F64)-SUM(H64:H64) -> 0 | I113: =+SUM(H64:H64)-SUM(I64:I64) -> 0 | J113: 0 | K113: 0 | L113: =+SUM(K64:K64)-SUM(L64:L64) -> 0 | M113: 0 | N113: 0 | O113: 0 | P113: 0 | Q113: 0 | R113: 0 | S113: 0 | T113: =SUM(H113:S113) -> 0 | U113: =+SUM(S64:S64)-SUM(U64:U64) -> 0 | V113: 0 | W113: 0 | X113: 0 | Y113: 0 | Z113: 0 | AA113: 0 | AB113: 0 | AC113: 0 | AD113: 0 | AE113: 0 | AF113: 0 | AG113: =SUM(U113:AF113) -> 0 | AH113: =+SUM(AG64:AG64)-SUM(AH64:AH64) -> 0 | AI113: =+SUM(AH64:AH64)-SUM(AI64:AI64) -> 0 | AJ113: =+SUM(AI64:AI64)-SUM(AJ64:AJ64) -> 0
D114: Birgðir | F114: =+Forsendur!D62 -> 0 | H114: =+F65-H65 -> 0 | I114: =+H65-I65 -> 0 | J114: 0 | K114: =+J65-K65 -> 0 | L114: 0 | M114: 0 | N114: 0 | O114: 0 | P114: 0 | Q114: 0 | R114: 0 | S114: 0 | T114: =SUM(H114:S114) -> 0 | U114: =+S65-U65 -> 0 | V114: 0 | W114: 0 | X114: 0 | Y114: 0 | Z114: 0 | AA114: 0 | AB114: 0 | AC114: 0 | AD114: 0 | AE114: 0 | AF114: 0 | AG114: =SUM(U114:AF114) -> 0 | AH114: =+AG65-AH65 -> 0 | AI114: =+AH65-AI65 -> 0 | AJ114: =+AI65-AJ65 -> 0
D115: Breyting á VSK skuldbindingu | E115: 34 | F115: =+Forsendur!D63 -> 0 | H115: =+H93-F93 -> 0 | I115: =+I93-H93 -> 0 | J115: =+J93-I93 -> 0 | K115: 0 | L115: 0 | M115: 0 | N115: 0 | O115: 0 | P115: 0 | Q115: 0 | R115: 0 | S115: 0 | T115: =SUM(H115:S115) -> 0 | U115: 0 | V115: 0 | W115: 0 | X115: 0 | Y115: 0 | Z115: 0 | AA115: 0 | AB115: 0 | AC115: 0 | AD115: 0 | AE115: 0 | AF115: 0 | AG115: =SUM(U115:AF115) -> 0 | AH115: 0 | AI115: 0 | AJ115: 0
D116: Skammtímaskuldir, (lækkun) hækkun | E116: 13,16,17 | F116: =+Forsendur!D64 -> 0 | H116: =+SUM(H88:H90)-SUM(F88:F90)+H94-F94 -> 0 | I116: =+SUM(I88:I90)-SUM(H88:H90)+I94-H94 -> 0 | J116: =+SUM(J88:J90)-SUM(I88:I90)+J94-I94 -> 0 | K116: 0 | L116: 0 | M116: 0 | N116: 0 | O116: 0 | P116: 0 | Q116: 0 | R116: 0 | S116: 0 | T116: =SUM(H116:S116) -> 0 | U116: 0 | V116: 0 | W116: 0 | X116: 0 | Y116: 0 | Z116: 0 | AA116: 0 | AB116: 0 | AC116: 0 | AD116: 0 | AE116: 0 | AF116: 0 | AG116: =SUM(U116:AF116) -> 0 | AH116: =+SUM(AH88:AH90)-SUM(AG88:AG90)+AH94-AG94 -> 0 | AI116: =+SUM(AI88:AI90)-SUM(AH88:AH90)+AI94-AH94 -> 0 | AJ116: =+SUM(AJ88:AJ90)-SUM(AI88:AI90)+AJ94-AI94 -> 0
D117: Breyting á rekstrartengdum eignum og skuldum | F117: =SUM(F113:F116) -> 0 | H117: =SUM(H113:H116) -> 0 | I117: 0 | J117: 0 | K117: 0 | L117: =SUM(L113:L116) -> 0 | M117: 0 | N117: 0 | O117: 0 | P117: 0 | Q117: 0 | R117: 0 | S117: =SUM(S113:S116) -> 0 | T117: =SUM(H117:S117) -> 0 | U117: 0 | V117: 0 | W117: 0 | X117: 0 | Y117: 0 | Z117: 0 | AA117: 0 | AB117: 0 | AC117: 0 | AD117: 0 | AE117: 0 | AF117: 0 | AG117: =SUM(U117:AF117) -> 0 | AH117: =SUM(AH113:AH116) -> 0 | AI117: =SUM(AI113:AI116) -> 0 | AJ117: =SUM(AJ113:AJ116) -> 0
D119: Handbært fé (til) frá rekstri | F119: =F117+F111 -> 0 | H119: =H117+H111 -> 0 | I119: =I117+I111 -> 0 | J119: =J117+J111 -> 0 | K119: =K117+K111 -> 0 | L119: =L117+L111 -> 0 | M119: =M117+M111 -> 0 | N119: 0 | O119: 0 | P119: 0 | Q119: 0 | R119: 0 | S119: =S117+S111 -> 0 | T119: =SUM(H119:S119) -> 0 | U119: 0 | V119: 0 | W119: 0 | X119: 0 | Y119: 0 | Z119: 0 | AA119: 0 | AB119: 0 | AC119: 0 | AD119: 0 | AE119: 0 | AF119: 0 | AG119: =SUM(U119:AF119) -> 0 | AH119: =AH117+AH111 -> 0 | AI119: =AI117+AI111 -> 0 | AJ119: =AJ117+AJ111 -> 0
D121: FJÁRFESTINGARHREYFINGAR:
D123: Eignarhlutir í öðrum félögum, breyting | F123: =+Forsendur!D71 -> 0 | H123: =-Efnahagur!H9 -> 0 | I123: =-Efnahagur!I9 -> 0 | J123: =-Efnahagur!J9 -> 0 | K123: =-Efnahagur!K9 -> 0 | L123: =-Efnahagur!L9 -> 0 | M123: =-Efnahagur!M9 -> 0 | N123: =-Efnahagur!N9 -> 0 | O123: =-Efnahagur!O9 -> 0 | P123: =-Efnahagur!P9 -> 0 | Q123: =-Efnahagur!Q9 -> 0 | R123: =-Efnahagur!R9 -> 0 | S123: =-Efnahagur!S9 -> 0 | T123: =SUM(H123:S123) -> 0 | U123: =-Efnahagur!U9 -> 0 | V123: =-Efnahagur!V9 -> 0 | W123: =-Efnahagur!W9 -> 0 | X123: =-Efnahagur!X9 -> 0 | Y123: =-Efnahagur!Y9 -> 0 | Z123: =-Efnahagur!Z9 -> 0 | AA123: =-Efnahagur!AA9 -> 0 | AB123: =-Efnahagur!AB9 -> 0 | AC123: =-Efnahagur!AC9 -> 0 | AD123: =-Efnahagur!AD9 -> 0 | AE123: =-Efnahagur!AE9 -> 0 | AF123: =-Efnahagur!AF9 -> 0 | AG123: =SUM(U123:AF123) -> 0 | AH123: =-Efnahagur!AH9 -> 0 | AI123: =-Efnahagur!AI9 -> 0 | AJ123: =-Efnahagur!AJ9 -> 0
D124: Skuldabréfaeign, breyting | F124: =+Forsendur!D72 -> 0 | H124: =-Efnahagur!H14 -> 0 | I124: =-Efnahagur!I14 -> 0 | J124: =-Efnahagur!J14 -> 0 | K124: =-Efnahagur!K14 -> 0 | L124: =-Efnahagur!L14 -> 0 | M124: =-Efnahagur!M14 -> 0 | N124: =-Efnahagur!N14 -> 0 | O124: =-Efnahagur!O14 -> 0 | P124: =-Efnahagur!P14 -> 0 | Q124: =-Efnahagur!Q14 -> 0 | R124: =-Efnahagur!R14 -> 0 | S124: =-Efnahagur!S14 -> 0 | T124: =SUM(H124:S124) -> 0 | U124: =-Efnahagur!U14 -> 0 | V124: =-Efnahagur!V14 -> 0 | W124: =-Efnahagur!W14 -> 0 | X124: =-Efnahagur!X14 -> 0 | Y124: =-Efnahagur!Y14 -> 0 | Z124: =-Efnahagur!Z14 -> 0 | AA124: =-Efnahagur!AA14 -> 0 | AB124: =-Efnahagur!AB14 -> 0 | AC124: =-Efnahagur!AC14 -> 0 | AD124: =-Efnahagur!AD14 -> 0 | AE124: =-Efnahagur!AE14 -> 0 | AF124: =-Efnahagur!AF14 -> 0 | AG124: =SUM(U124:AF124) -> 0 | AH124: =-Efnahagur!AH14 -> 0 | AI124: =-Efnahagur!AI14 -> 0 | AJ124: =-Efnahagur!AJ14 -> 0
D125: Fjárfesting í varanlegum rekstrarfjármunum:
D126: =+Forsendur!B99 -> Fyrningaflokkur 1 | E126: =Forsendur!C99 -> 16 | F126: =+Forsendur!D74 -> 0 | H126: =-SUMIF(Fyrningar!$G$1:$G$62,$E126&"_2",Fyrningar!J$1:J$62) -> 0 | I126: =-SUMIF(Fyrningar!$G$1:$G$62,$E126&"_2",Fyrningar!K$1:K$62) -> 0 | J126: =-SUMIF(Fyrningar!$G$1:$G$62,$E126&"_2",Fyrningar!L$1:L$62) -> 0 | K126: =-SUMIF(Fyrningar!$G$1:$G$62,$E126&"_2",Fyrningar!M$1:M$62) -> 0 | L126: =-SUMIF(Fyrningar!$G$1:$G$62,$E126&"_2",Fyrningar!N$1:N$62) -> 0 | M126: =-SUMIF(Fyrningar!$G$1:$G$62,$E126&"_2",Fyrningar!O$1:O$62) -> 0 | N126: =-SUMIF(Fyrningar!$G$1:$G$62,$E126&"_2",Fyrningar!P$1:P$62) -> 0 | O126: =-SUMIF(Fyrningar!$G$1:$G$62,$E126&"_2",Fyrningar!Q$1:Q$62) -> 0 | P126: =-SUMIF(Fyrningar!$G$1:$G$62,$E126&"_2",Fyrningar!R$1:R$62) -> 0 | Q126: =-SUMIF(Fyrningar!$G$1:$G$62,$E126&"_2",Fyrningar!S$1:S$62) -> 0 | R126: =-SUMIF(Fyrningar!$G$1:$G$62,$E126&"_2",Fyrningar!T$1:T$62) -> 0 | S126: =-SUMIF(Fyrningar!$G$1:$G$62,$E126&"_2",Fyrningar!U$1:U$62) -> 0 | T126: =SUM(H126:S126) -> 0 | U126: =-SUMIF(Fyrningar!$G$1:$G$62,$E126&"_2",Fyrningar!W$1:W$62) -> 0 | V126: =-SUMIF(Fyrningar!$G$1:$G$62,$E126&"_2",Fyrningar!X$1:X$62) -> 0 | W126: =-SUMIF(Fyrningar!$G$1:$G$62,$E126&"_2",Fyrningar!Y$1:Y$62) -> 0 | X126: =-SUMIF(Fyrningar!$G$1:$G$62,$E126&"_2",Fyrningar!Z$1:Z$62) -> 0 | Y126: =-SUMIF(Fyrningar!$G$1:$G$62,$E126&"_2",Fyrningar!AA$1:AA$62) -> 0 | Z126: =-SUMIF(Fyrningar!$G$1:$G$62,$E126&"_2",Fyrningar!AB$1:AB$62) -> 0 | AA126: =-SUMIF(Fyrningar!$G$1:$G$62,$E126&"_2",Fyrningar!AC$1:AC$62) -> 0 | AB126: =-SUMIF(Fyrningar!$G$1:$G$62,$E126&"_2",Fyrningar!AD$1:AD$62) -> 0 | AC126: =-SUMIF(Fyrningar!$G$1:$G$62,$E126&"_2",Fyrningar!AE$1:AE$62) -> 0 | AD126: =-SUMIF(Fyrningar!$G$1:$G$62,$E126&"_2",Fyrningar!AF$1:AF$62) -> 0 | AE126: =-SUMIF(Fyrningar!$G$1:$G$62,$E126&"_2",Fyrningar!AG$1:AG$62) -> 0 | AF126: =-SUMIF(Fyrningar!$G$1:$G$62,$E126&"_2",Fyrningar!AH$1:AH$62) -> 0 | AG126: =SUM(U126:AF126) -> 0 | AH126: =-SUMIF(Fyrningar!$G$1:$G$62,$E126&"_2",Fyrningar!AJ$1:AJ$62) -> 0 | AI126: =-SUMIF(Fyrningar!$G$1:$G$62,$E126&"_2",Fyrningar!AK$1:AK$62) -> 0 | AJ126: =-SUMIF(Fyrningar!$G$1:$G$62,$E126&"_2",Fyrningar!AL$1:AL$62) -> 0
D127: =+Forsendur!B100 -> Fyrningaflokkur 2 | E127: =Forsendur!C100 -> 17 | F127: =+Forsendur!D75 -> 0 | H127: =-SUMIF(Fyrningar!$G$1:$G$62,$E127&"_2",Fyrningar!J$1:J$62) -> 0 | I127: =-SUMIF(Fyrningar!$G$1:$G$62,$E127&"_2",Fyrningar!K$1:K$62) -> 0 | J127: =-SUMIF(Fyrningar!$G$1:$G$62,$E127&"_2",Fyrningar!L$1:L$62) -> 0 | K127: =-SUMIF(Fyrningar!$G$1:$G$62,$E127&"_2",Fyrningar!M$1:M$62) -> 0 | L127: =-SUMIF(Fyrningar!$G$1:$G$62,$E127&"_2",Fyrningar!N$1:N$62) -> 0 | M127: =-SUMIF(Fyrningar!$G$1:$G$62,$E127&"_2",Fyrningar!O$1:O$62) -> 0 | N127: =-SUMIF(Fyrningar!$G$1:$G$62,$E127&"_2",Fyrningar!P$1:P$62) -> 0 | O127: =-SUMIF(Fyrningar!$G$1:$G$62,$E127&"_2",Fyrningar!Q$1:Q$62) -> 0 | P127: =-SUMIF(Fyrningar!$G$1:$G$62,$E127&"_2",Fyrningar!R$1:R$62) -> 0 | Q127: =-SUMIF(Fyrningar!$G$1:$G$62,$E127&"_2",Fyrningar!S$1:S$62) -> 0 | R127: =-SUMIF(Fyrningar!$G$1:$G$62,$E127&"_2",Fyrningar!T$1:T$62) -> 0 | S127: =-SUMIF(Fyrningar!$G$1:$G$62,$E127&"_2",Fyrningar!U$1:U$62) -> 0 | T127: =SUM(H127:S127) -> 0 | U127: =-SUMIF(Fyrningar!$G$1:$G$62,$E127&"_2",Fyrningar!W$1:W$62) -> 0 | V127: =-SUMIF(Fyrningar!$G$1:$G$62,$E127&"_2",Fyrningar!X$1:X$62) -> 0 | W127: =-SUMIF(Fyrningar!$G$1:$G$62,$E127&"_2",Fyrningar!Y$1:Y$62) -> 0 | X127: =-SUMIF(Fyrningar!$G$1:$G$62,$E127&"_2",Fyrningar!Z$1:Z$62) -> 0 | Y127: =-SUMIF(Fyrningar!$G$1:$G$62,$E127&"_2",Fyrningar!AA$1:AA$62) -> 0 | Z127: =-SUMIF(Fyrningar!$G$1:$G$62,$E127&"_2",Fyrningar!AB$1:AB$62) -> 0 | AA127: =-SUMIF(Fyrningar!$G$1:$G$62,$E127&"_2",Fyrningar!AC$1:AC$62) -> 0 | AB127: =-SUMIF(Fyrningar!$G$1:$G$62,$E127&"_2",Fyrningar!AD$1:AD$62) -> 0 | AC127: =-SUMIF(Fyrningar!$G$1:$G$62,$E127&"_2",Fyrningar!AE$1:AE$62) -> 0 | AD127: =-SUMIF(Fyrningar!$G$1:$G$62,$E127&"_2",Fyrningar!AF$1:AF$62) -> 0 | AE127: =-SUMIF(Fyrningar!$G$1:$G$62,$E127&"_2",Fyrningar!AG$1:AG$62) -> 0 | AF127: =-SUMIF(Fyrningar!$G$1:$G$62,$E127&"_2",Fyrningar!AH$1:AH$62) -> 0 | AG127: =SUM(U127:AF127) -> 0 | AH127: =-SUMIF(Fyrningar!$G$1:$G$62,$E127&"_2",Fyrningar!AJ$1:AJ$62) -> 0 | AI127: =-SUMIF(Fyrningar!$G$1:$G$62,$E127&"_2",Fyrningar!AK$1:AK$62) -> 0 | AJ127: =-SUMIF(Fyrningar!$G$1:$G$62,$E127&"_2",Fyrningar!AL$1:AL$62) -> 0
D128: =+Forsendur!B101 -> Fyrningaflokkur 3 | E128: =Forsendur!C101 -> 18 | F128: =+Forsendur!D76 -> 0 | H128: =-SUMIF(Fyrningar!$G$1:$G$62,$E128&"_2",Fyrningar!J$1:J$62) -> 0 | I128: =-SUMIF(Fyrningar!$G$1:$G$62,$E128&"_2",Fyrningar!K$1:K$62) -> 0 | J128: =-SUMIF(Fyrningar!$G$1:$G$62,$E128&"_2",Fyrningar!L$1:L$62) -> 0 | K128: =-SUMIF(Fyrningar!$G$1:$G$62,$E128&"_2",Fyrningar!M$1:M$62) -> 0 | L128: =-SUMIF(Fyrningar!$G$1:$G$62,$E128&"_2",Fyrningar!N$1:N$62) -> 0 | M128: =-SUMIF(Fyrningar!$G$1:$G$62,$E128&"_2",Fyrningar!O$1:O$62) -> 0 | N128: =-SUMIF(Fyrningar!$G$1:$G$62,$E128&"_2",Fyrningar!P$1:P$62) -> 0 | O128: =-SUMIF(Fyrningar!$G$1:$G$62,$E128&"_2",Fyrningar!Q$1:Q$62) -> 0 | P128: =-SUMIF(Fyrningar!$G$1:$G$62,$E128&"_2",Fyrningar!R$1:R$62) -> 0 | Q128: =-SUMIF(Fyrningar!$G$1:$G$62,$E128&"_2",Fyrningar!S$1:S$62) -> 0 | R128: =-SUMIF(Fyrningar!$G$1:$G$62,$E128&"_2",Fyrningar!T$1:T$62) -> 0 | S128: =-SUMIF(Fyrningar!$G$1:$G$62,$E128&"_2",Fyrningar!U$1:U$62) -> 0 | T128: =SUM(H128:S128) -> 0 | U128: =-SUMIF(Fyrningar!$G$1:$G$62,$E128&"_2",Fyrningar!W$1:W$62) -> 0 | V128: =-SUMIF(Fyrningar!$G$1:$G$62,$E128&"_2",Fyrningar!X$1:X$62) -> 0 | W128: =-SUMIF(Fyrningar!$G$1:$G$62,$E128&"_2",Fyrningar!Y$1:Y$62) -> 0 | X128: =-SUMIF(Fyrningar!$G$1:$G$62,$E128&"_2",Fyrningar!Z$1:Z$62) -> 0 | Y128: =-SUMIF(Fyrningar!$G$1:$G$62,$E128&"_2",Fyrningar!AA$1:AA$62) -> 0 | Z128: =-SUMIF(Fyrningar!$G$1:$G$62,$E128&"_2",Fyrningar!AB$1:AB$62) -> 0 | AA128: =-SUMIF(Fyrningar!$G$1:$G$62,$E128&"_2",Fyrningar!AC$1:AC$62) -> 0 | AB128: =-SUMIF(Fyrningar!$G$1:$G$62,$E128&"_2",Fyrningar!AD$1:AD$62) -> 0 | AC128: =-SUMIF(Fyrningar!$G$1:$G$62,$E128&"_2",Fyrningar!AE$1:AE$62) -> 0 | AD128: =-SUMIF(Fyrningar!$G$1:$G$62,$E128&"_2",Fyrningar!AF$1:AF$62) -> 0 | AE128: =-SUMIF(Fyrningar!$G$1:$G$62,$E128&"_2",Fyrningar!AG$1:AG$62) -> 0 | AF128: =-SUMIF(Fyrningar!$G$1:$G$62,$E128&"_2",Fyrningar!AH$1:AH$62) -> 0 | AG128: =SUM(U128:AF128) -> 0 | AH128: =-SUMIF(Fyrningar!$G$1:$G$62,$E128&"_2",Fyrningar!AJ$1:AJ$62) -> 0 | AI128: =-SUMIF(Fyrningar!$G$1:$G$62,$E128&"_2",Fyrningar!AK$1:AK$62) -> 0 | AJ128: =-SUMIF(Fyrningar!$G$1:$G$62,$E128&"_2",Fyrningar!AL$1:AL$62) -> 0
D129: Sala á varanlegum rekstrarfjármunum | F129: =+Forsendur!D77 -> 0 | H129: =SUMIF(Fyrningar!$G$1:$G$62,Forsendur!$C$99&"_3",Fyrningar!J$1:J$62)+SUMIF(Fyrningar!$G$1:$G$62,Forsendur!$C$100&"_3",Fyrningar!J$1:J$62)+SUMIF(Fyrningar!$G$1:$G$62,Forsendur!$C$101&"_3",Fyrningar!J$1:J$62) -> 0 | I129: =SUMIF(Fyrningar!$G$1:$G$62,$E129&"_2",Fyrningar!K$1:K$62) -> 0 | J129: =SUMIF(Fyrningar!$G$1:$G$62,$E129&"_2",Fyrningar!L$1:L$62) -> 0 | K129: =SUMIF(Fyrningar!$G$1:$G$62,$E129&"_2",Fyrningar!M$1:M$62) -> 0 | L129: =SUMIF(Fyrningar!$G$1:$G$62,$E129&"_2",Fyrningar!N$1:N$62) -> 0 | M129: =SUMIF(Fyrningar!$G$1:$G$62,$E129&"_2",Fyrningar!O$1:O$62) -> 0 | N129: =SUMIF(Fyrningar!$G$1:$G$62,$E129&"_2",Fyrningar!P$1:P$62) -> 0 | O129: =SUMIF(Fyrningar!$G$1:$G$62,$E129&"_2",Fyrningar!Q$1:Q$62) -> 0 | P129: =SUMIF(Fyrningar!$G$1:$G$62,$E129&"_2",Fyrningar!R$1:R$62) -> 0 | Q129: =SUMIF(Fyrningar!$G$1:$G$62,$E129&"_2",Fyrningar!S$1:S$62) -> 0 | R129: =SUMIF(Fyrningar!$G$1:$G$62,$E129&"_2",Fyrningar!T$1:T$62) -> 0 | S129: =SUMIF(Fyrningar!$G$1:$G$62,$E129&"_2",Fyrningar!U$1:U$62) -> 0 | T129: =SUM(H129:S129) -> 0 | U129: =SUMIF(Fyrningar!$G$1:$G$62,$E129&"_2",Fyrningar!W$1:W$62) -> 0 | V129: =SUMIF(Fyrningar!$G$1:$G$62,$E129&"_2",Fyrningar!X$1:X$62) -> 0 | W129: =SUMIF(Fyrningar!$G$1:$G$62,$E129&"_2",Fyrningar!Y$1:Y$62) -> 0 | X129: =SUMIF(Fyrningar!$G$1:$G$62,$E129&"_2",Fyrningar!Z$1:Z$62) -> 0 | Y129: =SUMIF(Fyrningar!$G$1:$G$62,$E129&"_2",Fyrningar!AA$1:AA$62) -> 0 | Z129: =SUMIF(Fyrningar!$G$1:$G$62,$E129&"_2",Fyrningar!AB$1:AB$62) -> 0 | AA129: =SUMIF(Fyrningar!$G$1:$G$62,$E129&"_2",Fyrningar!AC$1:AC$62) -> 0 | AB129: =SUMIF(Fyrningar!$G$1:$G$62,$E129&"_2",Fyrningar!AD$1:AD$62) -> 0 | AC129: =SUMIF(Fyrningar!$G$1:$G$62,$E129&"_2",Fyrningar!AE$1:AE$62) -> 0 | AD129: =SUMIF(Fyrningar!$G$1:$G$62,$E129&"_2",Fyrningar!AF$1:AF$62) -> 0 | AE129: =SUMIF(Fyrningar!$G$1:$G$62,$E129&"_2",Fyrningar!AG$1:AG$62) -> 0 | AF129: =SUMIF(Fyrningar!$G$1:$G$62,$E129&"_2",Fyrningar!AH$1:AH$62) -> 0 | AG129: =SUM(U129:AF129) -> 0 | AH129: =SUMIF(Fyrningar!$G$1:$G$62,$E129&"_2",Fyrningar!AJ$1:AJ$62) -> 0 | AI129: =SUMIF(Fyrningar!$G$1:$G$62,$E129&"_2",Fyrningar!AK$1:AK$62) -> 0 | AJ129: =SUMIF(Fyrningar!$G$1:$G$62,$E129&"_2",Fyrningar!AL$1:AL$62) -> 0
D130: =+Forsendur!B102 -> Óefnislegt | E130: =Forsendur!C102 -> 19 | F130: =+Forsendur!D78 -> 0 | H130: =-SUMIF(Fyrningar!$G$1:$G$62,$E130&"_2",Fyrningar!J$1:J$62)+SUMIF(Fyrningar!$G$1:$G$62,Forsendur!$C$99&"_3",Fyrningar!J$1:J$62) -> 0 | I130: =-SUMIF(Fyrningar!$G$1:$G$62,$E130&"_2",Fyrningar!K$1:K$62)+SUMIF(Fyrningar!$G$1:$G$62,Forsendur!$C$99&"_3",Fyrningar!K$1:K$62) -> 0 | J130: =-SUMIF(Fyrningar!$G$1:$G$62,$E130&"_2",Fyrningar!L$1:L$62)+SUMIF(Fyrningar!$G$1:$G$62,Forsendur!$C$99&"_3",Fyrningar!L$1:L$62) -> 0 | K130: =-SUMIF(Fyrningar!$G$1:$G$62,$E130&"_2",Fyrningar!M$1:M$62)+SUMIF(Fyrningar!$G$1:$G$62,Forsendur!$C$99&"_3",Fyrningar!M$1:M$62) -> 0 | L130: =-SUMIF(Fyrningar!$G$1:$G$62,$E130&"_2",Fyrningar!N$1:N$62)+SUMIF(Fyrningar!$G$1:$G$62,Forsendur!$C$99&"_3",Fyrningar!N$1:N$62) -> 0 | M130: =-SUMIF(Fyrningar!$G$1:$G$62,$E130&"_2",Fyrningar!O$1:O$62)+SUMIF(Fyrningar!$G$1:$G$62,Forsendur!$C$99&"_3",Fyrningar!O$1:O$62) -> 0 | N130: =-SUMIF(Fyrningar!$G$1:$G$62,$E130&"_2",Fyrningar!P$1:P$62)+SUMIF(Fyrningar!$G$1:$G$62,Forsendur!$C$99&"_3",Fyrningar!P$1:P$62) -> 0 | O130: =-SUMIF(Fyrningar!$G$1:$G$62,$E130&"_2",Fyrningar!Q$1:Q$62)+SUMIF(Fyrningar!$G$1:$G$62,Forsendur!$C$99&"_3",Fyrningar!Q$1:Q$62) -> 0 | P130: =-SUMIF(Fyrningar!$G$1:$G$62,$E130&"_2",Fyrningar!R$1:R$62)+SUMIF(Fyrningar!$G$1:$G$62,Forsendur!$C$99&"_3",Fyrningar!R$1:R$62) -> 0 | Q130: =-SUMIF(Fyrningar!$G$1:$G$62,$E130&"_2",Fyrningar!S$1:S$62)+SUMIF(Fyrningar!$G$1:$G$62,Forsendur!$C$99&"_3",Fyrningar!S$1:S$62) -> 0 | R130: =-SUMIF(Fyrningar!$G$1:$G$62,$E130&"_2",Fyrningar!T$1:T$62)+SUMIF(Fyrningar!$G$1:$G$62,Forsendur!$C$99&"_3",Fyrningar!T$1:T$62) -> 0 | S130: =-SUMIF(Fyrningar!$G$1:$G$62,$E130&"_2",Fyrningar!U$1:U$62)+SUMIF(Fyrningar!$G$1:$G$62,Forsendur!$C$99&"_3",Fyrningar!U$1:U$62) -> 0 | T130: 0 | U130: =-SUMIF(Fyrningar!$G$1:$G$62,$E130&"_2",Fyrningar!W$1:W$62)+SUMIF(Fyrningar!$G$1:$G$62,Forsendur!$C$99&"_3",Fyrningar!W$1:W$62) -> 0 | V130: =-SUMIF(Fyrningar!$G$1:$G$62,$E130&"_2",Fyrningar!X$1:X$62)+SUMIF(Fyrningar!$G$1:$G$62,Forsendur!$C$99&"_3",Fyrningar!X$1:X$62) -> 0 | W130: =-SUMIF(Fyrningar!$G$1:$G$62,$E130&"_2",Fyrningar!Y$1:Y$62)+SUMIF(Fyrningar!$G$1:$G$62,Forsendur!$C$99&"_3",Fyrningar!Y$1:Y$62) -> 0 | X130: =-SUMIF(Fyrningar!$G$1:$G$62,$E130&"_2",Fyrningar!Z$1:Z$62)+SUMIF(Fyrningar!$G$1:$G$62,Forsendur!$C$99&"_3",Fyrningar!Z$1:Z$62) -> 0 | Y130: =-SUMIF(Fyrningar!$G$1:$G$62,$E130&"_2",Fyrningar!AA$1:AA$62)+SUMIF(Fyrningar!$G$1:$G$62,Forsendur!$C$99&"_3",Fyrningar!AA$1:AA$62) -> 0 | Z130: =-SUMIF(Fyrningar!$G$1:$G$62,$E130&"_2",Fyrningar!AB$1:AB$62)+SUMIF(Fyrningar!$G$1:$G$62,Forsendur!$C$99&"_3",Fyrningar!AB$1:AB$62) -> 0 | AA130: =-SUMIF(Fyrningar!$G$1:$G$62,$E130&"_2",Fyrningar!AC$1:AC$62)+SUMIF(Fyrningar!$G$1:$G$62,Forsendur!$C$99&"_3",Fyrningar!AC$1:AC$62) -> 0 | AB130: =-SUMIF(Fyrningar!$G$1:$G$62,$E130&"_2",Fyrningar!AD$1:AD$62)+SUMIF(Fyrningar!$G$1:$G$62,Forsendur!$C$99&"_3",Fyrningar!AD$1:AD$62) -> 0 | AC130: =-SUMIF(Fyrningar!$G$1:$G$62,$E130&"_2",Fyrningar!AE$1:AE$62)+SUMIF(Fyrningar!$G$1:$G$62,Forsendur!$C$99&"_3",Fyrningar!AE$1:AE$62) -> 0 | AD130: =-SUMIF(Fyrningar!$G$1:$G$62,$E130&"_2",Fyrningar!AF$1:AF$62)+SUMIF(Fyrningar!$G$1:$G$62,Forsendur!$C$99&"_3",Fyrningar!AF$1:AF$62) -> 0 | AE130: =-SUMIF(Fyrningar!$G$1:$G$62,$E130&"_2",Fyrningar!AG$1:AG$62)+SUMIF(Fyrningar!$G$1:$G$62,Forsendur!$C$99&"_3",Fyrningar!AG$1:AG$62) -> 0 | AF130: =-SUMIF(Fyrningar!$G$1:$G$62,$E130&"_2",Fyrningar!AH$1:AH$62)+SUMIF(Fyrningar!$G$1:$G$62,Forsendur!$C$99&"_3",Fyrningar!AH$1:AH$62) -> 0 | AG130: 0 | AH130: =-SUMIF(Fyrningar!$G$1:$G$62,$E130&"_2",Fyrningar!AJ$1:AJ$62)+SUMIF(Fyrningar!$G$1:$G$62,Forsendur!$C$99&"_3",Fyrningar!AJ$1:AJ$62) -> 0 | AI130: =-SUMIF(Fyrningar!$G$1:$G$62,$E130&"_2",Fyrningar!AK$1:AK$62)+SUMIF(Fyrningar!$G$1:$G$62,Forsendur!$C$99&"_3",Fyrningar!AK$1:AK$62) -> 0 | AJ130: =-SUMIF(Fyrningar!$G$1:$G$62,$E130&"_2",Fyrningar!AL$1:AL$62)+SUMIF(Fyrningar!$G$1:$G$62,Forsendur!$C$99&"_3",Fyrningar!AL$1:AL$62) -> 0
D131: Fjárfestingarhreyfingar | E131: 12 | F131: =SUM(F123:F130) -> 0 | H131: =SUM(H123:H130) -> 0 | I131: 0 | J131: 0 | K131: 0 | L131: =SUM(L123:L130) -> 0 | M131: 0 | N131: 0 | O131: 0 | P131: 0 | Q131: 0 | R131: 0 | S131: =SUM(S123:S130) -> 0 | T131: 0 | U131: 0 | V131: 0 | W131: 0 | X131: 0 | Y131: 0 | Z131: 0 | AA131: 0 | AB131: 0 | AC131: 0 | AD131: 0 | AE131: 0 | AF131: 0 | AG131: 0 | AH131: =SUM(AH123:AH130) -> 0 | AI131: =SUM(AI123:AI130) -> 0 | AJ131: =SUM(AJ123:AJ130) -> 0
D133: FJÁRMÖGNUNARHREYFINGAR:
D134: Skuld við banka, hækkun, (lækkun) | F134: =+Forsendur!D82 -> 0 | H134: =+H87-F87 -> 0 | I134: =+I87-H87 -> 0 | J134: 0 | K134: 0 | L134: =+L87-K87 -> 0 | M134: 0 | N134: 0 | O134: 0 | P134: 0 | Q134: 0 | R134: 0 | S134: 0 | T134: =SUM(H134:S134) -> 0 | U134: =+U87-S87 -> 0 | V134: 0 | W134: 0 | X134: 0 | Y134: 0 | Z134: 0 | AA134: 0 | AB134: 0 | AC134: 0 | AD134: 0 | AE134: 0 | AF134: 0 | AG134: =SUM(U134:AF134) -> 0 | AH134: =+AH87-AG87 -> 0 | AI134: =+AI87-AH87 -> 0 | AJ134: =+AJ87-AI87 -> 0
D135: Ný langtímalán | F135: =+Forsendur!D83 -> 0 | H135: =SUMIF(Lan!$G$1:$G$82,Forsendur!$C$107&"_1",Lan!J$1:J$82)+SUMIF(Lan!$G$1:$G$82,Forsendur!$C$108&"_1",Lan!J$1:J$82)+SUMIF(Lan!$G$1:$G$82,Forsendur!$C$109&"_1",Lan!J$1:J$82) -> 0 | I135: =SUMIF(Lan!$G$1:$G$82,Forsendur!$C$107&"_1",Lan!K$1:K$82)+SUMIF(Lan!$G$1:$G$82,Forsendur!$C$108&"_1",Lan!K$1:K$82)+SUMIF(Lan!$G$1:$G$82,Forsendur!$C$109&"_1",Lan!K$1:K$82) -> 0 | J135: =SUMIF(Lan!$G$1:$G$82,Forsendur!$C$107&"_1",Lan!L$1:L$82)+SUMIF(Lan!$G$1:$G$82,Forsendur!$C$108&"_1",Lan!L$1:L$82)+SUMIF(Lan!$G$1:$G$82,Forsendur!$C$109&"_1",Lan!L$1:L$82) -> 0 | K135: =SUMIF(Lan!$G$1:$G$82,Forsendur!$C$107&"_1",Lan!M$1:M$82)+SUMIF(Lan!$G$1:$G$82,Forsendur!$C$108&"_1",Lan!M$1:M$82)+SUMIF(Lan!$G$1:$G$82,Forsendur!$C$109&"_1",Lan!M$1:M$82) -> 0 | L135: =SUMIF(Lan!$G$1:$G$82,Forsendur!$C$107&"_1",Lan!N$1:N$82)+SUMIF(Lan!$G$1:$G$82,Forsendur!$C$108&"_1",Lan!N$1:N$82)+SUMIF(Lan!$G$1:$G$82,Forsendur!$C$109&"_1",Lan!N$1:N$82) -> 0 | M135: =SUMIF(Lan!$G$1:$G$82,Forsendur!$C$107&"_1",Lan!O$1:O$82)+SUMIF(Lan!$G$1:$G$82,Forsendur!$C$108&"_1",Lan!O$1:O$82)+SUMIF(Lan!$G$1:$G$82,Forsendur!$C$109&"_1",Lan!O$1:O$82) -> 0 | N135: =SUMIF(Lan!$G$1:$G$82,Forsendur!$C$107&"_1",Lan!P$1:P$82)+SUMIF(Lan!$G$1:$G$82,Forsendur!$C$108&"_1",Lan!P$1:P$82)+SUMIF(Lan!$G$1:$G$82,Forsendur!$C$109&"_1",Lan!P$1:P$82) -> 0 | O135: =SUMIF(Lan!$G$1:$G$82,Forsendur!$C$107&"_1",Lan!Q$1:Q$82)+SUMIF(Lan!$G$1:$G$82,Forsendur!$C$108&"_1",Lan!Q$1:Q$82)+SUMIF(Lan!$G$1:$G$82,Forsendur!$C$109&"_1",Lan!Q$1:Q$82) -> 0 | P135: =SUMIF(Lan!$G$1:$G$82,Forsendur!$C$107&"_1",Lan!R$1:R$82)+SUMIF(Lan!$G$1:$G$82,Forsendur!$C$108&"_1",Lan!R$1:R$82)+SUMIF(Lan!$G$1:$G$82,Forsendur!$C$109&"_1",Lan!R$1:R$82) -> 0 | Q135: =SUMIF(Lan!$G$1:$G$82,Forsendur!$C$107&"_1",Lan!S$1:S$82)+SUMIF(Lan!$G$1:$G$82,Forsendur!$C$108&"_1",Lan!S$1:S$82)+SUMIF(Lan!$G$1:$G$82,Forsendur!$C$109&"_1",Lan!S$1:S$82) -> 0 | R135: =SUMIF(Lan!$G$1:$G$82,Forsendur!$C$107&"_1",Lan!T$1:T$82)+SUMIF(Lan!$G$1:$G$82,Forsendur!$C$108&"_1",Lan!T$1:T$82)+SUMIF(Lan!$G$1:$G$82,Forsendur!$C$109&"_1",Lan!T$1:T$82) -> 0 | S135: =SUMIF(Lan!$G$1:$G$82,Forsendur!$C$107&"_1",Lan!U$1:U$82)+SUMIF(Lan!$G$1:$G$82,Forsendur!$C$108&"_1",Lan!U$1:U$82)+SUMIF(Lan!$G$1:$G$82,Forsendur!$C$109&"_1",Lan!U$1:U$82) -> 0 | T135: 0 | U135: =SUMIF(Lan!$G$1:$G$82,Forsendur!$C$107&"_1",Lan!W$1:W$82)+SUMIF(Lan!$G$1:$G$82,Forsendur!$C$108&"_1",Lan!W$1:W$82)+SUMIF(Lan!$G$1:$G$82,Forsendur!$C$109&"_1",Lan!W$1:W$82) -> 0 | V135: =SUMIF(Lan!$G$1:$G$82,Forsendur!$C$107&"_1",Lan!X$1:X$82)+SUMIF(Lan!$G$1:$G$82,Forsendur!$C$108&"_1",Lan!X$1:X$82)+SUMIF(Lan!$G$1:$G$82,Forsendur!$C$109&"_1",Lan!X$1:X$82) -> 0 | W135: =SUMIF(Lan!$G$1:$G$82,Forsendur!$C$107&"_1",Lan!Y$1:Y$82)+SUMIF(Lan!$G$1:$G$82,Forsendur!$C$108&"_1",Lan!Y$1:Y$82)+SUMIF(Lan!$G$1:$G$82,Forsendur!$C$109&"_1",Lan!Y$1:Y$82) -> 0 | X135: =SUMIF(Lan!$G$1:$G$82,Forsendur!$C$107&"_1",Lan!Z$1:Z$82)+SUMIF(Lan!$G$1:$G$82,Forsendur!$C$108&"_1",Lan!Z$1:Z$82)+SUMIF(Lan!$G$1:$G$82,Forsendur!$C$109&"_1",Lan!Z$1:Z$82) -> 0 | Y135: =SUMIF(Lan!$G$1:$G$82,Forsendur!$C$107&"_1",Lan!AA$1:AA$82)+SUMIF(Lan!$G$1:$G$82,Forsendur!$C$108&"_1",Lan!AA$1:AA$82)+SUMIF(Lan!$G$1:$G$82,Forsendur!$C$109&"_1",Lan!AA$1:AA$82) -> 0 | Z135: =SUMIF(Lan!$G$1:$G$82,Forsendur!$C$107&"_1",Lan!AB$1:AB$82)+SUMIF(Lan!$G$1:$G$82,Forsendur!$C$108&"_1",Lan!AB$1:AB$82)+SUMIF(Lan!$G$1:$G$82,Forsendur!$C$109&"_1",Lan!AB$1:AB$82) -> 0 | AA135: =SUMIF(Lan!$G$1:$G$82,Forsendur!$C$107&"_1",Lan!AC$1:AC$82)+SUMIF(Lan!$G$1:$G$82,Forsendur!$C$108&"_1",Lan!AC$1:AC$82)+SUMIF(Lan!$G$1:$G$82,Forsendur!$C$109&"_1",Lan!AC$1:AC$82) -> 0 | AB135: =SUMIF(Lan!$G$1:$G$82,Forsendur!$C$107&"_1",Lan!AD$1:AD$82)+SUMIF(Lan!$G$1:$G$82,Forsendur!$C$108&"_1",Lan!AD$1:AD$82)+SUMIF(Lan!$G$1:$G$82,Forsendur!$C$109&"_1",Lan!AD$1:AD$82) -> 0 | AC135: =SUMIF(Lan!$G$1:$G$82,Forsendur!$C$107&"_1",Lan!AE$1:AE$82)+SUMIF(Lan!$G$1:$G$82,Forsendur!$C$108&"_1",Lan!AE$1:AE$82)+SUMIF(Lan!$G$1:$G$82,Forsendur!$C$109&"_1",Lan!AE$1:AE$82) -> 0 | AD135: =SUMIF(Lan!$G$1:$G$82,Forsendur!$C$107&"_1",Lan!AF$1:AF$82)+SUMIF(Lan!$G$1:$G$82,Forsendur!$C$108&"_1",Lan!AF$1:AF$82)+SUMIF(Lan!$G$1:$G$82,Forsendur!$C$109&"_1",Lan!AF$1:AF$82) -> 0 | AE135: =SUMIF(Lan!$G$1:$G$82,Forsendur!$C$107&"_1",Lan!AG$1:AG$82)+SUMIF(Lan!$G$1:$G$82,Forsendur!$C$108&"_1",Lan!AG$1:AG$82)+SUMIF(Lan!$G$1:$G$82,Forsendur!$C$109&"_1",Lan!AG$1:AG$82) -> 0 | AF135: =SUMIF(Lan!$G$1:$G$82,Forsendur!$C$107&"_1",Lan!AH$1:AH$82)+SUMIF(Lan!$G$1:$G$82,Forsendur!$C$108&"_1",Lan!AH$1:AH$82)+SUMIF(Lan!$G$1:$G$82,Forsendur!$C$109&"_1",Lan!AH$1:AH$82) -> 0 | AG135: 0 | AH135: =SUMIF(Lan!$G$1:$G$82,Forsendur!$C$107&"_1",Lan!AJ$1:AJ$82)+SUMIF(Lan!$G$1:$G$82,Forsendur!$C$108&"_1",Lan!AJ$1:AJ$82)+SUMIF(Lan!$G$1:$G$82,Forsendur!$C$109&"_1",Lan!AJ$1:AJ$82) -> 0 | AI135: =SUMIF(Lan!$G$1:$G$82,Forsendur!$C$107&"_1",Lan!AK$1:AK$82)+SUMIF(Lan!$G$1:$G$82,Forsendur!$C$108&"_1",Lan!AK$1:AK$82)+SUMIF(Lan!$G$1:$G$82,Forsendur!$C$109&"_1",Lan!AK$1:AK$82) -> 0 | AJ135: =SUMIF(Lan!$G$1:$G$82,Forsendur!$C$107&"_1",Lan!AL$1:AL$82)+SUMIF(Lan!$G$1:$G$82,Forsendur!$C$108&"_1",Lan!AL$1:AL$82)+SUMIF(Lan!$G$1:$G$82,Forsendur!$C$109&"_1",Lan!AL$1:AL$82) -> 0
D136: Afborgun af langtímalánum | F136: =+Forsendur!D84 -> 0 | H136: =-(SUMIF(Lan!$G$1:$G$82,Forsendur!$C$107&"_2",Lan!J$1:J$82)+SUMIF(Lan!$G$1:$G$82,Forsendur!$C$108&"_2",Lan!J$1:J$82)+SUMIF(Lan!$G$1:$G$82,Forsendur!$C$109&"_2",Lan!J$1:J$82)) -> 0 | I136: =-(SUMIF(Lan!$G$1:$G$82,Forsendur!$C$107&"_2",Lan!K$1:K$82)+SUMIF(Lan!$G$1:$G$82,Forsendur!$C$108&"_2",Lan!K$1:K$82)+SUMIF(Lan!$G$1:$G$82,Forsendur!$C$109&"_2",Lan!K$1:K$82)) -> 0 | J136: =-(SUMIF(Lan!$G$1:$G$82,Forsendur!$C$107&"_2",Lan!L$1:L$82)+SUMIF(Lan!$G$1:$G$82,Forsendur!$C$108&"_2",Lan!L$1:L$82)+SUMIF(Lan!$G$1:$G$82,Forsendur!$C$109&"_2",Lan!L$1:L$82)) -> 0 | K136: =-(SUMIF(Lan!$G$1:$G$82,Forsendur!$C$107&"_2",Lan!M$1:M$82)+SUMIF(Lan!$G$1:$G$82,Forsendur!$C$108&"_2",Lan!M$1:M$82)+SUMIF(Lan!$G$1:$G$82,Forsendur!$C$109&"_2",Lan!M$1:M$82)) -> 0 | L136: =-(SUMIF(Lan!$G$1:$G$82,Forsendur!$C$107&"_2",Lan!N$1:N$82)+SUMIF(Lan!$G$1:$G$82,Forsendur!$C$108&"_2",Lan!N$1:N$82)+SUMIF(Lan!$G$1:$G$82,Forsendur!$C$109&"_2",Lan!N$1:N$82)) -> 0 | M136: =-(SUMIF(Lan!$G$1:$G$82,Forsendur!$C$107&"_2",Lan!O$1:O$82)+SUMIF(Lan!$G$1:$G$82,Forsendur!$C$108&"_2",Lan!O$1:O$82)+SUMIF(Lan!$G$1:$G$82,Forsendur!$C$109&"_2",Lan!O$1:O$82)) -> 0 | N136: =-(SUMIF(Lan!$G$1:$G$82,Forsendur!$C$107&"_2",Lan!P$1:P$82)+SUMIF(Lan!$G$1:$G$82,Forsendur!$C$108&"_2",Lan!P$1:P$82)+SUMIF(Lan!$G$1:$G$82,Forsendur!$C$109&"_2",Lan!P$1:P$82)) -> 0 | O136: =-(SUMIF(Lan!$G$1:$G$82,Forsendur!$C$107&"_2",Lan!Q$1:Q$82)+SUMIF(Lan!$G$1:$G$82,Forsendur!$C$108&"_2",Lan!Q$1:Q$82)+SUMIF(Lan!$G$1:$G$82,Forsendur!$C$109&"_2",Lan!Q$1:Q$82)) -> 0 | P136: =-(SUMIF(Lan!$G$1:$G$82,Forsendur!$C$107&"_2",Lan!R$1:R$82)+SUMIF(Lan!$G$1:$G$82,Forsendur!$C$108&"_2",Lan!R$1:R$82)+SUMIF(Lan!$G$1:$G$82,Forsendur!$C$109&"_2",Lan!R$1:R$82)) -> 0 | Q136: =-(SUMIF(Lan!$G$1:$G$82,Forsendur!$C$107&"_2",Lan!S$1:S$82)+SUMIF(Lan!$G$1:$G$82,Forsendur!$C$108&"_2",Lan!S$1:S$82)+SUMIF(Lan!$G$1:$G$82,Forsendur!$C$109&"_2",Lan!S$1:S$82)) -> 0 | R136: =-(SUMIF(Lan!$G$1:$G$82,Forsendur!$C$107&"_2",Lan!T$1:T$82)+SUMIF(Lan!$G$1:$G$82,Forsendur!$C$108&"_2",Lan!T$1:T$82)+SUMIF(Lan!$G$1:$G$82,Forsendur!$C$109&"_2",Lan!T$1:T$82)) -> 0 | S136: =-(SUMIF(Lan!$G$1:$G$82,Forsendur!$C$107&"_2",Lan!U$1:U$82)+SUMIF(Lan!$G$1:$G$82,Forsendur!$C$108&"_2",Lan!U$1:U$82)+SUMIF(Lan!$G$1:$G$82,Forsendur!$C$109&"_2",Lan!U$1:U$82)) -> 0 | T136: 0 | U136: =-(SUMIF(Lan!$G$1:$G$82,Forsendur!$C$107&"_2",Lan!W$1:W$82)+SUMIF(Lan!$G$1:$G$82,Forsendur!$C$108&"_2",Lan!W$1:W$82)+SUMIF(Lan!$G$1:$G$82,Forsendur!$C$109&"_2",Lan!W$1:W$82)) -> 0 | V136: =-(SUMIF(Lan!$G$1:$G$82,Forsendur!$C$107&"_2",Lan!X$1:X$82)+SUMIF(Lan!$G$1:$G$82,Forsendur!$C$108&"_2",Lan!X$1:X$82)+SUMIF(Lan!$G$1:$G$82,Forsendur!$C$109&"_2",Lan!X$1:X$82)) -> 0 | W136: =-(SUMIF(Lan!$G$1:$G$82,Forsendur!$C$107&"_2",Lan!Y$1:Y$82)+SUMIF(Lan!$G$1:$G$82,Forsendur!$C$108&"_2",Lan!Y$1:Y$82)+SUMIF(Lan!$G$1:$G$82,Forsendur!$C$109&"_2",Lan!Y$1:Y$82)) -> 0 | X136: =-(SUMIF(Lan!$G$1:$G$82,Forsendur!$C$107&"_2",Lan!Z$1:Z$82)+SUMIF(Lan!$G$1:$G$82,Forsendur!$C$108&"_2",Lan!Z$1:Z$82)+SUMIF(Lan!$G$1:$G$82,Forsendur!$C$109&"_2",Lan!Z$1:Z$82)) -> 0 | Y136: =-(SUMIF(Lan!$G$1:$G$82,Forsendur!$C$107&"_2",Lan!AA$1:AA$82)+SUMIF(Lan!$G$1:$G$82,Forsendur!$C$108&"_2",Lan!AA$1:AA$82)+SUMIF(Lan!$G$1:$G$82,Forsendur!$C$109&"_2",Lan!AA$1:AA$82)) -> 0 | Z136: =-(SUMIF(Lan!$G$1:$G$82,Forsendur!$C$107&"_2",Lan!AB$1:AB$82)+SUMIF(Lan!$G$1:$G$82,Forsendur!$C$108&"_2",Lan!AB$1:AB$82)+SUMIF(Lan!$G$1:$G$82,Forsendur!$C$109&"_2",Lan!AB$1:AB$82)) -> 0 | AA136: =-(SUMIF(Lan!$G$1:$G$82,Forsendur!$C$107&"_2",Lan!AC$1:AC$82)+SUMIF(Lan!$G$1:$G$82,Forsendur!$C$108&"_2",Lan!AC$1:AC$82)+SUMIF(Lan!$G$1:$G$82,Forsendur!$C$109&"_2",Lan!AC$1:AC$82)) -> 0 | AB136: =-(SUMIF(Lan!$G$1:$G$82,Forsendur!$C$107&"_2",Lan!AD$1:AD$82)+SUMIF(Lan!$G$1:$G$82,Forsendur!$C$108&"_2",Lan!AD$1:AD$82)+SUMIF(Lan!$G$1:$G$82,Forsendur!$C$109&"_2",Lan!AD$1:AD$82)) -> 0 | AC136: =-(SUMIF(Lan!$G$1:$G$82,Forsendur!$C$107&"_2",Lan!AE$1:AE$82)+SUMIF(Lan!$G$1:$G$82,Forsendur!$C$108&"_2",Lan!AE$1:AE$82)+SUMIF(Lan!$G$1:$G$82,Forsendur!$C$109&"_2",Lan!AE$1:AE$82)) -> 0 | AD136: =-(SUMIF(Lan!$G$1:$G$82,Forsendur!$C$107&"_2",Lan!AF$1:AF$82)+SUMIF(Lan!$G$1:$G$82,Forsendur!$C$108&"_2",Lan!AF$1:AF$82)+SUMIF(Lan!$G$1:$G$82,Forsendur!$C$109&"_2",Lan!AF$1:AF$82)) -> 0 | AE136: =-(SUMIF(Lan!$G$1:$G$82,Forsendur!$C$107&"_2",Lan!AG$1:AG$82)+SUMIF(Lan!$G$1:$G$82,Forsendur!$C$108&"_2",Lan!AG$1:AG$82)+SUMIF(Lan!$G$1:$G$82,Forsendur!$C$109&"_2",Lan!AG$1:AG$82)) -> 0 | AF136: =-(SUMIF(Lan!$G$1:$G$82,Forsendur!$C$107&"_2",Lan!AH$1:AH$82)+SUMIF(Lan!$G$1:$G$82,Forsendur!$C$108&"_2",Lan!AH$1:AH$82)+SUMIF(Lan!$G$1:$G$82,Forsendur!$C$109&"_2",Lan!AH$1:AH$82)) -> 0 | AG136: 0 | AH136: =-(SUMIF(Lan!$G$1:$G$82,Forsendur!$C$107&"_2",Lan!AJ$1:AJ$82)+SUMIF(Lan!$G$1:$G$82,Forsendur!$C$108&"_2",Lan!AJ$1:AJ$82)+SUMIF(Lan!$G$1:$G$82,Forsendur!$C$109&"_2",Lan!AJ$1:AJ$82)) -> 0 | AI136: =-(SUMIF(Lan!$G$1:$G$82,Forsendur!$C$107&"_2",Lan!AK$1:AK$82)+SUMIF(Lan!$G$1:$G$82,Forsendur!$C$108&"_2",Lan!AK$1:AK$82)+SUMIF(Lan!$G$1:$G$82,Forsendur!$C$109&"_2",Lan!AK$1:AK$82)) -> 0 | AJ136: =-(SUMIF(Lan!$G$1:$G$82,Forsendur!$C$107&"_2",Lan!AL$1:AL$82)+SUMIF(Lan!$G$1:$G$82,Forsendur!$C$108&"_2",Lan!AL$1:AL$82)+SUMIF(Lan!$G$1:$G$82,Forsendur!$C$109&"_2",Lan!AL$1:AL$82)) -> 0
D137: Greiddur arður til hluthafa | E137: 18 | F137: =+Forsendur!D85 -> 0 | H137: =-Efnahagur!H47 -> 0 | I137: =-Efnahagur!I47 -> 0 | J137: =-Efnahagur!J47 -> 0 | K137: =-Efnahagur!K47 -> 0 | L137: =-Efnahagur!L47 -> 0 | M137: =-Efnahagur!M47 -> 0 | N137: =-Efnahagur!N47 -> 0 | O137: =-Efnahagur!O47 -> 0 | P137: =-Efnahagur!P47 -> 0 | Q137: =-Efnahagur!Q47 -> 0 | R137: =-Efnahagur!R47 -> 0 | S137: =-Efnahagur!S47 -> 0 | T137: 0 | U137: =-Efnahagur!U47 -> 0 | V137: =-Efnahagur!V47 -> 0 | W137: =-Efnahagur!W47 -> 0 | X137: =-Efnahagur!X47 -> 0 | Y137: =-Efnahagur!Y47 -> 0 | Z137: =-Efnahagur!Z47 -> 0 | AA137: =-Efnahagur!AA47 -> 0 | AB137: =-Efnahagur!AB47 -> 0 | AC137: =-Efnahagur!AC47 -> 0 | AD137: =-Efnahagur!AD47 -> 0 | AE137: =-Efnahagur!AE47 -> 0 | AF137: =-Efnahagur!AF47 -> 0 | AG137: 0 | AH137: =-Efnahagur!AH47 -> 0 | AI137: =-Efnahagur!AI47 -> 0 | AJ137: =-Efnahagur!AJ47 -> 0
D138: Innborgað nýtt hlutafé | E138: 19 | F138: =+Forsendur!D86 -> 0 | H138: =+Efnahagur!H40+Efnahagur!H48 -> 0 | I138: =+Efnahagur!I40+Efnahagur!I48 -> 0 | J138: =+Efnahagur!J40+Efnahagur!J48 -> 0 | K138: =+Efnahagur!K40+Efnahagur!K48 -> 0 | L138: =+Efnahagur!L40+Efnahagur!L48 -> 0 | M138: =+Efnahagur!M40+Efnahagur!M48 -> 0 | N138: =+Efnahagur!N40+Efnahagur!N48 -> 0 | O138: =+Efnahagur!O40+Efnahagur!O48 -> 0 | P138: =+Efnahagur!P40+Efnahagur!P48 -> 0 | Q138: =+Efnahagur!Q40+Efnahagur!Q48 -> 0 | R138: =+Efnahagur!R40+Efnahagur!R48 -> 0 | S138: =+Efnahagur!S40+Efnahagur!S48 -> 0 | T138: 0 | U138: =+Efnahagur!U40+Efnahagur!U48 -> 0 | V138: =+Efnahagur!V40+Efnahagur!V48 -> 0 | W138: =+Efnahagur!W40+Efnahagur!W48 -> 0 | X138: =+Efnahagur!X40+Efnahagur!X48 -> 0 | Y138: =+Efnahagur!Y40+Efnahagur!Y48 -> 0 | Z138: =+Efnahagur!Z40+Efnahagur!Z48 -> 0 | AA138: =+Efnahagur!AA40+Efnahagur!AA48 -> 0 | AB138: =+Efnahagur!AB40+Efnahagur!AB48 -> 0 | AC138: =+Efnahagur!AC40+Efnahagur!AC48 -> 0 | AD138: =+Efnahagur!AD40+Efnahagur!AD48 -> 0 | AE138: =+Efnahagur!AE40+Efnahagur!AE48 -> 0 | AF138: =+Efnahagur!AF40+Efnahagur!AF48 -> 0 | AG138: 0 | AH138: =+Efnahagur!AH40+Efnahagur!AH48 -> 0 | AI138: =+Efnahagur!AI40+Efnahagur!AI48 -> 0 | AJ138: =+Efnahagur!AJ40+Efnahagur!AJ48 -> 0
D139: Fjármögnunarhreyfingar | F139: =SUM(F134:F138) -> 0 | H139: =SUM(H134:H138) -> 0 | I139: 0 | J139: 0 | K139: 0 | L139: =SUM(L134:L138) -> 0 | M139: 0 | N139: 0 | O139: 0 | P139: 0 | Q139: 0 | R139: 0 | S139: =SUM(S134:S138) -> 0 | T139: 0 | U139: 0 | V139: 0 | W139: 0 | X139: 0 | Y139: 0 | Z139: 0 | AA139: 0 | AB139: 0 | AC139: 0 | AD139: 0 | AE139: 0 | AF139: 0 | AG139: 0 | AH139: =SUM(AH134:AH138) -> 0 | AI139: =SUM(AI134:AI138) -> 0 | AJ139: =SUM(AJ134:AJ138) -> 0
D141: HÆKKUN (LÆKKUN) Á HANDBÆRU FÉ | F141: =F139+F131+F119 -> 0 | H141: =H139+H131+H119 -> 0 | I141: 0 | J141: 0 | K141: 0 | L141: 0 | M141: 0 | N141: 0 | O141: 0 | P141: 0 | Q141: 0 | R141: 0 | S141: 0 | T141: =SUM(H141:S141) -> 0 | U141: 0 | V141: 0 | W141: 0 | X141: 0 | Y141: 0 | Z141: 0 | AA141: 0 | AB141: 0 | AC141: 0 | AD141: 0 | AE141: 0 | AF141: 0 | AG141: =SUM(U141:AF141) -> 0 | AH141: =AH139+AH131+AH119 -> 0 | AI141: =AI139+AI131+AI119 -> 0 | AJ141: =AJ139+AJ131+AJ119 -> 0
D142: HANDBÆRT FÉ (FJÁRÞÖRF) Í ÁRSBYRJUN | F142: =+Forsendur!D90 -> 0 | H142: =+F63 -> 0 | I142: =+H143 -> 0 | J142: 0 | K142: 0 | L142: =+K143 -> 0 | M142: 0 | N142: 0 | O142: 0 | P142: 0 | Q142: 0 | R142: 0 | S142: =+R143 -> 0 | T142: =+H142 -> 0 | U142: =+S143 -> 0 | V142: 0 | W142: 0 | X142: 0 | Y142: 0 | Z142: 0 | AA142: 0 | AB142: 0 | AC142: 0 | AD142: 0 | AE142: 0 | AF142: 0 | AG142: =+T143 -> 0 | AH142: =+AG143 -> 0 | AI142: =+AH143 -> 0 | AJ142: =+AI143 -> 0
D143: HANDBÆRT FÉ (FJÁRÞÖRF) Í ÁRSLOK | E143: 13 | F143: =F142+F141 -> 0 | H143: =H142+H141 -> 0 | I143: 0 | J143: 0 | K143: 0 | L143: 0 | M143: 0 | N143: 0 | O143: 0 | P143: 0 | Q143: =Q142+Q141 -> 0 | R143: 0 | S143: 0 | T143: =+S143 -> 0 | U143: 0 | V143: 0 | W143: 0 | X143: 0 | Y143: 0 | Z143: 0 | AA143: 0 | AB143: 0 | AC143: 0 | AD143: 0 | AE143: 0 | AF143: 0 | AG143: =AG142+AG141 -> 0 | AH143: =AH142+AH141 -> 0 | AI143: =AI142+AI141 -> 0 | AJ143: =AJ142+AJ141 -> 0
D145: =IF(SUM(I145:AG145)<>0,"Afstemming","") ->  | F145: =IF(F143-F63+F92=0,"",F143-F63+F92) ->  | H145: =IF(H143-H63+H92=0,"",H143-H63+H92) ->  | U145: =IF(U143-U63+U92=0,"",U143-U63+U92) -> 
D148: KENNITÖLUR
E149: Skýr. | F149: =F$4 -> Árið 2015 | H149: =Efnahagur!H3 -> Jan 2016 | I149: =Efnahagur!I3 -> Feb 2016 | J149: =Efnahagur!J3 -> Mar 2016 | K149: =Efnahagur!K3 -> Apr 2016 | L149: =Efnahagur!L3 -> Maí 2016 | M149: =Efnahagur!M3 -> Jún 2016 | N149: =Efnahagur!N3 -> Júl 2016 | O149: =Efnahagur!O3 -> Ágú 2016 | P149: =Efnahagur!P3 -> Sep 2016 | Q149: =Efnahagur!Q3 -> Okt 2016 | R149: =Efnahagur!R3 -> Nóv 2016 | S149: =Efnahagur!S3 -> Des 2016 | T149: =Efnahagur!T3 -> Árið 2016 | U149: =Efnahagur!U3 -> Jan 2017 | V149: =Efnahagur!V3 -> Feb 2017 | W149: =Efnahagur!W3 -> Mar 2017 | X149: =Efnahagur!X3 -> Apr 2017 | Y149: =Efnahagur!Y3 -> Maí 2017 | Z149: =Efnahagur!Z3 -> Jún 2017 | AA149: =Efnahagur!AA3 -> Júl 2017 | AB149: =Efnahagur!AB3 -> Ágú 2017 | AC149: =Efnahagur!AC3 -> Sep 2017 | AD149: =Efnahagur!AD3 -> Okt 2017 | AE149: =Efnahagur!AE3 -> Nóv 2017 | AF149: =Efnahagur!AF3 -> Des 2017 | AG149: =AG$4 -> Árið 2017 | AH149: =AH$4 -> Árið 2018 | AI149: =AI$4 -> Árið 2019 | AJ149: =AJ$4 -> Árið 2020
D151: HELSTU KENNISTÆRÐIR
D152: Veltufjárhlutfall | T152: =IF(ISERROR(T66/T95)=TRUE,"",T66/T95) ->  | AG152: =IF(ISERROR(AG66/AG95)=TRUE,"",AG66/AG95) ->  | AH152: =IF(ISERROR(AH66/AH95)=TRUE,"",AH66/AH95) ->  | AI152: =IF(ISERROR(AI66/AI95)=TRUE,"",AI66/AI95) ->  | AJ152: =IF(ISERROR(AJ66/AJ95)=TRUE,"",AJ66/AJ95) -> 
D153: Eiginfjárhlutfall | T153: =IF(ISERROR(T75/T99)=TRUE,"",T75/T99) ->  | AG153: =IF(ISERROR(AG75/AG99)=TRUE,"",AG75/AG99) ->  | AH153: =IF(ISERROR(AH75/AH99)=TRUE,"",AH75/AH99) ->  | AI153: =IF(ISERROR(AI75/AI99)=TRUE,"",AI75/AI99) ->  | AJ153: =IF(ISERROR(AJ75/AJ99)=TRUE,"",AJ75/AJ99) -> 
D154: Veltuhraði fjármagns | T154: =IF(ISERROR(T11/T69)=TRUE,"",T11/T69) ->  | AG154: =IF(ISERROR(AG11/AG69)=TRUE,"",AG11/AG69) ->  | AH154: =IF(ISERROR(AH11/AH69)=TRUE,"",AH11/AH69) ->  | AI154: =IF(ISERROR(AI11/AI69)=TRUE,"",AI11/AI69) ->  | AJ154: =IF(ISERROR(AJ11/AJ69)=TRUE,"",AJ11/AJ69) -> 
D155: Arðsemi eigin fjár | T155: =IF(ISERROR(IF(ISERROR(T43/F75)=TRUE,"",T43/F75))," - ",IF(IF(ISERROR(T43/F75)=TRUE,"",T43/F75)>1,">100%",IF(IF(ISERROR(T43/F75)=TRUE,"",T43/F75)<-1,"<-100%",IF(ISERROR(T43/F75)=TRUE,"",T43/F75)))) -> >100% | AG155: =IF(ISERROR(IF(ISERROR(AG43/T75)=TRUE,"",AG43/T75))," - ",IF(IF(ISERROR(AG43/T75)=TRUE,"",AG43/T75)>1,">100%",IF(IF(ISERROR(AG43/T75)=TRUE,"",AG43/T75)<-1,"<-100%",IF(ISERROR(AG43/T75)=TRUE,"",AG43/T75)))) -> >100% | AH155: =IF(ISERROR(IF(ISERROR(AH43/AG75)=TRUE,"",AH43/AG75))," - ",IF(IF(ISERROR(AH43/AG75)=TRUE,"",AH43/AG75)>1,">100%",IF(IF(ISERROR(AH43/AG75)=TRUE,"",AH43/AG75)<-1,"<-100%",IF(ISERROR(AH43/AG75)=TRUE,"",AH43/AG75)))) -> >100% | AI155: =IF(ISERROR(IF(ISERROR(AI43/AH75)=TRUE,"",AI43/AH75))," - ",IF(IF(ISERROR(AI43/AH75)=TRUE,"",AI43/AH75)>1,">100%",IF(IF(ISERROR(AI43/AH75)=TRUE,"",AI43/AH75)<-1,"<-100%",IF(ISERROR(AI43/AH75)=TRUE,"",AI43/AH75)))) -> >100% | AJ155: =IF(ISERROR(IF(ISERROR(AJ43/AI75)=TRUE,"",AJ43/AI75))," - ",IF(IF(ISERROR(AJ43/AI75)=TRUE,"",AJ43/AI75)>1,">100%",IF(IF(ISERROR(AJ43/AI75)=TRUE,"",AJ43/AI75)<-1,"<-100%",IF(ISERROR(AJ43/AI75)=TRUE,"",AJ43/AI75)))) -> >100%
D156: Arðsemi heildarfjármagns | T156: =IF(ISERROR(IF(ISERROR(T43/F99)=TRUE,"",T43/F99))," - ",IF(IF(ISERROR(T43/F99)=TRUE,"",T43/F99)>1,">100%",IF(IF(ISERROR(T43/F99)=TRUE,"",T43/F99)<-1,"<-100%",IF(ISERROR(T43/F99)=TRUE,"",T43/F99)))) -> >100% | AG156: =IF(ISERROR(IF(ISERROR(AG43/T99)=TRUE,"",AG43/T99))," - ",IF(IF(ISERROR(AG43/T99)=TRUE,"",AG43/T99)>1,">100%",IF(IF(ISERROR(AG43/T99)=TRUE,"",AG43/T99)<-1,"<-100%",IF(ISERROR(AG43/T99)=TRUE,"",AG43/T99)))) -> >100% | AH156: =IF(ISERROR(IF(ISERROR(AH43/AG99)=TRUE,"",AH43/AG99))," - ",IF(IF(ISERROR(AH43/AG99)=TRUE,"",AH43/AG99)>1,">100%",IF(IF(ISERROR(AH43/AG99)=TRUE,"",AH43/AG99)<-1,"<-100%",IF(ISERROR(AH43/AG99)=TRUE,"",AH43/AG99)))) -> >100% | AI156: =IF(ISERROR(IF(ISERROR(AI43/AH99)=TRUE,"",AI43/AH99))," - ",IF(IF(ISERROR(AI43/AH99)=TRUE,"",AI43/AH99)>1,">100%",IF(IF(ISERROR(AI43/AH99)=TRUE,"",AI43/AH99)<-1,"<-100%",IF(ISERROR(AI43/AH99)=TRUE,"",AI43/AH99)))) -> >100% | AJ156: =IF(ISERROR(IF(ISERROR(AJ43/AI99)=TRUE,"",AJ43/AI99))," - ",IF(IF(ISERROR(AJ43/AI99)=TRUE,"",AJ43/AI99)>1,">100%",IF(IF(ISERROR(AJ43/AI99)=TRUE,"",AJ43/AI99)<-1,"<-100%",IF(ISERROR(AJ43/AI99)=TRUE,"",AJ43/AI99)))) -> >100%

Sheet Naemi
A1: =Forsendur!$C$5 -> Nafn fyrirtækis
A3: FORSENDUR NÆMISGREININGAR
C5: Virkt (1)/ Óvirkt (0)
A6: TEKJUR
B7: =Rekstur!B7 -> Tekjuliður no 1 | C7: 1
B8: =Rekstur!B21 -> Tekjuliður no 2 | C8: 1
B9: =Rekstur!B35 -> Tekjuliður no 3 | C9: 1
B10: =Rekstur!B49 -> Tekjuliður no 4 | C10: 1
A12: KOSTNAÐUR
B13: =Rekstur!B67 -> Kostnaður á einingu | C13: 1
B14: =Rekstur!B76 -> Laun og launatengd gjöld | C14: 1
B15: =Rekstur!B92 -> Kostnaðarliður no 2 | C15: 1
B16: =Rekstur!B100 -> Kostnaðarliður no 3 | C16: 1
B17: =Rekstur!B108 -> Kostnaðarliður no 4 | C17: 1
A20: LIÐUR TIL NÆMISGREININGAR
C22: Virkt (1)/ Óvirkt (0)
A23: REKSTRARNIÐURSTAÐA
B24: =IF(Forsendur!$C$7=1,"Árið "&Forsendur!$C$6,"Árið "&Forsendur!$C$6&"-"&Forsendur!$C$6+1) -> Árið 2016 | C24: 0 | E24: =IF(C24=1,Arsreikningur!T$43,0) -> 0
B25: =IF(Forsendur!$C$7=1,"Árið "&Forsendur!$C$6+1,"Árið "&Forsendur!$C$6+1&"-"&Forsendur!$C$6+2) -> Árið 2017 | C25: 0 | E25: =IF(C25=1,Arsreikningur!AG$43,0) -> 0
B26: =IF(Forsendur!$C$7=1,"Árið "&Forsendur!$C$6+2,"Árið "&Forsendur!$C$6+2&"-"&Forsendur!$C$6+3) -> Árið 2018 | C26: 1 | E26: =IF(C26=1,Arsreikningur!AH$43,0) -> 0
B27: =IF(Forsendur!$C$7=1,"Árið "&Forsendur!$C$6+3,"Árið "&Forsendur!$C$6+3&"-"&Forsendur!$C$6+4) -> Árið 2019 | C27: 0 | E27: =IF(C27=1,Arsreikningur!AI$43,0) -> 0
B28: =IF(Forsendur!$C$7=1,"Árið "&Forsendur!$C$6+4,"Árið "&Forsendur!$C$6+4&"-"&Forsendur!$C$6+5) -> Árið 2020 | C28: 0 | E28: =IF(C28=1,Arsreikningur!AJ$43,0) -> 0
A30: HANDBÆRT FÉ (TIL) FRÁ REKSTRI
B31: =IF(Forsendur!$C$7=1,"Árið "&Forsendur!$C$6,"Árið "&Forsendur!$C$6&"-"&Forsendur!$C$6+1) -> Árið 2016 | C31: 0 | E31: =IF(C31=1,Arsreikningur!T$119,0) -> 0
B32: =IF(Forsendur!$C$7=1,"Árið "&Forsendur!$C$6+1,"Árið "&Forsendur!$C$6+1&"-"&Forsendur!$C$6+2) -> Árið 2017 | C32: 0 | E32: =IF(C32=1,Arsreikningur!AG$119,0) -> 0
B33: =IF(Forsendur!$C$7=1,"Árið "&Forsendur!$C$6+2,"Árið "&Forsendur!$C$6+2&"-"&Forsendur!$C$6+3) -> Árið 2018 | C33: 0 | E33: =IF(C33=1,Arsreikningur!AH$119,0) -> 0
B34: =IF(Forsendur!$C$7=1,"Árið "&Forsendur!$C$6+3,"Árið "&Forsendur!$C$6+3&"-"&Forsendur!$C$6+4) -> Árið 2019 | C34: 0 | E34: =IF(C34=1,Arsreikningur!AI$119,0) -> 0
B35: =IF(Forsendur!$C$7=1,"Árið "&Forsendur!$C$6+4,"Árið "&Forsendur!$C$6+4&"-"&Forsendur!$C$6+5) -> Árið 2020 | C35: 0 | E35: =IF(C35=1,Arsreikningur!AJ$119,0) -> 0 | F35: =IF(COUNTIF(C24:C42,1)>1,"VILLA VELJIÐ EINUNGIS EINN LIÐ TIL NÆMISGREININGAR","") -> 
A37: EIGIÐ FÉ
B38: =IF(Forsendur!$C$7=1,"Árið "&Forsendur!$C$6,"Árið "&Forsendur!$C$6&"-"&Forsendur!$C$6+1) -> Árið 2016 | C38: 0 | E38: =IF(C38=1,Arsreikningur!T$75,0) -> 0
B39: =IF(Forsendur!$C$7=1,"Árið "&Forsendur!$C$6+1,"Árið "&Forsendur!$C$6+1&"-"&Forsendur!$C$6+2) -> Árið 2017 | C39: 0 | E39: =IF(C39=1,Arsreikningur!AG$75,0) -> 0
B40: =IF(Forsendur!$C$7=1,"Árið "&Forsendur!$C$6+2,"Árið "&Forsendur!$C$6+2&"-"&Forsendur!$C$6+3) -> Árið 2018 | C40: 0 | E40: =IF(C40=1,Arsreikningur!AH$75,0) -> 0
B41: =IF(Forsendur!$C$7=1,"Árið "&Forsendur!$C$6+3,"Árið "&Forsendur!$C$6+3&"-"&Forsendur!$C$6+4) -> Árið 2019 | C41: 0 | E41: =IF(C41=1,Arsreikningur!AI$75,0) -> 0
B42: =IF(Forsendur!$C$7=1,"Árið "&Forsendur!$C$6+4,"Árið "&Forsendur!$C$6+4&"-"&Forsendur!$C$6+5) -> Árið 2020 | C42: 0 | E42: =IF(C42=1,Arsreikningur!AJ$75,0) -> 0
B44: TIL NÆMISGREININGAR | E44: =SUM(E24:E43) -> 0
A47: NÆMISGREINING
B50: Breyting frá tekjuáætlun (ekki breyta þessari tölu) | C50: 0
B51: Breyting frá kostnaðaráætlun (ekki breyta þessari tölu) | C51: 0
B52: Breytingarstig (hversu mikið bil milli breytigilda) | C52: 0.1
F54: - BREYTING Í TEKJUM -
E55: =$E$44 -> 0 | F55: -0.3 | G55: -0.2 | H55: -0.1 | I55: 0 | J55: 0.1 | K55: 0.2 | L55: 0.3
C56: - BREYTING Í KOSTNAÐI - | E56: -0.3 | F56: 0 | G56: 0 | H56: 0 | I56: 0 | J56: 0 | K56: 0 | L56: 0
E57: -0.2 | F57: 0 | G57: 0 | H57: 0 | I57: 0 | J57: 0 | K57: 0 | L57: 0
E58: -0.1 | F58: 0 | G58: 0 | H58: 0 | I58: 0 | J58: 0 | K58: 0 | L58: 0
D59: -0.1 | E59: 0 | F59: 0 | G59: 0 | H59: 0 | I59: 0 | J59: 0 | K59: 0 | L59: 0
E60: 0.1 | F60: 0 | G60: 0 | H60: 0 | I60: 0 | J60: 0 | K60: 0 | L60: 0
E61: 0.2 | F61: 0 | G61: 0 | H61: 0 | I61: 0 | J61: 0 | K61: 0 | L61: 0
E62: 0.3 | F62: 0 | G62: 0 | H62: 0 | I62: 0 | J62: 0 | K62: 0 | L62: 0

Sheet Verdmat
A1: =Forsendur!$C$5 -> Nafn fyrirtækis
A3: Til athugunar
A11: Útreikningur á verðmæti
B13: Ár no. | C13: 1 | D13: =+C13+1 -> 2 | E13: =+D13+1 -> 3 | F13: =+E13+1 -> 4 | G13: =+F13+1 -> 5
B14: Frjálst fjárflæði | C14: =+Arsreikningur!T4 -> Árið 2016 | D14: =Arsreikningur!AG4 -> Árið 2017 | E14: =Arsreikningur!AH4 -> Árið 2018 | F14: =Arsreikningur!AI4 -> Árið 2019 | G14: =Arsreikningur!AJ4 -> Árið 2020 | H14: Framtíðar- virði
B15: Hagnaður fyrir vexti og skatta | C15: =SUMIF(Arsreikningur!$T$4:$AJ$4,Verdmat!C$14,Arsreikningur!$T27:$AJ27) -> 0 | D15: =SUMIF(Arsreikningur!$T$4:$AJ$4,Verdmat!D$14,Arsreikningur!$T27:$AJ27) -> 0 | E15: =SUMIF(Arsreikningur!$T$4:$AJ$4,Verdmat!E$14,Arsreikningur!$T27:$AJ27) -> 0 | F15: =SUMIF(Arsreikningur!$T$4:$AJ$4,Verdmat!F$14,Arsreikningur!$T27:$AJ27) -> 0 | G15: =SUMIF(Arsreikningur!$T$4:$AJ$4,Verdmat!G$14,Arsreikningur!$T27:$AJ27) -> 0
B16: Skattar | C16: =SUMIF(Arsreikningur!$T$4:$AJ$4,Verdmat!C$14,Arsreikningur!$T41:$AJ41) -> 0 | D16: =SUMIF(Arsreikningur!$T$4:$AJ$4,Verdmat!D$14,Arsreikningur!$T41:$AJ41) -> 0 | E16: =SUMIF(Arsreikningur!$T$4:$AJ$4,Verdmat!E$14,Arsreikningur!$T41:$AJ41) -> 0 | F16: =SUMIF(Arsreikningur!$T$4:$AJ$4,Verdmat!F$14,Arsreikningur!$T41:$AJ41) -> 0 | G16: =SUMIF(Arsreikningur!$T$4:$AJ$4,Verdmat!G$14,Arsreikningur!$T41:$AJ41) -> 0
B17: Skattaskjöldur af vöxtum v/fjármögnunar | C17: =Efnahagur!T133*Efnahagur!$G$90 -> 0 | D17: =Efnahagur!AG133*Efnahagur!$G$90 -> 0 | E17: =Efnahagur!AH133*Efnahagur!$G$90 -> 0 | F17: =Efnahagur!AI133*Efnahagur!$G$90 -> 0 | G17: =Efnahagur!AJ133*Efnahagur!$G$90 -> 0
B18: Tekjuskattsskuldbinding | C18: =SUMIF(Arsreikningur!$T$4:$AJ$4,Verdmat!C$14,Arsreikningur!$T109:$AJ109) -> 0 | D18: =SUMIF(Arsreikningur!$T$4:$AJ$4,Verdmat!D$14,Arsreikningur!$T109:$AJ109) -> 0 | E18: =SUMIF(Arsreikningur!$T$4:$AJ$4,Verdmat!E$14,Arsreikningur!$T109:$AJ109) -> 0 | F18: =SUMIF(Arsreikningur!$T$4:$AJ$4,Verdmat!F$14,Arsreikningur!$T109:$AJ109) -> 0 | G18: =SUMIF(Arsreikningur!$T$4:$AJ$4,Verdmat!G$14,Arsreikningur!$T109:$AJ109) -> 0
B19: Afskriftir | C19: =SUMIF(Arsreikningur!$T$4:$AJ$4,Verdmat!C$14,Arsreikningur!$T25:$AJ25) -> 0 | D19: =SUMIF(Arsreikningur!$T$4:$AJ$4,Verdmat!D$14,Arsreikningur!$T25:$AJ25) -> 0 | E19: =SUMIF(Arsreikningur!$T$4:$AJ$4,Verdmat!E$14,Arsreikningur!$T25:$AJ25) -> 0 | F19: =SUMIF(Arsreikningur!$T$4:$AJ$4,Verdmat!F$14,Arsreikningur!$T25:$AJ25) -> 0 | G19: =SUMIF(Arsreikningur!$T$4:$AJ$4,Verdmat!G$14,Arsreikningur!$T25:$AJ25) -> 0
B20: Veltufé til (frá) rekstri | C20: =SUM(C15:C19) -> 0 | D20: =SUM(D15:D19) -> 0 | E20: =SUM(E15:E19) -> 0 | F20: =SUM(F15:F19) -> 0 | G20: =SUM(G15:G19) -> 0
B21: Breyting á rekstrartengdum eignum og skuldum | C21: =SUMIF(Arsreikningur!$T$4:$AJ$4,Verdmat!C$14,Arsreikningur!$T117:$AJ117) -> 0 | D21: =SUMIF(Arsreikningur!$T$4:$AJ$4,Verdmat!D$14,Arsreikningur!$T117:$AJ117) -> 0 | E21: =SUMIF(Arsreikningur!$T$4:$AJ$4,Verdmat!E$14,Arsreikningur!$T117:$AJ117) -> 0 | F21: =SUMIF(Arsreikningur!$T$4:$AJ$4,Verdmat!F$14,Arsreikningur!$T117:$AJ117) -> 0 | G21: =SUMIF(Arsreikningur!$T$4:$AJ$4,Verdmat!G$14,Arsreikningur!$T117:$AJ117) -> 0
B22: Fjárfestingarhreyfingar | C22: =SUMIF(Arsreikningur!$T$4:$AJ$4,Verdmat!C$14,Arsreikningur!$T131:$AJ131) -> 0 | D22: =SUMIF(Arsreikningur!$T$4:$AJ$4,Verdmat!D$14,Arsreikningur!$T131:$AJ131) -> 0 | E22: =SUMIF(Arsreikningur!$T$4:$AJ$4,Verdmat!E$14,Arsreikningur!$T131:$AJ131) -> 0 | F22: =SUMIF(Arsreikningur!$T$4:$AJ$4,Verdmat!F$14,Arsreikningur!$T131:$AJ131) -> 0 | G22: =SUMIF(Arsreikningur!$T$4:$AJ$4,Verdmat!G$14,Arsreikningur!$T131:$AJ131) -> 0
B23: Frjálst fjárflæði til fjárfesta | C23: =SUM(C20:C22) -> 0 | D23: =SUM(D20:D22) -> 0 | E23: =SUM(E20:E22) -> 0 | F23: =SUM(F20:F22) -> 0 | G23: =SUM(G20:G22) -> 0 | H23: =+G23/($F$52-$C$54) -> 0
B25: Núvirði
B26: Núvirðisstuðull | C26: =1/((1+$F$52)^(C13-1)) -> 1 | D26: =1/((1+$F$52)^(D13-1)) -> 0.8877840909 | E26: =1/((1+$F$52)^(E13-1)) -> 0.7881605921 | F26: =1/((1+$F$52)^(F13-1)) -> 0.6997164347 | G26: =1/((1+$F$52)^(G13-1)) -> 0.6211971189 | H26: =1/((1+$F$52)^(G13)) -> 0.5514889195
B27: Núvirði | C27: =+C26*C23 -> 0 | D27: 0 | E27: 0 | F27: 0 | G27: 0 | H27: 0
B29: Fjármögnun
B30: Fjármunatekjur (fjármagnsgjöld) | C30: =-SUMIF(Arsreikningur!$T$4:$AJ$4,Verdmat!C$14,Arsreikningur!$T33:$AJ33) -> 0 | D30: =-SUMIF(Arsreikningur!$T$4:$AJ$4,Verdmat!D$14,Arsreikningur!$T33:$AJ33) -> 0 | E30: =-SUMIF(Arsreikningur!$T$4:$AJ$4,Verdmat!E$14,Arsreikningur!$T33:$AJ33) -> 0 | F30: =-SUMIF(Arsreikningur!$T$4:$AJ$4,Verdmat!F$14,Arsreikningur!$T33:$AJ33) -> 0 | G30: =-SUMIF(Arsreikningur!$T$4:$AJ$4,Verdmat!G$14,Arsreikningur!$T33:$AJ33) -> 0
B31: Skattaskjöldur af vöxtum v/fjármögnunar | C31: =+C17 -> 0 | D31: =+D17 -> 0 | E31: =+E17 -> 0 | F31: =+F17 -> 0 | G31: =+G17 -> 0
B32: Skuldir lækkun (hækkun) | C32: =-SUMIF(Arsreikningur!$T$4:$AJ$4,Verdmat!C$14,Arsreikningur!$T134:$AJ134)-SUMIF(Arsreikningur!$T$4:$AJ$4,Verdmat!C$14,Arsreikningur!$T135:$AJ135)-SUMIF(Arsreikningur!$T$4:$AJ$4,Verdmat!C$14,Arsreikningur!$T136:$AJ136) -> 0 | D32: =-SUMIF(Arsreikningur!$T$4:$AJ$4,Verdmat!D$14,Arsreikningur!$T134:$AJ134)-SUMIF(Arsreikningur!$T$4:$AJ$4,Verdmat!D$14,Arsreikningur!$T135:$AJ135)-SUMIF(Arsreikningur!$T$4:$AJ$4,Verdmat!D$14,Arsreikningur!$T136:$AJ136) -> 0 | E32: =-SUMIF(Arsreikningur!$T$4:$AJ$4,Verdmat!E$14,Arsreikningur!$T134:$AJ134)-SUMIF(Arsreikningur!$T$4:$AJ$4,Verdmat!E$14,Arsreikningur!$T135:$AJ135)-SUMIF(Arsreikningur!$T$4:$AJ$4,Verdmat!E$14,Arsreikningur!$T136:$AJ136) -> 0 | F32: =-SUMIF(Arsreikningur!$T$4:$AJ$4,Verdmat!F$14,Arsreikningur!$T134:$AJ134)-SUMIF(Arsreikningur!$T$4:$AJ$4,Verdmat!F$14,Arsreikningur!$T135:$AJ135)-SUMIF(Arsreikningur!$T$4:$AJ$4,Verdmat!F$14,Arsreikningur!$T136:$AJ136) -> 0 | G32: =-SUMIF(Arsreikningur!$T$4:$AJ$4,Verdmat!G$14,Arsreikningur!$T134:$AJ134)-SUMIF(Arsreikningur!$T$4:$AJ$4,Verdmat!G$14,Arsreikningur!$T135:$AJ135)-SUMIF(Arsreikningur!$T$4:$AJ$4,Verdmat!G$14,Arsreikningur!$T136:$AJ136) -> 0
B33: Greiddur arður til hluthafa | C33: =-SUMIF(Arsreikningur!$T$4:$AJ$4,Verdmat!C$14,Arsreikningur!$T137:$AJ137) -> 0 | D33: =-SUMIF(Arsreikningur!$T$4:$AJ$4,Verdmat!D$14,Arsreikningur!$T137:$AJ137) -> 0 | E33: =-SUMIF(Arsreikningur!$T$4:$AJ$4,Verdmat!E$14,Arsreikningur!$T137:$AJ137) -> 0 | F33: =-SUMIF(Arsreikningur!$T$4:$AJ$4,Verdmat!F$14,Arsreikningur!$T137:$AJ137) -> 0 | G33: =-SUMIF(Arsreikningur!$T$4:$AJ$4,Verdmat!G$14,Arsreikningur!$T137:$AJ137) -> 0
B34: Innborgað nýtt hlutafé | C34: =-SUMIF(Arsreikningur!$T$4:$AJ$4,Verdmat!C$14,Arsreikningur!$T138:$AJ138) -> 0 | D34: =-SUMIF(Arsreikningur!$T$4:$AJ$4,Verdmat!D$14,Arsreikningur!$T138:$AJ138) -> 0 | E34: =-SUMIF(Arsreikningur!$T$4:$AJ$4,Verdmat!E$14,Arsreikningur!$T138:$AJ138) -> 0 | F34: =-SUMIF(Arsreikningur!$T$4:$AJ$4,Verdmat!F$14,Arsreikningur!$T138:$AJ138) -> 0 | G34: =-SUMIF(Arsreikningur!$T$4:$AJ$4,Verdmat!G$14,Arsreikningur!$T138:$AJ138) -> 0
B35: Hækkun (lækkun) á handbæru fé | C35: =SUMIF(Arsreikningur!$T$4:$AJ$4,Verdmat!C$14,Arsreikningur!$T141:$AJ141) -> 0 | D35: =SUMIF(Arsreikningur!$T$4:$AJ$4,Verdmat!D$14,Arsreikningur!$T141:$AJ141) -> 0 | E35: =SUMIF(Arsreikningur!$T$4:$AJ$4,Verdmat!E$14,Arsreikningur!$T141:$AJ141) -> 0 | F35: =SUMIF(Arsreikningur!$T$4:$AJ$4,Verdmat!F$14,Arsreikningur!$T141:$AJ141) -> 0 | G35: =SUMIF(Arsreikningur!$T$4:$AJ$4,Verdmat!G$14,Arsreikningur!$T141:$AJ141) -> 0
B36: Alls | C36: =SUM(C30:C35) -> 0 | D36: =SUM(D30:D35) -> 0 | E36: =SUM(E30:E35) -> 0 | F36: =SUM(F30:F35) -> 0 | G36: =SUM(G30:G35) -> 0
B38: Verðmæti reksturs | C38: =SUM(C27:H27) -> 0
A40: Forsendur núvirðiútreiknings
B42: Ávöxtunarkrafa á eigið fé
B43: Áhættulaus ávöxtun (Base rate) | C43: 0.0478
B44: Áhættuálag markaðar (Spread) | C44: 0.05
B45: Beta gildi (Beta) | C45: 1.15
B46: Alpha | C46: 0.02
B47: Ávöxtunarkrafa á eigið fé | C47: =+C43+C44*C45+C46 -> 0.1253
B49: Vegin fjármagnskostnaður | C49: Hlutfall fjárm. | D49: Kostn. fyrir skatta | E49: Kostn. eftir skatta | F49: WACC
B50: Skuldir | C50: 0.5 | D50: 0.15 | E50: =+D50*(1-Efnahagur!$G$90) -> 0.1275 | F50: =+E50*C50 -> 0.06375
B51: Eigið fé | C51: =+C52-C50 -> 0.5 | D51: =+C47 -> 0.1253 | E51: =+D51 -> 0.1253 | F51: =+E51*C51 -> 0.06265
B52: Alls | C52: 1 | F52: =SUM(F50:F51) -> 0.1264
B54: Framtíðarvöxtur (% á ári) | C54: 0.01
A56: Næmisgreining
E59: - WACC -
D60: =+C38 -> 0 | E60: 0.08664 | F60: 0.09664 | G60: 0.10664 | H60: 0.11664 | I60: 0.12664 | J60: 0.13664 | K60: 0.14664
C61: - FRAMTÍÐARVÖXTUR - | D61: 0.005 | E61: 0 | F61: 0 | G61: 0 | H61: 0 | I61: 0 | J61: 0 | K61: 0
D62: 0.01 | E62: 0 | F62: 0 | G62: 0 | H62: 0 | I62: 0 | J62: 0 | K62: 0
D63: 0.015 | E63: 0 | F63: 0 | G63: 0 | H63: 0 | I63: 0 | J63: 0 | K63: 0
D64: 0.02 | E64: 0 | F64: 0 | G64: 0 | H64: 0 | I64: 0 | J64: 0 | K64: 0
D65: 0.025 | E65: 0 | F65: 0 | G65: 0 | H65: 0 | I65: 0 | J65: 0 | K65: 0
D66: 0.03 | E66: 0 | F66: 0 | G66: 0 | H66: 0 | I66: 0 | J66: 0 | K66: 0
D67: 0.035 | E67: 0 | F67: 0 | G67: 0 | H67: 0 | I67: 0 | J67: 0 | K67: 0

Sheet Myndir
A1: =Forsendur!$C$5 -> Nafn fyrirtækis
A3: Rekstrartekjur og hagnaður í millj. kr.
A25: Efnahagsreikningur í millj. kr.
A47: Veltufé í millj. kr.
A73: Forsendur mynda
B74: =Forsendur!C6 -> 2016 | C74: =B74+1 -> 2017 | D74: =C74+1 -> 2018 | E74: =D74+1 -> 2019 | F74: =E74+1 -> 2020
A75: Rekstrartekjur | B75: =Arsreikningur!T11 -> 0 | C75: =Arsreikningur!AG11 -> 0 | D75: =Arsreikningur!AH11 -> 0 | E75: =Arsreikningur!AI11 -> 0 | F75: =Arsreikningur!AJ11 -> 0
A76: Hagnaður / (Tap) | B76: =Arsreikningur!T43 -> 0 | C76: =Arsreikningur!AG43 -> 0 | D76: =Arsreikningur!AH43 -> 0 | E76: =Arsreikningur!AI43 -> 0 | F76: =Arsreikningur!AJ43 -> 0
A78: Eignir | B78: =Arsreikningur!T69 -> 0 | C78: =Arsreikningur!AG69 -> 0 | D78: =Arsreikningur!AH69 -> 0 | E78: =Arsreikningur!AI69 -> 0 | F78: =Arsreikningur!AJ69 -> 0
A79: Skuldir | B79: =Arsreikningur!T97 -> 0 | C79: =Arsreikningur!AG97 -> 0 | D79: =Arsreikningur!AH97 -> 0 | E79: =Arsreikningur!AI97 -> 0 | F79: =Arsreikningur!AJ97 -> 0
A80: Eigið fé | B80: =Arsreikningur!T75 -> 0 | C80: =Arsreikningur!AG75 -> 0 | D80: =Arsreikningur!AH75 -> 0 | E80: =Arsreikningur!AI75 -> 0 | F80: =Arsreikningur!AJ75 -> 0
A82: Hagnaður / (Tap) | B82: =Arsreikningur!T106 -> 0 | C82: =Arsreikningur!AG106 -> 0 | D82: =Arsreikningur!AH106 -> 0 | E82: =Arsreikningur!AI106 -> 0 | F82: =Arsreikningur!AJ106 -> 0
A83: Afskriftir | B83: =Arsreikningur!T108 -> 0 | C83: =Arsreikningur!AG108 -> 0 | D83: =Arsreikningur!AH108 -> 0 | E83: =Arsreikningur!AI108 -> 0 | F83: =Arsreikningur!AJ108 -> 0
A84: Veltufé til / (frá) rekstri | B84: =Arsreikningur!T111 -> 0 | C84: =Arsreikningur!AG111 -> 0 | D84: =Arsreikningur!AH111 -> 0 | E84: =Arsreikningur!AI111 -> 0 | F84: =Arsreikningur!AJ111 -> 0
